Workbook

Sheet Übersicht

Sheet WMO_Planung_MM
B2: Standort | F2: Memmingen | N2: Legende:
B3: Planjahr | F3: 2022 | O3: Simulationseingabe
B5: Kennzahlenplanung auf Jahresbasis (pro WMO)
B6: Bezeichnung Parameter | N6: IST-Wert Vorjahr gesamt | W6: Plan-Werte aktuelles Jahr | AF6: Rechenweg/Bemerkung
B7: Berechnung anwesende Std. pro Jahr (betriebsübergriefend)
B8: Anzahl Kalendertage | N8: 365 | W8: 365
B9: ./. Anzahl Wochenendtage | N9: 104 | W9: 104
B10: ./. Anzahl Feiertage | N10: 11 | W10: 11 | AF10: Die auf einen Wochentag (außer Samstag) fallen
B11: = Anzahl Arbeitstage brutto | N11: =N8-N9-N10 -> 250 | W11: =W8-W9-W10 -> 250 | AF11: Anzahl Kalendertage - Wochenendtage - Feiertage
B12: ./. Krankheitstage | N12: 7 | W12: 7
B13: ./. Schulungstage | N13: 4 | W13: 4
B14: ./. Urlaubstage | N14: 25 | W14: 25
B15: = Anzahl Arbeitstage netto | N15: =N11-N12-N13-N14 -> 214 | W15: =W11-W12-W13-W14 -> 214 | AF15: Arbeitstage brutto - Krankheitstage - Schulungstage - Urlaubstage (Berufsschultage werden später berücksichtigt)
B16: * Arbeitszeit pro Tag in h | N16: 8.4 | W16: 8.4
B17: = Anwesende Stunden pro Jahr pro WMO /AZG | N17: =N15*N16 -> 1797.6 | W17: =W15*W16 -> 1797.6 | AF17: Arbeitstage netto * Arbeitszeit pro Tag in h (Berufsschulstunden werden später berücksichtigt)
B19: Berechnung Leistungskennzahlen pro Jahr (betriebsindividuell)
N20: Anzahl | P20: LG | R20: AUSL | T20: PR | W20: Anzahl | Y20: LG | AA20: AUSL | AC20: PR
B21: WMOM gewichtet mit Prod.fakt.NAV | P21: =T21/R21 -> 1.128205128 | R21: 0.975 | T21: 1.1 | W21: 9 | Y21: =AC21/AA21 -> 1.128205128 | AA21: 0.975 | AC21: 1.1 | AF21: LG = Leistungsgrad / AUSL = Auslastung / PR = Produktivität
B22: WMOE gewichtet mit Prod.fakt.NAV | P22: =T22/R22 -> 1.025641026 | R22: 0.975 | T22: 1 | W22: 4 | Y22: =AC22/AA22 -> 1.025641026 | AA22: 0.975 | AC22: 1 | AF22: LG = Leistungsgrad / AUSL = Auslastung / PR = Produktivität
B23: WMOK gewichtet mit Prod.fakt.NAV | P23: 1.230769231 | R23: 0.975 | T23: 1.2 | W23: 2 | Y23: 1.230769231 | AA23: 0.975 | AC23: 1.2 | AF23: LG = Leistungsgrad / AUSL = Auslastung / PR = Produktivität
B24: AZG1 gewichtet mit Prod.fakt.NAV | P24: 0 | R24: 0.975 | T24: 0 | W24: 1 | Y24: 0 | AA24: 0.975 | AC24: 0 | AF24: LG = Leistungsgrad / AUSL = Auslastung / PR = Produktivität
B25: AZG2 gewichtet mit Prod.fakt.NAV | P25: 0.2051282051 | R25: 0.975 | T25: 0.2 | W25: 1 | Y25: 0.2051282051 | AA25: 0.975 | AC25: 0.2 | AF25: LG = Leistungsgrad / AUSL = Auslastung / PR = Produktivität
B26: AZG3 gewichtet mit Prod.fakt.NAV | P26: 0.4102564103 | R26: 0.975 | T26: 0.4 | W26: 3 | Y26: 0.4102564103 | AA26: 0.975 | AC26: 0.4 | AF26: LG = Leistungsgrad / AUSL = Auslastung / PR = Produktivität
B27: AZG4 gewichtet mit Prod.fakt.NAV | P27: 0.4102564103 | R27: 0.975 | T27: 0.4 | W27: 3 | Y27: 0.4102564103 | AA27: 0.975 | AC27: 0.4 | AF27: LG = Leistungsgrad / AUSL = Auslastung / PR = Produktivität
B29: Berechnung verkaufbare AW pro Jahr WMO
B30: = Anwesende Stunden pro Jahr pro WMO | N30: =N17 -> 1797.6 | W30: =W17 -> 1797.6 | AF30: Übertrag aus Zeile 14
B31: * Leistungsgrad gewichtetes Mittel alle WMO | N31: =(N21*P21+N22*P22+N23*P23)/N37 ->  | W31: =(W21*Y21+W22*Y22+W23*Y23)/W37 -> 1.114529915 | AF31: Gewichtetetes Mittel aus Zeile 19-21 [(Anzahl * LG + Anzahl * LG…)/Anzhal WMO]
B32: * Auslastung (100% anw. Stunden - 2,5 % Wvariabel) | N32: =(N21*R21+N22*R22+N23*R23)/N37 ->  | W32: =(W21*AA21+W22*AA22+W23*AA23)/W37 -> 0.975 | AF32: Gewichtetetes Mittel aus Zeile 19-21 [(Anzahl * AUSL + Anzahl * AUSL…)/Anzhal WMO]
B33: Produktivität (LG * AUSL) gew. Mittel alle WMO | N33: =N31*N32 ->  | W33: =W31*W32 -> 1.086666667 | AF33: Die PR wird hier nur aus Plausibilitätsgründen ausgewiesen und nicht als Rechenfaktor angewendet
B34: = verkaufbare Std. gewicht. Mittel ein WMO Jahresw. | N34: =N30*N31*N32 ->  | W34: =W30*W31*W32 -> 1953.392 | AF34: Anw. Stunden * Leistungsgrad * Auslastung
B35: * Umrechnungsfaktor AW | N35: 12 | W35: 12
B36: = verkaufbare AW gewicht. Mittel ein WMO Jahresw. | N36: =N34*N35 ->  | W36: =W34*W35 -> 23440.704 | AF36: verkaufbare prod. Std. * Umrechnungsfaktor AW
B37: * Anzahl WMO gesamt gewichtet mit Prod.fakt.NAV | N37: =SUM(N21:O23) -> 0 | W37: =SUM(W21:X23) -> 15 | AF37: Summe aller WMO (Zeile 19-21)
B38: = verkaufbare AW gesamt alle WMO Jahreswert | N38: =N36*N37 ->  | W38: =W36*W37 -> 351610.56 | AF38: verkaufbare prod. AW * Anzahl WMO
B40: Berechnung verkaufbare AW pro Jahr AZG
B41: = Anwesende Std. pro Jahr pro AZG (mit Berufsschulzeit) | N41: =N17 -> 1797.6 | W41: =W17 -> 1797.6 | AF41: Übertrag aus Zeile 14
B42: ./. Std. Berufsschulzeit und Lehrgänge pro Jahr | N42: 480 | W42: 480 | AF42: Mittelwert über alle Lehrjahre [(52 Wochen - 12 Wochen Ferien) *1,5 Tage * 8 Std.) = 480 Std.
B43: = Anwesende Stunden pro Jahr (ohne Berufsschulzeit) | N43: =N41-N42 -> 1317.6 | W43: =W41-W42 -> 1317.6 | AF43: Anwesende Std. - Std. Berufsschulzeit
B44: * Leistungsgrad gewichtetes Mittel alle AZG | N44: =(N24*P24+N25*P25+N26*P26+N27*P27)/N50 ->  | W44: =(W24*Y24+W25*Y25+W26*Y26+W27*Y27)/W50 -> 0.3333333333 | AF44: Gewichtetetes Mittel aus Zeile 22-25 [(Anzahl * LG + Anzahl * LG…)/Anzhal AZG]
B45: * Auslastung (100% anw. Stunden - 2,5 % Wvariabel) | N45: =(N24*R24+N25*R25+N26*R26+N27*R27)/N50 ->  | W45: =(W24*AA24+W25*AA25+W26*AA26+W27*AA27)/W50 -> 0.975 | AF45: Gewichtetetes Mittel aus Zeile 22-25 [(Anzahl * AUSL + Anzahl * AUSL…)/Anzhal AZG]
B46: Produktivität (Leistungsgrad * Auslastung) | N46: =N44*N45 ->  | W46: =W44*W45 -> 0.325 | AF46: Die PR wird hier nur aus Plausibilitätsgründen ausgewiesen und nicht als Rechenfaktor angewendet.
B47: = verkaufbare Std. ein AZG Jahreswert | N47: =N43*N44*N45 ->  | W47: =W43*W44*W45 -> 428.22 | AF47: Anw. Stunden * Leistungsgrad * Auslastung
B48: * Umrechnungsfaktor AW | N48: 12 | W48: 12
B49: = verkaufbare AW ein AZG Jahreswert | N49: =N47*N48 ->  | W49: =W47*W48 -> 5138.64 | AF49: verkaufbare prod. Std. * Umrechnungsfaktor AW
B50: * Anzahl AZG gesamt gewichtet mit Prod.fakt.NAV | N50: =SUM(N24:O27) -> 0 | W50: =SUM(W24:X27) -> 8 | AF50: Summe aller AZG (Zeile 22-25)
B51: = verkaufbare AW gesamt alle AZG Jahreswert | N51: =N49*N50 ->  | W51: =W49*W50 -> 41109.12 | AF51: verkaufbare prod. AW * Anzahl AZG
B53: Berechnung verkaufbare AW pro Jahr gesamt (WMO und AZG)
B54: = verkaufbare prod. AW WMO und AZG Jahreswert | N54: =N51+N38 ->  | W54: =W51+W38 -> 392719.68 | AF54: Summe aller WMO und AZG (Zeile 19-25)
B56: Berechnung Umsatz Lohn pro Jahr WMO
B57: = verkaufbare AW gesamt alle WMO Jahreswert | N57: =N38 ->  | W57: =W38 -> 351610.56 | AF57: Übertrag aus Zeile 36
B58: * Ø tatsächlich erzielbarer AW-Preis | N58: 0 | W58: 9 | AF58: AW-Preis Mechanik extern netto - 1,90€
B59: = Umsatz Lohn Jahreswert WMO | N59: =N57*N58 ->  | W59: =W57*W58 -> 3164495.04 | AF59: verkaufbare prod. AW gesamt WMO * Ø tatsächlich erzielbarer AW-Preis
B61: Berechnung Umsatz Lohn pro Jahr AZG
B62: = verkaufbare AW gesamt alle AZG Jahreswert | N62: =N51 ->  | W62: =W51 -> 41109.12 | AF62: Übertrag aus Zeile 49
B63: * Ø tatsächlich erzielbarer AW-Preis | N63: =N58 -> 0 | W63: =W58 -> 9 | AF63: AW-Preis Mechanik extern netto - 1,90€ (entspricht Wert aus Zeile 56)
B64: = Umsatz Lohn Jahreswert AZG | N64: =N62*N63 ->  | W64: =W62*W63 -> 369982.08 | AF64: verkaufbare prod. AW gesamt AZG * Ø tatsächlich erzielbarer AW-Preis
B66: Berechnung Umsatz Lohn pro Jahr gesamt (WMO + AZG)
B67: = verkaufbare AW gesamt WMO + AZG Jahreswert | N67: =N62+N57 ->  | W67: =W62+W57 -> 392719.68 | AF67: Summe aus Zeile 57+62
B68: * Ø tatsächlich erzielbarer AW-Preis | N68: =N58 -> 0 | W68: =W58 -> 9 | AF68: AW-Preis Mechanik extern netto - 1,90€ (entspricht Wert aus Zeile 56)
B69: = Umsatz Lohn Jahreswert gesamt (WMO + AZG) | N69: =N67*N68 ->  | W69: =W67*W68 -> 3534477.12 | AF69: verkaufbare prod. AW gesamt WMO + AZG * Ø tatsächlich erzielbarer AW-Preis
B71: Umsatz Lohn auf Basis Monatswerte nach Saisonfaktor
B72: Monat | H72: Saisonfaktor | N72: Umatz Lohn | W72: Umatz Lohn | AF72: Rechenweg/Bemerkung
B73: Jan - Dez. | H73: =SUM(H74:L85) -> 1 | N73: =N69 ->  | W73: =W69 -> 3534477.12 | AF73: Übertrag aus Zeile 56. Saisonfaktor = Summe aller Einzelwerte zur Plausibbilität
B74: Januar | H74: 0.075 | N74: =$N$73*H74 ->  | W74: =$W$73*H74 -> 265085.784 | AF74: Umsatz Service Jahreswert * Saisonfaktor
B75: Februar | H75: 0.075 | N75: =$N$73*H75 ->  | W75: =$W$73*H75 -> 265085.784 | AF75: Umsatz Service Jahreswert * Saisonfaktor
B76: März | H76: 0.087 | W76: 307499.5094 | AF76: Umsatz Service Jahreswert * Saisonfaktor
B77: April | H77: 0.089 | W77: 314568.4637 | AF77: Umsatz Service Jahreswert * Saisonfaktor
B78: Mai | H78: 0.086 | W78: 303965.0323 | AF78: Umsatz Service Jahreswert * Saisonfaktor
B79: Juni | H79: 0.084 | W79: 296896.0781 | AF79: Umsatz Service Jahreswert * Saisonfaktor
B80: Juli | H80: 0.084 | W80: 296896.0781 | AF80: Umsatz Service Jahreswert * Saisonfaktor
B81: August | H81: 0.081 | W81: 286292.6467 | AF81: Umsatz Service Jahreswert * Saisonfaktor
B82: September | H82: 0.083 | W82: 293361.601 | AF82: Umsatz Service Jahreswert * Saisonfaktor
B83: Oktober | H83: 0.08 | W83: 282758.1696 | AF83: Umsatz Service Jahreswert * Saisonfaktor
B84: November | H84: 0.088 | W84: 311033.9866 | AF84: Umsatz Service Jahreswert * Saisonfaktor
B85: Dezember | H85: 0.088 | W85: 311033.9866 | AF85: Umsatz Service Jahreswert * Saisonfaktor

Sheet SCB_Planung_MM
B2: =WMO_Planung_MM!B2 -> Standort | C2: =WMO_Planung_MM!F2 -> Memmingen | E2: Legende:
B3: =WMO_Planung_MM!B3 -> Planjahr | C3: =WMO_Planung_MM!F3 -> 2022 | F3: Simulationseingabe
F4: Supervariable (wird durch die Simulationseingabe verändert)
B6: Kennzahlenplanung auf Jahresbasis
B7: Bezeichnung | C7: Vorwärtkalkulation Simulation 1 | D7: Vorwärtkalkulation Simulation 2 | E7: Vorwärtkalkulation Simulation 3 | G7: Rückwärtskalkulation bezogen auf Planung gesamt (WMO +AZG)
B8: Anzahl Kalendertage | C8: 365 | D8: 365 | E8: 365 | G8: 365
B9: ./. Anzahl Wochenendtage | C9: 104 | D9: 104 | E9: 104 | G9: 104
B10: ./. Anzahl Feiertage | C10: 11 | D10: 11 | E10: 11 | G10: 11
B11: = Anzahl Arbeitstage brutto | C11: =C8-C9-C10 -> 250 | D11: =D8-D9-D10 -> 250 | E11: =E8-E9-E10 -> 250 | G11: =G8-G9-G10 -> 250
B12: ./. Krankheitstage | C12: 7 | D12: 7 | E12: 7 | G12: 7
B13: ./. Schulungstage | C13: 4 | D13: 4 | E13: 4 | G13: 4
B14: ./. Urlaubstage | C14: 25 | D14: 25 | E14: 25 | G14: 25
B15: = Anzahl Arbeitstage netto | C15: =C11-C12-C13-C14 -> 214 | D15: =D11-D12-D13-D14 -> 214 | E15: =E11-E12-E13-E14 -> 214 | G15: =G11-G12-G13-G14 -> 214
B16: * Durchgänge pro Tag | C16: 10 | D16: 11 | E16: 10 | G16: 10 | H16: =WMO_Planung_MM!W54/(SCB_Planung_MM!H17*SCB_Planung_MM!G15*SCB_Planung_MM!G21) -> 10.92344459
B17: * AW pro Durchgang | C17: 24 | D17: 24 | E17: 24 | G17: =WMO_Planung_MM!W54/(SCB_Planung_MM!G16*SCB_Planung_MM!G15*G21) -> 26.21626702 | H17: 24
B18: * Ø tatsächlich erzielbarer AW-Preis | C18: 10.5 | D18: 10.5 | E18: 10.5 | G18: =WMO_Planung_MM!W58 -> 9 | H18: =G18 -> 9
B19: = Umsatz Lohn Jahreswert pro SCB | C19: =C15*C16*C17*C18 -> 539280 | D19: =D15*D16*D17*D18 -> 593208 | E19: =E15*E16*E17*E18 -> 539280 | G19: =G22/G21 -> 504925.3029 | H19: =H22/H21 -> 504925.3029
B21: * Anzahl SCB | C21: 7.4 | D21: 7.4 | E21: 7.4 | G21: 7 | H21: 7
B22: = Umsatz Lohn gesamt | C22: =C19*C21 -> 3990672 | D22: =D19*D21 -> 4389739.2 | E22: 3990672 | G22: =WMO_Planung_MM!W69 -> 3534477.12 | H22: =G22 -> 3534477.12
B24: Plausibilitätsrechnung
B25: Lohnumsatz pro Durchgang | C25: =C19/(C16*C15) -> 252 | D25: =D19/(D16*D15) -> 252 | E25: 252 | G25: 235.9464032 | H25: =H19/(H16*G15) -> 216

Sheet WMO_Planung_Ulm
B2: Standort | F2: Ulm | N2: Legende:
B3: Planjahr | F3: 2022 | O3: Simulationseingabe
B5: Kennzahlenplanung auf Jahresbasis (pro WMO)
B6: Bezeichnung Parameter | N6: IST-Wert Vorjahr gesamt | W6: Plan-Werte aktuelles Jahr | AF6: Rechenweg/Bemerkung
B7: Berechnung anwesende Std. pro Jahr (betriebsübergriefend)
B8: Anzahl Kalendertage | N8: 365 | W8: 365
B9: ./. Anzahl Wochenendtage | N9: 104 | W9: 104
B10: ./. Anzahl Feiertage | N10: 11 | W10: 11 | AF10: Die auf einen Wochentag (außer Samstag) fallen
B11: = Anzahl Arbeitstage brutto | N11: =N8-N9-N10 -> 250 | W11: =W8-W9-W10 -> 250 | AF11: Anzahl Kalendertage - Wochenendtage - Feiertage
B12: ./. Krankheitstage | N12: 7 | W12: 7
B13: ./. Schulungstage | N13: 4 | W13: 4
B14: ./. Urlaubstage | N14: 25 | W14: 25
B15: = Anzahl Arbeitstage netto | N15: =N11-N12-N13-N14 -> 214 | W15: =W11-W12-W13-W14 -> 214 | AF15: Arbeitstage brutto - Krankheitstage - Schulungstage - Urlaubstage (Berufsschultage werden später berücksichtigt)
B16: * Arbeitszeit pro Tag in h | N16: 8.4 | W16: 8.4
B17: = Anwesende Stunden pro Jahr pro WMO /AZG | N17: =N15*N16 -> 1797.6 | W17: =W15*W16 -> 1797.6 | AF17: Arbeitstage netto * Arbeitszeit pro Tag in h (Berufsschulstunden werden später berücksichtigt)
B19: Berechnung Leistungskennzahlen pro Jahr (betriebsindividuell)
N20: Anzahl | P20: LG | R20: AUSL | T20: PR | W20: Anzahl | Y20: LG | AA20: AUSL | AC20: PR
B21: WMOM gewichtet mit Prod.fakt.NAV | P21: =T21/R21 -> 1.128205128 | R21: 0.975 | T21: 1.1 | W21: 14 | Y21: =AC21/AA21 -> 1.128205128 | AA21: 0.975 | AC21: 1.1 | AF21: LG = Leistungsgrad / AUSL = Auslastung / PR = Produktivität
B22: WMOE gewichtet mit Prod.fakt.NAV | P22: =T22/R22 -> 1.025641026 | R22: 0.975 | T22: 1 | W22: 4 | Y22: =AC22/AA22 -> 1.025641026 | AA22: 0.975 | AC22: 1 | AF22: LG = Leistungsgrad / AUSL = Auslastung / PR = Produktivität
B23: WMOK gewichtet mit Prod.fakt.NAV | P23: 1.230769231 | R23: 0.975 | T23: 1.2 | W23: 3 | Y23: 1.230769231 | AA23: 0.975 | AC23: 1.2 | AF23: LG = Leistungsgrad / AUSL = Auslastung / PR = Produktivität
B24: AZG1 gewichtet mit Prod.fakt.NAV | P24: 0 | R24: 0.975 | T24: 0 | W24: 2 | Y24: 0 | AA24: 0.975 | AC24: 0 | AF24: LG = Leistungsgrad / AUSL = Auslastung / PR = Produktivität
B25: AZG2 gewichtet mit Prod.fakt.NAV | P25: 0.2051282051 | R25: 0.975 | T25: 0.2 | W25: 2 | Y25: 0.2051282051 | AA25: 0.975 | AC25: 0.2 | AF25: LG = Leistungsgrad / AUSL = Auslastung / PR = Produktivität
B26: AZG3 gewichtet mit Prod.fakt.NAV | P26: 0.4102564103 | R26: 0.975 | T26: 0.4 | W26: 5 | Y26: 0.4102564103 | AA26: 0.975 | AC26: 0.4 | AF26: LG = Leistungsgrad / AUSL = Auslastung / PR = Produktivität
B27: AZG4 gewichtet mit Prod.fakt.NAV | P27: 0.4102564103 | R27: 0.975 | T27: 0.4 | W27: 5 | Y27: 0.4102564103 | AA27: 0.975 | AC27: 0.4 | AF27: LG = Leistungsgrad / AUSL = Auslastung / PR = Produktivität
B29: Berechnung verkaufbare AW pro Jahr WMO
B30: = Anwesende Stunden pro Jahr pro WMO | N30: =N17 -> 1797.6 | W30: =W17 -> 1797.6 | AF30: Übertrag aus Zeile 14
B31: * Leistungsgrad gewichtetes Mittel alle WMO | N31: =(N21*P21+N22*P22+N23*P23)/N37 ->  | W31: =(W21*Y21+W22*Y22+W23*Y23)/W37 -> 1.123321123 | AF31: Gewichtetetes Mittel aus Zeile 19-21 [(Anzahl * LG + Anzahl * LG…)/Anzhal WMO]
B32: * Auslastung (100% anw. Stunden - 2,5 % Wvariabel) | N32: =(N21*R21+N22*R22+N23*R23)/N37 ->  | W32: =(W21*AA21+W22*AA22+W23*AA23)/W37 -> 0.975 | AF32: Gewichtetetes Mittel aus Zeile 19-21 [(Anzahl * AUSL + Anzahl * AUSL…)/Anzhal WMO]
B33: Produktivität (LG * AUSL) gew. Mittel alle WMO | N33: =N31*N32 ->  | W33: =W31*W32 -> 1.095238095 | AF33: Die PR wird hier nur aus Plausibilitätsgründen ausgewiesen und nicht als Rechenfaktor angewendet
B34: = verkaufbare Std. gewicht. Mittel ein WMO Jahresw. | N34: =N30*N31*N32 ->  | W34: =W30*W31*W32 -> 1968.8 | AF34: Anw. Stunden * Leistungsgrad * Auslastung
B35: * Umrechnungsfaktor AW | N35: 12 | W35: 12
B36: = verkaufbare AW gewicht. Mittel ein WMO Jahresw. | N36: =N34*N35 ->  | W36: =W34*W35 -> 23625.6 | AF36: verkaufbare prod. Std. * Umrechnungsfaktor AW
B37: * Anzahl WMO gesamt gewichtet mit Prod.fakt.NAV | N37: =SUM(N21:O23) -> 0 | W37: =SUM(W21:X23) -> 21 | AF37: Summe aller WMO (Zeile 19-21)
B38: = verkaufbare AW gesamt alle WMO Jahreswert | N38: =N36*N37 ->  | W38: =W36*W37 -> 496137.6 | AF38: verkaufbare prod. AW * Anzahl WMO
B40: Berechnung verkaufbare AW pro Jahr AZG
B41: = Anwesende Std. pro Jahr pro AZG (mit Berufsschulzeit) | N41: =N17 -> 1797.6 | W41: =W17 -> 1797.6 | AF41: Übertrag aus Zeile 14
B42: ./. Std. Berufsschulzeit und Lehrgänge pro Jahr | W42: 480 | AF42: Mittelwert über alle Lehrjahre [(52 Wochen - 12 Wochen Ferien) *1,5 Tage * 8 Std.) = 480 Std.
B43: = Anwesende Stunden pro Jahr (ohne Berufsschulzeit) | N43: =N41-N42 -> 1797.6 | W43: =W41-W42 -> 1317.6 | AF43: Anwesende Std. - Std. Berufsschulzeit
B44: * Leistungsgrad gewichtetes Mittel alle AZG | N44: =(N24*P24+N25*P25+N26*P26+N27*P27)/N50 ->  | W44: =(W24*Y24+W25*Y25+W26*Y26+W27*Y27)/W50 -> 0.3223443223 | AF44: Gewichtetetes Mittel aus Zeile 22-25 [(Anzahl * LG + Anzahl * LG…)/Anzhal AZG]
B45: * Auslastung (100% anw. Stunden - 2,5 % Wvariabel) | N45: =(N24*R24+N25*R25+N26*R26+N27*R27)/N50 ->  | W45: =(W24*AA24+W25*AA25+W26*AA26+W27*AA27)/W50 -> 0.975 | AF45: Gewichtetetes Mittel aus Zeile 22-25 [(Anzahl * AUSL + Anzahl * AUSL…)/Anzhal AZG]
B46: Produktivität (Leistungsgrad * Auslastung) | N46: =N44*N45 ->  | W46: =W44*W45 -> 0.3142857143 | AF46: Die PR wird hier nur aus Plausibilitätsgründen ausgewiesen und nicht als Rechenfaktor angewendet.
B47: = verkaufbare Std. ein AZG Jahreswert | N47: =N43*N44*N45 ->  | W47: =W43*W44*W45 -> 414.1028571 | AF47: Anw. Stunden * Leistungsgrad * Auslastung
B48: * Umrechnungsfaktor AW | N48: 12 | W48: 12
B49: = verkaufbare AW ein AZG Jahreswert | N49: =N47*N48 ->  | W49: =W47*W48 -> 4969.234286 | AF49: verkaufbare prod. Std. * Umrechnungsfaktor AW
B50: * Anzahl AZG gesamt gewichtet mit Prod.fakt.NAV | N50: =SUM(N24:O27) -> 0 | W50: =SUM(W24:X27) -> 14 | AF50: Summe aller AZG (Zeile 22-25)
B51: = verkaufbare AW gesamt alle AZG Jahreswert | N51: =N49*N50 ->  | W51: =W49*W50 -> 69569.28 | AF51: verkaufbare prod. AW * Anzahl AZG
B53: Berechnung verkaufbare AW pro Jahr gesamt (WMO und AZG)
B54: = verkaufbare prod. AW WMO und AZG Jahreswert | N54: =N51+N38 ->  | W54: =W51+W38 -> 565706.88 | AF54: Summe aller WMO und AZG (Zeile 19-25)
B56: Berechnung Umsatz Lohn pro Jahr WMO
B57: = verkaufbare AW gesamt alle WMO Jahreswert | N57: =N38 ->  | W57: =W38 -> 496137.6 | AF57: Übertrag aus Zeile 36
B58: * Ø tatsächlich erzielbarer AW-Preis | N58: 0 | W58: 9 | AF58: AW-Preis Mechanik extern netto - 1,90€
B59: = Umsatz Lohn Jahreswert WMO | N59: =N57*N58 ->  | W59: =W57*W58 -> 4465238.4 | AF59: verkaufbare prod. AW gesamt WMO * Ø tatsächlich erzielbarer AW-Preis
B61: Berechnung Umsatz Lohn pro Jahr AZG
B62: = verkaufbare AW gesamt alle AZG Jahreswert | N62: =N51 ->  | W62: =W51 -> 69569.28 | AF62: Übertrag aus Zeile 49
B63: * Ø tatsächlich erzielbarer AW-Preis | N63: =N58 -> 0 | W63: =W58 -> 9 | AF63: AW-Preis Mechanik extern netto - 1,90€ (entspricht Wert aus Zeile 56)
B64: = Umsatz Lohn Jahreswert AZG | N64: =N62*N63 ->  | W64: =W62*W63 -> 626123.52 | AF64: verkaufbare prod. AW gesamt AZG * Ø tatsächlich erzielbarer AW-Preis
B66: Berechnung Umsatz Lohn pro Jahr gesamt (WMO + AZG)
B67: = verkaufbare AW gesamt WMO + AZG Jahreswert | N67: =N62+N57 ->  | W67: =W62+W57 -> 565706.88 | AF67: Summe aus Zeile 57+62
B68: * Ø tatsächlich erzielbarer AW-Preis | N68: =N58 -> 0 | W68: =W58 -> 9 | AF68: AW-Preis Mechanik extern netto - 1,90€ (entspricht Wert aus Zeile 56)
B69: = Umsatz Lohn Jahreswert gesamt (WMO + AZG) | N69: =N67*N68 ->  | W69: =W67*W68 -> 5091361.92 | AF69: verkaufbare prod. AW gesamt WMO + AZG * Ø tatsächlich erzielbarer AW-Preis
B71: Umsatz Lohn auf Basis Monatswerte nach Saisonfaktor
B72: Monat | H72: Saisonfaktor | N72: Umatz Lohn | W72: Umatz Lohn | AF72: Rechenweg/Bemerkung
B73: Jan - Dez. | H73: =SUM(H74:L85) -> 1 | N73: =N69 ->  | W73: =W69 -> 5091361.92 | AF73: Übertrag aus Zeile 56. Saisonfaktor = Summe aller Einzelwerte zur Plausibbilität
B74: Januar | H74: 0.075 | N74: =$N$73*H74 ->  | W74: =$W$73*H74 -> 381852.144 | AF74: Umsatz Service Jahreswert * Saisonfaktor
B75: Februar | H75: 0.075 | N75: =$N$73*H75 ->  | W75: =$W$73*H75 -> 381852.144 | AF75: Umsatz Service Jahreswert * Saisonfaktor
B76: März | H76: 0.087 | W76: 442948.487 | AF76: Umsatz Service Jahreswert * Saisonfaktor
B77: April | H77: 0.089 | W77: 453131.2109 | AF77: Umsatz Service Jahreswert * Saisonfaktor
B78: Mai | H78: 0.086 | W78: 437857.1251 | AF78: Umsatz Service Jahreswert * Saisonfaktor
B79: Juni | H79: 0.084 | W79: 427674.4013 | AF79: Umsatz Service Jahreswert * Saisonfaktor
B80: Juli | H80: 0.084 | W80: 427674.4013 | AF80: Umsatz Service Jahreswert * Saisonfaktor
B81: August | H81: 0.081 | W81: 412400.3155 | AF81: Umsatz Service Jahreswert * Saisonfaktor
B82: September | H82: 0.083 | W82: 422583.0394 | AF82: Umsatz Service Jahreswert * Saisonfaktor
B83: Oktober | H83: 0.08 | W83: 407308.9536 | AF83: Umsatz Service Jahreswert * Saisonfaktor
B84: November | H84: 0.088 | W84: 448039.849 | AF84: Umsatz Service Jahreswert * Saisonfaktor
B85: Dezember | H85: 0.088 | W85: 448039.849 | AF85: Umsatz Service Jahreswert * Saisonfaktor

Sheet SCB_Planung_Ulm
B2: =WMO_Planung_Ulm!B2 -> Standort | C2: =WMO_Planung_Ulm!F2 -> Ulm | E2: Legende:
B3: =WMO_Planung_Ulm!B3 -> Planjahr | C3: =WMO_Planung_Ulm!F3 -> 2022 | F3: Simulationseingabe
F4: Supervariable (wird durch die Simulationseingabe verändert)
B6: Kennzahlenplanung auf Jahresbasis gesamt (WMO+AZG)
B7: Bezeichnung | C7: Vorwärtkalkulation Simulation 1 | D7: Vorwärtkalkulation Simulation 2 | E7: Vorwärtkalkulation Simulation 3 | G7: Rückwärtskalkulation bezogen auf Planung gesamt (WMO +AZG)
B8: Anzahl Kalendertage | C8: 365 | D8: 365 | E8: 365 | G8: 365
B9: ./. Anzahl Wochenendtage | C9: 104 | D9: 104 | E9: 104 | G9: 104
B10: ./. Anzahl Feiertage | C10: 11 | D10: 11 | E10: 11 | G10: 11
B11: = Anzahl Arbeitstage brutto | C11: =C8-C9-C10 -> 250 | D11: =D8-D9-D10 -> 250 | E11: =E8-E9-E10 -> 250 | G11: =G8-G9-G10 -> 250
B12: ./. Krankheitstage | C12: 7 | D12: 7 | E12: 7 | G12: 7
B13: ./. Schulungstage | C13: 4 | D13: 4 | E13: 4 | G13: 4
B14: ./. Urlaubstage | C14: 25 | D14: 25 | E14: 25 | G14: 25
B15: = Anzahl Arbeitstage netto | C15: =C11-C12-C13-C14 -> 214 | D15: =D11-D12-D13-D14 -> 214 | E15: =E11-E12-E13-E14 -> 214 | G15: =G11-G12-G13-G14 -> 214
B16: * Durchgänge pro Tag | C16: 10 | D16: 11 | E16: 10 | G16: 10 | H16: =WMO_Planung_Ulm!W54/(SCB_Planung_Ulm!H17*SCB_Planung_Ulm!G15*SCB_Planung_Ulm!G21) -> 11.01454206
B17: * AW pro Durchgang | C17: 24 | D17: 24 | E17: 24 | G17: =WMO_Planung_Ulm!W54/(SCB_Planung_Ulm!G16*SCB_Planung_Ulm!G15*G21) -> 26.43490093 | H17: 24
B18: * Ø tatsächlich erzielbarer AW-Preis | C18: 10.5 | D18: 10.5 | E18: 10.5 | G18: =WMO_Planung_Ulm!W58 -> 9 | H18: =G18 -> 9
B19: = Umsatz Lohn Jahreswert pro SCB | C19: =C15*C16*C17*C18 -> 539280 | D19: =D15*D16*D17*D18 -> 593208 | E19: =E15*E16*E17*E18 -> 539280 | G19: =G22/G21 -> 509136.192 | H19: =H22/H21 -> 509136.192
B21: * Anzahl SCB | C21: 10 | D21: 10 | E21: 10 | G21: 10 | H21: 10
B22: = Umsatz Lohn gesamt | C22: =C19*C21 -> 5392800 | D22: =D19*D21 -> 5932080 | E22: 5392800 | G22: =WMO_Planung_Ulm!W69 -> 5091361.92 | H22: =G22 -> 5091361.92
B24: Plausibilitätsrechnung
B25: Lohnumsatz pro Durchgang | C25: =C19/(C16*C15) -> 252 | D25: =D19/(D16*D15) -> 252 | E25: 252 | G25: 237.9141084 | H25: =H19/(H16*G15) -> 216

Sheet WMO_Planung_LL
B2: Standort | F2: Landsberg | N2: Legende:
B3: Planjahr | F3: 2022 | O3: Simulationseingabe
B5: Kennzahlenplanung auf Jahresbasis (pro WMO)
B6: Bezeichnung Parameter | N6: IST-Wert Vorjahr gesamt | W6: Plan-Werte aktuelles Jahr | AF6: Rechenweg/Bemerkung
B7: Berechnung anwesende Std. pro Jahr (betriebsübergriefend)
B8: Anzahl Kalendertage | N8: 365 | W8: 365
B9: ./. Anzahl Wochenendtage | N9: 104 | W9: 104
B10: ./. Anzahl Feiertage | N10: 11 | W10: 11 | AF10: Die auf einen Wochentag (außer Samstag) fallen
B11: = Anzahl Arbeitstage brutto | N11: =N8-N9-N10 -> 250 | W11: =W8-W9-W10 -> 250 | AF11: Anzahl Kalendertage - Wochenendtage - Feiertage
B12: ./. Krankheitstage | N12: 7 | W12: 7
B13: ./. Schulungstage | N13: 4 | W13: 4
B14: ./. Urlaubstage | N14: 25 | W14: 25
B15: = Anzahl Arbeitstage netto | N15: =N11-N12-N13-N14 -> 214 | W15: =W11-W12-W13-W14 -> 214 | AF15: Arbeitstage brutto - Krankheitstage - Schulungstage - Urlaubstage (Berufsschultage werden später berücksichtigt)
B16: * Arbeitszeit pro Tag in h | N16: 8.4 | W16: 8.4
B17: = Anwesende Stunden pro Jahr pro WMO /AZG | N17: =N15*N16 -> 1797.6 | W17: =W15*W16 -> 1797.6 | AF17: Arbeitstage netto * Arbeitszeit pro Tag in h (Berufsschulstunden werden später berücksichtigt)
B19: Berechnung Leistungskennzahlen pro Jahr (betriebsindividuell)
N20: Anzahl | P20: LG | R20: AUSL | T20: PR | W20: Anzahl | Y20: LG | AA20: AUSL | AC20: PR
B21: WMOM gewichtet mit Prod.fakt.NAV | P21: =T21/R21 -> 1.128205128 | R21: 0.975 | T21: 1.1 | W21: 10 | Y21: =AC21/AA21 -> 1.128205128 | AA21: 0.975 | AC21: 1.1 | AF21: LG = Leistungsgrad / AUSL = Auslastung / PR = Produktivität
B22: WMOE gewichtet mit Prod.fakt.NAV | P22: =T22/R22 -> 1.025641026 | R22: 0.975 | T22: 1 | W22: 2 | Y22: =AC22/AA22 -> 1.025641026 | AA22: 0.975 | AC22: 1 | AF22: LG = Leistungsgrad / AUSL = Auslastung / PR = Produktivität
B23: WMOK gewichtet mit Prod.fakt.NAV | P23: 1.230769231 | R23: 0.975 | T23: 1.2 | W23: 2 | Y23: 1.230769231 | AA23: 0.975 | AC23: 1.2 | AF23: LG = Leistungsgrad / AUSL = Auslastung / PR = Produktivität
B24: AZG1 gewichtet mit Prod.fakt.NAV | P24: 0 | R24: 0.975 | T24: 0 | W24: 3 | Y24: 0 | AA24: 0.975 | AC24: 0 | AF24: LG = Leistungsgrad / AUSL = Auslastung / PR = Produktivität
B25: AZG2 gewichtet mit Prod.fakt.NAV | P25: 0.2051282051 | R25: 0.975 | T25: 0.2 | W25: 4 | Y25: 0.2051282051 | AA25: 0.975 | AC25: 0.2 | AF25: LG = Leistungsgrad / AUSL = Auslastung / PR = Produktivität
B26: AZG3 gewichtet mit Prod.fakt.NAV | P26: 0.4102564103 | R26: 0.975 | T26: 0.4 | W26: 3 | Y26: 0.4102564103 | AA26: 0.975 | AC26: 0.4 | AF26: LG = Leistungsgrad / AUSL = Auslastung / PR = Produktivität
B27: AZG4 gewichtet mit Prod.fakt.NAV | P27: 0.4102564103 | R27: 0.975 | T27: 0.4 | W27: 3 | Y27: 0.4102564103 | AA27: 0.975 | AC27: 0.4 | AF27: LG = Leistungsgrad / AUSL = Auslastung / PR = Produktivität
B29: Berechnung verkaufbare AW pro Jahr WMO
B30: = Anwesende Stunden pro Jahr pro WMO | N30: =N17 -> 1797.6 | W30: =W17 -> 1797.6 | AF30: Übertrag aus Zeile 14
B31: * Leistungsgrad gewichtetes Mittel alle WMO | N31: =(N21*P21+N22*P22+N23*P23)/N37 ->  | W31: =(W21*Y21+W22*Y22+W23*Y23)/W37 -> 1.128205128 | AF31: Gewichtetetes Mittel aus Zeile 19-21 [(Anzahl * LG + Anzahl * LG…)/Anzhal WMO]
B32: * Auslastung (100% anw. Stunden - 2,5 % Wvariabel) | N32: =(N21*R21+N22*R22+N23*R23)/N37 ->  | W32: =(W21*AA21+W22*AA22+W23*AA23)/W37 -> 0.975 | AF32: Gewichtetetes Mittel aus Zeile 19-21 [(Anzahl * AUSL + Anzahl * AUSL…)/Anzhal WMO]
B33: Produktivität (LG * AUSL) gew. Mittel alle WMO | N33: =N31*N32 ->  | W33: =W31*W32 -> 1.1 | AF33: Die PR wird hier nur aus Plausibilitätsgründen ausgewiesen und nicht als Rechenfaktor angewendet
B34: = verkaufbare Std. gewicht. Mittel ein WMO Jahresw. | N34: =N30*N31*N32 ->  | W34: =W30*W31*W32 -> 1977.36 | AF34: Anw. Stunden * Leistungsgrad * Auslastung
B35: * Umrechnungsfaktor AW | N35: 12 | W35: 12
B36: = verkaufbare AW gewicht. Mittel ein WMO Jahresw. | N36: =N34*N35 ->  | W36: =W34*W35 -> 23728.32 | AF36: verkaufbare prod. Std. * Umrechnungsfaktor AW
B37: * Anzahl WMO gesamt gewichtet mit Prod.fakt.NAV | N37: =SUM(N21:O23) -> 0 | W37: =SUM(W21:X23) -> 14 | AF37: Summe aller WMO (Zeile 19-21)
B38: = verkaufbare AW gesamt alle WMO Jahreswert | N38: =N36*N37 ->  | W38: =W36*W37 -> 332196.48 | AF38: verkaufbare prod. AW * Anzahl WMO
B40: Berechnung verkaufbare AW pro Jahr AZG
B41: = Anwesende Std. pro Jahr pro AZG (mit Berufsschulzeit) | N41: =N17 -> 1797.6 | W41: =W17 -> 1797.6 | AF41: Übertrag aus Zeile 14
B42: ./. Std. Berufsschulzeit und Lehrgänge pro Jahr | N42: 480 | W42: 480 | AF42: Mittelwert über alle Lehrjahre [(52 Wochen - 12 Wochen Ferien) *1,5 Tage * 8 Std.) = 480 Std.
B43: = Anwesende Stunden pro Jahr (ohne Berufsschulzeit) | N43: =N41-N42 -> 1317.6 | W43: =W41-W42 -> 1317.6 | AF43: Anwesende Std. - Std. Berufsschulzeit
B44: * Leistungsgrad gewichtetes Mittel alle AZG | N44: =(N24*P24+N25*P25+N26*P26+N27*P27)/N50 ->  | W44: =(W24*Y24+W25*Y25+W26*Y26+W27*Y27)/W50 -> 0.2524654832 | AF44: Gewichtetetes Mittel aus Zeile 22-25 [(Anzahl * LG + Anzahl * LG…)/Anzhal AZG]
B45: * Auslastung (100% anw. Stunden - 2,5 % Wvariabel) | N45: =(N24*R24+N25*R25+N26*R26+N27*R27)/N50 ->  | W45: =(W24*AA24+W25*AA25+W26*AA26+W27*AA27)/W50 -> 0.975 | AF45: Gewichtetetes Mittel aus Zeile 22-25 [(Anzahl * AUSL + Anzahl * AUSL…)/Anzhal AZG]
B46: Produktivität (Leistungsgrad * Auslastung) | N46: =N44*N45 ->  | W46: =W44*W45 -> 0.2461538462 | AF46: Die PR wird hier nur aus Plausibilitätsgründen ausgewiesen und nicht als Rechenfaktor angewendet.
B47: = verkaufbare Std. ein AZG Jahreswert | N47: =N43*N44*N45 ->  | W47: =W43*W44*W45 -> 324.3323077 | AF47: Anw. Stunden * Leistungsgrad * Auslastung
B48: * Umrechnungsfaktor AW | N48: 12 | W48: 12
B49: = verkaufbare AW ein AZG Jahreswert | N49: =N47*N48 ->  | W49: =W47*W48 -> 3891.987692 | AF49: verkaufbare prod. Std. * Umrechnungsfaktor AW
B50: * Anzahl AZG gesamt gewichtet mit Prod.fakt.NAV | N50: =SUM(N24:O27) -> 0 | W50: =SUM(W24:X27) -> 13 | AF50: Summe aller AZG (Zeile 22-25)
B51: = verkaufbare AW gesamt alle AZG Jahreswert | N51: =N49*N50 ->  | W51: =W49*W50 -> 50595.84 | AF51: verkaufbare prod. AW * Anzahl AZG
B53: Berechnung verkaufbare AW pro Jahr gesamt (WMO und AZG)
B54: = verkaufbare prod. AW WMO und AZG Jahreswert | N54: =N51+N38 ->  | W54: =W51+W38 -> 382792.32 | AF54: Summe aller WMO und AZG (Zeile 19-25)
B56: Berechnung Umsatz Lohn pro Jahr WMO
B57: = verkaufbare AW gesamt alle WMO Jahreswert | N57: =N38 ->  | W57: =W38 -> 332196.48 | AF57: Übertrag aus Zeile 36
B58: * Ø tatsächlich erzielbarer AW-Preis | N58: 0 | W58: 9 | AF58: AW-Preis Mechanik extern netto - 1,90€
B59: = Umsatz Lohn Jahreswert WMO | N59: =N57*N58 ->  | W59: =W57*W58 -> 2989768.32 | AF59: verkaufbare prod. AW gesamt WMO * Ø tatsächlich erzielbarer AW-Preis
B61: Berechnung Umsatz Lohn pro Jahr AZG
B62: = verkaufbare AW gesamt alle AZG Jahreswert | N62: =N51 ->  | W62: =W51 -> 50595.84 | AF62: Übertrag aus Zeile 49
B63: * Ø tatsächlich erzielbarer AW-Preis | N63: =N58 -> 0 | W63: =W58 -> 9 | AF63: AW-Preis Mechanik extern netto - 1,90€ (entspricht Wert aus Zeile 56)
B64: = Umsatz Lohn Jahreswert AZG | N64: =N62*N63 ->  | W64: =W62*W63 -> 455362.56 | AF64: verkaufbare prod. AW gesamt AZG * Ø tatsächlich erzielbarer AW-Preis
B66: Berechnung Umsatz Lohn pro Jahr gesamt (WMO + AZG)
B67: = verkaufbare AW gesamt WMO + AZG Jahreswert | N67: =N62+N57 ->  | W67: =W62+W57 -> 382792.32 | AF67: Summe aus Zeile 57+62
B68: * Ø tatsächlich erzielbarer AW-Preis | N68: =N58 -> 0 | W68: =W58 -> 9 | AF68: AW-Preis Mechanik extern netto - 1,90€ (entspricht Wert aus Zeile 56)
B69: = Umsatz Lohn Jahreswert gesamt (WMO + AZG) | N69: =N67*N68 ->  | W69: =W67*W68 -> 3445130.88 | AF69: verkaufbare prod. AW gesamt WMO + AZG * Ø tatsächlich erzielbarer AW-Preis
B71: Umsatz Lohn auf Basis Monatswerte nach Saisonfaktor
B72: Monat | H72: Saisonfaktor | N72: Umatz Lohn | W72: Umatz Lohn | AF72: Rechenweg/Bemerkung
B73: Jan - Dez. | H73: =SUM(H74:L85) -> 1 | N73: =N69 ->  | W73: =W69 -> 3445130.88 | AF73: Übertrag aus Zeile 56. Saisonfaktor = Summe aller Einzelwerte zur Plausibbilität
B74: Januar | H74: 0.075 | N74: =$N$73*H74 ->  | W74: =$W$73*H74 -> 258384.816 | AF74: Umsatz Service Jahreswert * Saisonfaktor
B75: Februar | H75: 0.075 | N75: =$N$73*H75 ->  | W75: =$W$73*H75 -> 258384.816 | AF75: Umsatz Service Jahreswert * Saisonfaktor
B76: März | H76: 0.087 | W76: 299726.3866 | AF76: Umsatz Service Jahreswert * Saisonfaktor
B77: April | H77: 0.089 | W77: 306616.6483 | AF77: Umsatz Service Jahreswert * Saisonfaktor
B78: Mai | H78: 0.086 | W78: 296281.2557 | AF78: Umsatz Service Jahreswert * Saisonfaktor
B79: Juni | H79: 0.084 | W79: 289390.9939 | AF79: Umsatz Service Jahreswert * Saisonfaktor
B80: Juli | H80: 0.084 | W80: 289390.9939 | AF80: Umsatz Service Jahreswert * Saisonfaktor
B81: August | H81: 0.081 | W81: 279055.6013 | AF81: Umsatz Service Jahreswert * Saisonfaktor
B82: September | H82: 0.083 | W82: 285945.863 | AF82: Umsatz Service Jahreswert * Saisonfaktor
B83: Oktober | H83: 0.08 | W83: 275610.4704 | AF83: Umsatz Service Jahreswert * Saisonfaktor
B84: November | H84: 0.088 | W84: 303171.5174 | AF84: Umsatz Service Jahreswert * Saisonfaktor
B85: Dezember | H85: 0.088 | W85: 303171.5174 | AF85: Umsatz Service Jahreswert * Saisonfaktor

Sheet SCB_Planung_LL
B2: =WMO_Planung_LL!B2 -> Standort | C2: =WMO_Planung_LL!F2 -> Landsberg | E2: Legende:
B3: =WMO_Planung_LL!B3 -> Planjahr | C3: =WMO_Planung_LL!F3 -> 2022 | F3: Simulationseingabe
F4: Supervariable (wird durch die Simulationseingabe verändert)
B6: Kennzahlenplanung auf Jahresbasis
B7: Bezeichnung | C7: Vorwärtkalkulation Simulation 1 | D7: Vorwärtkalkulation Simulation 2 | E7: Vorwärtkalkulation Simulation 3 | G7: Rückwärtskalkulation bezogen auf Planung gesamt (WMO +AZG)
B8: Anzahl Kalendertage | C8: 365 | D8: 365 | E8: 365 | G8: 365
B9: ./. Anzahl Wochenendtage | C9: 104 | D9: 104 | E9: 104 | G9: 104
B10: ./. Anzahl Feiertage | C10: 11 | D10: 11 | E10: 11 | G10: 11
B11: = Anzahl Arbeitstage brutto | C11: =C8-C9-C10 -> 250 | D11: =D8-D9-D10 -> 250 | E11: =E8-E9-E10 -> 250 | G11: =G8-G9-G10 -> 250
B12: ./. Krankheitstage | C12: 7 | D12: 7 | E12: 7 | G12: 7
B13: ./. Schulungstage | C13: 4 | D13: 4 | E13: 4 | G13: 4
B14: ./. Urlaubstage | C14: 25 | D14: 25 | E14: 25 | G14: 25
B15: = Anzahl Arbeitstage netto | C15: =C11-C12-C13-C14 -> 214 | D15: =D11-D12-D13-D14 -> 214 | E15: =E11-E12-E13-E14 -> 214 | G15: =G11-G12-G13-G14 -> 214
B16: * Durchgänge pro Tag | C16: 10 | D16: 11 | E16: 10 | G16: 10 | H16: =WMO_Planung_LL!W54/(SCB_Planung_LL!H17*SCB_Planung_LL!G15*SCB_Planung_LL!G21) -> 14.90624299
B17: * AW pro Durchgang | C17: 24 | D17: 24 | E17: 24 | G17: =WMO_Planung_LL!W54/(SCB_Planung_LL!G16*SCB_Planung_LL!G15*G21) -> 35.77498318 | H17: 24
B18: * Ø tatsächlich erzielbarer AW-Preis | C18: 10.5 | D18: 10.5 | E18: 10.5 | G18: =WMO_Planung_LL!W58 -> 9 | H18: =G18 -> 9
B19: = Umsatz Lohn Jahreswert pro SCB | C19: =C15*C16*C17*C18 -> 539280 | D19: =D15*D16*D17*D18 -> 593208 | E19: =E15*E16*E17*E18 -> 539280 | G19: =G22/G21 -> 689026.176 | H19: =H22/H21 -> 689026.176
B21: * Anzahl SCB | C21: 5 | D21: 5 | E21: 5 | G21: 5 | H21: 5
B22: = Umsatz Lohn gesamt | C22: =C19*C21 -> 2696400 | D22: =D19*D21 -> 2966040 | E22: 2696400 | G22: =WMO_Planung_LL!W69 -> 3445130.88 | H22: =G22 -> 3445130.88
B24: Plausibilitätsrechnung
B25: Lohnumsatz pro Durchgang | C25: =C19/(C16*C15) -> 252 | D25: =D19/(D16*D15) -> 252 | E25: 252 | G25: 321.9748486 | H25: =H19/(H16*G15) -> 216

Sheet WMO_Planung_KRU
B2: Standort | F2: Krumbach | N2: Legende:
B3: Planjahr | F3: 2022 | O3: Simulationseingabe
B5: Kennzahlenplanung auf Jahresbasis (pro WMO)
B6: Bezeichnung Parameter | N6: IST-Wert Vorjahr gesamt | W6: Plan-Werte aktuelles Jahr | AF6: Rechenweg/Bemerkung
B7: Berechnung anwesende Std. pro Jahr (betriebsübergriefend)
B8: Anzahl Kalendertage | N8: 365 | W8: 365
B9: ./. Anzahl Wochenendtage | N9: 104 | W9: 104
B10: ./. Anzahl Feiertage | N10: 11 | W10: 11 | AF10: Die auf einen Wochentag (außer Samstag) fallen
B11: = Anzahl Arbeitstage brutto | N11: =N8-N9-N10 -> 250 | W11: =W8-W9-W10 -> 250 | AF11: Anzahl Kalendertage - Wochenendtage - Feiertage
B12: ./. Krankheitstage | N12: 7 | W12: 7
B13: ./. Schulungstage | N13: 4 | W13: 4
B14: ./. Urlaubstage | N14: 25 | W14: 25
B15: = Anzahl Arbeitstage netto | N15: =N11-N12-N13-N14 -> 214 | W15: =W11-W12-W13-W14 -> 214 | AF15: Arbeitstage brutto - Krankheitstage - Schulungstage - Urlaubstage (Berufsschultage werden später berücksichtigt)
B16: * Arbeitszeit pro Tag in h | N16: 8.4 | W16: 8.4
B17: = Anwesende Stunden pro Jahr pro WMO /AZG | N17: =N15*N16 -> 1797.6 | W17: =W15*W16 -> 1797.6 | AF17: Arbeitstage netto * Arbeitszeit pro Tag in h (Berufsschulstunden werden später berücksichtigt)
B19: Berechnung Leistungskennzahlen pro Jahr (betriebsindividuell)
N20: Anzahl | P20: LG | R20: AUSL | T20: PR | W20: Anzahl | Y20: LG | AA20: AUSL | AC20: PR
B21: WMOM gewichtet mit Prod.fakt.NAV | P21: =T21/R21 -> 1.128205128 | R21: 0.975 | T21: 1.1 | W21: 2 | Y21: =AC21/AA21 -> 1.128205128 | AA21: 0.975 | AC21: 1.1 | AF21: LG = Leistungsgrad / AUSL = Auslastung / PR = Produktivität
B22: WMOE gewichtet mit Prod.fakt.NAV | P22: =T22/R22 -> 1.025641026 | R22: 0.975 | T22: 1 | W22: 1 | Y22: =AC22/AA22 -> 1.025641026 | AA22: 0.975 | AC22: 1 | AF22: LG = Leistungsgrad / AUSL = Auslastung / PR = Produktivität
B23: WMOK gewichtet mit Prod.fakt.NAV | P23: 1.230769231 | R23: 0.975 | T23: 1.2 | W23: 0 | Y23: 1.230769231 | AA23: 0.975 | AC23: 1.2 | AF23: LG = Leistungsgrad / AUSL = Auslastung / PR = Produktivität
B24: AZG1 gewichtet mit Prod.fakt.NAV | P24: 0 | R24: 0.975 | T24: 0 | W24: 1 | Y24: 0 | AA24: 0.975 | AC24: 0 | AF24: LG = Leistungsgrad / AUSL = Auslastung / PR = Produktivität
B25: AZG2 gewichtet mit Prod.fakt.NAV | P25: 0.2051282051 | R25: 0.975 | T25: 0.2 | W25: 2 | Y25: 0.2051282051 | AA25: 0.975 | AC25: 0.2 | AF25: LG = Leistungsgrad / AUSL = Auslastung / PR = Produktivität
B26: AZG3 gewichtet mit Prod.fakt.NAV | P26: 0.4102564103 | R26: 0.975 | T26: 0.4 | W26: 1 | Y26: 0.4102564103 | AA26: 0.975 | AC26: 0.4 | AF26: LG = Leistungsgrad / AUSL = Auslastung / PR = Produktivität
B27: AZG4 gewichtet mit Prod.fakt.NAV | P27: 0.4102564103 | R27: 0.975 | T27: 0.4 | W27: 0 | Y27: 0.4102564103 | AA27: 0.975 | AC27: 0.4 | AF27: LG = Leistungsgrad / AUSL = Auslastung / PR = Produktivität
B29: Berechnung verkaufbare AW pro Jahr WMO
B30: = Anwesende Stunden pro Jahr pro WMO | N30: =N17 -> 1797.6 | W30: =W17 -> 1797.6 | AF30: Übertrag aus Zeile 14
B31: * Leistungsgrad gewichtetes Mittel alle WMO | N31: =(N21*P21+N22*P22+N23*P23)/N37 ->  | W31: =(W21*Y21+W22*Y22+W23*Y23)/W37 -> 1.094017094 | AF31: Gewichtetetes Mittel aus Zeile 19-21 [(Anzahl * LG + Anzahl * LG…)/Anzhal WMO]
B32: * Auslastung (100% anw. Stunden - 2,5 % Wvariabel) | N32: =(N21*R21+N22*R22+N23*R23)/N37 ->  | W32: =(W21*AA21+W22*AA22+W23*AA23)/W37 -> 0.975 | AF32: Gewichtetetes Mittel aus Zeile 19-21 [(Anzahl * AUSL + Anzahl * AUSL…)/Anzhal WMO]
B33: Produktivität (LG * AUSL) gew. Mittel alle WMO | N33: =N31*N32 ->  | W33: =W31*W32 -> 1.066666667 | AF33: Die PR wird hier nur aus Plausibilitätsgründen ausgewiesen und nicht als Rechenfaktor angewendet
B34: = verkaufbare Std. gewicht. Mittel ein WMO Jahresw. | N34: =N30*N31*N32 ->  | W34: =W30*W31*W32 -> 1917.44 | AF34: Anw. Stunden * Leistungsgrad * Auslastung
B35: * Umrechnungsfaktor AW | N35: 12 | W35: 12
B36: = verkaufbare AW gewicht. Mittel ein WMO Jahresw. | N36: =N34*N35 ->  | W36: =W34*W35 -> 23009.28 | AF36: verkaufbare prod. Std. * Umrechnungsfaktor AW
B37: * Anzahl WMO gesamt gewichtet mit Prod.fakt.NAV | N37: =SUM(N21:O23) -> 0 | W37: =SUM(W21:X23) -> 3 | AF37: Summe aller WMO (Zeile 19-21)
B38: = verkaufbare AW gesamt alle WMO Jahreswert | N38: =N36*N37 ->  | W38: =W36*W37 -> 69027.84 | AF38: verkaufbare prod. AW * Anzahl WMO
B40: Berechnung verkaufbare AW pro Jahr AZG
B41: = Anwesende Std. pro Jahr pro AZG (mit Berufsschulzeit) | N41: =N17 -> 1797.6 | W41: =W17 -> 1797.6 | AF41: Übertrag aus Zeile 14
B42: ./. Std. Berufsschulzeit und Lehrgänge pro Jahr | W42: 480 | AF42: Mittelwert über alle Lehrjahre [(52 Wochen - 12 Wochen Ferien) *1,5 Tage * 8 Std.) = 480 Std.
B43: = Anwesende Stunden pro Jahr (ohne Berufsschulzeit) | N43: =N41-N42 -> 1797.6 | W43: =W41-W42 -> 1317.6 | AF43: Anwesende Std. - Std. Berufsschulzeit
B44: * Leistungsgrad gewichtetes Mittel alle AZG | N44: =(N24*P24+N25*P25+N26*P26+N27*P27)/N50 ->  | W44: =(W24*Y24+W25*Y25+W26*Y26+W27*Y27)/W50 -> 0.2051282051 | AF44: Gewichtetetes Mittel aus Zeile 22-25 [(Anzahl * LG + Anzahl * LG…)/Anzhal AZG]
B45: * Auslastung (100% anw. Stunden - 2,5 % Wvariabel) | N45: =(N24*R24+N25*R25+N26*R26+N27*R27)/N50 ->  | W45: =(W24*AA24+W25*AA25+W26*AA26+W27*AA27)/W50 -> 0.975 | AF45: Gewichtetetes Mittel aus Zeile 22-25 [(Anzahl * AUSL + Anzahl * AUSL…)/Anzhal AZG]
B46: Produktivität (Leistungsgrad * Auslastung) | N46: =N44*N45 ->  | W46: =W44*W45 -> 0.2 | AF46: Die PR wird hier nur aus Plausibilitätsgründen ausgewiesen und nicht als Rechenfaktor angewendet.
B47: = verkaufbare Std. ein AZG Jahreswert | N47: =N43*N44*N45 ->  | W47: =W43*W44*W45 -> 263.52 | AF47: Anw. Stunden * Leistungsgrad * Auslastung
B48: * Umrechnungsfaktor AW | N48: 12 | W48: 12
B49: = verkaufbare AW ein AZG Jahreswert | N49: =N47*N48 ->  | W49: =W47*W48 -> 3162.24 | AF49: verkaufbare prod. Std. * Umrechnungsfaktor AW
B50: * Anzahl AZG gesamt gewichtet mit Prod.fakt.NAV | N50: =SUM(N24:O27) -> 0 | W50: =SUM(W24:X27) -> 4 | AF50: Summe aller AZG (Zeile 22-25)
B51: = verkaufbare AW gesamt alle AZG Jahreswert | N51: =N49*N50 ->  | W51: =W49*W50 -> 12648.96 | AF51: verkaufbare prod. AW * Anzahl AZG
B53: Berechnung verkaufbare AW pro Jahr gesamt (WMO und AZG)
B54: = verkaufbare prod. AW WMO und AZG Jahreswert | N54: =N51+N38 ->  | W54: =W51+W38 -> 81676.8 | AF54: Summe aller WMO und AZG (Zeile 19-25)
B56: Berechnung Umsatz Lohn pro Jahr WMO
B57: = verkaufbare AW gesamt alle WMO Jahreswert | N57: =N38 ->  | W57: =W38 -> 69027.84 | AF57: Übertrag aus Zeile 36
B58: * Ø tatsächlich erzielbarer AW-Preis | N58: 0 | W58: 9 | AF58: AW-Preis Mechanik extern netto - 1,90€
B59: = Umsatz Lohn Jahreswert WMO | N59: =N57*N58 ->  | W59: =W57*W58 -> 621250.56 | AF59: verkaufbare prod. AW gesamt WMO * Ø tatsächlich erzielbarer AW-Preis
B61: Berechnung Umsatz Lohn pro Jahr AZG
B62: = verkaufbare AW gesamt alle AZG Jahreswert | N62: =N51 ->  | W62: =W51 -> 12648.96 | AF62: Übertrag aus Zeile 49
B63: * Ø tatsächlich erzielbarer AW-Preis | N63: =N58 -> 0 | W63: =W58 -> 9 | AF63: AW-Preis Mechanik extern netto - 1,90€ (entspricht Wert aus Zeile 56)
B64: = Umsatz Lohn Jahreswert AZG | N64: =N62*N63 ->  | W64: =W62*W63 -> 113840.64 | AF64: verkaufbare prod. AW gesamt AZG * Ø tatsächlich erzielbarer AW-Preis
B66: Berechnung Umsatz Lohn pro Jahr gesamt (WMO + AZG)
B67: = verkaufbare AW gesamt WMO + AZG Jahreswert | N67: =N62+N57 ->  | W67: =W62+W57 -> 81676.8 | AF67: Summe aus Zeile 57+62
B68: * Ø tatsächlich erzielbarer AW-Preis | N68: =N58 -> 0 | W68: =W58 -> 9 | AF68: AW-Preis Mechanik extern netto - 1,90€ (entspricht Wert aus Zeile 56)
B69: = Umsatz Lohn Jahreswert gesamt (WMO + AZG) | N69: =N67*N68 ->  | W69: =W67*W68 -> 735091.2 | AF69: verkaufbare prod. AW gesamt WMO + AZG * Ø tatsächlich erzielbarer AW-Preis
B71: Umsatz Lohn auf Basis Monatswerte nach Saisonfaktor
B72: Monat | H72: Saisonfaktor | N72: Umatz Lohn | W72: Umatz Lohn | AF72: Rechenweg/Bemerkung
B73: Jan - Dez. | H73: =SUM(H74:L85) -> 1 | N73: =N69 ->  | W73: =W69 -> 735091.2 | AF73: Übertrag aus Zeile 56. Saisonfaktor = Summe aller Einzelwerte zur Plausibbilität
B74: Januar | H74: 0.075 | N74: =$N$73*H74 ->  | W74: =$W$73*H74 -> 55131.84 | AF74: Umsatz Service Jahreswert * Saisonfaktor
B75: Februar | H75: 0.075 | N75: =$N$73*H75 ->  | W75: =$W$73*H75 -> 55131.84 | AF75: Umsatz Service Jahreswert * Saisonfaktor
B76: März | H76: 0.087 | W76: 63952.9344 | AF76: Umsatz Service Jahreswert * Saisonfaktor
B77: April | H77: 0.089 | W77: 65423.1168 | AF77: Umsatz Service Jahreswert * Saisonfaktor
B78: Mai | H78: 0.086 | W78: 63217.8432 | AF78: Umsatz Service Jahreswert * Saisonfaktor
B79: Juni | H79: 0.084 | W79: 61747.6608 | AF79: Umsatz Service Jahreswert * Saisonfaktor
B80: Juli | H80: 0.084 | W80: 61747.6608 | AF80: Umsatz Service Jahreswert * Saisonfaktor
B81: August | H81: 0.081 | W81: 59542.3872 | AF81: Umsatz Service Jahreswert * Saisonfaktor
B82: September | H82: 0.083 | W82: 61012.5696 | AF82: Umsatz Service Jahreswert * Saisonfaktor
B83: Oktober | H83: 0.08 | W83: 58807.296 | AF83: Umsatz Service Jahreswert * Saisonfaktor
B84: November | H84: 0.088 | W84: 64688.0256 | AF84: Umsatz Service Jahreswert * Saisonfaktor
B85: Dezember | H85: 0.088 | W85: 64688.0256 | AF85: Umsatz Service Jahreswert * Saisonfaktor

Sheet SCB_Planung_KRU
B2: =WMO_Planung_KRU!B2 -> Standort | C2: =WMO_Planung_KRU!F2 -> Krumbach | E2: Legende:
B3: =WMO_Planung_KRU!B3 -> Planjahr | C3: =WMO_Planung_KRU!F3 -> 2022 | F3: Simulationseingabe
F4: Supervariable (wird durch die Simulationseingabe verändert)
B6: Kennzahlenplanung auf Jahresbasis gesamt (WMO+AZG)
B7: Bezeichnung | C7: Vorwärtkalkulation Simulation 1 | D7: Vorwärtkalkulation Simulation 2 | E7: Vorwärtkalkulation Simulation 3 | G7: Rückwärtskalkulation bezogen auf Planung gesamt (WMO +AZG)
B8: Anzahl Kalendertage | C8: 365 | D8: 365 | E8: 365 | G8: 365
B9: ./. Anzahl Wochenendtage | C9: 104 | D9: 104 | E9: 104 | G9: 104
B10: ./. Anzahl Feiertage | C10: 11 | D10: 11 | E10: 11 | G10: 11
B11: = Anzahl Arbeitstage brutto | C11: =C8-C9-C10 -> 250 | D11: =D8-D9-D10 -> 250 | E11: =E8-E9-E10 -> 250 | G11: =G8-G9-G10 -> 250
B12: ./. Krankheitstage | C12: 7 | D12: 7 | E12: 7 | G12: 7
B13: ./. Schulungstage | C13: 4 | D13: 4 | E13: 4 | G13: 4
B14: ./. Urlaubstage | C14: 25 | D14: 25 | E14: 25 | G14: 25
B15: = Anzahl Arbeitstage netto | C15: =C11-C12-C13-C14 -> 214 | D15: =D11-D12-D13-D14 -> 214 | E15: =E11-E12-E13-E14 -> 214 | G15: =G11-G12-G13-G14 -> 214
B16: * Durchgänge pro Tag | C16: 10 | D16: 11 | E16: 10 | G16: 10 | H16: =WMO_Planung_KRU!W54/(SCB_Planung_KRU!H17*SCB_Planung_KRU!G15*SCB_Planung_KRU!G21) -> 9.354590434
B17: * AW pro Durchgang | C17: 24 | D17: 24 | E17: 24 | G17: =WMO_Planung_KRU!W54/(SCB_Planung_KRU!G16*SCB_Planung_KRU!G15*G21) -> 22.45101704 | H17: 24
B18: * Ø tatsächlich erzielbarer AW-Preis | C18: 10.5 | D18: 10.5 | E18: 10.5 | G18: =WMO_Planung_KRU!W58 -> 9 | H18: =G18 -> 9
B19: = Umsatz Lohn Jahreswert pro SCB | C19: =C15*C16*C17*C18 -> 539280 | D19: =D15*D16*D17*D18 -> 593208 | E19: =E15*E16*E17*E18 -> 539280 | G19: =G22/G21 -> 432406.5882 | H19: =H22/H21 -> 432406.5882
B21: * Anzahl SCB | C21: 1.77 | D21: 1.77 | E21: 1.77 | G21: 1.7 | H21: 1.7
B22: = Umsatz Lohn gesamt | C22: =C19*C21 -> 954525.6 | D22: =D19*D21 -> 1049978.16 | E22: 954525.6 | G22: =WMO_Planung_KRU!W69 -> 735091.2 | H22: =G22 -> 735091.2
B24: Plausibilitätsrechnung
B25: Lohnumsatz pro Durchgang | C25: =C19/(C16*C15) -> 252 | D25: =D19/(D16*D15) -> 252 | E25: 252 | G25: 202.0591534 | H25: =H19/(H16*G15) -> 216

Sheet WMO_Planung_GÖG
B2: Standort | F2: Göggingen | N2: Legende:
B3: Planjahr | F3: 2022 | O3: Simulationseingabe
B5: Kennzahlenplanung auf Jahresbasis (pro WMO)
B6: Bezeichnung Parameter | N6: IST-Wert Vorjahr gesamt | W6: Plan-Werte aktuelles Jahr | AF6: Rechenweg/Bemerkung
B7: Berechnung anwesende Std. pro Jahr (betriebsübergriefend)
B8: Anzahl Kalendertage | N8: 365 | W8: 365
B9: ./. Anzahl Wochenendtage | N9: 104 | W9: 104
B10: ./. Anzahl Feiertage | N10: 11 | W10: 11 | AF10: Die auf einen Wochentag (außer Samstag) fallen
B11: = Anzahl Arbeitstage brutto | N11: =N8-N9-N10 -> 250 | W11: =W8-W9-W10 -> 250 | AF11: Anzahl Kalendertage - Wochenendtage - Feiertage
B12: ./. Krankheitstage | N12: 7 | W12: 7
B13: ./. Schulungstage | N13: 4 | W13: 4
B14: ./. Urlaubstage | N14: 25 | W14: 25
B15: = Anzahl Arbeitstage netto | N15: =N11-N12-N13-N14 -> 214 | W15: =W11-W12-W13-W14 -> 214 | AF15: Arbeitstage brutto - Krankheitstage - Schulungstage - Urlaubstage (Berufsschultage werden später berücksichtigt)
B16: * Arbeitszeit pro Tag in h | N16: 8.4 | W16: 8.4
B17: = Anwesende Stunden pro Jahr pro WMO /AZG | N17: =N15*N16 -> 1797.6 | W17: =W15*W16 -> 1797.6 | AF17: Arbeitstage netto * Arbeitszeit pro Tag in h (Berufsschulstunden werden später berücksichtigt)
B19: Berechnung Leistungskennzahlen pro Jahr (betriebsindividuell)
N20: Anzahl | P20: LG | R20: AUSL | T20: PR | W20: Anzahl | Y20: LG | AA20: AUSL | AC20: PR
B21: WMOM gewichtet mit Prod.fakt.NAV | P21: =T21/R21 -> 1.128205128 | R21: 0.975 | T21: 1.1 | W21: 8 | Y21: =AC21/AA21 -> 1.128205128 | AA21: 0.975 | AC21: 1.1 | AF21: LG = Leistungsgrad / AUSL = Auslastung / PR = Produktivität
B22: WMOE gewichtet mit Prod.fakt.NAV | P22: =T22/R22 -> 1.025641026 | R22: 0.975 | T22: 1 | W22: 3 | Y22: =AC22/AA22 -> 1.025641026 | AA22: 0.975 | AC22: 1 | AF22: LG = Leistungsgrad / AUSL = Auslastung / PR = Produktivität
B23: WMOK gewichtet mit Prod.fakt.NAV | P23: 1.230769231 | R23: 0.975 | T23: 1.2 | W23: 3 | Y23: 1.230769231 | AA23: 0.975 | AC23: 1.2 | AF23: LG = Leistungsgrad / AUSL = Auslastung / PR = Produktivität
B24: AZG1 gewichtet mit Prod.fakt.NAV | P24: 0 | R24: 0.975 | T24: 0 | W24: 5 | Y24: 0 | AA24: 0.975 | AC24: 0 | AF24: LG = Leistungsgrad / AUSL = Auslastung / PR = Produktivität
B25: AZG2 gewichtet mit Prod.fakt.NAV | P25: 0.2051282051 | R25: 0.975 | T25: 0.2 | W25: 3 | Y25: 0.2051282051 | AA25: 0.975 | AC25: 0.2 | AF25: LG = Leistungsgrad / AUSL = Auslastung / PR = Produktivität
B26: AZG3 gewichtet mit Prod.fakt.NAV | P26: 0.4102564103 | R26: 0.975 | T26: 0.4 | W26: 2 | Y26: 0.4102564103 | AA26: 0.975 | AC26: 0.4 | AF26: LG = Leistungsgrad / AUSL = Auslastung / PR = Produktivität
B27: AZG4 gewichtet mit Prod.fakt.NAV | P27: 0.4102564103 | R27: 0.975 | T27: 0.4 | W27: 2 | Y27: 0.4102564103 | AA27: 0.975 | AC27: 0.4 | AF27: LG = Leistungsgrad / AUSL = Auslastung / PR = Produktivität
B29: Berechnung verkaufbare AW pro Jahr WMO
B30: = Anwesende Stunden pro Jahr pro WMO | N30: =N17 -> 1797.6 | W30: =W17 -> 1797.6 | AF30: Übertrag aus Zeile 14
B31: * Leistungsgrad gewichtetes Mittel alle WMO | N31: =(N21*P21+N22*P22+N23*P23)/N37 ->  | W31: =(W21*Y21+W22*Y22+W23*Y23)/W37 -> 1.128205128 | AF31: Gewichtetetes Mittel aus Zeile 19-21 [(Anzahl * LG + Anzahl * LG…)/Anzhal WMO]
B32: * Auslastung (100% anw. Stunden - 2,5 % Wvariabel) | N32: =(N21*R21+N22*R22+N23*R23)/N37 ->  | W32: =(W21*AA21+W22*AA22+W23*AA23)/W37 -> 0.975 | AF32: Gewichtetetes Mittel aus Zeile 19-21 [(Anzahl * AUSL + Anzahl * AUSL…)/Anzhal WMO]
B33: Produktivität (LG * AUSL) gew. Mittel alle WMO | N33: =N31*N32 ->  | W33: =W31*W32 -> 1.1 | AF33: Die PR wird hier nur aus Plausibilitätsgründen ausgewiesen und nicht als Rechenfaktor angewendet
B34: = verkaufbare Std. gewicht. Mittel ein WMO Jahresw. | N34: =N30*N31*N32 ->  | W34: =W30*W31*W32 -> 1977.36 | AF34: Anw. Stunden * Leistungsgrad * Auslastung
B35: * Umrechnungsfaktor AW | N35: 12 | W35: 12
B36: = verkaufbare AW gewicht. Mittel ein WMO Jahresw. | N36: =N34*N35 ->  | W36: =W34*W35 -> 23728.32 | AF36: verkaufbare prod. Std. * Umrechnungsfaktor AW
B37: * Anzahl WMO gesamt gewichtet mit Prod.fakt.NAV | N37: =SUM(N21:O23) -> 0 | W37: =SUM(W21:X23) -> 14 | AF37: Summe aller WMO (Zeile 19-21)
B38: = verkaufbare AW gesamt alle WMO Jahreswert | N38: =N36*N37 ->  | W38: =W36*W37 -> 332196.48 | AF38: verkaufbare prod. AW * Anzahl WMO
B40: Berechnung verkaufbare AW pro Jahr AZG
B41: = Anwesende Std. pro Jahr pro AZG (mit Berufsschulzeit) | N41: =N17 -> 1797.6 | W41: =W17 -> 1797.6 | AF41: Übertrag aus Zeile 14
B42: ./. Std. Berufsschulzeit und Lehrgänge pro Jahr | W42: 480 | AF42: Mittelwert über alle Lehrjahre [(52 Wochen - 12 Wochen Ferien) *1,5 Tage * 8 Std.) = 480 Std.
B43: = Anwesende Stunden pro Jahr (ohne Berufsschulzeit) | N43: =N41-N42 -> 1797.6 | W43: =W41-W42 -> 1317.6 | AF43: Anwesende Std. - Std. Berufsschulzeit
B44: * Leistungsgrad gewichtetes Mittel alle AZG | N44: =(N24*P24+N25*P25+N26*P26+N27*P27)/N50 ->  | W44: =(W24*Y24+W25*Y25+W26*Y26+W27*Y27)/W50 -> 0.188034188 | AF44: Gewichtetetes Mittel aus Zeile 22-25 [(Anzahl * LG + Anzahl * LG…)/Anzhal AZG]
B45: * Auslastung (100% anw. Stunden - 2,5 % Wvariabel) | N45: =(N24*R24+N25*R25+N26*R26+N27*R27)/N50 ->  | W45: =(W24*AA24+W25*AA25+W26*AA26+W27*AA27)/W50 -> 0.975 | AF45: Gewichtetetes Mittel aus Zeile 22-25 [(Anzahl * AUSL + Anzahl * AUSL…)/Anzhal AZG]
B46: Produktivität (Leistungsgrad * Auslastung) | N46: =N44*N45 ->  | W46: =W44*W45 -> 0.1833333333 | AF46: Die PR wird hier nur aus Plausibilitätsgründen ausgewiesen und nicht als Rechenfaktor angewendet.
B47: = verkaufbare Std. ein AZG Jahreswert | N47: =N43*N44*N45 ->  | W47: =W43*W44*W45 -> 241.56 | AF47: Anw. Stunden * Leistungsgrad * Auslastung
B48: * Umrechnungsfaktor AW | N48: 12 | W48: 12
B49: = verkaufbare AW ein AZG Jahreswert | N49: =N47*N48 ->  | W49: =W47*W48 -> 2898.72 | AF49: verkaufbare prod. Std. * Umrechnungsfaktor AW
B50: * Anzahl AZG gesamt gewichtet mit Prod.fakt.NAV | N50: =SUM(N24:O27) -> 0 | W50: =SUM(W24:X27) -> 12 | AF50: Summe aller AZG (Zeile 22-25)
B51: = verkaufbare AW gesamt alle AZG Jahreswert | N51: =N49*N50 ->  | W51: =W49*W50 -> 34784.64 | AF51: verkaufbare prod. AW * Anzahl AZG
B53: Berechnung verkaufbare AW pro Jahr gesamt (WMO und AZG)
B54: = verkaufbare prod. AW WMO und AZG Jahreswert | N54: =N51+N38 ->  | W54: =W51+W38 -> 366981.12 | AF54: Summe aller WMO und AZG (Zeile 19-25)
B56: Berechnung Umsatz Lohn pro Jahr WMO
B57: = verkaufbare AW gesamt alle WMO Jahreswert | N57: =N38 ->  | W57: =W38 -> 332196.48 | AF57: Übertrag aus Zeile 36
B58: * Ø tatsächlich erzielbarer AW-Preis | N58: 0 | W58: 9 | AF58: AW-Preis Mechanik extern netto - 1,90€
B59: = Umsatz Lohn Jahreswert WMO | N59: =N57*N58 ->  | W59: =W57*W58 -> 2989768.32 | AF59: verkaufbare prod. AW gesamt WMO * Ø tatsächlich erzielbarer AW-Preis
B61: Berechnung Umsatz Lohn pro Jahr AZG
B62: = verkaufbare AW gesamt alle AZG Jahreswert | N62: =N51 ->  | W62: =W51 -> 34784.64 | AF62: Übertrag aus Zeile 49
B63: * Ø tatsächlich erzielbarer AW-Preis | N63: =N58 -> 0 | W63: =W58 -> 9 | AF63: AW-Preis Mechanik extern netto - 1,90€ (entspricht Wert aus Zeile 56)
B64: = Umsatz Lohn Jahreswert AZG | N64: =N62*N63 ->  | W64: =W62*W63 -> 313061.76 | AF64: verkaufbare prod. AW gesamt AZG * Ø tatsächlich erzielbarer AW-Preis
B66: Berechnung Umsatz Lohn pro Jahr gesamt (WMO + AZG)
B67: = verkaufbare AW gesamt WMO + AZG Jahreswert | N67: =N62+N57 ->  | W67: =W62+W57 -> 366981.12 | AF67: Summe aus Zeile 57+62
B68: * Ø tatsächlich erzielbarer AW-Preis | N68: =N58 -> 0 | W68: =W58 -> 9 | AF68: AW-Preis Mechanik extern netto - 1,90€ (entspricht Wert aus Zeile 56)
B69: = Umsatz Lohn Jahreswert gesamt (WMO + AZG) | N69: =N67*N68 ->  | W69: =W67*W68 -> 3302830.08 | AF69: verkaufbare prod. AW gesamt WMO + AZG * Ø tatsächlich erzielbarer AW-Preis
B71: Umsatz Lohn auf Basis Monatswerte nach Saisonfaktor
B72: Monat | H72: Saisonfaktor | N72: Umatz Lohn | W72: Umatz Lohn | AF72: Rechenweg/Bemerkung
B73: Jan - Dez. | H73: =SUM(H74:L85) -> 1 | N73: =N69 ->  | W73: =W69 -> 3302830.08 | AF73: Übertrag aus Zeile 56. Saisonfaktor = Summe aller Einzelwerte zur Plausibbilität
B74: Januar | H74: 0.075 | N74: =$N$73*H74 ->  | W74: =$W$73*H74 -> 247712.256 | AF74: Umsatz Service Jahreswert * Saisonfaktor
B75: Februar | H75: 0.075 | N75: =$N$73*H75 ->  | W75: =$W$73*H75 -> 247712.256 | AF75: Umsatz Service Jahreswert * Saisonfaktor
B76: März | H76: 0.087 | W76: 287346.217 | AF76: Umsatz Service Jahreswert * Saisonfaktor
B77: April | H77: 0.089 | W77: 293951.8771 | AF77: Umsatz Service Jahreswert * Saisonfaktor
B78: Mai | H78: 0.086 | W78: 284043.3869 | AF78: Umsatz Service Jahreswert * Saisonfaktor
B79: Juni | H79: 0.084 | W79: 277437.7267 | AF79: Umsatz Service Jahreswert * Saisonfaktor
B80: Juli | H80: 0.084 | W80: 277437.7267 | AF80: Umsatz Service Jahreswert * Saisonfaktor
B81: August | H81: 0.081 | W81: 267529.2365 | AF81: Umsatz Service Jahreswert * Saisonfaktor
B82: September | H82: 0.083 | W82: 274134.8966 | AF82: Umsatz Service Jahreswert * Saisonfaktor
B83: Oktober | H83: 0.08 | W83: 264226.4064 | AF83: Umsatz Service Jahreswert * Saisonfaktor
B84: November | H84: 0.088 | W84: 290649.047 | AF84: Umsatz Service Jahreswert * Saisonfaktor
B85: Dezember | H85: 0.088 | W85: 290649.047 | AF85: Umsatz Service Jahreswert * Saisonfaktor

Sheet SCB_Planung_GÖG
B2: =WMO_Planung_GÖG!B2 -> Standort | C2: =WMO_Planung_GÖG!F2 -> Göggingen | E2: Legende:
B3: =WMO_Planung_GÖG!B3 -> Planjahr | C3: =WMO_Planung_GÖG!F3 -> 2022 | F3: Simulationseingabe
F4: Supervariable (wird durch die Simulationseingabe verändert)
B6: Kennzahlenplanung auf Jahresbasis gesamt (WMO+AZG)
B7: Bezeichnung | C7: Vorwärtkalkulation Simulation 1 | D7: Vorwärtkalkulation Simulation 2 | E7: Vorwärtkalkulation Simulation 3 | G7: Rückwärtskalkulation bezogen auf Planung gesamt (WMO +AZG)
B8: Anzahl Kalendertage | C8: 365 | D8: 365 | E8: 365 | G8: 365
B9: ./. Anzahl Wochenendtage | C9: 104 | D9: 104 | E9: 104 | G9: 104
B10: ./. Anzahl Feiertage | C10: 11 | D10: 11 | E10: 11 | G10: 11
B11: = Anzahl Arbeitstage brutto | C11: =C8-C9-C10 -> 250 | D11: =D8-D9-D10 -> 250 | E11: =E8-E9-E10 -> 250 | G11: =G8-G9-G10 -> 250
B12: ./. Krankheitstage | C12: 7 | D12: 7 | E12: 7 | G12: 7
B13: ./. Schulungstage | C13: 4 | D13: 4 | E13: 4 | G13: 4
B14: ./. Urlaubstage | C14: 25 | D14: 25 | E14: 25 | G14: 25
B15: = Anzahl Arbeitstage netto | C15: =C11-C12-C13-C14 -> 214 | D15: =D11-D12-D13-D14 -> 214 | E15: =E11-E12-E13-E14 -> 214 | G15: =G11-G12-G13-G14 -> 214
B16: * Durchgänge pro Tag | C16: 10 | D16: 11 | E16: 10 | G16: 10 | H16: =WMO_Planung_GÖG!W54/(SCB_Planung_GÖG!H17*SCB_Planung_GÖG!G15*SCB_Planung_GÖG!G21) -> 8.931588785
B17: * AW pro Durchgang | C17: 24 | D17: 24 | E17: 24 | G17: =WMO_Planung_GÖG!W54/(SCB_Planung_GÖG!G16*SCB_Planung_GÖG!G15*G21) -> 21.43581308 | H17: 24
B18: * Ø tatsächlich erzielbarer AW-Preis | C18: 10.5 | D18: 10.5 | E18: 10.5 | G18: =WMO_Planung_GÖG!W58 -> 9 | H18: =G18 -> 9
B19: = Umsatz Lohn Jahreswert pro SCB | C19: =C15*C16*C17*C18 -> 539280 | D19: =D15*D16*D17*D18 -> 593208 | E19: =E15*E16*E17*E18 -> 539280 | G19: =G22/G21 -> 412853.76 | H19: =H22/H21 -> 412853.76
B21: * Anzahl SCB | C21: 12 | D21: 12 | E21: 12 | G21: 8 | H21: 8
B22: = Umsatz Lohn gesamt | C22: =C19*C21 -> 6471360 | D22: =D19*D21 -> 7118496 | E22: 6471360 | G22: =WMO_Planung_GÖG!W69 -> 3302830.08 | H22: =G22 -> 3302830.08
B24: Plausibilitätsrechnung
B25: Lohnumsatz pro Durchgang | C25: =C19/(C16*C15) -> 252 | D25: =D19/(D16*D15) -> 252 | E25: 252 | G25: 192.9223178 | H25: =H19/(H16*G15) -> 216

Sheet WMO_Planung_LEH
B2: Standort | F2: Lechhausen | N2: Legende:
B3: Planjahr | F3: 2018 | O3: Simulationseingabe
B5: Kennzahlenplanung auf Jahresbasis (pro WMO)
B6: Bezeichnung Parameter | N6: IST-Wert Vorjahr gesamt | W6: Plan-Werte aktuelles Jahr | AF6: Rechenweg/Bemerkung
B7: Berechnung anwesende Std. pro Jahr (betriebsübergriefend)
B8: Anzahl Kalendertage | N8: 365 | W8: 365
B9: ./. Anzahl Wochenendtage | N9: 104 | W9: 104
B10: ./. Anzahl Feiertage | N10: 11 | W10: 11 | AF10: Die auf einen Wochentag (außer Samstag) fallen
B11: = Anzahl Arbeitstage brutto | N11: =N8-N9-N10 -> 250 | W11: =W8-W9-W10 -> 250 | AF11: Anzahl Kalendertage - Wochenendtage - Feiertage
B12: ./. Krankheitstage | N12: 7 | W12: 7
B13: ./. Schulungstage | N13: 4 | W13: 4
B14: ./. Urlaubstage | N14: 25 | W14: 25
B15: = Anzahl Arbeitstage netto | N15: =N11-N12-N13-N14 -> 214 | W15: =W11-W12-W13-W14 -> 214 | AF15: Arbeitstage brutto - Krankheitstage - Schulungstage - Urlaubstage (Berufsschultage werden später berücksichtigt)
B16: * Arbeitszeit pro Tag in h | N16: 8.4 | W16: 8.4
B17: = Anwesende Stunden pro Jahr pro WMO /AZG | N17: =N15*N16 -> 1797.6 | W17: =W15*W16 -> 1797.6 | AF17: Arbeitstage netto * Arbeitszeit pro Tag in h (Berufsschulstunden werden später berücksichtigt)
B19: Berechnung Leistungskennzahlen pro Jahr (betriebsindividuell)
N20: Anzahl | P20: LG | R20: AUSL | T20: PR | W20: Anzahl | Y20: LG | AA20: AUSL | AC20: PR
B21: WMOM gewichtet mit Prod.fakt.NAV | P21: =T21/R21 -> 1.128205128 | R21: 0.975 | T21: 1.1 | W21: 7 | Y21: =AC21/AA21 -> 1.128205128 | AA21: 0.975 | AC21: 1.1 | AF21: LG = Leistungsgrad / AUSL = Auslastung / PR = Produktivität
B22: WMOE gewichtet mit Prod.fakt.NAV | P22: =T22/R22 -> 1.025641026 | R22: 0.975 | T22: 1 | W22: 2 | Y22: =AC22/AA22 -> 1.025641026 | AA22: 0.975 | AC22: 1 | AF22: LG = Leistungsgrad / AUSL = Auslastung / PR = Produktivität
B23: WMOK gewichtet mit Prod.fakt.NAV | P23: 1.230769231 | R23: 0.975 | T23: 1.2 | W23: 1 | Y23: 1.230769231 | AA23: 0.975 | AC23: 1.2 | AF23: LG = Leistungsgrad / AUSL = Auslastung / PR = Produktivität
B24: AZG1 gewichtet mit Prod.fakt.NAV | P24: 0 | R24: 0.975 | T24: 0 | W24: 3 | Y24: 0 | AA24: 0.975 | AC24: 0 | AF24: LG = Leistungsgrad / AUSL = Auslastung / PR = Produktivität
B25: AZG2 gewichtet mit Prod.fakt.NAV | P25: 0.2051282051 | R25: 0.975 | T25: 0.2 | W25: 4 | Y25: 0.2051282051 | AA25: 0.975 | AC25: 0.2 | AF25: LG = Leistungsgrad / AUSL = Auslastung / PR = Produktivität
B26: AZG3 gewichtet mit Prod.fakt.NAV | P26: 0.4102564103 | R26: 0.975 | T26: 0.4 | W26: 1 | Y26: 0.4102564103 | AA26: 0.975 | AC26: 0.4 | AF26: LG = Leistungsgrad / AUSL = Auslastung / PR = Produktivität
B27: AZG4 gewichtet mit Prod.fakt.NAV | P27: 0.4102564103 | R27: 0.975 | T27: 0.4 | W27: 1 | Y27: 0.4102564103 | AA27: 0.975 | AC27: 0.4 | AF27: LG = Leistungsgrad / AUSL = Auslastung / PR = Produktivität
B29: Berechnung verkaufbare AW pro Jahr WMO
B30: = Anwesende Stunden pro Jahr pro WMO | N30: =N17 -> 1797.6 | W30: =W17 -> 1797.6 | AF30: Übertrag aus Zeile 14
B31: * Leistungsgrad gewichtetes Mittel alle WMO | N31: =(N21*P21+N22*P22+N23*P23)/N37 ->  | W31: =(W21*Y21+W22*Y22+W23*Y23)/W37 -> 1.117948718 | AF31: Gewichtetetes Mittel aus Zeile 19-21 [(Anzahl * LG + Anzahl * LG…)/Anzhal WMO]
B32: * Auslastung (100% anw. Stunden - 2,5 % Wvariabel) | N32: =(N21*R21+N22*R22+N23*R23)/N37 ->  | W32: =(W21*AA21+W22*AA22+W23*AA23)/W37 -> 0.975 | AF32: Gewichtetetes Mittel aus Zeile 19-21 [(Anzahl * AUSL + Anzahl * AUSL…)/Anzhal WMO]
B33: Produktivität (LG * AUSL) gew. Mittel alle WMO | N33: =N31*N32 ->  | W33: =W31*W32 -> 1.09 | AF33: Die PR wird hier nur aus Plausibilitätsgründen ausgewiesen und nicht als Rechenfaktor angewendet
B34: = verkaufbare Std. gewicht. Mittel ein WMO Jahresw. | N34: =N30*N31*N32 ->  | W34: =W30*W31*W32 -> 1959.384 | AF34: Anw. Stunden * Leistungsgrad * Auslastung
B35: * Umrechnungsfaktor AW | N35: 12 | W35: 12
B36: = verkaufbare AW gewicht. Mittel ein WMO Jahresw. | N36: =N34*N35 ->  | W36: =W34*W35 -> 23512.608 | AF36: verkaufbare prod. Std. * Umrechnungsfaktor AW
B37: * Anzahl WMO gesamt gewichtet mit Prod.fakt.NAV | N37: =SUM(N21:O23) -> 0 | W37: =SUM(W21:X23) -> 10 | AF37: Summe aller WMO (Zeile 19-21)
B38: = verkaufbare AW gesamt alle WMO Jahreswert | N38: =N36*N37 ->  | W38: =W36*W37 -> 235126.08 | AF38: verkaufbare prod. AW * Anzahl WMO
B40: Berechnung verkaufbare AW pro Jahr AZG
B41: = Anwesende Std. pro Jahr pro AZG (mit Berufsschulzeit) | N41: =N17 -> 1797.6 | W41: =W17 -> 1797.6 | AF41: Übertrag aus Zeile 14
B42: ./. Std. Berufsschulzeit und Lehrgänge pro Jahr | W42: 480 | AF42: Mittelwert über alle Lehrjahre [(52 Wochen - 12 Wochen Ferien) *1,5 Tage * 8 Std.) = 480 Std.
B43: = Anwesende Stunden pro Jahr (ohne Berufsschulzeit) | N43: =N41-N42 -> 1797.6 | W43: =W41-W42 -> 1317.6 | AF43: Anwesende Std. - Std. Berufsschulzeit
B44: * Leistungsgrad gewichtetes Mittel alle AZG | N44: =(N24*P24+N25*P25+N26*P26+N27*P27)/N50 ->  | W44: =(W24*Y24+W25*Y25+W26*Y26+W27*Y27)/W50 -> 0.1823361823 | AF44: Gewichtetetes Mittel aus Zeile 22-25 [(Anzahl * LG + Anzahl * LG…)/Anzhal AZG]
B45: * Auslastung (100% anw. Stunden - 2,5 % Wvariabel) | N45: =(N24*R24+N25*R25+N26*R26+N27*R27)/N50 ->  | W45: =(W24*AA24+W25*AA25+W26*AA26+W27*AA27)/W50 -> 0.975 | AF45: Gewichtetetes Mittel aus Zeile 22-25 [(Anzahl * AUSL + Anzahl * AUSL…)/Anzhal AZG]
B46: Produktivität (Leistungsgrad * Auslastung) | N46: =N44*N45 ->  | W46: =W44*W45 -> 0.1777777778 | AF46: Die PR wird hier nur aus Plausibilitätsgründen ausgewiesen und nicht als Rechenfaktor angewendet.
B47: = verkaufbare Std. ein AZG Jahreswert | N47: =N43*N44*N45 ->  | W47: =W43*W44*W45 -> 234.24 | AF47: Anw. Stunden * Leistungsgrad * Auslastung
B48: * Umrechnungsfaktor AW | N48: 12 | W48: 12
B49: = verkaufbare AW ein AZG Jahreswert | N49: =N47*N48 ->  | W49: =W47*W48 -> 2810.88 | AF49: verkaufbare prod. Std. * Umrechnungsfaktor AW
B50: * Anzahl AZG gesamt gewichtet mit Prod.fakt.NAV | N50: =SUM(N24:O27) -> 0 | W50: =SUM(W24:X27) -> 9 | AF50: Summe aller AZG (Zeile 22-25)
B51: = verkaufbare AW gesamt alle AZG Jahreswert | N51: =N49*N50 ->  | W51: =W49*W50 -> 25297.92 | AF51: verkaufbare prod. AW * Anzahl AZG
B53: Berechnung verkaufbare AW pro Jahr gesamt (WMO und AZG)
B54: = verkaufbare prod. AW WMO und AZG Jahreswert | N54: =N51+N38 ->  | W54: =W51+W38 -> 260424 | AF54: Summe aller WMO und AZG (Zeile 19-25)
B56: Berechnung Umsatz Lohn pro Jahr WMO
B57: = verkaufbare AW gesamt alle WMO Jahreswert | N57: =N38 ->  | W57: =W38 -> 235126.08 | AF57: Übertrag aus Zeile 36
B58: * Ø tatsächlich erzielbarer AW-Preis | N58: 0 | W58: 9 | AF58: AW-Preis Mechanik extern netto - 1,90€
B59: = Umsatz Lohn Jahreswert WMO | N59: =N57*N58 ->  | W59: =W57*W58 -> 2116134.72 | AF59: verkaufbare prod. AW gesamt WMO * Ø tatsächlich erzielbarer AW-Preis
B61: Berechnung Umsatz Lohn pro Jahr AZG
B62: = verkaufbare AW gesamt alle AZG Jahreswert | N62: =N51 ->  | W62: =W51 -> 25297.92 | AF62: Übertrag aus Zeile 49
B63: * Ø tatsächlich erzielbarer AW-Preis | N63: =N58 -> 0 | W63: =W58 -> 9 | AF63: AW-Preis Mechanik extern netto - 1,90€ (entspricht Wert aus Zeile 56)
B64: = Umsatz Lohn Jahreswert AZG | N64: =N62*N63 ->  | W64: =W62*W63 -> 227681.28 | AF64: verkaufbare prod. AW gesamt AZG * Ø tatsächlich erzielbarer AW-Preis
B66: Berechnung Umsatz Lohn pro Jahr gesamt (WMO + AZG)
B67: = verkaufbare AW gesamt WMO + AZG Jahreswert | N67: =N62+N57 ->  | W67: =W62+W57 -> 260424 | AF67: Summe aus Zeile 57+62
B68: * Ø tatsächlich erzielbarer AW-Preis | N68: =N58 -> 0 | W68: =W58 -> 9 | AF68: AW-Preis Mechanik extern netto - 1,90€ (entspricht Wert aus Zeile 56)
B69: = Umsatz Lohn Jahreswert gesamt (WMO + AZG) | N69: =N67*N68 ->  | W69: =W67*W68 -> 2343816 | AF69: verkaufbare prod. AW gesamt WMO + AZG * Ø tatsächlich erzielbarer AW-Preis
B71: Umsatz Lohn auf Basis Monatswerte nach Saisonfaktor
B72: Monat | H72: Saisonfaktor | N72: Umatz Lohn | W72: Umatz Lohn | AF72: Rechenweg/Bemerkung
B73: Jan - Dez. | H73: =SUM(H74:L85) -> 1 | N73: =N69 ->  | W73: =W69 -> 2343816 | AF73: Übertrag aus Zeile 56. Saisonfaktor = Summe aller Einzelwerte zur Plausibbilität
B74: Januar | H74: 0.075 | N74: =$N$73*H74 ->  | W74: =$W$73*H74 -> 175786.2 | AF74: Umsatz Service Jahreswert * Saisonfaktor
B75: Februar | H75: 0.075 | N75: =$N$73*H75 ->  | W75: =$W$73*H75 -> 175786.2 | AF75: Umsatz Service Jahreswert * Saisonfaktor
B76: März | H76: 0.087 | W76: 203911.992 | AF76: Umsatz Service Jahreswert * Saisonfaktor
B77: April | H77: 0.089 | W77: 208599.624 | AF77: Umsatz Service Jahreswert * Saisonfaktor
B78: Mai | H78: 0.086 | W78: 201568.176 | AF78: Umsatz Service Jahreswert * Saisonfaktor
B79: Juni | H79: 0.084 | W79: 196880.544 | AF79: Umsatz Service Jahreswert * Saisonfaktor
B80: Juli | H80: 0.084 | W80: 196880.544 | AF80: Umsatz Service Jahreswert * Saisonfaktor
B81: August | H81: 0.081 | W81: 189849.096 | AF81: Umsatz Service Jahreswert * Saisonfaktor
B82: September | H82: 0.083 | W82: 194536.728 | AF82: Umsatz Service Jahreswert * Saisonfaktor
B83: Oktober | H83: 0.08 | W83: 187505.28 | AF83: Umsatz Service Jahreswert * Saisonfaktor
B84: November | H84: 0.088 | W84: 206255.808 | AF84: Umsatz Service Jahreswert * Saisonfaktor
B85: Dezember | H85: 0.088 | W85: 206255.808 | AF85: Umsatz Service Jahreswert * Saisonfaktor

Sheet SCB_Planung_LEH
B2: =WMO_Planung_LEH!B2 -> Standort | C2: =WMO_Planung_LEH!F2 -> Lechhausen | E2: Legende:
B3: =WMO_Planung_LEH!B3 -> Planjahr | C3: =WMO_Planung_LEH!F3 -> 2018 | F3: Simulationseingabe
F4: Supervariable (wird durch die Simulationseingabe verändert)
B6: Kennzahlenplanung auf Jahresbasis gesamt (WMO+AZG)
B7: Bezeichnung | C7: Vorwärtkalkulation Simulation 1 | D7: Vorwärtkalkulation Simulation 2 | E7: Vorwärtkalkulation Simulation 3 | G7: Rückwärtskalkulation bezogen auf Planung gesamt (WMO +AZG)
B8: Anzahl Kalendertage | C8: 365 | D8: 365 | E8: 365 | G8: 365
B9: ./. Anzahl Wochenendtage | C9: 104 | D9: 104 | E9: 104 | G9: 104
B10: ./. Anzahl Feiertage | C10: 11 | D10: 11 | E10: 11 | G10: 11
B11: = Anzahl Arbeitstage brutto | C11: =C8-C9-C10 -> 250 | D11: =D8-D9-D10 -> 250 | E11: =E8-E9-E10 -> 250 | G11: =G8-G9-G10 -> 250
B12: ./. Krankheitstage | C12: 7 | D12: 7 | E12: 7 | G12: 7
B13: ./. Schulungstage | C13: 4 | D13: 4 | E13: 4 | G13: 4
B14: ./. Urlaubstage | C14: 25 | D14: 25 | E14: 25 | G14: 25
B15: = Anzahl Arbeitstage netto | C15: =C11-C12-C13-C14 -> 214 | D15: =D11-D12-D13-D14 -> 214 | E15: =E11-E12-E13-E14 -> 214 | G15: =G11-G12-G13-G14 -> 214
B16: * Durchgänge pro Tag | C16: 10 | D16: 11 | E16: 10 | G16: 10 | H16: =WMO_Planung_LEH!W54/(SCB_Planung_LEH!H17*SCB_Planung_LEH!G15*SCB_Planung_LEH!G21) -> 12.67640187
B17: * AW pro Durchgang | C17: 24 | D17: 24 | E17: 24 | G17: =WMO_Planung_LEH!W54/(SCB_Planung_LEH!G16*SCB_Planung_LEH!G15*G21) -> 30.42336449 | H17: 24
B18: * Ø tatsächlich erzielbarer AW-Preis | C18: 9 | D18: 10.5 | E18: 9.5 | G18: =WMO_Planung_LEH!W58 -> 9 | H18: =G18 -> 9
B19: = Umsatz Lohn Jahreswert pro SCB | C19: =C15*C16*C17*C18 -> 462240 | D19: =D15*D16*D17*D18 -> 593208 | E19: =E15*E16*E17*E18 -> 487920 | G19: =G22/G21 -> 585954 | H19: =H22/H21 -> 585954
B21: * Anzahl SCB | C21: 4 | D21: 4 | E21: 4 | G21: 4 | H21: 4
B22: = Umsatz Lohn gesamt | C22: =C19*C21 -> 1848960 | D22: =D19*D21 -> 2372832 | E22: 1951680 | G22: =WMO_Planung_LEH!W69 -> 2343816 | H22: =G22 -> 2343816
B24: Plausibilitätsrechnung
B25: Lohnumsatz pro Durchgang | C25: =C19/(C16*C15) -> 216 | D25: =D19/(D16*D15) -> 252 | E25: 228 | G25: 273.8102804 | H25: =H19/(H16*G15) -> 216

Sheet WMO_Planung_WTB
B2: Standort | F2: Wertachbrücke | N2: Legende:
B3: Planjahr | F3: 2018 | O3: Simulationseingabe
B5: Kennzahlenplanung auf Jahresbasis (pro WMO)
B6: Bezeichnung Parameter | N6: IST-Wert Vorjahr gesamt | W6: Plan-Werte aktuelles Jahr | AF6: Rechenweg/Bemerkung
B7: Berechnung anwesende Std. pro Jahr (betriebsübergriefend)
B8: Anzahl Kalendertage | N8: 365 | W8: 365
B9: ./. Anzahl Wochenendtage | N9: 104 | W9: 104
B10: ./. Anzahl Feiertage | N10: 11 | W10: 11 | AF10: Die auf einen Wochentag (außer Samstag) fallen
B11: = Anzahl Arbeitstage brutto | N11: =N8-N9-N10 -> 250 | W11: =W8-W9-W10 -> 250 | AF11: Anzahl Kalendertage - Wochenendtage - Feiertage
B12: ./. Krankheitstage | N12: 7 | W12: 7
B13: ./. Schulungstage | N13: 4 | W13: 4
B14: ./. Urlaubstage | N14: 25 | W14: 25
B15: = Anzahl Arbeitstage netto | N15: =N11-N12-N13-N14 -> 214 | W15: =W11-W12-W13-W14 -> 214 | AF15: Arbeitstage brutto - Krankheitstage - Schulungstage - Urlaubstage (Berufsschultage werden später berücksichtigt)
B16: * Arbeitszeit pro Tag in h | N16: 8.4 | W16: 8.4
B17: = Anwesende Stunden pro Jahr pro WMO /AZG | N17: =N15*N16 -> 1797.6 | W17: =W15*W16 -> 1797.6 | AF17: Arbeitstage netto * Arbeitszeit pro Tag in h (Berufsschulstunden werden später berücksichtigt)
B19: Berechnung Leistungskennzahlen pro Jahr (betriebsindividuell)
N20: Anzahl | P20: LG | R20: AUSL | T20: PR | W20: Anzahl | Y20: LG | AA20: AUSL | AC20: PR
B21: WMOM gewichtet mit Prod.fakt.NAV | P21: =T21/R21 -> 1.128205128 | R21: 0.975 | T21: 1.1 | W21: 6 | Y21: =AC21/AA21 -> 1.128205128 | AA21: 0.975 | AC21: 1.1 | AF21: LG = Leistungsgrad / AUSL = Auslastung / PR = Produktivität
B22: WMOE gewichtet mit Prod.fakt.NAV | P22: =T22/R22 -> 1.025641026 | R22: 0.975 | T22: 1 | W22: 1 | Y22: =AC22/AA22 -> 1.025641026 | AA22: 0.975 | AC22: 1 | AF22: LG = Leistungsgrad / AUSL = Auslastung / PR = Produktivität
B23: WMOK gewichtet mit Prod.fakt.NAV | P23: 1.230769231 | R23: 0.975 | T23: 1.2 | W23: 0 | Y23: 1.230769231 | AA23: 0.975 | AC23: 1.2 | AF23: LG = Leistungsgrad / AUSL = Auslastung / PR = Produktivität
B24: AZG1 gewichtet mit Prod.fakt.NAV | P24: 0 | R24: 0.975 | T24: 0 | W24: 2 | Y24: 0 | AA24: 0.975 | AC24: 0 | AF24: LG = Leistungsgrad / AUSL = Auslastung / PR = Produktivität
B25: AZG2 gewichtet mit Prod.fakt.NAV | P25: 0.2051282051 | R25: 0.975 | T25: 0.2 | W25: 3 | Y25: 0.2051282051 | AA25: 0.975 | AC25: 0.2 | AF25: LG = Leistungsgrad / AUSL = Auslastung / PR = Produktivität
B26: AZG3 gewichtet mit Prod.fakt.NAV | P26: 0.4102564103 | R26: 0.975 | T26: 0.4 | W26: 2 | Y26: 0.4102564103 | AA26: 0.975 | AC26: 0.4 | AF26: LG = Leistungsgrad / AUSL = Auslastung / PR = Produktivität
B27: AZG4 gewichtet mit Prod.fakt.NAV | P27: 0.4102564103 | R27: 0.975 | T27: 0.4 | W27: 1 | Y27: 0.4102564103 | AA27: 0.975 | AC27: 0.4 | AF27: LG = Leistungsgrad / AUSL = Auslastung / PR = Produktivität
B29: Berechnung verkaufbare AW pro Jahr WMO
B30: = Anwesende Stunden pro Jahr pro WMO | N30: =N17 -> 1797.6 | W30: =W17 -> 1797.6 | AF30: Übertrag aus Zeile 14
B31: * Leistungsgrad gewichtetes Mittel alle WMO | N31: =(N21*P21+N22*P22+N23*P23)/N37 ->  | W31: =(W21*Y21+W22*Y22+W23*Y23)/W37 -> 1.113553114 | AF31: Gewichtetetes Mittel aus Zeile 19-21 [(Anzahl * LG + Anzahl * LG…)/Anzhal WMO]
B32: * Auslastung (100% anw. Stunden - 2,5 % Wvariabel) | N32: =(N21*R21+N22*R22+N23*R23)/N37 ->  | W32: =(W21*AA21+W22*AA22+W23*AA23)/W37 -> 0.975 | AF32: Gewichtetetes Mittel aus Zeile 19-21 [(Anzahl * AUSL + Anzahl * AUSL…)/Anzhal WMO]
B33: Produktivität (LG * AUSL) gew. Mittel alle WMO | N33: =N31*N32 ->  | W33: =W31*W32 -> 1.085714286 | AF33: Die PR wird hier nur aus Plausibilitätsgründen ausgewiesen und nicht als Rechenfaktor angewendet
B34: = verkaufbare Std. gewicht. Mittel ein WMO Jahresw. | N34: =N30*N31*N32 ->  | W34: =W30*W31*W32 -> 1951.68 | AF34: Anw. Stunden * Leistungsgrad * Auslastung
B35: * Umrechnungsfaktor AW | N35: 12 | W35: 12
B36: = verkaufbare AW gewicht. Mittel ein WMO Jahresw. | N36: =N34*N35 ->  | W36: =W34*W35 -> 23420.16 | AF36: verkaufbare prod. Std. * Umrechnungsfaktor AW
B37: * Anzahl WMO gesamt gewichtet mit Prod.fakt.NAV | N37: =SUM(N21:O23) -> 0 | W37: =SUM(W21:X23) -> 7 | AF37: Summe aller WMO (Zeile 19-21)
B38: = verkaufbare AW gesamt alle WMO Jahreswert | N38: =N36*N37 ->  | W38: =W36*W37 -> 163941.12 | AF38: verkaufbare prod. AW * Anzahl WMO
B40: Berechnung verkaufbare AW pro Jahr AZG
B41: = Anwesende Std. pro Jahr pro AZG (mit Berufsschulzeit) | N41: =N17 -> 1797.6 | W41: =W17 -> 1797.6 | AF41: Übertrag aus Zeile 14
B42: ./. Std. Berufsschulzeit und Lehrgänge pro Jahr | W42: 480 | AF42: Mittelwert über alle Lehrjahre [(52 Wochen - 12 Wochen Ferien) *1,5 Tage * 8 Std.) = 480 Std.
B43: = Anwesende Stunden pro Jahr (ohne Berufsschulzeit) | N43: =N41-N42 -> 1797.6 | W43: =W41-W42 -> 1317.6 | AF43: Anwesende Std. - Std. Berufsschulzeit
B44: * Leistungsgrad gewichtetes Mittel alle AZG | N44: =(N24*P24+N25*P25+N26*P26+N27*P27)/N50 ->  | W44: =(W24*Y24+W25*Y25+W26*Y26+W27*Y27)/W50 -> 0.2307692308 | AF44: Gewichtetetes Mittel aus Zeile 22-25 [(Anzahl * LG + Anzahl * LG…)/Anzhal AZG]
B45: * Auslastung (100% anw. Stunden - 2,5 % Wvariabel) | N45: =(N24*R24+N25*R25+N26*R26+N27*R27)/N50 ->  | W45: =(W24*AA24+W25*AA25+W26*AA26+W27*AA27)/W50 -> 0.975 | AF45: Gewichtetetes Mittel aus Zeile 22-25 [(Anzahl * AUSL + Anzahl * AUSL…)/Anzhal AZG]
B46: Produktivität (Leistungsgrad * Auslastung) | N46: =N44*N45 ->  | W46: =W44*W45 -> 0.225 | AF46: Die PR wird hier nur aus Plausibilitätsgründen ausgewiesen und nicht als Rechenfaktor angewendet.
B47: = verkaufbare Std. ein AZG Jahreswert | N47: =N43*N44*N45 ->  | W47: =W43*W44*W45 -> 296.46 | AF47: Anw. Stunden * Leistungsgrad * Auslastung
B48: * Umrechnungsfaktor AW | N48: 12 | W48: 12
B49: = verkaufbare AW ein AZG Jahreswert | N49: =N47*N48 ->  | W49: =W47*W48 -> 3557.52 | AF49: verkaufbare prod. Std. * Umrechnungsfaktor AW
B50: * Anzahl AZG gesamt gewichtet mit Prod.fakt.NAV | N50: =SUM(N24:O27) -> 0 | W50: =SUM(W24:X27) -> 8 | AF50: Summe aller AZG (Zeile 22-25)
B51: = verkaufbare AW gesamt alle AZG Jahreswert | N51: =N49*N50 ->  | W51: =W49*W50 -> 28460.16 | AF51: verkaufbare prod. AW * Anzahl AZG
B53: Berechnung verkaufbare AW pro Jahr gesamt (WMO und AZG)
B54: = verkaufbare prod. AW WMO und AZG Jahreswert | N54: =N51+N38 ->  | W54: =W51+W38 -> 192401.28 | AF54: Summe aller WMO und AZG (Zeile 19-25)
B56: Berechnung Umsatz Lohn pro Jahr WMO
B57: = verkaufbare AW gesamt alle WMO Jahreswert | N57: =N38 ->  | W57: =W38 -> 163941.12 | AF57: Übertrag aus Zeile 36
B58: * Ø tatsächlich erzielbarer AW-Preis | N58: 0 | W58: 9 | AF58: AW-Preis Mechanik extern netto - 1,90€
B59: = Umsatz Lohn Jahreswert WMO | N59: =N57*N58 ->  | W59: =W57*W58 -> 1475470.08 | AF59: verkaufbare prod. AW gesamt WMO * Ø tatsächlich erzielbarer AW-Preis
B61: Berechnung Umsatz Lohn pro Jahr AZG
B62: = verkaufbare AW gesamt alle AZG Jahreswert | N62: =N51 ->  | W62: =W51 -> 28460.16 | AF62: Übertrag aus Zeile 49
B63: * Ø tatsächlich erzielbarer AW-Preis | N63: =N58 -> 0 | W63: =W58 -> 9 | AF63: AW-Preis Mechanik extern netto - 1,90€ (entspricht Wert aus Zeile 56)
B64: = Umsatz Lohn Jahreswert AZG | N64: =N62*N63 ->  | W64: =W62*W63 -> 256141.44 | AF64: verkaufbare prod. AW gesamt AZG * Ø tatsächlich erzielbarer AW-Preis
B66: Berechnung Umsatz Lohn pro Jahr gesamt (WMO + AZG)
B67: = verkaufbare AW gesamt WMO + AZG Jahreswert | N67: =N62+N57 ->  | W67: =W62+W57 -> 192401.28 | AF67: Summe aus Zeile 57+62
B68: * Ø tatsächlich erzielbarer AW-Preis | N68: =N58 -> 0 | W68: =W58 -> 9 | AF68: AW-Preis Mechanik extern netto - 1,90€ (entspricht Wert aus Zeile 56)
B69: = Umsatz Lohn Jahreswert gesamt (WMO + AZG) | N69: =N67*N68 ->  | W69: =W67*W68 -> 1731611.52 | AF69: verkaufbare prod. AW gesamt WMO + AZG * Ø tatsächlich erzielbarer AW-Preis
B71: Umsatz Lohn auf Basis Monatswerte nach Saisonfaktor
B72: Monat | H72: Saisonfaktor | N72: Umatz Lohn | W72: Umatz Lohn | AF72: Rechenweg/Bemerkung
B73: Jan - Dez. | H73: =SUM(H74:L85) -> 1 | N73: =N69 ->  | W73: =W69 -> 1731611.52 | AF73: Übertrag aus Zeile 56. Saisonfaktor = Summe aller Einzelwerte zur Plausibbilität
B74: Januar | H74: 0.075 | N74: =$N$73*H74 ->  | W74: =$W$73*H74 -> 129870.864 | AF74: Umsatz Service Jahreswert * Saisonfaktor
B75: Februar | H75: 0.075 | N75: =$N$73*H75 ->  | W75: =$W$73*H75 -> 129870.864 | AF75: Umsatz Service Jahreswert * Saisonfaktor
B76: März | H76: 0.087 | W76: 150650.2022 | AF76: Umsatz Service Jahreswert * Saisonfaktor
B77: April | H77: 0.089 | W77: 154113.4253 | AF77: Umsatz Service Jahreswert * Saisonfaktor
B78: Mai | H78: 0.086 | W78: 148918.5907 | AF78: Umsatz Service Jahreswert * Saisonfaktor
B79: Juni | H79: 0.084 | W79: 145455.3677 | AF79: Umsatz Service Jahreswert * Saisonfaktor
B80: Juli | H80: 0.084 | W80: 145455.3677 | AF80: Umsatz Service Jahreswert * Saisonfaktor
B81: August | H81: 0.081 | W81: 140260.5331 | AF81: Umsatz Service Jahreswert * Saisonfaktor
B82: September | H82: 0.083 | W82: 143723.7562 | AF82: Umsatz Service Jahreswert * Saisonfaktor
B83: Oktober | H83: 0.08 | W83: 138528.9216 | AF83: Umsatz Service Jahreswert * Saisonfaktor
B84: November | H84: 0.088 | W84: 152381.8138 | AF84: Umsatz Service Jahreswert * Saisonfaktor
B85: Dezember | H85: 0.088 | W85: 152381.8138 | AF85: Umsatz Service Jahreswert * Saisonfaktor

Sheet SCB_Planung_WTB
B2: =WMO_Planung_WTB!B2 -> Standort | C2: =WMO_Planung_WTB!F2 -> Wertachbrücke | E2: Legende:
B3: =WMO_Planung_WTB!B3 -> Planjahr | C3: =WMO_Planung_WTB!F3 -> 2018 | F3: Simulationseingabe
F4: Supervariable (wird durch die Simulationseingabe verändert)
B6: Kennzahlenplanung auf Jahresbasis gesamt (WMO+AZG)
B7: Bezeichnung | C7: Vorwärtkalkulation Simulation 1 | D7: Vorwärtkalkulation Simulation 2 | E7: Vorwärtkalkulation Simulation 3 | G7: Rückwärtskalkulation bezogen auf Planung gesamt (WMO +AZG)
B8: Anzahl Kalendertage | C8: 365 | D8: 365 | E8: 365 | G8: 365
B9: ./. Anzahl Wochenendtage | C9: 104 | D9: 104 | E9: 104 | G9: 104
B10: ./. Anzahl Feiertage | C10: 11 | D10: 11 | E10: 11 | G10: 11
B11: = Anzahl Arbeitstage brutto | C11: =C8-C9-C10 -> 250 | D11: =D8-D9-D10 -> 250 | E11: =E8-E9-E10 -> 250 | G11: =G8-G9-G10 -> 250
B12: ./. Krankheitstage | C12: 7 | D12: 7 | E12: 7 | G12: 7
B13: ./. Schulungstage | C13: 4 | D13: 4 | E13: 4 | G13: 4
B14: ./. Urlaubstage | C14: 25 | D14: 25 | E14: 25 | G14: 25
B15: = Anzahl Arbeitstage netto | C15: =C11-C12-C13-C14 -> 214 | D15: =D11-D12-D13-D14 -> 214 | E15: =E11-E12-E13-E14 -> 214 | G15: =G11-G12-G13-G14 -> 214
B16: * Durchgänge pro Tag | C16: 10 | D16: 11 | E16: 10 | G16: 10 | H16: =WMO_Planung_WTB!W54/(SCB_Planung_WTB!H17*SCB_Planung_WTB!G15*SCB_Planung_WTB!G21) -> 12.4871028
B17: * AW pro Durchgang | C17: 24 | D17: 24 | E17: 24 | G17: =WMO_Planung_WTB!W54/(SCB_Planung_WTB!G16*SCB_Planung_WTB!G15*G21) -> 29.96904673 | H17: 24
B18: * Ø tatsächlich erzielbarer AW-Preis | C18: 9 | D18: 10.5 | E18: 9.5 | G18: =WMO_Planung_WTB!W58 -> 9 | H18: =G18 -> 9
B19: = Umsatz Lohn Jahreswert pro SCB | C19: =C15*C16*C17*C18 -> 462240 | D19: =D15*D16*D17*D18 -> 593208 | E19: =E15*E16*E17*E18 -> 487920 | G19: =G22/G21 -> 577203.84 | H19: =H22/H21 -> 577203.84
B21: * Anzahl SCB | C21: 3 | D21: 3 | E21: 3 | G21: 3 | H21: 3
B22: = Umsatz Lohn gesamt | C22: =C19*C21 -> 1386720 | D22: =D19*D21 -> 1779624 | E22: 1463760 | G22: =WMO_Planung_WTB!W69 -> 1731611.52 | H22: =G22 -> 1731611.52
B24: Plausibilitätsrechnung
B25: Lohnumsatz pro Durchgang | C25: =C19/(C16*C15) -> 216 | D25: =D19/(D16*D15) -> 252 | E25: 228 | G25: 269.7214206 | H25: =H19/(H16*G15) -> 216

Sheet WMO_Plan_dynamisch
A1: Hauptbetrieb | B1: Standort | C1: produktiv/unproduktiv | D1: Monteurgruppe | E1: Datum | F1: Plan_dyn_1 | G1: Plan_dyn_2 | H1: Plan_dyn_3 | I1: Plan_dyn_4 | J1: Plan_dyn_5 | K1: Plan_dyn_6 | L1: Plan_dyn_7 | M1: Plan_dyn_8 | N1: Plan_dyn_9 | O1: Plan_dyn_10 | P1: Plan_dyn_11 | Q1: Plan_dyn_12
A2: 1 | B2: 10 | C2: prod. Personal | D2: WMOM | E2: 2018 | F2: =WMO_Planung_MM!$W$74 -> 265085.784 | G2: =WMO_Planung_MM!$W$75 -> 265085.784 | H2: =WMO_Planung_MM!$W$76 -> 307499.5094 | I2: =WMO_Planung_MM!$W$77 -> 314568.4637 | J2: =WMO_Planung_MM!$W$78 -> 303965.0323 | K2: =WMO_Planung_MM!$W$79 -> 296896.0781 | L2: =WMO_Planung_MM!$W$80 -> 296896.0781 | M2: =WMO_Planung_MM!$W$81 -> 286292.6467 | N2: =WMO_Planung_MM!$W$82 -> 293361.601 | O2: =WMO_Planung_MM!$W$83 -> 282758.1696 | P2: =WMO_Planung_MM!$W$84 -> 311033.9866 | Q2: =WMO_Planung_MM!$W$85 -> 311033.9866
A3: 1 | B3: 40 | C3: prod. Personal | D3: WMOM | E3: 2018 | F3: =WMO_Planung_Ulm!$W$74 -> 381852.144 | G3: =WMO_Planung_Ulm!$W$75 -> 381852.144 | H3: =WMO_Planung_Ulm!$W$76 -> 442948.487 | I3: =WMO_Planung_Ulm!$W$77 -> 453131.2109 | J3: =WMO_Planung_Ulm!$W$78 -> 437857.1251 | K3: =WMO_Planung_Ulm!$W$79 -> 427674.4013 | L3: =WMO_Planung_Ulm!$W$80 -> 427674.4013 | M3: =WMO_Planung_Ulm!$W$81 -> 412400.3155 | N3: =WMO_Planung_Ulm!$W$82 -> 422583.0394 | O3: =WMO_Planung_Ulm!$W$83 -> 407308.9536 | P3: =WMO_Planung_Ulm!$W$84 -> 448039.849 | Q3: =WMO_Planung_Ulm!$W$85 -> 448039.849
A4: 1 | B4: 30 | C4: prod. Personal | D4: WMOM | E4: 2018 | F4: =WMO_Planung_KRU!$W$74 -> 55131.84 | G4: =WMO_Planung_KRU!$W$75 -> 55131.84 | H4: =WMO_Planung_KRU!$W$76 -> 63952.9344 | I4: =WMO_Planung_KRU!$W$77 -> 65423.1168 | J4: =WMO_Planung_KRU!$W$78 -> 63217.8432 | K4: =WMO_Planung_KRU!$W$79 -> 61747.6608 | L4: =WMO_Planung_KRU!$W$80 -> 61747.6608 | M4: =WMO_Planung_KRU!$W$81 -> 59542.3872 | N4: =WMO_Planung_KRU!$W$82 -> 61012.5696 | O4: =WMO_Planung_KRU!$W$83 -> 58807.296 | P4: =WMO_Planung_KRU!$W$84 -> 64688.0256 | Q4: =WMO_Planung_KRU!$W$85 -> 64688.0256
A5: 1 | B5: 50 | C5: prod. Personal | D5: WMOM | E5: 2018 | F5: =WMO_Planung_LL!$W$74 -> 258384.816 | G5: =WMO_Planung_LL!$W$75 -> 258384.816 | H5: =WMO_Planung_LL!$W$76 -> 299726.3866 | I5: =WMO_Planung_LL!$W$77 -> 306616.6483 | J5: =WMO_Planung_LL!$W$78 -> 296281.2557 | K5: =WMO_Planung_LL!$W$79 -> 289390.9939 | L5: =WMO_Planung_LL!$W$80 -> 289390.9939 | M5: =WMO_Planung_LL!$W$81 -> 279055.6013 | N5: =WMO_Planung_LL!$W$82 -> 285945.863 | O5: =WMO_Planung_LL!$W$83 -> 275610.4704 | P5: =WMO_Planung_LL!$W$84 -> 303171.5174 | Q5: =WMO_Planung_LL!$W$85 -> 303171.5174
A6: 2 | B6: 60 | C6: prod. Personal | D6: WMOM | E6: 2018 | F6: =WMO_Planung_GÖG!$W$74 -> 247712.256 | G6: =WMO_Planung_GÖG!$W$75 -> 247712.256 | H6: =WMO_Planung_GÖG!$W$76 -> 287346.217 | I6: =WMO_Planung_GÖG!$W$77 -> 293951.8771 | J6: =WMO_Planung_GÖG!$W$78 -> 284043.3869 | K6: =WMO_Planung_GÖG!$W$79 -> 277437.7267 | L6: =WMO_Planung_GÖG!$W$80 -> 277437.7267 | M6: =WMO_Planung_GÖG!$W$81 -> 267529.2365 | N6: =WMO_Planung_GÖG!$W$82 -> 274134.8966 | O6: =WMO_Planung_GÖG!$W$83 -> 264226.4064 | P6: =WMO_Planung_GÖG!$W$84 -> 290649.047 | Q6: =WMO_Planung_GÖG!$W$85 -> 290649.047
A7: 2 | B7: 70 | C7: prod. Personal | D7: WMOM | E7: 2018 | F7: =WMO_Planung_LEH!$W$74 -> 175786.2 | G7: =WMO_Planung_LEH!$W$75 -> 175786.2 | H7: =WMO_Planung_LEH!$W$76 -> 203911.992 | I7: =WMO_Planung_LEH!$W$77 -> 208599.624 | J7: =WMO_Planung_LEH!$W$78 -> 201568.176 | K7: =WMO_Planung_LEH!$W$79 -> 196880.544 | L7: =WMO_Planung_LEH!$W$80 -> 196880.544 | M7: =WMO_Planung_LEH!$W$81 -> 189849.096 | N7: =WMO_Planung_LEH!$W$82 -> 194536.728 | O7: =WMO_Planung_LEH!$W$83 -> 187505.28 | P7: =WMO_Planung_LEH!$W$84 -> 206255.808 | Q7: =WMO_Planung_LEH!$W$85 -> 206255.808
A8: 2 | B8: 80 | C8: prod. Personal | D8: WMOM | E8: 2018 | F8: =WMO_Planung_WTB!$W$74 -> 129870.864 | G8: =WMO_Planung_WTB!$W$75 -> 129870.864 | H8: =WMO_Planung_WTB!$W$76 -> 150650.2022 | I8: =WMO_Planung_WTB!$W$77 -> 154113.4253 | J8: =WMO_Planung_WTB!$W$78 -> 148918.5907 | K8: =WMO_Planung_WTB!$W$79 -> 145455.3677 | L8: =WMO_Planung_WTB!$W$80 -> 145455.3677 | M8: =WMO_Planung_WTB!$W$81 -> 140260.5331 | N8: =WMO_Planung_WTB!$W$82 -> 143723.7562 | O8: =WMO_Planung_WTB!$W$83 -> 138528.9216 | P8: =WMO_Planung_WTB!$W$84 -> 152381.8138 | Q8: =WMO_Planung_WTB!$W$85 -> 152381.8138

Sheet Saisonalisierung
A1: Jan | B1: Feb | C1: Mrz | D1: Apr | E1: Mai | F1: Jun | G1: Jul | H1: Aug | I1: Sep | J1: Okt | K1: Nov | L1: Dez | M1: Gesamt
A2: 0.0755 | B2: 0.077 | C2: 0.089 | D2: 0.084 | E2: 0.0805 | F2: 0.0835 | G2: 0.0855 | H2: 0.084 | I2: 0.085 | J2: 0.0825 | K2: 0.085 | L2: 0.0885 | M2: =SUM(A2:L2) -> 1
A3: 0.0755 | B3: 0.077 | C3: 0.089 | D3: 0.084 | E3: 0.0805 | F3: 0.0835 | G3: 0.0855 | H3: 0.084 | I3: 0.085 | J3: 0.0825 | K3: 0.085 | L3: 0.0885 | M3: =SUM(A3:L3) -> 1
A4: 0.0755 | B4: 0.077 | C4: 0.089 | D4: 0.084 | E4: 0.0805 | F4: 0.0835 | G4: 0.0855 | H4: 0.084 | I4: 0.085 | J4: 0.0825 | K4: 0.085 | L4: 0.0885 | M4: 1
A5: 0.0755 | B5: 0.077 | C5: 0.089 | D5: 0.084 | E5: 0.0805 | F5: 0.0835 | G5: 0.0855 | H5: 0.084 | I5: 0.085 | J5: 0.0825 | K5: 0.085 | L5: 0.0885 | M5: 1
A6: 0.0755 | B6: 0.077 | C6: 0.089 | D6: 0.084 | E6: 0.0805 | F6: 0.0835 | G6: 0.0855 | H6: 0.084 | I6: 0.085 | J6: 0.0825 | K6: 0.085 | L6: 0.0885 | M6: 1
A7: 0.0755 | B7: 0.077 | C7: 0.089 | D7: 0.084 | E7: 0.0805 | F7: 0.0835 | G7: 0.0855 | H7: 0.084 | I7: 0.085 | J7: 0.0825 | K7: 0.085 | L7: 0.0885 | M7: 1
A8: 0.0755 | B8: 0.077 | C8: 0.089 | D8: 0.084 | E8: 0.0805 | F8: 0.0835 | G8: 0.0855 | H8: 0.084 | I8: 0.085 | J8: 0.0825 | K8: 0.085 | L8: 0.0885 | M8: 1
A9: 0.0755 | B9: 0.077 | C9: 0.089 | D9: 0.084 | E9: 0.0805 | F9: 0.0835 | G9: 0.0855 | H9: 0.084 | I9: 0.085 | J9: 0.0825 | K9: 0.085 | L9: 0.0885 | M9: 1
A10: 0.0755 | B10: 0.077 | C10: 0.089 | D10: 0.084 | E10: 0.0805 | F10: 0.0835 | G10: 0.0855 | H10: 0.084 | I10: 0.085 | J10: 0.0825 | K10: 0.085 | L10: 0.0885 | M10: 1
A11: 0.0755 | B11: 0.077 | C11: 0.089 | D11: 0.084 | E11: 0.0805 | F11: 0.0835 | G11: 0.0855 | H11: 0.084 | I11: 0.085 | J11: 0.0825 | K11: 0.085 | L11: 0.0885 | M11: 1
A12: 0.0755 | B12: 0.077 | C12: 0.089 | D12: 0.084 | E12: 0.0805 | F12: 0.0835 | G12: 0.0855 | H12: 0.084 | I12: 0.085 | J12: 0.0825 | K12: 0.085 | L12: 0.0885 | M12: 1
A13: 0.0755 | B13: 0.077 | C13: 0.089 | D13: 0.084 | E13: 0.0805 | F13: 0.0835 | G13: 0.0855 | H13: 0.084 | I13: 0.085 | J13: 0.0825 | K13: 0.085 | L13: 0.0885 | M13: 1
A14: 0.0755 | B14: 0.077 | C14: 0.089 | D14: 0.084 | E14: 0.0805 | F14: 0.0835 | G14: 0.0855 | H14: 0.084 | I14: 0.085 | J14: 0.0825 | K14: 0.085 | L14: 0.0885 | M14: 1
A15: 0.0755 | B15: 0.077 | C15: 0.089 | D15: 0.084 | E15: 0.0805 | F15: 0.0835 | G15: 0.0855 | H15: 0.084 | I15: 0.085 | J15: 0.0825 | K15: 0.085 | L15: 0.0885 | M15: 1
A16: 0.0755 | B16: 0.077 | C16: 0.089 | D16: 0.084 | E16: 0.0805 | F16: 0.0835 | G16: 0.0855 | H16: 0.084 | I16: 0.085 | J16: 0.0825 | K16: 0.085 | L16: 0.0885 | M16: 1
A17: 0.0755 | B17: 0.077 | C17: 0.089 | D17: 0.084 | E17: 0.0805 | F17: 0.0835 | G17: 0.0855 | H17: 0.084 | I17: 0.085 | J17: 0.0825 | K17: 0.085 | L17: 0.0885 | M17: 1
A18: 0.0755 | B18: 0.077 | C18: 0.089 | D18: 0.084 | E18: 0.0805 | F18: 0.0835 | G18: 0.0855 | H18: 0.084 | I18: 0.085 | J18: 0.0825 | K18: 0.085 | L18: 0.0885 | M18: 1
A19: 0.0755 | B19: 0.077 | C19: 0.089 | D19: 0.084 | E19: 0.0805 | F19: 0.0835 | G19: 0.0855 | H19: 0.084 | I19: 0.085 | J19: 0.0825 | K19: 0.085 | L19: 0.0885 | M19: 1
A20: 0.0755 | B20: 0.077 | C20: 0.089 | D20: 0.084 | E20: 0.0805 | F20: 0.0835 | G20: 0.0855 | H20: 0.084 | I20: 0.085 | J20: 0.0825 | K20: 0.085 | L20: 0.0885 | M20: 1
A21: 0.0755 | B21: 0.077 | C21: 0.089 | D21: 0.084 | E21: 0.0805 | F21: 0.0835 | G21: 0.0855 | H21: 0.084 | I21: 0.085 | J21: 0.0825 | K21: 0.085 | L21: 0.0885 | M21: 1
A22: 0.0755 | B22: 0.077 | C22: 0.089 | D22: 0.084 | E22: 0.0805 | F22: 0.0835 | G22: 0.0855 | H22: 0.084 | I22: 0.085 | J22: 0.0825 | K22: 0.085 | L22: 0.0885 | M22: 1
A23: 0.0755 | B23: 0.077 | C23: 0.089 | D23: 0.084 | E23: 0.0805 | F23: 0.0835 | G23: 0.0855 | H23: 0.084 | I23: 0.085 | J23: 0.0825 | K23: 0.085 | L23: 0.0885 | M23: 1
A24: 0.0755 | B24: 0.077 | C24: 0.089 | D24: 0.084 | E24: 0.0805 | F24: 0.0835 | G24: 0.0855 | H24: 0.084 | I24: 0.085 | J24: 0.0825 | K24: 0.085 | L24: 0.0885 | M24: 1
A25: 0.0755 | B25: 0.077 | C25: 0.089 | D25: 0.084 | E25: 0.0805 | F25: 0.0835 | G25: 0.0855 | H25: 0.084 | I25: 0.085 | J25: 0.0825 | K25: 0.085 | L25: 0.0885 | M25: 1
A26: 0.0755 | B26: 0.077 | C26: 0.089 | D26: 0.084 | E26: 0.0805 | F26: 0.0835 | G26: 0.0855 | H26: 0.084 | I26: 0.085 | J26: 0.0825 | K26: 0.085 | L26: 0.0885 | M26: 1
A27: 0.0755 | B27: 0.077 | C27: 0.089 | D27: 0.084 | E27: 0.0805 | F27: 0.0835 | G27: 0.0855 | H27: 0.084 | I27: 0.085 | J27: 0.0825 | K27: 0.085 | L27: 0.0885 | M27: 1
A28: 0.0755 | B28: 0.077 | C28: 0.089 | D28: 0.084 | E28: 0.0805 | F28: 0.0835 | G28: 0.0855 | H28: 0.084 | I28: 0.085 | J28: 0.0825 | K28: 0.085 | L28: 0.0885 | M28: 1
A29: 0.0755 | B29: 0.077 | C29: 0.089 | D29: 0.084 | E29: 0.0805 | F29: 0.0835 | G29: 0.0855 | H29: 0.084 | I29: 0.085 | J29: 0.0825 | K29: 0.085 | L29: 0.0885 | M29: 1
A30: 0.0755 | B30: 0.077 | C30: 0.089 | D30: 0.084 | E30: 0.0805 | F30: 0.0835 | G30: 0.0855 | H30: 0.084 | I30: 0.085 | J30: 0.0825 | K30: 0.085 | L30: 0.0885 | M30: 1
A31: 0.0755 | B31: 0.077 | C31: 0.089 | D31: 0.084 | E31: 0.0805 | F31: 0.0835 | G31: 0.0855 | H31: 0.084 | I31: 0.085 | J31: 0.0825 | K31: 0.085 | L31: 0.0885 | M31: 1
A32: 0.0755 | B32: 0.077 | C32: 0.089 | D32: 0.084 | E32: 0.0805 | F32: 0.0835 | G32: 0.0855 | H32: 0.084 | I32: 0.085 | J32: 0.0825 | K32: 0.085 | L32: 0.0885 | M32: 1
A33: 0.0755 | B33: 0.077 | C33: 0.089 | D33: 0.084 | E33: 0.0805 | F33: 0.0835 | G33: 0.0855 | H33: 0.084 | I33: 0.085 | J33: 0.0825 | K33: 0.085 | L33: 0.0885 | M33: 1
A34: 0.0755 | B34: 0.077 | C34: 0.089 | D34: 0.084 | E34: 0.0805 | F34: 0.0835 | G34: 0.0855 | H34: 0.084 | I34: 0.085 | J34: 0.0825 | K34: 0.085 | L34: 0.0885 | M34: 1
A35: 0.0755 | B35: 0.077 | C35: 0.089 | D35: 0.084 | E35: 0.0805 | F35: 0.0835 | G35: 0.0855 | H35: 0.084 | I35: 0.085 | J35: 0.0825 | K35: 0.085 | L35: 0.0885 | M35: 1
A36: 0.0755 | B36: 0.077 | C36: 0.089 | D36: 0.084 | E36: 0.0805 | F36: 0.0835 | G36: 0.0855 | H36: 0.084 | I36: 0.085 | J36: 0.0825 | K36: 0.085 | L36: 0.0885 | M36: 1
A37: 0.0755 | B37: 0.077 | C37: 0.089 | D37: 0.084 | E37: 0.0805 | F37: 0.0835 | G37: 0.0855 | H37: 0.084 | I37: 0.085 | J37: 0.0825 | K37: 0.085 | L37: 0.0885 | M37: 1
A38: 0.0755 | B38: 0.077 | C38: 0.089 | D38: 0.084 | E38: 0.0805 | F38: 0.0835 | G38: 0.0855 | H38: 0.084 | I38: 0.085 | J38: 0.0825 | K38: 0.085 | L38: 0.0885 | M38: 1
A39: 0.0755 | B39: 0.077 | C39: 0.089 | D39: 0.084 | E39: 0.0805 | F39: 0.0835 | G39: 0.0855 | H39: 0.084 | I39: 0.085 | J39: 0.0825 | K39: 0.085 | L39: 0.0885 | M39: 1
A40: 0.0755 | B40: 0.077 | C40: 0.089 | D40: 0.084 | E40: 0.0805 | F40: 0.0835 | G40: 0.0855 | H40: 0.084 | I40: 0.085 | J40: 0.0825 | K40: 0.085 | L40: 0.0885 | M40: 1
A41: 0.0755 | B41: 0.077 | C41: 0.089 | D41: 0.084 | E41: 0.0805 | F41: 0.0835 | G41: 0.0855 | H41: 0.084 | I41: 0.085 | J41: 0.0825 | K41: 0.085 | L41: 0.0885 | M41: 1
A42: 0.0755 | B42: 0.077 | C42: 0.089 | D42: 0.084 | E42: 0.0805 | F42: 0.0835 | G42: 0.0855 | H42: 0.084 | I42: 0.085 | J42: 0.0825 | K42: 0.085 | L42: 0.0885 | M42: 1
A43: 0.0755 | B43: 0.077 | C43: 0.089 | D43: 0.084 | E43: 0.0805 | F43: 0.0835 | G43: 0.0855 | H43: 0.084 | I43: 0.085 | J43: 0.0825 | K43: 0.085 | L43: 0.0885 | M43: 1
A44: 0.0755 | B44: 0.077 | C44: 0.089 | D44: 0.084 | E44: 0.0805 | F44: 0.0835 | G44: 0.0855 | H44: 0.084 | I44: 0.085 | J44: 0.0825 | K44: 0.085 | L44: 0.0885 | M44: 1
A45: 0.0755 | B45: 0.077 | C45: 0.089 | D45: 0.084 | E45: 0.0805 | F45: 0.0835 | G45: 0.0855 | H45: 0.084 | I45: 0.085 | J45: 0.0825 | K45: 0.085 | L45: 0.0885 | M45: 1
A46: 0.0755 | B46: 0.077 | C46: 0.089 | D46: 0.084 | E46: 0.0805 | F46: 0.0835 | G46: 0.0855 | H46: 0.084 | I46: 0.085 | J46: 0.0825 | K46: 0.085 | L46: 0.0885 | M46: 1
A47: 0.0755 | B47: 0.077 | C47: 0.089 | D47: 0.084 | E47: 0.0805 | F47: 0.0835 | G47: 0.0855 | H47: 0.084 | I47: 0.085 | J47: 0.0825 | K47: 0.085 | L47: 0.0885 | M47: 1
A48: 0.0755 | B48: 0.077 | C48: 0.089 | D48: 0.084 | E48: 0.0805 | F48: 0.0835 | G48: 0.0855 | H48: 0.084 | I48: 0.085 | J48: 0.0825 | K48: 0.085 | L48: 0.0885 | M48: 1
A49: 0.0755 | B49: 0.077 | C49: 0.089 | D49: 0.084 | E49: 0.0805 | F49: 0.0835 | G49: 0.0855 | H49: 0.084 | I49: 0.085 | J49: 0.0825 | K49: 0.085 | L49: 0.0885 | M49: 1
A50: 0.0755 | B50: 0.077 | C50: 0.089 | D50: 0.084 | E50: 0.0805 | F50: 0.0835 | G50: 0.0855 | H50: 0.084 | I50: 0.085 | J50: 0.0825 | K50: 0.085 | L50: 0.0885 | M50: 1
A51: 0.0755 | B51: 0.077 | C51: 0.089 | D51: 0.084 | E51: 0.0805 | F51: 0.0835 | G51: 0.0855 | H51: 0.084 | I51: 0.085 | J51: 0.0825 | K51: 0.085 | L51: 0.0885 | M51: 1
A52: 0.0755 | B52: 0.077 | C52: 0.089 | D52: 0.084 | E52: 0.0805 | F52: 0.0835 | G52: 0.0855 | H52: 0.084 | I52: 0.085 | J52: 0.0825 | K52: 0.085 | L52: 0.0885 | M52: 1
A53: 0.0755 | B53: 0.077 | C53: 0.089 | D53: 0.084 | E53: 0.0805 | F53: 0.0835 | G53: 0.0855 | H53: 0.084 | I53: 0.085 | J53: 0.0825 | K53: 0.085 | L53: 0.0885 | M53: 1
A54: 0.0755 | B54: 0.077 | C54: 0.089 | D54: 0.084 | E54: 0.0805 | F54: 0.0835 | G54: 0.0855 | H54: 0.084 | I54: 0.085 | J54: 0.0825 | K54: 0.085 | L54: 0.0885 | M54: 1
A55: 0.0755 | B55: 0.077 | C55: 0.089 | D55: 0.084 | E55: 0.0805 | F55: 0.0835 | G55: 0.0855 | H55: 0.084 | I55: 0.085 | J55: 0.0825 | K55: 0.085 | L55: 0.0885 | M55: 1
A56: 0.0755 | B56: 0.077 | C56: 0.089 | D56: 0.084 | E56: 0.0805 | F56: 0.0835 | G56: 0.0855 | H56: 0.084 | I56: 0.085 | J56: 0.0825 | K56: 0.085 | L56: 0.0885 | M56: 1
A57: 0.0755 | B57: 0.077 | C57: 0.089 | D57: 0.084 | E57: 0.0805 | F57: 0.0835 | G57: 0.0855 | H57: 0.084 | I57: 0.085 | J57: 0.0825 | K57: 0.085 | L57: 0.0885 | M57: 1
A58: 0.0755 | B58: 0.077 | C58: 0.089 | D58: 0.084 | E58: 0.0805 | F58: 0.0835 | G58: 0.0855 | H58: 0.084 | I58: 0.085 | J58: 0.0825 | K58: 0.085 | L58: 0.0885 | M58: 1
A59: 0.0755 | B59: 0.077 | C59: 0.089 | D59: 0.084 | E59: 0.0805 | F59: 0.0835 | G59: 0.0855 | H59: 0.084 | I59: 0.085 | J59: 0.0825 | K59: 0.085 | L59: 0.0885 | M59: 1

Sheet Basisdaten
F1: Jahr | G1: Jahr | H1: Jahr | K1: Jahr | M1: Jahr | Q1: Jahr | S1: Jahr
A2: Serviceberater | B2: Standort | C2: Abteilung | D2: extern/ intern | E2: Zeitraum ab Monat | F2: Lohn-umsatz | G2: Teile-umsatz | H2: Lohn und Teile | I2: LU pro DG | J2: TU pro DG | K2: DG | L2: Fakt. AW/DG | M2: Fakt. AW | N2: DG/Tag | O2: AW-Satz | P2: SB am FZG mit KD | Q2: SB am FZG mit KD | R2: SB am FZG ohne KD | S2: SB am FZG ohne KD | U2: Invoice Date
P3: % | Q3: absolut | R3: % | S3: absolut
A4: Erich Harzenetter - SCBK | B4: 10 | C4: Karosserie | D4: extern Kar. | E4: 1 | F4: =SCB_Planung_MM!$D$19 -> 593208 | G4: =SCB_Planung_MM!$D$15*N4*J4 -> 694430 | H4: =F4+G4 -> 1287638 | I4: =F4/K4 -> 252 | J4: 295 | K4: =SCB_Planung_MM!$D$15*N4 -> 2354 | L4: =SCB_Planung_MM!$D$17 -> 24 | M4: =K4*L4 -> 56496 | N4: =SCB_Planung_MM!$D$16 -> 11 | O4: =SCB_Planung_MM!$D$18 -> 10.5 | P4: 0.5 | Q4: =K4*P4 -> 1177 | R4: 0.2 | S4: =K4*R4 -> 470.8 | U4: 2022
A5: Johannes Grieser - SCBI | B5: 10 | C5: Mechanik | D5: intern Mech. | E5: 1 | F5: =SCB_Planung_MM!$D$19 -> 593208 | G5: =SCB_Planung_MM!$D$15*N5*J5 -> 694430 | H5: 1287638 | I5: 252 | J5: 295 | K5: =SCB_Planung_MM!$D$15*N5 -> 2354 | L5: =SCB_Planung_MM!$D$17 -> 24 | M5: 56496 | N5: =SCB_Planung_MM!$D$16 -> 11 | O5: =SCB_Planung_MM!$D$18 -> 10.5 | P5: 0.5 | Q5: =K5*P5 -> 1177 | R5: 0.1 | S5: =K5*R5 -> 235.4 | U5: 2022
A6: Mike Weber | B6: 10 | C6: Mechanik | D6: extern Mech. | E6: 1 | F6: =SCB_Planung_MM!$D$19 -> 593208 | G6: =SCB_Planung_MM!$D$15*N6*J6 -> 694430 | H6: 1287638 | I6: 252 | J6: 295 | K6: =SCB_Planung_MM!$D$15*N6 -> 2354 | L6: =SCB_Planung_MM!$D$17 -> 24 | M6: 56496 | N6: =SCB_Planung_MM!$D$16 -> 11 | O6: =SCB_Planung_MM!$D$18 -> 10.5 | P6: 0.4 | Q6: =K6*P6 -> 941.6 | R6: 0.1 | S6: =K6*R6 -> 235.4 | U6: 2022
A7: Rudolf Maier | B7: 10 | C7: Mechanik | D7: extern Mech. | E7: 1 | F7: =SCB_Planung_MM!$D$19 -> 593208 | G7: =SCB_Planung_MM!$D$15*N7*J7 -> 694430 | H7: 1287638 | I7: 252 | J7: 295 | K7: =SCB_Planung_MM!$D$15*N7 -> 2354 | L7: =SCB_Planung_MM!$D$17 -> 24 | M7: 56496 | N7: =SCB_Planung_MM!$D$16 -> 11 | O7: =SCB_Planung_MM!$D$18 -> 10.5 | P7: 0.5 | Q7: =K7*P7 -> 1177 | R7: 0.2 | S7: =K7*R7 -> 470.8 | U7: 2022
A8: Hermann Haller_ | B8: 10 | C8: Mechanik | D8: extern Mech. | E8: x | F8: =SCB_Planung_MM!$D$19 -> 593208 | G8: =SCB_Planung_MM!$D$15*N8*J8 -> 694430 | H8: 1287638 | I8: 252 | J8: 295 | K8: =SCB_Planung_MM!$D$15*N8 -> 2354 | L8: =SCB_Planung_MM!$D$17 -> 24 | M8: 56496 | N8: =SCB_Planung_MM!$D$16 -> 11 | O8: =SCB_Planung_MM!$D$18 -> 10.5 | P8: 0.5 | Q8: 1177 | R8: 0.1 | S8: 235.4 | U8: 2022
A9: Christopher Kirmayer | B9: 10 | C9: Mechanik | D9: extern Mech. | E9: 1 | F9: =SCB_Planung_MM!$D$19 -> 593208 | G9: =SCB_Planung_MM!$D$15*N9*J9 -> 694430 | H9: 1287638 | I9: 252 | J9: 295 | K9: =SCB_Planung_MM!$D$15*N9 -> 2354 | L9: =SCB_Planung_MM!$D$17 -> 24 | M9: 56496 | N9: =SCB_Planung_MM!$D$16 -> 11 | O9: =SCB_Planung_MM!$D$18 -> 10.5 | P9: 0.5 | Q9: 1177 | R9: 0.1 | S9: 235.4 | U9: 2022
A10: Jörg Reifenrath | B10: 10 | C10: Mechanik | D10: extern Mech. | E10: 1 | F10: =SCB_Planung_MM!$D$19 -> 593208 | G10: =SCB_Planung_MM!$D$15*N10*J10 -> 694430 | H10: 1287638 | I10: 252 | J10: 295 | K10: =SCB_Planung_MM!$D$15*N10 -> 2354 | L10: =SCB_Planung_MM!$D$17 -> 24 | M10: 56496 | N10: =SCB_Planung_MM!$D$16 -> 11 | O10: =SCB_Planung_MM!$D$18 -> 10.5 | P10: 0.5 | Q10: 1177 | R10: 0.1 | S10: 235.4 | U10: 2022
A11: Günter Küblbeck - SCBI_ | B11: 10 | C11: Mechanik | D11: extern Mech. | E11: x | F11: =SCB_Planung_MM!$D$19 -> 593208 | G11: =SCB_Planung_MM!$D$15*N11*J11 -> 694430 | H11: 1287638 | I11: 252 | J11: 295 | K11: =SCB_Planung_MM!$D$15*N11 -> 2354 | L11: =SCB_Planung_MM!$D$17 -> 24 | M11: 56496 | N11: =SCB_Planung_MM!$D$16 -> 11 | O11: =SCB_Planung_MM!$D$18 -> 10.5 | P11: 0.5 | Q11: =K11*P11 -> 1177 | R11: 0.1 | S11: =K11*R11 -> 235.4 | U11: 2022
A12: Patrick Kresser | B12: 10 | C12: Mechanik | D12: extern Mech. | E12: 1 | F12: =SCB_Planung_MM!$D$19 -> 593208 | G12: =SCB_Planung_MM!$D$15*N12*J12 -> 694430 | H12: 1287638 | I12: 252 | J12: 295 | K12: =SCB_Planung_MM!$D$15*N12 -> 2354 | L12: =SCB_Planung_MM!$D$17 -> 24 | M12: 56496 | N12: =SCB_Planung_MM!$D$16 -> 11 | O12: =SCB_Planung_MM!$D$18 -> 10.5 | P12: 0.5 | Q12: =K12*P12 -> 1177 | R12: 0.1 | S12: =K12*R12 -> 235.4 | U12: 2022
A13: Ralf Ruchti | B13: 30 | C13: Mechanik | D13: extern Mech. | E13: 1 | F13: =SCB_Planung_KRU!$D$19*T13 -> 415245.6 | G13: =SCB_Planung_KRU!$D$15*N13*J13 -> 486101 | H13: 901346.6 | I13: 252 | J13: 295 | K13: =SCB_Planung_KRU!$D$15*N13 -> 1647.8 | L13: =SCB_Planung_KRU!$D$17 -> 24 | M13: 39547.2 | N13: =SCB_Planung_KRU!$D$16*T13 -> 7.7 | O13: =SCB_Planung_KRU!$D$18 -> 10.5 | P13: 0.5 | Q13: 823.9 | R13: 0.2 | S13: 329.56 | T13: 0.7 | U13: 2022
A14: Matthias Mirga | B14: 30 | C14: Mechanik | D14: extern Mech. | E14: 1 | F14: =SCB_Planung_KRU!$D$19 -> 593208 | G14: =SCB_Planung_KRU!$D$15*N14*J14 -> 694430 | H14: 1287638 | I14: 252 | J14: 295 | K14: =SCB_Planung_KRU!$D$15*N14 -> 2354 | L14: =SCB_Planung_KRU!$D$17 -> 24 | M14: 56496 | N14: =SCB_Planung_KRU!$D$16 -> 11 | O14: =SCB_Planung_KRU!$D$18 -> 10.5 | P14: 0.5 | Q14: 1177 | R14: 0.2 | S14: 470.8 | U14: 2022
A15: Wolfgang Heckelmiller - SCBK | B15: 40 | C15: Mechanik | D15: extern Mech. | E15: 1 | F15: =SCB_Planung_Ulm!$D$19 -> 593208 | G15: =SCB_Planung_Ulm!$D$15*N15*J15 -> 694430 | H15: 1287638 | I15: 252 | J15: 295 | K15: =SCB_Planung_Ulm!$D$15*N15 -> 2354 | L15: =SCB_Planung_Ulm!$D$17 -> 24 | M15: 56496 | N15: =SCB_Planung_Ulm!$D$16 -> 11 | O15: =SCB_Planung_Ulm!$D$18 -> 10.5 | P15: 0.6 | Q15: 1412.4 | R15: 0.2 | S15: 470.8 | U15: 2022
A16: Daniel Klingenstein | B16: 40 | C16: Mechanik | D16: extern Mech. | E16: 1 | F16: =SCB_Planung_Ulm!$D$19 -> 593208 | G16: =SCB_Planung_Ulm!$D$15*N16*J16 -> 694430 | H16: 1287638 | I16: 252 | J16: 295 | K16: =SCB_Planung_Ulm!$D$15*N16 -> 2354 | L16: =SCB_Planung_Ulm!$D$17 -> 24 | M16: 56496 | N16: =SCB_Planung_Ulm!$D$16 -> 11 | O16: =SCB_Planung_Ulm!$D$18 -> 10.5 | P16: 0.6 | Q16: =K16*P16 -> 1412.4 | R16: 0.2 | S16: =K16*R16 -> 470.8 | U16: 2022
A17: Alnes Zenic | B17: 40 | C17: Mechanik | D17: extern Mech. | E17: 1 | F17: =SCB_Planung_Ulm!$D$19 -> 593208 | G17: =SCB_Planung_Ulm!$D$15*N17*J17 -> 694430 | H17: 1287638 | I17: 252 | J17: 295 | K17: =SCB_Planung_Ulm!$D$15*N17 -> 2354 | L17: =SCB_Planung_Ulm!$D$17 -> 24 | M17: 56496 | N17: =SCB_Planung_Ulm!$D$16 -> 11 | O17: =SCB_Planung_Ulm!$D$18 -> 10.5 | P17: 0.6 | Q17: 1412.4 | R17: 0.2 | S17: 470.8 | U17: 2022
A18: Mehmet Dikmen | B18: 40 | C18: Mechanik | D18: extern Mech. | E18: 1 | F18: =SCB_Planung_Ulm!$D$19 -> 593208 | G18: =SCB_Planung_Ulm!$D$15*N18*J18 -> 694430 | H18: 1287638 | I18: 252 | J18: 295 | K18: =SCB_Planung_Ulm!$D$15*N18 -> 2354 | L18: =SCB_Planung_Ulm!$D$17 -> 24 | M18: 56496 | N18: =SCB_Planung_Ulm!$D$16 -> 11 | O18: =SCB_Planung_Ulm!$D$18 -> 10.5 | P18: 0.6 | Q18: 1412.4 | R18: 0.2 | S18: 470.8 | U18: 2022
A19: Gerrit Heine | B19: 40 | C19: Mechanik | D19: extern Mech. | E19: 1 | F19: =SCB_Planung_Ulm!$D$19 -> 593208 | G19: =SCB_Planung_Ulm!$D$15*N19*J19 -> 694430 | H19: 1287638 | I19: 252 | J19: 295 | K19: =SCB_Planung_Ulm!$D$15*N19 -> 2354 | L19: =SCB_Planung_Ulm!$D$17 -> 24 | M19: 56496 | N19: =SCB_Planung_Ulm!$D$16 -> 11 | O19: =SCB_Planung_Ulm!$D$18 -> 10.5 | P19: 0.6 | Q19: 1412.4 | R19: 0.2 | S19: 470.8 | U19: 2022
A20: Lars Krausen | B20: 40 | C20: Mechanik | D20: extern Mech. | E20: 1 | F20: =SCB_Planung_Ulm!$D$19 -> 593208 | G20: =SCB_Planung_Ulm!$D$15*N20*J20 -> 694430 | H20: 1287638 | I20: 252 | J20: 295 | K20: =SCB_Planung_Ulm!$D$15*N20 -> 2354 | L20: =SCB_Planung_Ulm!$D$17 -> 24 | M20: 56496 | N20: =SCB_Planung_Ulm!$D$16 -> 11 | O20: =SCB_Planung_Ulm!$D$18 -> 10.5 | P20: 0.6 | Q20: 1412.4 | R20: 0.2 | S20: 470.8 | U20: 2022
A21: Hubert Figura - SCBI | B21: 40 | C21: Mechanik | D21: extern Mech. | E21: 1 | F21: =SCB_Planung_Ulm!$D$19 -> 593208 | G21: =SCB_Planung_Ulm!$D$15*N21*J21 -> 694430 | H21: 1287638 | I21: 252 | J21: 295 | K21: =SCB_Planung_Ulm!$D$15*N21 -> 2354 | L21: =SCB_Planung_Ulm!$D$17 -> 24 | M21: 56496 | N21: =SCB_Planung_Ulm!$D$16 -> 11 | O21: =SCB_Planung_Ulm!$D$18 -> 10.5 | P21: 0.6 | Q21: 1412.4 | R21: 0.2 | S21: 470.8 | U21: 2022
A22: Jan-Oliver Knaus | B22: 40 | C22: Mechanik | D22: extern Mech. | E22: 1 | F22: =SCB_Planung_Ulm!$D$19 -> 593208 | G22: =SCB_Planung_Ulm!$D$15*N22*J22 -> 694430 | H22: 1287638 | I22: 252 | J22: 295 | K22: =SCB_Planung_Ulm!$D$15*N22 -> 2354 | L22: =SCB_Planung_Ulm!$D$17 -> 24 | M22: 56496 | N22: =SCB_Planung_Ulm!$D$16 -> 11 | O22: =SCB_Planung_Ulm!$D$18 -> 10.5 | P22: 0.6 | Q22: 1412.4 | R22: 0.2 | S22: 470.8 | U22: 2022
A23: Hakan Celik_ULM | B23: 40 | C23: Mechanik | D23: extern Mech. | E23: x | F23: =SCB_Planung_Ulm!$D$19 -> 593208 | G23: =SCB_Planung_Ulm!$D$15*N23*J23 -> 694430 | H23: 1287638 | I23: 252 | J23: 295 | K23: =SCB_Planung_Ulm!$D$15*N23 -> 2354 | L23: =SCB_Planung_Ulm!$D$17 -> 24 | M23: 56496 | N23: =SCB_Planung_Ulm!$D$16 -> 11 | O23: =SCB_Planung_Ulm!$D$18 -> 10.5 | P23: 0.6 | Q23: 1412.4 | R23: 0.2 | S23: 470.8 | U23: 2022
A24: Andreas Walter | B24: 40 | C24: Mechanik | D24: extern Mech. | E24: 1 | F24: =SCB_Planung_Ulm!$D$19 -> 593208 | G24: =SCB_Planung_Ulm!$D$15*N24*J24 -> 694430 | H24: 1287638 | I24: 252 | J24: 295 | K24: =SCB_Planung_Ulm!$D$15*N24 -> 2354 | L24: =SCB_Planung_Ulm!$D$17 -> 24 | M24: 56496 | N24: =SCB_Planung_Ulm!$D$16 -> 11 | O24: =SCB_Planung_Ulm!$D$18 -> 10.5 | P24: 0.6 | Q24: 1412.4 | R24: 0.2 | S24: 470.8 | U24: 2022
A25: Fatih Cetiner | B25: 40 | C25: Mechanik | D25: extern Mech. | E25: 1 | F25: =SCB_Planung_Ulm!$D$19 -> 593208 | G25: =SCB_Planung_Ulm!$D$15*N25*J25 -> 694430 | H25: 1287638 | I25: 252 | J25: 295 | K25: =SCB_Planung_Ulm!$D$15*N25 -> 2354 | L25: =SCB_Planung_Ulm!$D$17 -> 24 | M25: 56496 | N25: =SCB_Planung_Ulm!$D$16 -> 11 | O25: =SCB_Planung_Ulm!$D$18 -> 10.5 | P25: 0.6 | Q25: 1412.4 | R25: 0.2 | S25: 470.8 | U25: 2022
A26: Carlheinz Beylacher | B26: 50 | C26: Mechanik | D26: extern Mech. | E26: 1 | F26: =SCB_Planung_LL!$D$19 -> 593208 | G26: =SCB_Planung_LL!$D$15*N26*J26 -> 694430 | H26: 1287638 | I26: 252 | J26: 295 | K26: =SCB_Planung_LL!$D$15*N26 -> 2354 | L26: =SCB_Planung_LL!$D$17 -> 24 | M26: 56496 | N26: =SCB_Planung_LL!$D$16 -> 11 | O26: =SCB_Planung_LL!$D$18 -> 10.5 | P26: 0.5 | Q26: 1177 | R26: 0.2 | S26: 470.8 | U26: 2022
A27: Christoph Ziegler | B27: 50 | C27: Mechanik | D27: extern Mech. | E27: 1 | F27: =SCB_Planung_LL!$D$19 -> 593208 | G27: =SCB_Planung_LL!$D$15*N27*J27 -> 694430 | H27: 1287638 | I27: 252 | J27: 295 | K27: =SCB_Planung_LL!$D$15*N27 -> 2354 | L27: =SCB_Planung_LL!$D$17 -> 24 | M27: 56496 | N27: =SCB_Planung_LL!$D$16 -> 11 | O27: =SCB_Planung_LL!$D$18 -> 10.5 | P27: 0.5 | Q27: =K27*P27 -> 1177 | R27: 0.2 | S27: =K27*R27 -> 470.8 | U27: 2022
A28: Steffen Schiller | B28: 50 | C28: Mechanik | D28: extern Mech. | E28: 1 | F28: =SCB_Planung_LL!$D$19 -> 593208 | G28: =SCB_Planung_LL!$D$15*N28*J28 -> 694430 | H28: 1287638 | I28: 252 | J28: 295 | K28: =SCB_Planung_LL!$D$15*N28 -> 2354 | L28: =SCB_Planung_LL!$D$17 -> 24 | M28: 56496 | N28: =SCB_Planung_LL!$D$16 -> 11 | O28: =SCB_Planung_LL!$D$18 -> 10.5 | P28: 0.5 | Q28: 1177 | R28: 0.2 | S28: 470.8 | U28: 2022
A29: André Pfeffer - SCBI | B29: 50 | C29: Mechanik | D29: extern Mech. | E29: 1 | F29: =SCB_Planung_LL!$D$19 -> 593208 | G29: =SCB_Planung_LL!$D$15*N29*J29 -> 694430 | H29: 1287638 | I29: 252 | J29: 295 | K29: =SCB_Planung_LL!$D$15*N29 -> 2354 | L29: =SCB_Planung_LL!$D$17 -> 24 | M29: 56496 | N29: =SCB_Planung_LL!$D$16 -> 11 | O29: =SCB_Planung_LL!$D$18 -> 10.5 | P29: 0.5 | Q29: 1177 | R29: 0.2 | S29: 470.8 | U29: 2022
A30: Christian Wiedemann | B30: 50 | C30: Mechanik | D30: extern Mech. | E30: 1 | F30: =SCB_Planung_LL!$D$19 -> 593208 | G30: =SCB_Planung_LL!$D$15*N30*J30 -> 694430 | H30: 1287638 | I30: 252 | J30: 295 | K30: =SCB_Planung_LL!$D$15*N30 -> 2354 | L30: =SCB_Planung_LL!$D$17 -> 24 | M30: 56496 | N30: =SCB_Planung_LL!$D$16 -> 11 | O30: =SCB_Planung_LL!$D$18 -> 10.5 | P30: 0.5 | Q30: 1177 | R30: 0.2 | S30: 470.8 | U30: 2022
A31: Daniel Aschmann_ | B31: 50 | C31: Mechanik | D31: extern Mech. | E31: x | F31: =SCB_Planung_LL!$D$19 -> 593208 | G31: =SCB_Planung_LL!$D$15*N31*J31 -> 694430 | H31: 1287638 | I31: 252 | J31: 295 | K31: =SCB_Planung_LL!$D$15*N31 -> 2354 | L31: =SCB_Planung_LL!$D$17 -> 24 | M31: 56496 | N31: =SCB_Planung_LL!$D$16 -> 11 | O31: =SCB_Planung_LL!$D$18 -> 10.5 | P31: 0.5 | Q31: 1177 | R31: 0.2 | S31: 470.8 | U31: 2022
A32: Dirk Heditzsch | B32: 60 | C32: Mechanik | D32: extern Mech. | E32: 4 | F32: =SCB_Planung_GÖG!$D$19 -> 593208 | G32: =SCB_Planung_GÖG!$D$15*N32*J32 -> 694430 | H32: 1287638 | I32: 252 | J32: 295 | K32: =SCB_Planung_GÖG!$D$15*N32 -> 2354 | L32: =SCB_Planung_GÖG!$D$17 -> 24 | M32: 56496 | N32: =SCB_Planung_GÖG!$D$16 -> 11 | O32: =SCB_Planung_GÖG!$D$18 -> 10.5 | P32: 0.6 | Q32: 1412.4 | R32: 0.2 | S32: 470.8 | U32: 2022
A33: Marco Hanigk | B33: 60 | C33: Mechanik | D33: extern Mech. | E33: 1 | F33: =SCB_Planung_GÖG!$D$19 -> 593208 | G33: =SCB_Planung_GÖG!$D$15*N33*J33 -> 694430 | H33: =F33+G33 -> 1287638 | I33: =F33/K33 -> 252 | J33: 295 | K33: =SCB_Planung_GÖG!$D$15*N33 -> 2354 | L33: =SCB_Planung_GÖG!$D$17 -> 24 | M33: =K33*L33 -> 56496 | N33: =SCB_Planung_GÖG!$D$16 -> 11 | O33: =SCB_Planung_GÖG!$D$18 -> 10.5 | P33: 0.6 | Q33: =K33*P33 -> 1412.4 | R33: 0.2 | S33: =K33*R33 -> 470.8 | U33: 2022
A34: Marcel Lankes | B34: 60 | C34: Mechanik | D34: extern Mech. | E34: 4 | F34: =SCB_Planung_GÖG!$D$19 -> 593208 | G34: =SCB_Planung_GÖG!$D$15*N34*J34 -> 694430 | H34: 1287638 | I34: 252 | J34: 295 | K34: =SCB_Planung_GÖG!$D$15*N34 -> 2354 | L34: =SCB_Planung_GÖG!$D$17 -> 24 | M34: 56496 | N34: =SCB_Planung_GÖG!$D$16 -> 11 | O34: =SCB_Planung_GÖG!$D$18 -> 10.5 | P34: 0.6 | Q34: 1412.4 | R34: 0.2 | S34: 470.8 | U34: 2022
A35: Roland Klier | B35: 60 | C35: Mechanik | D35: extern Mech. | E35: 1 | F35: =SCB_Planung_GÖG!$D$19 -> 593208 | G35: =SCB_Planung_GÖG!$D$15*N35*J35 -> 694430 | H35: 1287638 | I35: 252 | J35: 295 | K35: =SCB_Planung_GÖG!$D$15*N35 -> 2354 | L35: =SCB_Planung_GÖG!$D$17 -> 24 | M35: 56496 | N35: =SCB_Planung_GÖG!$D$16 -> 11 | O35: =SCB_Planung_GÖG!$D$18 -> 10.5 | P35: 0.6 | Q35: 1412.4 | R35: 0.2 | S35: 470.8 | U35: 2022
A36: Mert Güngör | B36: 60 | C36: Mechanik | D36: extern Mech. | E36: 6 | F36: =SCB_Planung_GÖG!$D$19 -> 593208 | G36: =SCB_Planung_GÖG!$D$15*N36*J36 -> 694430 | H36: 1287638 | I36: 252 | J36: 295 | K36: =SCB_Planung_GÖG!$D$15*N36 -> 2354 | L36: =SCB_Planung_GÖG!$D$17 -> 24 | M36: 56496 | N36: =SCB_Planung_GÖG!$D$16 -> 11 | O36: =SCB_Planung_GÖG!$D$18 -> 10.5 | P36: 0.6 | Q36: 1412.4 | R36: 0.2 | S36: 470.8 | U36: 2022
A37: Matthias Hagg | B37: 60 | C37: Mechanik | D37: extern Mech. | E37: 1 | F37: =SCB_Planung_GÖG!$D$19 -> 593208 | G37: =SCB_Planung_GÖG!$D$15*N37*J37 -> 694430 | H37: 1287638 | I37: 252 | J37: 295 | K37: =SCB_Planung_GÖG!$D$15*N37 -> 2354 | L37: =SCB_Planung_GÖG!$D$17 -> 24 | M37: 56496 | N37: =SCB_Planung_GÖG!$D$16 -> 11 | O37: =SCB_Planung_GÖG!$D$18 -> 10.5 | P37: 0.6 | Q37: 1412.4 | R37: 0.2 | S37: 470.8 | U37: 2022
A38: Walter Schlosser | B38: 60 | C38: Mechanik | D38: extern Mech. | E38: 1 | F38: =SCB_Planung_GÖG!$D$19 -> 593208 | G38: =SCB_Planung_GÖG!$D$15*N38*J38 -> 694430 | H38: 1287638 | I38: 252 | J38: 295 | K38: =SCB_Planung_GÖG!$D$15*N38 -> 2354 | L38: =SCB_Planung_GÖG!$D$17 -> 24 | M38: 56496 | N38: =SCB_Planung_GÖG!$D$16 -> 11 | O38: =SCB_Planung_GÖG!$D$18 -> 10.5 | P38: 0.6 | Q38: 1412.4 | R38: 0.2 | S38: 470.8 | U38: 2022
A39: Udo Spindler | B39: 60 | C39: Mechanik | D39: extern Mech. | E39: 1 | F39: =SCB_Planung_GÖG!$D$19 -> 593208 | G39: =SCB_Planung_GÖG!$D$15*N39*J39 -> 694430 | H39: 1287638 | I39: 252 | J39: 295 | K39: =SCB_Planung_GÖG!$D$15*N39 -> 2354 | L39: =SCB_Planung_GÖG!$D$17 -> 24 | M39: 56496 | N39: =SCB_Planung_GÖG!$D$16 -> 11 | O39: =SCB_Planung_GÖG!$D$18 -> 10.5 | P39: 0.6 | Q39: 1412.4 | R39: 0.2 | S39: 470.8 | U39: 2022
A40: Marcel Vogler | B40: 60 | C40: Mechanik | D40: extern Mech. | E40: 1 | F40: =SCB_Planung_GÖG!$D$19 -> 593208 | G40: =SCB_Planung_GÖG!$D$15*N40*J40 -> 694430 | H40: 1287638 | I40: 252 | J40: 295 | K40: =SCB_Planung_GÖG!$D$15*N40 -> 2354 | L40: =SCB_Planung_GÖG!$D$17 -> 24 | M40: 56496 | N40: =SCB_Planung_GÖG!$D$16 -> 11 | O40: =SCB_Planung_GÖG!$D$18 -> 10.5 | P40: 0.6 | Q40: 1412.4 | R40: 0.2 | S40: 470.8 | U40: 2022
A41: Raphael Marksteiner | B41: 60 | C41: Mechanik | D41: extern Mech. | E41: 4 | F41: =SCB_Planung_GÖG!$D$19 -> 593208 | G41: =SCB_Planung_GÖG!$D$15*N41*J41 -> 694430 | H41: 1287638 | I41: 252 | J41: 295 | K41: =SCB_Planung_GÖG!$D$15*N41 -> 2354 | L41: =SCB_Planung_GÖG!$D$17 -> 24 | M41: 56496 | N41: =SCB_Planung_GÖG!$D$16 -> 11 | O41: =SCB_Planung_GÖG!$D$18 -> 10.5 | P41: 0.6 | Q41: 1412.4 | R41: 0.2 | S41: 470.8 | U41: 2022
A42: Markus Appeljun - SCBI | B42: 60 | C42: Mechanik | D42: extern Mech. | E42: 2 | F42: =SCB_Planung_LEH!$D$19 -> 593208 | G42: =SCB_Planung_LEH!$D$15*N42*J42 -> 694430 | H42: 1287638 | I42: 252 | J42: 295 | K42: =SCB_Planung_LEH!$D$15*N42 -> 2354 | L42: =SCB_Planung_LEH!$D$17 -> 24 | M42: 56496 | N42: =SCB_Planung_LEH!$D$16 -> 11 | O42: =SCB_Planung_LEH!$D$18 -> 10.5 | P42: 0.6 | Q42: 1412.4 | R42: 0.2 | S42: 470.8 | U42: 2022
A43: Andreas Göllner | B43: 60 | C43: Mechanik | D43: extern Mech. | E43: 1 | F43: =SCB_Planung_LEH!$D$19 -> 593208 | G43: =SCB_Planung_LEH!$D$15*N43*J43 -> 694430 | H43: =F43+G43 -> 1287638 | I43: =F43/K43 -> 252 | J43: 295 | K43: =SCB_Planung_LEH!$D$15*N43 -> 2354 | L43: =SCB_Planung_LEH!$D$17 -> 24 | M43: =K43*L43 -> 56496 | N43: =SCB_Planung_LEH!$D$16 -> 11 | O43: =SCB_Planung_LEH!$D$18 -> 10.5 | P43: 0.6 | Q43: =K43*P43 -> 1412.4 | R43: 0.2 | S43: =K43*R43 -> 470.8 | U43: 2022
A44: Marcus Stangl | B44: 60 | C44: Mechanik | D44: extern Mech. | E44: 1 | F44: =SCB_Planung_LEH!$D$19 -> 593208 | G44: =SCB_Planung_LEH!$D$15*N44*J44 -> 694430 | H44: 1287638 | I44: 252 | J44: 295 | K44: =SCB_Planung_LEH!$D$15*N44 -> 2354 | L44: =SCB_Planung_LEH!$D$17 -> 24 | M44: 56496 | N44: =SCB_Planung_LEH!$D$16 -> 11 | O44: =SCB_Planung_LEH!$D$18 -> 10.5 | P44: 0.6 | Q44: 1412.4 | R44: 0.2 | S44: 470.8 | U44: 2022
A45: Christoph Rottenkolber | B45: 60 | C45: Mechanik | D45: extern Mech. | E45: 4 | F45: =SCB_Planung_WTB!$D$19 -> 593208 | G45: =SCB_Planung_WTB!$D$15*N45*J45 -> 694430 | H45: 1287638 | I45: 252 | J45: 295 | K45: =SCB_Planung_WTB!$D$15*N45 -> 2354 | L45: =SCB_Planung_WTB!$D$17 -> 24 | M45: 56496 | N45: =SCB_Planung_WTB!$D$16 -> 11 | O45: =SCB_Planung_WTB!$D$18 -> 10.5 | P45: 0.6 | Q45: 1412.4 | R45: 0.2 | S45: 470.8 | U45: 2022
A46: Michael Cattide - SCBI | B46: 60 | C46: Mechanik | D46: extern Mech. | E46: 1 | F46: =SCB_Planung_WTB!$D$19 -> 593208 | G46: =SCB_Planung_WTB!$D$15*N46*J46 -> 694430 | H46: =F46+G46 -> 1287638 | I46: =F46/K46 -> 252 | J46: 295 | K46: =SCB_Planung_WTB!$D$15*N46 -> 2354 | L46: =SCB_Planung_WTB!$D$17 -> 24 | M46: =K46*L46 -> 56496 | N46: =SCB_Planung_WTB!$D$16 -> 11 | O46: =SCB_Planung_WTB!$D$18 -> 10.5 | P46: 0.6 | Q46: =K46*P46 -> 1412.4 | R46: 0.2 | S46: =K46*R46 -> 470.8 | U46: 2022
A47: Dennis Grohmann | B47: 60 | C47: Mechanik | D47: extern Mech. | E47: x | F47: =SCB_Planung_WTB!$D$19 -> 593208 | G47: =SCB_Planung_WTB!$D$15*N47*J47 -> 694430 | H47: 1287638 | I47: 252 | J47: 295 | K47: =SCB_Planung_WTB!$D$15*N47 -> 2354 | L47: =SCB_Planung_WTB!$D$17 -> 24 | M47: 56496 | N47: =SCB_Planung_WTB!$D$16 -> 11 | O47: =SCB_Planung_WTB!$D$18 -> 10.5 | P47: 0.6 | Q47: 1412.4 | R47: 0.2 | S47: 470.8 | U47: 2022
A48: Simone Groß - SCBZ | B48: 60 | C48: Mechanik | D48: extern Mech. | E48: 1 | F48: =SCB_Planung_WTB!$D$19 -> 593208 | G48: =SCB_Planung_WTB!$D$15*N48*J48 -> 694430 | H48: 1287638 | I48: 252 | J48: 295 | K48: =SCB_Planung_WTB!$D$15*N48 -> 2354 | L48: =SCB_Planung_WTB!$D$17 -> 24 | M48: 56496 | N48: =SCB_Planung_WTB!$D$16 -> 11 | O48: =SCB_Planung_WTB!$D$18 -> 10.5 | P48: 0.6 | Q48: 1412.4 | R48: 0.2 | S48: 470.8 | U48: 2022
A49: Jens Haller | B49: 55 | C49: Mechanik | D49: extern Mech. | E49: 1 | F49: =SCB_Planung_WTB!$D$19 -> 593208 | G49: =SCB_Planung_WTB!$D$15*N49*J49 -> 694430 | H49: 1287638 | I49: 252 | J49: 295 | K49: =SCB_Planung_WTB!$D$15*N49 -> 2354 | L49: =SCB_Planung_WTB!$D$17 -> 24 | M49: 56496 | N49: =SCB_Planung_WTB!$D$16 -> 11 | O49: =SCB_Planung_WTB!$D$18 -> 10.5 | P49: 0.6 | Q49: 1412.4 | R49: 0.2 | S49: 470.8 | U49: 2022
A50: Ioannis Tsesmelis_ | B50: 55 | C50: Mechanik | D50: extern Mech. | E50: x | F50: =SCB_Planung_WTB!$D$19 -> 593208 | G50: =SCB_Planung_WTB!$D$15*N50*J50 -> 694430 | H50: =F50+G50 -> 1287638 | I50: =F50/K50 -> 252 | J50: 295 | K50: =SCB_Planung_WTB!$D$15*N50 -> 2354 | L50: =SCB_Planung_WTB!$D$17 -> 24 | M50: =K50*L50 -> 56496 | N50: =SCB_Planung_WTB!$D$16 -> 11 | O50: =SCB_Planung_WTB!$D$18 -> 10.5 | P50: 0.6 | Q50: =K50*P50 -> 1412.4 | R50: 0.2 | S50: =K50*R50 -> 470.8 | U50: 2022
A51: Matthias Mirga_GZ | B51: 55 | C51: Mechanik | D51: extern Mech. | E51: 1 | F51: =SCB_Planung_WTB!$D$19 -> 593208 | G51: =SCB_Planung_WTB!$D$15*N51*J51 -> 694430 | H51: 1287638 | I51: 252 | J51: 295 | K51: =SCB_Planung_WTB!$D$15*N51 -> 2354 | L51: =SCB_Planung_WTB!$D$17 -> 24 | M51: 56496 | N51: =SCB_Planung_WTB!$D$16 -> 11 | O51: =SCB_Planung_WTB!$D$18 -> 10.5 | P51: 0.6 | Q51: 1412.4 | R51: 0.2 | S51: 470.8 | U51: 2022
A52: Hakan Celik | B52: 60 | C52: Mechanik | D52: extern Mech. | E52: 1 | F52: =SCB_Planung_GÖG!$D$19 -> 593208 | G52: =SCB_Planung_GÖG!$D$15*N52*J52 -> 694430 | H52: 1287638 | I52: 252 | J52: 295 | K52: =SCB_Planung_GÖG!$D$15*N52 -> 2354 | L52: =SCB_Planung_GÖG!$D$17 -> 24 | M52: 56496 | N52: =SCB_Planung_GÖG!$D$16 -> 11 | O52: =SCB_Planung_GÖG!$D$18 -> 10.5 | P52: 0.6 | Q52: 1412.4 | R52: 0.2 | S52: 470.8 | U52: 2022
A53: Tom Sprongl | B53: 40 | C53: Mechanik | D53: extern Mech. | E53: 1 | F53: =SCB_Planung_Ulm!$D$19 -> 593208 | G53: =SCB_Planung_Ulm!$D$15*N53*J53 -> 694430 | H53: 1287638 | I53: 252 | J53: 295 | K53: =SCB_Planung_Ulm!$D$15*N53 -> 2354 | L53: =SCB_Planung_Ulm!$D$17 -> 24 | M53: 56496 | N53: =SCB_Planung_Ulm!$D$16 -> 11 | O53: =SCB_Planung_Ulm!$D$18 -> 10.5 | P53: 0.6 | Q53: 1412.4 | R53: 0.2 | S53: 470.8 | U53: 2022
A54: SB 5
A55: SB 6
A56: SB 7
A57: SB 8
A58: SB 9
A59: SB 10

Sheet Arbeitstage
A1: Jan | B1: Feb | C1: Mrz | D1: Apr | E1: Mai | F1: Jun | G1: Jul | H1: Aug | I1: Sep | J1: Okt | K1: Nov | L1: Dez | M1: Jahr
A2: 20 | B2: 20 | C2: 23 | D2: 19 | E2: 21 | F2: 20 | G2: 21 | H2: 22 | I2: 22 | J2: 20 | K2: 21 | L2: 21 | M2: 2022

Sheet Verarb_Ums_Lohn
A1: Hauptbetrieb | B1: Standort | C1: Serviceberater | D1: Invoice Date | E1: Ums_Lohn_Plan_1 | F1: Ums_Lohn_Plan_2 | G1: Ums_Lohn_Plan_3 | H1: Ums_Lohn_Plan_4 | I1: Ums_Lohn_Plan_5 | J1: Ums_Lohn_Plan_6 | K1: Ums_Lohn_Plan_7 | L1: Ums_Lohn_Plan_8 | M1: Ums_Lohn_Plan_9 | N1: Ums_Lohn_Plan_10 | O1: Ums_Lohn_Plan_11 | P1: Ums_Lohn_Plan_12
A2: 1 | B2: =Basisdaten!B4 -> 10 | C2: =Basisdaten!A4 -> Erich Harzenetter - SCBK | D2: =Basisdaten!U4 -> 2022 | E2: =IF(Basisdaten!$E$4=1,Basisdaten!$F$4*Saisonalisierung!A2,0) -> 44787.204 | F2: =IF(Basisdaten!$E$4<=2,Basisdaten!$F$4*Saisonalisierung!B2,0) -> 45677.016 | G2: =IF(Basisdaten!$E$4<=3,Basisdaten!$F$4*Saisonalisierung!C2,0) -> 52795.512 | H2: =IF(Basisdaten!$E$4<=4,Basisdaten!$F$4*Saisonalisierung!D2,0) -> 49829.472 | I2: =IF(Basisdaten!$E$4<=5,Basisdaten!$F$4*Saisonalisierung!E2,0) -> 47753.244 | J2: =IF(Basisdaten!$E$4<=6,Basisdaten!$F$4*Saisonalisierung!F2,0) -> 49532.868 | K2: =IF(Basisdaten!$E$4<=7,Basisdaten!$F$4*Saisonalisierung!G2,0) -> 50719.284 | L2: =IF(Basisdaten!$E$4<=8,Basisdaten!$F$4*Saisonalisierung!H2,0) -> 49829.472 | M2: =IF(Basisdaten!$E$4<=9,Basisdaten!$F$4*Saisonalisierung!I2,0) -> 50422.68 | N2: =IF(Basisdaten!$E$4<=10,Basisdaten!$F$4*Saisonalisierung!J2,0) -> 48939.66 | O2: =IF(Basisdaten!$E$4<=11,Basisdaten!$F$4*Saisonalisierung!K2,0) -> 50422.68 | P2: =IF(Basisdaten!$E$4<=12,Basisdaten!$F$4*Saisonalisierung!L2,0) -> 52498.908
A3: 1 | B3: =Basisdaten!B5 -> 10 | C3: =Basisdaten!A5 -> Johannes Grieser - SCBI | D3: =Basisdaten!U5 -> 2022 | E3: =IF(Basisdaten!$E$5=1,Basisdaten!$F$5*Saisonalisierung!A3,0) -> 44787.204 | F3: =IF(Basisdaten!$E$5<=2,Basisdaten!$F$5*Saisonalisierung!B3,0) -> 45677.016 | G3: =IF(Basisdaten!$E$5<=3,Basisdaten!$F$5*Saisonalisierung!C3,0) -> 52795.512 | H3: =IF(Basisdaten!$E$5<=4,Basisdaten!$F$5*Saisonalisierung!D3,0) -> 49829.472 | I3: =IF(Basisdaten!$E$5<=5,Basisdaten!$F$5*Saisonalisierung!E3,0) -> 47753.244 | J3: =IF(Basisdaten!$E$5<=6,Basisdaten!$F$5*Saisonalisierung!F3,0) -> 49532.868 | K3: =IF(Basisdaten!$E$5<=7,Basisdaten!$F$5*Saisonalisierung!G3,0) -> 50719.284 | L3: =IF(Basisdaten!$E$5<=8,Basisdaten!$F$5*Saisonalisierung!H3,0) -> 49829.472 | M3: =IF(Basisdaten!$E$5<=9,Basisdaten!$F$5*Saisonalisierung!I3,0) -> 50422.68 | N3: =IF(Basisdaten!$E$5<=10,Basisdaten!$F$5*Saisonalisierung!J3,0) -> 48939.66 | O3: =IF(Basisdaten!$E$5<=11,Basisdaten!$F$5*Saisonalisierung!K3,0) -> 50422.68 | P3: =IF(Basisdaten!$E$5<=12,Basisdaten!$F$5*Saisonalisierung!L3,0) -> 52498.908
A4: 1 | B4: =Basisdaten!B6 -> 10 | C4: =Basisdaten!A6 -> Mike Weber | D4: =Basisdaten!U6 -> 2022 | E4: =IF(Basisdaten!$E$6=1,Basisdaten!$F$6*Saisonalisierung!A4,0) -> 44787.204 | F4: =IF(Basisdaten!$E$6<=2,Basisdaten!$F$6*Saisonalisierung!B4,0) -> 45677.016 | G4: =IF(Basisdaten!$E$6<=3,Basisdaten!$F$6*Saisonalisierung!C4,0) -> 52795.512 | H4: =IF(Basisdaten!$E$6<=4,Basisdaten!$F$6*Saisonalisierung!D4,0) -> 49829.472 | I4: =IF(Basisdaten!$E$6<=5,Basisdaten!$F$6*Saisonalisierung!E4,0) -> 47753.244 | J4: =IF(Basisdaten!$E$6<=6,Basisdaten!$F$6*Saisonalisierung!F4,0) -> 49532.868 | K4: =IF(Basisdaten!$E$6<=7,Basisdaten!$F$6*Saisonalisierung!G4,0) -> 50719.284 | L4: =IF(Basisdaten!$E$6<=8,Basisdaten!$F$6*Saisonalisierung!H4,0) -> 49829.472 | M4: =IF(Basisdaten!$E$6<=9,Basisdaten!$F$6*Saisonalisierung!I4,0) -> 50422.68 | N4: =IF(Basisdaten!$E$6<=10,Basisdaten!$F$6*Saisonalisierung!J4,0) -> 48939.66 | O4: =IF(Basisdaten!$E$6<=11,Basisdaten!$F$6*Saisonalisierung!K4,0) -> 50422.68 | P4: =IF(Basisdaten!$E$6<=12,Basisdaten!$F$6*Saisonalisierung!L4,0) -> 52498.908
A5: 1 | B5: =Basisdaten!B7 -> 10 | C5: =Basisdaten!A7 -> Rudolf Maier | D5: =Basisdaten!U7 -> 2022 | E5: =IF(Basisdaten!$E$7=1,Basisdaten!$F$7*Saisonalisierung!A5,0) -> 44787.204 | F5: =IF(Basisdaten!$E$7<=2,Basisdaten!$F$7*Saisonalisierung!B5,0) -> 45677.016 | G5: =IF(Basisdaten!$E$7<=3,Basisdaten!$F$7*Saisonalisierung!C5,0) -> 52795.512 | H5: =IF(Basisdaten!$E$7<=4,Basisdaten!$F$7*Saisonalisierung!D5,0) -> 49829.472 | I5: =IF(Basisdaten!$E$7<=5,Basisdaten!$F$7*Saisonalisierung!E5,0) -> 47753.244 | J5: =IF(Basisdaten!$E$7<=6,Basisdaten!$F$7*Saisonalisierung!F5,0) -> 49532.868 | K5: =IF(Basisdaten!$E$7<=7,Basisdaten!$F$7*Saisonalisierung!G5,0) -> 50719.284 | L5: =IF(Basisdaten!$E$7<=8,Basisdaten!$F$7*Saisonalisierung!H5,0) -> 49829.472 | M5: =IF(Basisdaten!$E$7<=9,Basisdaten!$F$7*Saisonalisierung!I5,0) -> 50422.68 | N5: =IF(Basisdaten!$E$7<=10,Basisdaten!$F$7*Saisonalisierung!J5,0) -> 48939.66 | O5: =IF(Basisdaten!$E$7<=11,Basisdaten!$F$7*Saisonalisierung!K5,0) -> 50422.68 | P5: =IF(Basisdaten!$E$7<=12,Basisdaten!$F$7*Saisonalisierung!L5,0) -> 52498.908
A6: 1 | B6: =Basisdaten!B8 -> 10 | C6: =Basisdaten!A8 -> Hermann Haller_ | D6: =Basisdaten!U8 -> 2022 | E6: =IF(Basisdaten!$E$8=1,Basisdaten!$F$8*Saisonalisierung!A6,0) -> 0 | F6: =IF(Basisdaten!$E$8<=2,Basisdaten!$F$8*Saisonalisierung!B6,0) -> 0 | G6: =IF(Basisdaten!$E$8<=3,Basisdaten!$F$8*Saisonalisierung!C6,0) -> 0 | H6: =IF(Basisdaten!$E$8<=4,Basisdaten!$F$8*Saisonalisierung!D6,0) -> 0 | I6: =IF(Basisdaten!$E$8<=5,Basisdaten!$F$8*Saisonalisierung!E6,0) -> 0 | J6: =IF(Basisdaten!$E$8<=6,Basisdaten!$F$8*Saisonalisierung!F6,0) -> 0 | K6: =IF(Basisdaten!$E$8<=7,Basisdaten!$F$8*Saisonalisierung!G6,0) -> 0 | L6: =IF(Basisdaten!$E$8<=8,Basisdaten!$F$8*Saisonalisierung!H6,0) -> 0 | M6: =IF(Basisdaten!$E$8<=9,Basisdaten!$F$8*Saisonalisierung!I6,0) -> 0 | N6: =IF(Basisdaten!$E$8<=10,Basisdaten!$F$8*Saisonalisierung!J6,0) -> 0 | O6: =IF(Basisdaten!$E$8<=11,Basisdaten!$F$8*Saisonalisierung!K6,0) -> 0 | P6: =IF(Basisdaten!$E$8<=12,Basisdaten!$F$8*Saisonalisierung!L6,0) -> 0
A7: 1 | B7: =Basisdaten!B9 -> 10 | C7: =Basisdaten!A9 -> Christopher Kirmayer | D7: =Basisdaten!U9 -> 2022 | E7: =IF(Basisdaten!$E$9=1,Basisdaten!$F$9*Saisonalisierung!A7,0) -> 44787.204 | F7: =IF(Basisdaten!$E$9<=2,Basisdaten!$F$9*Saisonalisierung!B7,0) -> 45677.016 | G7: =IF(Basisdaten!$E$9<=3,Basisdaten!$F$9*Saisonalisierung!C7,0) -> 52795.512 | H7: =IF(Basisdaten!$E$9<=4,Basisdaten!$F$9*Saisonalisierung!D7,0) -> 49829.472 | I7: =IF(Basisdaten!$E$9<=5,Basisdaten!$F$9*Saisonalisierung!E7,0) -> 47753.244 | J7: =IF(Basisdaten!$E$9<=6,Basisdaten!$F$9*Saisonalisierung!F7,0) -> 49532.868 | K7: =IF(Basisdaten!$E$9<=7,Basisdaten!$F$9*Saisonalisierung!G7,0) -> 50719.284 | L7: =IF(Basisdaten!$E$9<=8,Basisdaten!$F$9*Saisonalisierung!H7,0) -> 49829.472 | M7: =IF(Basisdaten!$E$9<=9,Basisdaten!$F$9*Saisonalisierung!I7,0) -> 50422.68 | N7: =IF(Basisdaten!$E$9<=10,Basisdaten!$F$9*Saisonalisierung!J7,0) -> 48939.66 | O7: =IF(Basisdaten!$E$9<=11,Basisdaten!$F$9*Saisonalisierung!K7,0) -> 50422.68 | P7: =IF(Basisdaten!$E$9<=12,Basisdaten!$F$9*Saisonalisierung!L7,0) -> 52498.908
A8: 1 | B8: =Basisdaten!B10 -> 10 | C8: =Basisdaten!A10 -> Jörg Reifenrath | D8: =Basisdaten!U10 -> 2022 | E8: =IF(Basisdaten!$E$10=1,Basisdaten!$F$10*Saisonalisierung!A8,0) -> 44787.204 | F8: =IF(Basisdaten!$E$10<=2,Basisdaten!$F$10*Saisonalisierung!B8,0) -> 45677.016 | G8: =IF(Basisdaten!$E$10<=3,Basisdaten!$F$10*Saisonalisierung!C8,0) -> 52795.512 | H8: =IF(Basisdaten!$E$10<=4,Basisdaten!$F$10*Saisonalisierung!D8,0) -> 49829.472 | I8: =IF(Basisdaten!$E$10<=5,Basisdaten!$F$10*Saisonalisierung!E8,0) -> 47753.244 | J8: =IF(Basisdaten!$E$10<=6,Basisdaten!$F$10*Saisonalisierung!F8,0) -> 49532.868 | K8: =IF(Basisdaten!$E$10<=7,Basisdaten!$F$10*Saisonalisierung!G8,0) -> 50719.284 | L8: =IF(Basisdaten!$E$10<=8,Basisdaten!$F$10*Saisonalisierung!H8,0) -> 49829.472 | M8: =IF(Basisdaten!$E$10<=9,Basisdaten!$F$10*Saisonalisierung!I8,0) -> 50422.68 | N8: =IF(Basisdaten!$E$10<=10,Basisdaten!$F$10*Saisonalisierung!J8,0) -> 48939.66 | O8: =IF(Basisdaten!$E$10<=11,Basisdaten!$F$10*Saisonalisierung!K8,0) -> 50422.68 | P8: =IF(Basisdaten!$E$10<=12,Basisdaten!$F$10*Saisonalisierung!L8,0) -> 52498.908
A9: 1 | B9: =Basisdaten!B11 -> 10 | C9: =Basisdaten!A11 -> Günter Küblbeck - SCBI_ | D9: =Basisdaten!U11 -> 2022 | E9: =IF(Basisdaten!$E$11=1,Basisdaten!$F$11*Saisonalisierung!A9,0) -> 0 | F9: =IF(Basisdaten!$E$11<=2,Basisdaten!$F$11*Saisonalisierung!B9,0) -> 0 | G9: =IF(Basisdaten!$E$11<=3,Basisdaten!$F$11*Saisonalisierung!C9,0) -> 0 | H9: =IF(Basisdaten!$E$11<=4,Basisdaten!$F$11*Saisonalisierung!D9,0) -> 0 | I9: =IF(Basisdaten!$E$11<=5,Basisdaten!$F$11*Saisonalisierung!E9,0) -> 0 | J9: =IF(Basisdaten!$E$11<=6,Basisdaten!$F$11*Saisonalisierung!F9,0) -> 0 | K9: =IF(Basisdaten!$E$11<=7,Basisdaten!$F$11*Saisonalisierung!G9,0) -> 0 | L9: =IF(Basisdaten!$E$11<=8,Basisdaten!$F$11*Saisonalisierung!H9,0) -> 0 | M9: =IF(Basisdaten!$E$11<=9,Basisdaten!$F$11*Saisonalisierung!I9,0) -> 0 | N9: =IF(Basisdaten!$E$11<=10,Basisdaten!$F$11*Saisonalisierung!J9,0) -> 0 | O9: =IF(Basisdaten!$E$11<=11,Basisdaten!$F$11*Saisonalisierung!K9,0) -> 0 | P9: =IF(Basisdaten!$E$11<=12,Basisdaten!$F$11*Saisonalisierung!L9,0) -> 0
A10: 1 | B10: =Basisdaten!B12 -> 10 | C10: =Basisdaten!A12 -> Patrick Kresser | D10: =Basisdaten!U12 -> 2022 | E10: =IF(Basisdaten!$E$12=1,Basisdaten!$F$12*Saisonalisierung!A10,0) -> 44787.204 | F10: =IF(Basisdaten!$E$12<=2,Basisdaten!$F$12*Saisonalisierung!B10,0) -> 45677.016 | G10: =IF(Basisdaten!$E$12<=3,Basisdaten!$F$12*Saisonalisierung!C10,0) -> 52795.512 | H10: =IF(Basisdaten!$E$12<=4,Basisdaten!$F$12*Saisonalisierung!D10,0) -> 49829.472 | I10: =IF(Basisdaten!$E$12<=5,Basisdaten!$F$12*Saisonalisierung!E10,0) -> 47753.244 | J10: =IF(Basisdaten!$E$12<=6,Basisdaten!$F$12*Saisonalisierung!F10,0) -> 49532.868 | K10: =IF(Basisdaten!$E$12<=7,Basisdaten!$F$12*Saisonalisierung!G10,0) -> 50719.284 | L10: =IF(Basisdaten!$E$12<=8,Basisdaten!$F$12*Saisonalisierung!H10,0) -> 49829.472 | M10: =IF(Basisdaten!$E$12<=9,Basisdaten!$F$12*Saisonalisierung!I10,0) -> 50422.68 | N10: =IF(Basisdaten!$E$12<=10,Basisdaten!$F$12*Saisonalisierung!J10,0) -> 48939.66 | O10: =IF(Basisdaten!$E$12<=11,Basisdaten!$F$12*Saisonalisierung!K10,0) -> 50422.68 | P10: =IF(Basisdaten!$E$12<=12,Basisdaten!$F$12*Saisonalisierung!L10,0) -> 52498.908
A11: 1 | B11: =Basisdaten!B13 -> 30 | C11: =Basisdaten!A13 -> Ralf Ruchti | D11: =Basisdaten!U13 -> 2022 | E11: =IF(Basisdaten!$E$13=1,Basisdaten!$F$13*Saisonalisierung!A11,0) -> 31351.0428 | F11: =IF(Basisdaten!$E$13<=2,Basisdaten!$F$13*Saisonalisierung!B11,0) -> 31973.9112 | G11: =IF(Basisdaten!$E$13<=3,Basisdaten!$F$13*Saisonalisierung!C11,0) -> 36956.8584 | H11: =IF(Basisdaten!$E$13<=4,Basisdaten!$F$13*Saisonalisierung!D11,0) -> 34880.6304 | I11: =IF(Basisdaten!$E$13<=5,Basisdaten!$F$13*Saisonalisierung!E11,0) -> 33427.2708 | J11: =IF(Basisdaten!$E$13<=6,Basisdaten!$F$13*Saisonalisierung!F11,0) -> 34673.0076 | K11: =IF(Basisdaten!$E$13<=7,Basisdaten!$F$13*Saisonalisierung!G11,0) -> 35503.4988 | L11: =IF(Basisdaten!$E$13<=8,Basisdaten!$F$13*Saisonalisierung!H11,0) -> 34880.6304 | M11: =IF(Basisdaten!$E$13<=9,Basisdaten!$F$13*Saisonalisierung!I11,0) -> 35295.876 | N11: =IF(Basisdaten!$E$13<=10,Basisdaten!$F$13*Saisonalisierung!J11,0) -> 34257.762 | O11: =IF(Basisdaten!$E$13<=11,Basisdaten!$F$13*Saisonalisierung!K11,0) -> 35295.876 | P11: =IF(Basisdaten!$E$13<=12,Basisdaten!$F$13*Saisonalisierung!L11,0) -> 36749.2356
A12: 1 | B12: =Basisdaten!B14 -> 30 | C12: =Basisdaten!A14 -> Matthias Mirga | D12: =Basisdaten!U14 -> 2022 | E12: =IF(Basisdaten!$E$14=1,Basisdaten!$F$14*Saisonalisierung!A12,0) -> 44787.204 | F12: =IF(Basisdaten!$E$14<=2,Basisdaten!$F$14*Saisonalisierung!B12,0) -> 45677.016 | G12: =IF(Basisdaten!$E$14<=3,Basisdaten!$F$14*Saisonalisierung!C12,0) -> 52795.512 | H12: =IF(Basisdaten!$E$14<=4,Basisdaten!$F$14*Saisonalisierung!D12,0) -> 49829.472 | I12: =IF(Basisdaten!$E$14<=5,Basisdaten!$F$14*Saisonalisierung!E12,0) -> 47753.244 | J12: =IF(Basisdaten!$E$14<=6,Basisdaten!$F$14*Saisonalisierung!F12,0) -> 49532.868 | K12: =IF(Basisdaten!$E$14<=7,Basisdaten!$F$14*Saisonalisierung!G12,0) -> 50719.284 | L12: =IF(Basisdaten!$E$14<=8,Basisdaten!$F$14*Saisonalisierung!H12,0) -> 49829.472 | M12: =IF(Basisdaten!$E$14<=9,Basisdaten!$F$14*Saisonalisierung!I12,0) -> 50422.68 | N12: =IF(Basisdaten!$E$14<=10,Basisdaten!$F$14*Saisonalisierung!J12,0) -> 48939.66 | O12: =IF(Basisdaten!$E$14<=11,Basisdaten!$F$14*Saisonalisierung!K12,0) -> 50422.68 | P12: =IF(Basisdaten!$E$14<=12,Basisdaten!$F$14*Saisonalisierung!L12,0) -> 52498.908
A13: 1 | B13: =Basisdaten!B15 -> 40 | C13: =Basisdaten!A15 -> Wolfgang Heckelmiller - SCBK | D13: =Basisdaten!U15 -> 2022 | E13: =IF(Basisdaten!$E$15=1,Basisdaten!$F$15*Saisonalisierung!A13,0) -> 44787.204 | F13: =IF(Basisdaten!$E$15<=2,Basisdaten!$F$15*Saisonalisierung!B13,0) -> 45677.016 | G13: =IF(Basisdaten!$E$15<=3,Basisdaten!$F$15*Saisonalisierung!C13,0) -> 52795.512 | H13: =IF(Basisdaten!$E$15<=4,Basisdaten!$F$15*Saisonalisierung!D13,0) -> 49829.472 | I13: =IF(Basisdaten!$E$15<=5,Basisdaten!$F$15*Saisonalisierung!E13,0) -> 47753.244 | J13: =IF(Basisdaten!$E$15<=6,Basisdaten!$F$15*Saisonalisierung!F13,0) -> 49532.868 | K13: =IF(Basisdaten!$E$15<=7,Basisdaten!$F$15*Saisonalisierung!G13,0) -> 50719.284 | L13: =IF(Basisdaten!$E$15<=8,Basisdaten!$F$15*Saisonalisierung!H13,0) -> 49829.472 | M13: =IF(Basisdaten!$E$15<=9,Basisdaten!$F$15*Saisonalisierung!I13,0) -> 50422.68 | N13: =IF(Basisdaten!$E$15<=10,Basisdaten!$F$15*Saisonalisierung!J13,0) -> 48939.66 | O13: =IF(Basisdaten!$E$15<=11,Basisdaten!$F$15*Saisonalisierung!K13,0) -> 50422.68 | P13: =IF(Basisdaten!$E$15<=12,Basisdaten!$F$15*Saisonalisierung!L13,0) -> 52498.908
A14: 1 | B14: =Basisdaten!B16 -> 40 | C14: =Basisdaten!A16 -> Daniel Klingenstein | D14: =Basisdaten!U16 -> 2022 | E14: =IF(Basisdaten!$E$16=1,Basisdaten!$F$16*Saisonalisierung!A14,0) -> 44787.204 | F14: =IF(Basisdaten!$E$16<=2,Basisdaten!$F$16*Saisonalisierung!B14,0) -> 45677.016 | G14: =IF(Basisdaten!$E$16<=3,Basisdaten!$F$16*Saisonalisierung!C14,0) -> 52795.512 | H14: =IF(Basisdaten!$E$16<=4,Basisdaten!$F$16*Saisonalisierung!D14,0) -> 49829.472 | I14: =IF(Basisdaten!$E$16<=5,Basisdaten!$F$16*Saisonalisierung!E14,0) -> 47753.244 | J14: =IF(Basisdaten!$E$16<=6,Basisdaten!$F$16*Saisonalisierung!F14,0) -> 49532.868 | K14: =IF(Basisdaten!$E$16<=7,Basisdaten!$F$16*Saisonalisierung!G14,0) -> 50719.284 | L14: =IF(Basisdaten!$E$16<=8,Basisdaten!$F$16*Saisonalisierung!H14,0) -> 49829.472 | M14: =IF(Basisdaten!$E$16<=9,Basisdaten!$F$16*Saisonalisierung!I14,0) -> 50422.68 | N14: =IF(Basisdaten!$E$16<=10,Basisdaten!$F$16*Saisonalisierung!J14,0) -> 48939.66 | O14: =IF(Basisdaten!$E$16<=11,Basisdaten!$F$16*Saisonalisierung!K14,0) -> 50422.68 | P14: =IF(Basisdaten!$E$16<=12,Basisdaten!$F$16*Saisonalisierung!L14,0) -> 52498.908
A15: 1 | B15: =Basisdaten!B17 -> 40 | C15: =Basisdaten!A17 -> Alnes Zenic | D15: =Basisdaten!U17 -> 2022 | E15: =IF(Basisdaten!$E$17=1,Basisdaten!$F$17*Saisonalisierung!A15,0) -> 44787.204 | F15: =IF(Basisdaten!$E$17<=2,Basisdaten!$F$17*Saisonalisierung!B15,0) -> 45677.016 | G15: =IF(Basisdaten!$E$17<=3,Basisdaten!$F$17*Saisonalisierung!C15,0) -> 52795.512 | H15: =IF(Basisdaten!$E$17<=4,Basisdaten!$F$17*Saisonalisierung!D15,0) -> 49829.472 | I15: =IF(Basisdaten!$E$17<=5,Basisdaten!$F$17*Saisonalisierung!E15,0) -> 47753.244 | J15: =IF(Basisdaten!$E$17<=6,Basisdaten!$F$17*Saisonalisierung!F15,0) -> 49532.868 | K15: =IF(Basisdaten!$E$17<=7,Basisdaten!$F$17*Saisonalisierung!G15,0) -> 50719.284 | L15: =IF(Basisdaten!$E$17<=8,Basisdaten!$F$17*Saisonalisierung!H15,0) -> 49829.472 | M15: =IF(Basisdaten!$E$17<=9,Basisdaten!$F$17*Saisonalisierung!I15,0) -> 50422.68 | N15: =IF(Basisdaten!$E$17<=10,Basisdaten!$F$17*Saisonalisierung!J15,0) -> 48939.66 | O15: =IF(Basisdaten!$E$17<=11,Basisdaten!$F$17*Saisonalisierung!K15,0) -> 50422.68 | P15: =IF(Basisdaten!$E$17<=12,Basisdaten!$F$17*Saisonalisierung!L15,0) -> 52498.908
A16: 1 | B16: =Basisdaten!B18 -> 40 | C16: =Basisdaten!A18 -> Mehmet Dikmen | D16: =Basisdaten!U18 -> 2022 | E16: =IF(Basisdaten!$E$18=1,Basisdaten!$F$18*Saisonalisierung!A16,0) -> 44787.204 | F16: =IF(Basisdaten!$E$18<=2,Basisdaten!$F$18*Saisonalisierung!B16,0) -> 45677.016 | G16: =IF(Basisdaten!$E$18<=3,Basisdaten!$F$18*Saisonalisierung!C16,0) -> 52795.512 | H16: =IF(Basisdaten!$E$18<=4,Basisdaten!$F$18*Saisonalisierung!D16,0) -> 49829.472 | I16: =IF(Basisdaten!$E$18<=5,Basisdaten!$F$18*Saisonalisierung!E16,0) -> 47753.244 | J16: =IF(Basisdaten!$E$18<=6,Basisdaten!$F$18*Saisonalisierung!F16,0) -> 49532.868 | K16: =IF(Basisdaten!$E$18<=7,Basisdaten!$F$18*Saisonalisierung!G16,0) -> 50719.284 | L16: =IF(Basisdaten!$E$18<=8,Basisdaten!$F$18*Saisonalisierung!H16,0) -> 49829.472 | M16: =IF(Basisdaten!$E$18<=9,Basisdaten!$F$18*Saisonalisierung!I16,0) -> 50422.68 | N16: =IF(Basisdaten!$E$18<=10,Basisdaten!$F$18*Saisonalisierung!J16,0) -> 48939.66 | O16: =IF(Basisdaten!$E$18<=11,Basisdaten!$F$18*Saisonalisierung!K16,0) -> 50422.68 | P16: =IF(Basisdaten!$E$18<=12,Basisdaten!$F$18*Saisonalisierung!L16,0) -> 52498.908
A17: 1 | B17: =Basisdaten!B19 -> 40 | C17: =Basisdaten!A19 -> Gerrit Heine | D17: =Basisdaten!U19 -> 2022 | E17: =IF(Basisdaten!$E$19=1,Basisdaten!$F$19*Saisonalisierung!A17,0) -> 44787.204 | F17: =IF(Basisdaten!$E$19<=2,Basisdaten!$F$19*Saisonalisierung!B17,0) -> 45677.016 | G17: =IF(Basisdaten!$E$19<=3,Basisdaten!$F$19*Saisonalisierung!C17,0) -> 52795.512 | H17: =IF(Basisdaten!$E$19<=4,Basisdaten!$F$19*Saisonalisierung!D17,0) -> 49829.472 | I17: =IF(Basisdaten!$E$19<=5,Basisdaten!$F$19*Saisonalisierung!E17,0) -> 47753.244 | J17: =IF(Basisdaten!$E$19<=6,Basisdaten!$F$19*Saisonalisierung!F17,0) -> 49532.868 | K17: =IF(Basisdaten!$E$19<=7,Basisdaten!$F$19*Saisonalisierung!G17,0) -> 50719.284 | L17: =IF(Basisdaten!$E$19<=8,Basisdaten!$F$19*Saisonalisierung!H17,0) -> 49829.472 | M17: =IF(Basisdaten!$E$19<=9,Basisdaten!$F$19*Saisonalisierung!I17,0) -> 50422.68 | N17: =IF(Basisdaten!$E$19<=10,Basisdaten!$F$19*Saisonalisierung!J17,0) -> 48939.66 | O17: =IF(Basisdaten!$E$19<=11,Basisdaten!$F$19*Saisonalisierung!K17,0) -> 50422.68 | P17: =IF(Basisdaten!$E$19<=12,Basisdaten!$F$19*Saisonalisierung!L17,0) -> 52498.908
A18: 1 | B18: =Basisdaten!B20 -> 40 | C18: =Basisdaten!A20 -> Lars Krausen | D18: =Basisdaten!U20 -> 2022 | E18: =IF(Basisdaten!$E$20=1,Basisdaten!$F$20*Saisonalisierung!A18,0) -> 44787.204 | F18: =IF(Basisdaten!$E$20<=2,Basisdaten!$F$20*Saisonalisierung!B18,0) -> 45677.016 | G18: =IF(Basisdaten!$E$20<=3,Basisdaten!$F$20*Saisonalisierung!C18,0) -> 52795.512 | H18: =IF(Basisdaten!$E$20<=4,Basisdaten!$F$20*Saisonalisierung!D18,0) -> 49829.472 | I18: =IF(Basisdaten!$E$20<=5,Basisdaten!$F$20*Saisonalisierung!E18,0) -> 47753.244 | J18: =IF(Basisdaten!$E$20<=6,Basisdaten!$F$20*Saisonalisierung!F18,0) -> 49532.868 | K18: =IF(Basisdaten!$E$20<=7,Basisdaten!$F$20*Saisonalisierung!G18,0) -> 50719.284 | L18: =IF(Basisdaten!$E$20<=8,Basisdaten!$F$20*Saisonalisierung!H18,0) -> 49829.472 | M18: =IF(Basisdaten!$E$20<=9,Basisdaten!$F$20*Saisonalisierung!I18,0) -> 50422.68 | N18: =IF(Basisdaten!$E$20<=10,Basisdaten!$F$20*Saisonalisierung!J18,0) -> 48939.66 | O18: =IF(Basisdaten!$E$20<=11,Basisdaten!$F$20*Saisonalisierung!K18,0) -> 50422.68 | P18: =IF(Basisdaten!$E$20<=12,Basisdaten!$F$20*Saisonalisierung!L18,0) -> 52498.908
A19: 1 | B19: =Basisdaten!B21 -> 40 | C19: =Basisdaten!A21 -> Hubert Figura - SCBI | D19: =Basisdaten!U21 -> 2022 | E19: =IF(Basisdaten!$E$21=1,Basisdaten!$F$21*Saisonalisierung!A19,0) -> 44787.204 | F19: =IF(Basisdaten!$E$21<=2,Basisdaten!$F$21*Saisonalisierung!B19,0) -> 45677.016 | G19: =IF(Basisdaten!$E$21<=3,Basisdaten!$F$21*Saisonalisierung!C19,0) -> 52795.512 | H19: =IF(Basisdaten!$E$21<=4,Basisdaten!$F$21*Saisonalisierung!D19,0) -> 49829.472 | I19: =IF(Basisdaten!$E$21<=5,Basisdaten!$F$21*Saisonalisierung!E19,0) -> 47753.244 | J19: =IF(Basisdaten!$E$21<=6,Basisdaten!$F$21*Saisonalisierung!F19,0) -> 49532.868 | K19: =IF(Basisdaten!$E$21<=7,Basisdaten!$F$21*Saisonalisierung!G19,0) -> 50719.284 | L19: =IF(Basisdaten!$E$21<=8,Basisdaten!$F$21*Saisonalisierung!H19,0) -> 49829.472 | M19: =IF(Basisdaten!$E$21<=9,Basisdaten!$F$21*Saisonalisierung!I19,0) -> 50422.68 | N19: =IF(Basisdaten!$E$21<=10,Basisdaten!$F$21*Saisonalisierung!J19,0) -> 48939.66 | O19: =IF(Basisdaten!$E$21<=11,Basisdaten!$F$21*Saisonalisierung!K19,0) -> 50422.68 | P19: =IF(Basisdaten!$E$21<=12,Basisdaten!$F$21*Saisonalisierung!L19,0) -> 52498.908
A20: 1 | B20: =Basisdaten!B22 -> 40 | C20: =Basisdaten!A22 -> Jan-Oliver Knaus | D20: =Basisdaten!U22 -> 2022 | E20: =IF(Basisdaten!$E$22=1,Basisdaten!$F$22*Saisonalisierung!A20,0) -> 44787.204 | F20: =IF(Basisdaten!$E$22<=2,Basisdaten!$F$22*Saisonalisierung!B20,0) -> 45677.016 | G20: =IF(Basisdaten!$E$22<=3,Basisdaten!$F$22*Saisonalisierung!C20,0) -> 52795.512 | H20: =IF(Basisdaten!$E$22<=4,Basisdaten!$F$22*Saisonalisierung!D20,0) -> 49829.472 | I20: =IF(Basisdaten!$E$22<=5,Basisdaten!$F$22*Saisonalisierung!E20,0) -> 47753.244 | J20: =IF(Basisdaten!$E$22<=6,Basisdaten!$F$22*Saisonalisierung!F20,0) -> 49532.868 | K20: =IF(Basisdaten!$E$22<=7,Basisdaten!$F$22*Saisonalisierung!G20,0) -> 50719.284 | L20: =IF(Basisdaten!$E$22<=8,Basisdaten!$F$22*Saisonalisierung!H20,0) -> 49829.472 | M20: =IF(Basisdaten!$E$22<=9,Basisdaten!$F$22*Saisonalisierung!I20,0) -> 50422.68 | N20: =IF(Basisdaten!$E$22<=10,Basisdaten!$F$22*Saisonalisierung!J20,0) -> 48939.66 | O20: =IF(Basisdaten!$E$22<=11,Basisdaten!$F$22*Saisonalisierung!K20,0) -> 50422.68 | P20: =IF(Basisdaten!$E$22<=12,Basisdaten!$F$22*Saisonalisierung!L20,0) -> 52498.908
A21: 1 | B21: =Basisdaten!B23 -> 40 | C21: =Basisdaten!A23 -> Hakan Celik_ULM | D21: =Basisdaten!U23 -> 2022 | E21: =IF(Basisdaten!$E$23=1,Basisdaten!$F$23*Saisonalisierung!A21,0) -> 0 | F21: =IF(Basisdaten!$E$23<=2,Basisdaten!$F$23*Saisonalisierung!B21,0) -> 0 | G21: =IF(Basisdaten!$E$23<=3,Basisdaten!$F$23*Saisonalisierung!C21,0) -> 0 | H21: =IF(Basisdaten!$E$23<=4,Basisdaten!$F$23*Saisonalisierung!D21,0) -> 0 | I21: =IF(Basisdaten!$E$23<=5,Basisdaten!$F$23*Saisonalisierung!E21,0) -> 0 | J21: =IF(Basisdaten!$E$23<=6,Basisdaten!$F$23*Saisonalisierung!F21,0) -> 0 | K21: =IF(Basisdaten!$E$23<=7,Basisdaten!$F$23*Saisonalisierung!G21,0) -> 0 | L21: =IF(Basisdaten!$E$23<=8,Basisdaten!$F$23*Saisonalisierung!H21,0) -> 0 | M21: =IF(Basisdaten!$E$23<=9,Basisdaten!$F$23*Saisonalisierung!I21,0) -> 0 | N21: =IF(Basisdaten!$E$23<=10,Basisdaten!$F$23*Saisonalisierung!J21,0) -> 0 | O21: =IF(Basisdaten!$E$23<=11,Basisdaten!$F$23*Saisonalisierung!K21,0) -> 0 | P21: =IF(Basisdaten!$E$23<=12,Basisdaten!$F$23*Saisonalisierung!L21,0) -> 0
A22: 1 | B22: =Basisdaten!B24 -> 40 | C22: =Basisdaten!A24 -> Andreas Walter | D22: =Basisdaten!U24 -> 2022 | E22: =IF(Basisdaten!$E$24=1,Basisdaten!$F$24*Saisonalisierung!A22,0) -> 44787.204 | F22: =IF(Basisdaten!$E$24<=2,Basisdaten!$F$24*Saisonalisierung!B22,0) -> 45677.016 | G22: =IF(Basisdaten!$E$24<=3,Basisdaten!$F$24*Saisonalisierung!C22,0) -> 52795.512 | H22: =IF(Basisdaten!$E$24<=4,Basisdaten!$F$24*Saisonalisierung!D22,0) -> 49829.472 | I22: =IF(Basisdaten!$E$24<=5,Basisdaten!$F$24*Saisonalisierung!E22,0) -> 47753.244 | J22: =IF(Basisdaten!$E$24<=6,Basisdaten!$F$24*Saisonalisierung!F22,0) -> 49532.868 | K22: =IF(Basisdaten!$E$24<=7,Basisdaten!$F$24*Saisonalisierung!G22,0) -> 50719.284 | L22: =IF(Basisdaten!$E$24<=8,Basisdaten!$F$24*Saisonalisierung!H22,0) -> 49829.472 | M22: =IF(Basisdaten!$E$24<=9,Basisdaten!$F$24*Saisonalisierung!I22,0) -> 50422.68 | N22: =IF(Basisdaten!$E$24<=10,Basisdaten!$F$24*Saisonalisierung!J22,0) -> 48939.66 | O22: =IF(Basisdaten!$E$24<=11,Basisdaten!$F$24*Saisonalisierung!K22,0) -> 50422.68 | P22: =IF(Basisdaten!$E$24<=12,Basisdaten!$F$24*Saisonalisierung!L22,0) -> 52498.908
A23: 1 | B23: =Basisdaten!B25 -> 40 | C23: =Basisdaten!A25 -> Fatih Cetiner | D23: =Basisdaten!U25 -> 2022 | E23: =IF(Basisdaten!$E$25=1,Basisdaten!$F$25*Saisonalisierung!A23,0) -> 44787.204 | F23: =IF(Basisdaten!$E$25<=2,Basisdaten!$F$25*Saisonalisierung!B23,0) -> 45677.016 | G23: =IF(Basisdaten!$E$25<=3,Basisdaten!$F$25*Saisonalisierung!C23,0) -> 52795.512 | H23: =IF(Basisdaten!$E$25<=4,Basisdaten!$F$25*Saisonalisierung!D23,0) -> 49829.472 | I23: =IF(Basisdaten!$E$25<=5,Basisdaten!$F$25*Saisonalisierung!E23,0) -> 47753.244 | J23: =IF(Basisdaten!$E$25<=6,Basisdaten!$F$25*Saisonalisierung!F23,0) -> 49532.868 | K23: =IF(Basisdaten!$E$25<=7,Basisdaten!$F$25*Saisonalisierung!G23,0) -> 50719.284 | L23: =IF(Basisdaten!$E$25<=8,Basisdaten!$F$25*Saisonalisierung!H23,0) -> 49829.472 | M23: =IF(Basisdaten!$E$25<=9,Basisdaten!$F$25*Saisonalisierung!I23,0) -> 50422.68 | N23: =IF(Basisdaten!$E$25<=10,Basisdaten!$F$25*Saisonalisierung!J23,0) -> 48939.66 | O23: =IF(Basisdaten!$E$25<=11,Basisdaten!$F$25*Saisonalisierung!K23,0) -> 50422.68 | P23: =IF(Basisdaten!$E$25<=12,Basisdaten!$F$25*Saisonalisierung!L23,0) -> 52498.908
A24: 1 | B24: =Basisdaten!B26 -> 50 | C24: =Basisdaten!A26 -> Carlheinz Beylacher | D24: =Basisdaten!U26 -> 2022 | E24: =IF(Basisdaten!$E$26=1,Basisdaten!$F$26*Saisonalisierung!A24,0) -> 44787.204 | F24: =IF(Basisdaten!$E$26<=2,Basisdaten!$F$26*Saisonalisierung!B24,0) -> 45677.016 | G24: =IF(Basisdaten!$E$26<=3,Basisdaten!$F$26*Saisonalisierung!C24,0) -> 52795.512 | H24: =IF(Basisdaten!$E$26<=4,Basisdaten!$F$26*Saisonalisierung!D24,0) -> 49829.472 | I24: =IF(Basisdaten!$E$26<=5,Basisdaten!$F$26*Saisonalisierung!E24,0) -> 47753.244 | J24: =IF(Basisdaten!$E$26<=6,Basisdaten!$F$26*Saisonalisierung!F24,0) -> 49532.868 | K24: =IF(Basisdaten!$E$26<=7,Basisdaten!$F$26*Saisonalisierung!G24,0) -> 50719.284 | L24: =IF(Basisdaten!$E$26<=8,Basisdaten!$F$26*Saisonalisierung!H24,0) -> 49829.472 | M24: =IF(Basisdaten!$E$26<=9,Basisdaten!$F$26*Saisonalisierung!I24,0) -> 50422.68 | N24: =IF(Basisdaten!$E$26<=10,Basisdaten!$F$26*Saisonalisierung!J24,0) -> 48939.66 | O24: =IF(Basisdaten!$E$26<=11,Basisdaten!$F$26*Saisonalisierung!K24,0) -> 50422.68 | P24: =IF(Basisdaten!$E$26<=12,Basisdaten!$F$26*Saisonalisierung!L24,0) -> 52498.908
A25: 1 | B25: =Basisdaten!B27 -> 50 | C25: =Basisdaten!A27 -> Christoph Ziegler | D25: =Basisdaten!U27 -> 2022 | E25: =IF(Basisdaten!$E$27=1,Basisdaten!$F$27*Saisonalisierung!A25,0) -> 44787.204 | F25: =IF(Basisdaten!$E$27<=2,Basisdaten!$F$27*Saisonalisierung!B25,0) -> 45677.016 | G25: =IF(Basisdaten!$E$27<=3,Basisdaten!$F$27*Saisonalisierung!C25,0) -> 52795.512 | H25: =IF(Basisdaten!$E$27<=4,Basisdaten!$F$27*Saisonalisierung!D25,0) -> 49829.472 | I25: =IF(Basisdaten!$E$27<=5,Basisdaten!$F$27*Saisonalisierung!E25,0) -> 47753.244 | J25: =IF(Basisdaten!$E$27<=6,Basisdaten!$F$27*Saisonalisierung!F25,0) -> 49532.868 | K25: =IF(Basisdaten!$E$27<=7,Basisdaten!$F$27*Saisonalisierung!G25,0) -> 50719.284 | L25: =IF(Basisdaten!$E$27<=8,Basisdaten!$F$27*Saisonalisierung!H25,0) -> 49829.472 | M25: =IF(Basisdaten!$E$27<=9,Basisdaten!$F$27*Saisonalisierung!I25,0) -> 50422.68 | N25: =IF(Basisdaten!$E$27<=10,Basisdaten!$F$27*Saisonalisierung!J25,0) -> 48939.66 | O25: =IF(Basisdaten!$E$27<=11,Basisdaten!$F$27*Saisonalisierung!K25,0) -> 50422.68 | P25: =IF(Basisdaten!$E$27<=12,Basisdaten!$F$27*Saisonalisierung!L25,0) -> 52498.908
A26: 1 | B26: =Basisdaten!B28 -> 50 | C26: =Basisdaten!A28 -> Steffen Schiller | D26: =Basisdaten!U28 -> 2022 | E26: =IF(Basisdaten!$E$28=1,Basisdaten!$F$28*Saisonalisierung!A26,0) -> 44787.204 | F26: =IF(Basisdaten!$E$28<=2,Basisdaten!$F$28*Saisonalisierung!B26,0) -> 45677.016 | G26: =IF(Basisdaten!$E$28<=3,Basisdaten!$F$28*Saisonalisierung!C26,0) -> 52795.512 | H26: =IF(Basisdaten!$E$28<=4,Basisdaten!$F$28*Saisonalisierung!D26,0) -> 49829.472 | I26: =IF(Basisdaten!$E$28<=5,Basisdaten!$F$28*Saisonalisierung!E26,0) -> 47753.244 | J26: =IF(Basisdaten!$E$28<=6,Basisdaten!$F$28*Saisonalisierung!F26,0) -> 49532.868 | K26: =IF(Basisdaten!$E$28<=7,Basisdaten!$F$28*Saisonalisierung!G26,0) -> 50719.284 | L26: =IF(Basisdaten!$E$28<=8,Basisdaten!$F$28*Saisonalisierung!H26,0) -> 49829.472 | M26: =IF(Basisdaten!$E$28<=9,Basisdaten!$F$28*Saisonalisierung!I26,0) -> 50422.68 | N26: =IF(Basisdaten!$E$28<=10,Basisdaten!$F$28*Saisonalisierung!J26,0) -> 48939.66 | O26: =IF(Basisdaten!$E$28<=11,Basisdaten!$F$28*Saisonalisierung!K26,0) -> 50422.68 | P26: =IF(Basisdaten!$E$28<=12,Basisdaten!$F$28*Saisonalisierung!L26,0) -> 52498.908
A27: 1 | B27: =Basisdaten!B29 -> 50 | C27: =Basisdaten!A29 -> André Pfeffer - SCBI | D27: =Basisdaten!U29 -> 2022 | E27: =IF(Basisdaten!$E$29=1,Basisdaten!$F$29*Saisonalisierung!A27,0) -> 44787.204 | F27: =IF(Basisdaten!$E$29<=2,Basisdaten!$F$29*Saisonalisierung!B27,0) -> 45677.016 | G27: =IF(Basisdaten!$E$29<=3,Basisdaten!$F$29*Saisonalisierung!C27,0) -> 52795.512 | H27: =IF(Basisdaten!$E$29<=4,Basisdaten!$F$29*Saisonalisierung!D27,0) -> 49829.472 | I27: =IF(Basisdaten!$E$29<=5,Basisdaten!$F$29*Saisonalisierung!E27,0) -> 47753.244 | J27: =IF(Basisdaten!$E$29<=6,Basisdaten!$F$29*Saisonalisierung!F27,0) -> 49532.868 | K27: =IF(Basisdaten!$E$29<=7,Basisdaten!$F$29*Saisonalisierung!G27,0) -> 50719.284 | L27: =IF(Basisdaten!$E$29<=8,Basisdaten!$F$29*Saisonalisierung!H27,0) -> 49829.472 | M27: =IF(Basisdaten!$E$29<=9,Basisdaten!$F$29*Saisonalisierung!I27,0) -> 50422.68 | N27: =IF(Basisdaten!$E$29<=10,Basisdaten!$F$29*Saisonalisierung!J27,0) -> 48939.66 | O27: =IF(Basisdaten!$E$29<=11,Basisdaten!$F$29*Saisonalisierung!K27,0) -> 50422.68 | P27: =IF(Basisdaten!$E$29<=12,Basisdaten!$F$29*Saisonalisierung!L27,0) -> 52498.908
A28: 1 | B28: =Basisdaten!B30 -> 50 | C28: =Basisdaten!A30 -> Christian Wiedemann | D28: =Basisdaten!U30 -> 2022 | E28: =IF(Basisdaten!$E$30=1,Basisdaten!$F$30*Saisonalisierung!A28,0) -> 44787.204 | F28: =IF(Basisdaten!$E$30<=2,Basisdaten!$F$30*Saisonalisierung!B28,0) -> 45677.016 | G28: =IF(Basisdaten!$E$30<=3,Basisdaten!$F$30*Saisonalisierung!C28,0) -> 52795.512 | H28: =IF(Basisdaten!$E$30<=4,Basisdaten!$F$30*Saisonalisierung!D28,0) -> 49829.472 | I28: =IF(Basisdaten!$E$30<=5,Basisdaten!$F$30*Saisonalisierung!E28,0) -> 47753.244 | J28: =IF(Basisdaten!$E$30<=6,Basisdaten!$F$30*Saisonalisierung!F28,0) -> 49532.868 | K28: =IF(Basisdaten!$E$30<=7,Basisdaten!$F$30*Saisonalisierung!G28,0) -> 50719.284 | L28: =IF(Basisdaten!$E$30<=8,Basisdaten!$F$30*Saisonalisierung!H28,0) -> 49829.472 | M28: =IF(Basisdaten!$E$30<=9,Basisdaten!$F$30*Saisonalisierung!I28,0) -> 50422.68 | N28: =IF(Basisdaten!$E$30<=10,Basisdaten!$F$30*Saisonalisierung!J28,0) -> 48939.66 | O28: =IF(Basisdaten!$E$30<=11,Basisdaten!$F$30*Saisonalisierung!K28,0) -> 50422.68 | P28: =IF(Basisdaten!$E$30<=12,Basisdaten!$F$30*Saisonalisierung!L28,0) -> 52498.908
A29: 1 | B29: =Basisdaten!B31 -> 50 | C29: =Basisdaten!A31 -> Daniel Aschmann_ | D29: =Basisdaten!U31 -> 2022 | E29: =IF(Basisdaten!$E$31=1,Basisdaten!$F$31*Saisonalisierung!A29,0) -> 0 | F29: =IF(Basisdaten!$E$31<=2,Basisdaten!$F$31*Saisonalisierung!B29,0) -> 0 | G29: =IF(Basisdaten!$E$31<=3,Basisdaten!$F$31*Saisonalisierung!C29,0) -> 0 | H29: =IF(Basisdaten!$E$31<=4,Basisdaten!$F$31*Saisonalisierung!D29,0) -> 0 | I29: =IF(Basisdaten!$E$31<=5,Basisdaten!$F$31*Saisonalisierung!E29,0) -> 0 | J29: =IF(Basisdaten!$E$31<=6,Basisdaten!$F$31*Saisonalisierung!F29,0) -> 0 | K29: =IF(Basisdaten!$E$31<=7,Basisdaten!$F$31*Saisonalisierung!G29,0) -> 0 | L29: =IF(Basisdaten!$E$31<=8,Basisdaten!$F$31*Saisonalisierung!H29,0) -> 0 | M29: =IF(Basisdaten!$E$31<=9,Basisdaten!$F$31*Saisonalisierung!I29,0) -> 0 | N29: =IF(Basisdaten!$E$31<=10,Basisdaten!$F$31*Saisonalisierung!J29,0) -> 0 | O29: =IF(Basisdaten!$E$31<=11,Basisdaten!$F$31*Saisonalisierung!K29,0) -> 0 | P29: =IF(Basisdaten!$E$31<=12,Basisdaten!$F$31*Saisonalisierung!L29,0) -> 0
A30: 2 | B30: =Basisdaten!B32 -> 60 | C30: =Basisdaten!A32 -> Dirk Heditzsch | D30: =Basisdaten!U32 -> 2022 | E30: =IF(Basisdaten!$E$32=1,Basisdaten!$F$32*Saisonalisierung!A30,0) -> 0 | F30: =IF(Basisdaten!$E$32<=2,Basisdaten!$F$32*Saisonalisierung!B30,0) -> 0 | G30: =IF(Basisdaten!$E$32<=3,Basisdaten!$F$32*Saisonalisierung!C30,0) -> 0 | H30: =IF(Basisdaten!$E$32<=4,Basisdaten!$F$32*Saisonalisierung!D30,0) -> 49829.472 | I30: =IF(Basisdaten!$E$32<=5,Basisdaten!$F$32*Saisonalisierung!E30,0) -> 47753.244 | J30: =IF(Basisdaten!$E$32<=6,Basisdaten!$F$32*Saisonalisierung!F30,0) -> 49532.868 | K30: =IF(Basisdaten!$E$32<=7,Basisdaten!$F$32*Saisonalisierung!G30,0) -> 50719.284 | L30: =IF(Basisdaten!$E$32<=8,Basisdaten!$F$32*Saisonalisierung!H30,0) -> 49829.472 | M30: =IF(Basisdaten!$E$32<=9,Basisdaten!$F$32*Saisonalisierung!I30,0) -> 50422.68 | N30: =IF(Basisdaten!$E$32<=10,Basisdaten!$F$32*Saisonalisierung!J30,0) -> 48939.66 | O30: =IF(Basisdaten!$E$32<=11,Basisdaten!$F$32*Saisonalisierung!K30,0) -> 50422.68 | P30: =IF(Basisdaten!$E$32<=12,Basisdaten!$F$32*Saisonalisierung!L30,0) -> 52498.908
A31: 2 | B31: =Basisdaten!B33 -> 60 | C31: =Basisdaten!A33 -> Marco Hanigk | D31: =Basisdaten!U33 -> 2022 | E31: =IF(Basisdaten!$E$33=1,Basisdaten!$F$33*Saisonalisierung!A31,0) -> 44787.204 | F31: =IF(Basisdaten!$E$33<=2,Basisdaten!$F$33*Saisonalisierung!B31,0) -> 45677.016 | G31: =IF(Basisdaten!$E$33<=3,Basisdaten!$F$33*Saisonalisierung!C31,0) -> 52795.512 | H31: =IF(Basisdaten!$E$33<=4,Basisdaten!$F$33*Saisonalisierung!D31,0) -> 49829.472 | I31: =IF(Basisdaten!$E$33<=5,Basisdaten!$F$33*Saisonalisierung!E31,0) -> 47753.244 | J31: =IF(Basisdaten!$E$33<=6,Basisdaten!$F$33*Saisonalisierung!F31,0) -> 49532.868 | K31: =IF(Basisdaten!$E$33<=7,Basisdaten!$F$33*Saisonalisierung!G31,0) -> 50719.284 | L31: =IF(Basisdaten!$E$33<=8,Basisdaten!$F$33*Saisonalisierung!H31,0) -> 49829.472 | M31: =IF(Basisdaten!$E$33<=9,Basisdaten!$F$33*Saisonalisierung!I31,0) -> 50422.68 | N31: =IF(Basisdaten!$E$33<=10,Basisdaten!$F$33*Saisonalisierung!J31,0) -> 48939.66 | O31: =IF(Basisdaten!$E$33<=11,Basisdaten!$F$33*Saisonalisierung!K31,0) -> 50422.68 | P31: =IF(Basisdaten!$E$33<=12,Basisdaten!$F$33*Saisonalisierung!L31,0) -> 52498.908
A32: 2 | B32: =Basisdaten!B34 -> 60 | C32: =Basisdaten!A34 -> Marcel Lankes | D32: =Basisdaten!U34 -> 2022 | E32: =IF(Basisdaten!$E$34=1,Basisdaten!$F$34*Saisonalisierung!A32,0) -> 0 | F32: =IF(Basisdaten!$E$34<=2,Basisdaten!$F$34*Saisonalisierung!B32,0) -> 0 | G32: =IF(Basisdaten!$E$34<=3,Basisdaten!$F$34*Saisonalisierung!C32,0) -> 0 | H32: =IF(Basisdaten!$E$34<=4,Basisdaten!$F$34*Saisonalisierung!D32,0) -> 49829.472 | I32: =IF(Basisdaten!$E$34<=5,Basisdaten!$F$34*Saisonalisierung!E32,0) -> 47753.244 | J32: =IF(Basisdaten!$E$34<=6,Basisdaten!$F$34*Saisonalisierung!F32,0) -> 49532.868 | K32: =IF(Basisdaten!$E$34<=7,Basisdaten!$F$34*Saisonalisierung!G32,0) -> 50719.284 | L32: =IF(Basisdaten!$E$34<=8,Basisdaten!$F$34*Saisonalisierung!H32,0) -> 49829.472 | M32: =IF(Basisdaten!$E$34<=9,Basisdaten!$F$34*Saisonalisierung!I32,0) -> 50422.68 | N32: =IF(Basisdaten!$E$34<=10,Basisdaten!$F$34*Saisonalisierung!J32,0) -> 48939.66 | O32: =IF(Basisdaten!$E$34<=11,Basisdaten!$F$34*Saisonalisierung!K32,0) -> 50422.68 | P32: =IF(Basisdaten!$E$34<=12,Basisdaten!$F$34*Saisonalisierung!L32,0) -> 52498.908
A33: 2 | B33: =Basisdaten!B35 -> 60 | C33: =Basisdaten!A35 -> Roland Klier | D33: =Basisdaten!U35 -> 2022 | E33: =IF(Basisdaten!$E$35=1,Basisdaten!$F$35*Saisonalisierung!A33,0) -> 44787.204 | F33: =IF(Basisdaten!$E$35<=2,Basisdaten!$F$35*Saisonalisierung!B33,0) -> 45677.016 | G33: =IF(Basisdaten!$E$35<=3,Basisdaten!$F$35*Saisonalisierung!C33,0) -> 52795.512 | H33: =IF(Basisdaten!$E$35<=4,Basisdaten!$F$35*Saisonalisierung!D33,0) -> 49829.472 | I33: =IF(Basisdaten!$E$35<=5,Basisdaten!$F$35*Saisonalisierung!E33,0) -> 47753.244 | J33: =IF(Basisdaten!$E$35<=6,Basisdaten!$F$35*Saisonalisierung!F33,0) -> 49532.868 | K33: =IF(Basisdaten!$E$35<=7,Basisdaten!$F$35*Saisonalisierung!G33,0) -> 50719.284 | L33: =IF(Basisdaten!$E$35<=8,Basisdaten!$F$35*Saisonalisierung!H33,0) -> 49829.472 | M33: =IF(Basisdaten!$E$35<=9,Basisdaten!$F$35*Saisonalisierung!I33,0) -> 50422.68 | N33: =IF(Basisdaten!$E$35<=10,Basisdaten!$F$35*Saisonalisierung!J33,0) -> 48939.66 | O33: =IF(Basisdaten!$E$35<=11,Basisdaten!$F$35*Saisonalisierung!K33,0) -> 50422.68 | P33: =IF(Basisdaten!$E$35<=12,Basisdaten!$F$35*Saisonalisierung!L33,0) -> 52498.908
A34: 2 | B34: =Basisdaten!B36 -> 60 | C34: =Basisdaten!A36 -> Mert Güngör | D34: =Basisdaten!U36 -> 2022 | E34: =IF(Basisdaten!$E$36=1,Basisdaten!$F$36*Saisonalisierung!A34,0) -> 0 | F34: =IF(Basisdaten!$E$36<=2,Basisdaten!$F$36*Saisonalisierung!B34,0) -> 0 | G34: =IF(Basisdaten!$E$36<=3,Basisdaten!$F$36*Saisonalisierung!C34,0) -> 0 | H34: =IF(Basisdaten!$E$36<=4,Basisdaten!$F$36*Saisonalisierung!D34,0) -> 0 | I34: =IF(Basisdaten!$E$36<=5,Basisdaten!$F$36*Saisonalisierung!E34,0) -> 0 | J34: =IF(Basisdaten!$E$36<=6,Basisdaten!$F$36*Saisonalisierung!F34,0) -> 49532.868 | K34: =IF(Basisdaten!$E$36<=7,Basisdaten!$F$36*Saisonalisierung!G34,0) -> 50719.284 | L34: =IF(Basisdaten!$E$36<=8,Basisdaten!$F$36*Saisonalisierung!H34,0) -> 49829.472 | M34: =IF(Basisdaten!$E$36<=9,Basisdaten!$F$36*Saisonalisierung!I34,0) -> 50422.68 | N34: =IF(Basisdaten!$E$36<=10,Basisdaten!$F$36*Saisonalisierung!J34,0) -> 48939.66 | O34: =IF(Basisdaten!$E$36<=11,Basisdaten!$F$36*Saisonalisierung!K34,0) -> 50422.68 | P34: =IF(Basisdaten!$E$36<=12,Basisdaten!$F$36*Saisonalisierung!L34,0) -> 52498.908
A35: 2 | B35: =Basisdaten!B37 -> 60 | C35: =Basisdaten!A37 -> Matthias Hagg | D35: =Basisdaten!U37 -> 2022 | E35: =IF(Basisdaten!$E$37=1,Basisdaten!$F$37*Saisonalisierung!A35,0) -> 44787.204 | F35: =IF(Basisdaten!$E$37<=2,Basisdaten!$F$37*Saisonalisierung!B35,0) -> 45677.016 | G35: =IF(Basisdaten!$E$37<=3,Basisdaten!$F$37*Saisonalisierung!C35,0) -> 52795.512 | H35: =IF(Basisdaten!$E$37<=4,Basisdaten!$F$37*Saisonalisierung!D35,0) -> 49829.472 | I35: =IF(Basisdaten!$E$37<=5,Basisdaten!$F$37*Saisonalisierung!E35,0) -> 47753.244 | J35: =IF(Basisdaten!$E$37<=6,Basisdaten!$F$37*Saisonalisierung!F35,0) -> 49532.868 | K35: =IF(Basisdaten!$E$37<=7,Basisdaten!$F$37*Saisonalisierung!G35,0) -> 50719.284 | L35: =IF(Basisdaten!$E$37<=8,Basisdaten!$F$37*Saisonalisierung!H35,0) -> 49829.472 | M35: =IF(Basisdaten!$E$37<=9,Basisdaten!$F$37*Saisonalisierung!I35,0) -> 50422.68 | N35: =IF(Basisdaten!$E$37<=10,Basisdaten!$F$37*Saisonalisierung!J35,0) -> 48939.66 | O35: =IF(Basisdaten!$E$37<=11,Basisdaten!$F$37*Saisonalisierung!K35,0) -> 50422.68 | P35: =IF(Basisdaten!$E$37<=12,Basisdaten!$F$37*Saisonalisierung!L35,0) -> 52498.908
A36: 2 | B36: =Basisdaten!B38 -> 60 | C36: =Basisdaten!A38 -> Walter Schlosser | D36: =Basisdaten!U38 -> 2022 | E36: =IF(Basisdaten!$E$38=1,Basisdaten!$F$38*Saisonalisierung!A36,0) -> 44787.204 | F36: =IF(Basisdaten!$E$38<=2,Basisdaten!$F$38*Saisonalisierung!B36,0) -> 45677.016 | G36: =IF(Basisdaten!$E$38<=3,Basisdaten!$F$38*Saisonalisierung!C36,0) -> 52795.512 | H36: =IF(Basisdaten!$E$38<=4,Basisdaten!$F$38*Saisonalisierung!D36,0) -> 49829.472 | I36: =IF(Basisdaten!$E$38<=5,Basisdaten!$F$38*Saisonalisierung!E36,0) -> 47753.244 | J36: =IF(Basisdaten!$E$38<=6,Basisdaten!$F$38*Saisonalisierung!F36,0) -> 49532.868 | K36: =IF(Basisdaten!$E$38<=7,Basisdaten!$F$38*Saisonalisierung!G36,0) -> 50719.284 | L36: =IF(Basisdaten!$E$38<=8,Basisdaten!$F$38*Saisonalisierung!H36,0) -> 49829.472 | M36: =IF(Basisdaten!$E$38<=9,Basisdaten!$F$38*Saisonalisierung!I36,0) -> 50422.68 | N36: =IF(Basisdaten!$E$38<=10,Basisdaten!$F$38*Saisonalisierung!J36,0) -> 48939.66 | O36: =IF(Basisdaten!$E$38<=11,Basisdaten!$F$38*Saisonalisierung!K36,0) -> 50422.68 | P36: =IF(Basisdaten!$E$38<=12,Basisdaten!$F$38*Saisonalisierung!L36,0) -> 52498.908
A37: 2 | B37: =Basisdaten!B39 -> 60 | C37: =Basisdaten!A39 -> Udo Spindler | D37: =Basisdaten!U39 -> 2022 | E37: =IF(Basisdaten!$E$39=1,Basisdaten!$F$39*Saisonalisierung!A37,0) -> 44787.204 | F37: =IF(Basisdaten!$E$39<=2,Basisdaten!$F$39*Saisonalisierung!B37,0) -> 45677.016 | G37: =IF(Basisdaten!$E$39<=3,Basisdaten!$F$39*Saisonalisierung!C37,0) -> 52795.512 | H37: =IF(Basisdaten!$E$39<=4,Basisdaten!$F$39*Saisonalisierung!D37,0) -> 49829.472 | I37: =IF(Basisdaten!$E$39<=5,Basisdaten!$F$39*Saisonalisierung!E37,0) -> 47753.244 | J37: =IF(Basisdaten!$E$39<=6,Basisdaten!$F$39*Saisonalisierung!F37,0) -> 49532.868 | K37: =IF(Basisdaten!$E$39<=7,Basisdaten!$F$39*Saisonalisierung!G37,0) -> 50719.284 | L37: =IF(Basisdaten!$E$39<=8,Basisdaten!$F$39*Saisonalisierung!H37,0) -> 49829.472 | M37: =IF(Basisdaten!$E$39<=9,Basisdaten!$F$39*Saisonalisierung!I37,0) -> 50422.68 | N37: =IF(Basisdaten!$E$39<=10,Basisdaten!$F$39*Saisonalisierung!J37,0) -> 48939.66 | O37: =IF(Basisdaten!$E$39<=11,Basisdaten!$F$39*Saisonalisierung!K37,0) -> 50422.68 | P37: =IF(Basisdaten!$E$39<=12,Basisdaten!$F$39*Saisonalisierung!L37,0) -> 52498.908
A38: 2 | B38: =Basisdaten!B40 -> 60 | C38: =Basisdaten!A40 -> Marcel Vogler | D38: =Basisdaten!U40 -> 2022 | E38: =IF(Basisdaten!$E$40=1,Basisdaten!$F$40*Saisonalisierung!A38,0) -> 44787.204 | F38: =IF(Basisdaten!$E$40<=2,Basisdaten!$F$40*Saisonalisierung!B38,0) -> 45677.016 | G38: =IF(Basisdaten!$E$40<=3,Basisdaten!$F$40*Saisonalisierung!C38,0) -> 52795.512 | H38: =IF(Basisdaten!$E$40<=4,Basisdaten!$F$40*Saisonalisierung!D38,0) -> 49829.472 | I38: =IF(Basisdaten!$E$40<=5,Basisdaten!$F$40*Saisonalisierung!E38,0) -> 47753.244 | J38: =IF(Basisdaten!$E$40<=6,Basisdaten!$F$40*Saisonalisierung!F38,0) -> 49532.868 | K38: =IF(Basisdaten!$E$40<=7,Basisdaten!$F$40*Saisonalisierung!G38,0) -> 50719.284 | L38: =IF(Basisdaten!$E$40<=8,Basisdaten!$F$40*Saisonalisierung!H38,0) -> 49829.472 | M38: =IF(Basisdaten!$E$40<=9,Basisdaten!$F$40*Saisonalisierung!I38,0) -> 50422.68 | N38: =IF(Basisdaten!$E$40<=10,Basisdaten!$F$40*Saisonalisierung!J38,0) -> 48939.66 | O38: =IF(Basisdaten!$E$40<=11,Basisdaten!$F$40*Saisonalisierung!K38,0) -> 50422.68 | P38: =IF(Basisdaten!$E$40<=12,Basisdaten!$F$40*Saisonalisierung!L38,0) -> 52498.908
A39: 2 | B39: =Basisdaten!B41 -> 60 | C39: =Basisdaten!A41 -> Raphael Marksteiner | D39: =Basisdaten!U41 -> 2022 | E39: =IF(Basisdaten!$E$41=1,Basisdaten!$F$41*Saisonalisierung!A39,0) -> 0 | F39: =IF(Basisdaten!$E$41<=2,Basisdaten!$F$41*Saisonalisierung!B39,0) -> 0 | G39: =IF(Basisdaten!$E$41<=3,Basisdaten!$F$41*Saisonalisierung!C39,0) -> 0 | H39: =IF(Basisdaten!$E$41<=4,Basisdaten!$F$41*Saisonalisierung!D39,0) -> 49829.472 | I39: =IF(Basisdaten!$E$41<=5,Basisdaten!$F$41*Saisonalisierung!E39,0) -> 47753.244 | J39: =IF(Basisdaten!$E$41<=6,Basisdaten!$F$41*Saisonalisierung!F39,0) -> 49532.868 | K39: =IF(Basisdaten!$E$41<=7,Basisdaten!$F$41*Saisonalisierung!G39,0) -> 50719.284 | L39: =IF(Basisdaten!$E$41<=8,Basisdaten!$F$41*Saisonalisierung!H39,0) -> 49829.472 | M39: =IF(Basisdaten!$E$41<=9,Basisdaten!$F$41*Saisonalisierung!I39,0) -> 50422.68 | N39: =IF(Basisdaten!$E$41<=10,Basisdaten!$F$41*Saisonalisierung!J39,0) -> 48939.66 | O39: =IF(Basisdaten!$E$41<=11,Basisdaten!$F$41*Saisonalisierung!K39,0) -> 50422.68 | P39: =IF(Basisdaten!$E$41<=12,Basisdaten!$F$41*Saisonalisierung!L39,0) -> 52498.908
A40: 2 | B40: =Basisdaten!B42 -> 60 | C40: =Basisdaten!A42 -> Markus Appeljun - SCBI | D40: =Basisdaten!U42 -> 2022 | E40: =IF(Basisdaten!$E$42=1,Basisdaten!$F$42*Saisonalisierung!A40,0) -> 0 | F40: =IF(Basisdaten!$E$42<=2,Basisdaten!$F$42*Saisonalisierung!B40,0) -> 45677.016 | G40: =IF(Basisdaten!$E$42<=3,Basisdaten!$F$42*Saisonalisierung!C40,0) -> 52795.512 | H40: =IF(Basisdaten!$E$42<=4,Basisdaten!$F$42*Saisonalisierung!D40,0) -> 49829.472 | I40: =IF(Basisdaten!$E$42<=5,Basisdaten!$F$42*Saisonalisierung!E40,0) -> 47753.244 | J40: =IF(Basisdaten!$E$42<=6,Basisdaten!$F$42*Saisonalisierung!F40,0) -> 49532.868 | K40: =IF(Basisdaten!$E$42<=7,Basisdaten!$F$42*Saisonalisierung!G40,0) -> 50719.284 | L40: =IF(Basisdaten!$E$42<=8,Basisdaten!$F$42*Saisonalisierung!H40,0) -> 49829.472 | M40: =IF(Basisdaten!$E$42<=9,Basisdaten!$F$42*Saisonalisierung!I40,0) -> 50422.68 | N40: =IF(Basisdaten!$E$42<=10,Basisdaten!$F$42*Saisonalisierung!J40,0) -> 48939.66 | O40: =IF(Basisdaten!$E$42<=11,Basisdaten!$F$42*Saisonalisierung!K40,0) -> 50422.68 | P40: =IF(Basisdaten!$E$42<=12,Basisdaten!$F$42*Saisonalisierung!L40,0) -> 52498.908
A41: 2 | B41: =Basisdaten!B43 -> 60 | C41: =Basisdaten!A43 -> Andreas Göllner | D41: =Basisdaten!U43 -> 2022 | E41: =IF(Basisdaten!$E$43=1,Basisdaten!$F$43*Saisonalisierung!A41,0) -> 44787.204 | F41: =IF(Basisdaten!$E$43<=2,Basisdaten!$F$43*Saisonalisierung!B41,0) -> 45677.016 | G41: =IF(Basisdaten!$E$43<=3,Basisdaten!$F$43*Saisonalisierung!C41,0) -> 52795.512 | H41: =IF(Basisdaten!$E$43<=4,Basisdaten!$F$43*Saisonalisierung!D41,0) -> 49829.472 | I41: =IF(Basisdaten!$E$43<=5,Basisdaten!$F$43*Saisonalisierung!E41,0) -> 47753.244 | J41: =IF(Basisdaten!$E$43<=6,Basisdaten!$F$43*Saisonalisierung!F41,0) -> 49532.868 | K41: =IF(Basisdaten!$E$43<=7,Basisdaten!$F$43*Saisonalisierung!G41,0) -> 50719.284 | L41: =IF(Basisdaten!$E$43<=8,Basisdaten!$F$43*Saisonalisierung!H41,0) -> 49829.472 | M41: =IF(Basisdaten!$E$43<=9,Basisdaten!$F$43*Saisonalisierung!I41,0) -> 50422.68 | N41: =IF(Basisdaten!$E$43<=10,Basisdaten!$F$43*Saisonalisierung!J41,0) -> 48939.66 | O41: =IF(Basisdaten!$E$43<=11,Basisdaten!$F$43*Saisonalisierung!K41,0) -> 50422.68 | P41: =IF(Basisdaten!$E$43<=12,Basisdaten!$F$43*Saisonalisierung!L41,0) -> 52498.908
A42: 2 | B42: =Basisdaten!B44 -> 60 | C42: =Basisdaten!A44 -> Marcus Stangl | D42: =Basisdaten!U44 -> 2022 | E42: =IF(Basisdaten!$E$44=1,Basisdaten!$F$44*Saisonalisierung!A42,0) -> 44787.204 | F42: =IF(Basisdaten!$E$44<=2,Basisdaten!$F$44*Saisonalisierung!B42,0) -> 45677.016 | G42: =IF(Basisdaten!$E$44<=3,Basisdaten!$F$44*Saisonalisierung!C42,0) -> 52795.512 | H42: =IF(Basisdaten!$E$44<=4,Basisdaten!$F$44*Saisonalisierung!D42,0) -> 49829.472 | I42: =IF(Basisdaten!$E$44<=5,Basisdaten!$F$44*Saisonalisierung!E42,0) -> 47753.244 | J42: =IF(Basisdaten!$E$44<=6,Basisdaten!$F$44*Saisonalisierung!F42,0) -> 49532.868 | K42: =IF(Basisdaten!$E$44<=7,Basisdaten!$F$44*Saisonalisierung!G42,0) -> 50719.284 | L42: =IF(Basisdaten!$E$44<=8,Basisdaten!$F$44*Saisonalisierung!H42,0) -> 49829.472 | M42: =IF(Basisdaten!$E$44<=9,Basisdaten!$F$44*Saisonalisierung!I42,0) -> 50422.68 | N42: =IF(Basisdaten!$E$44<=10,Basisdaten!$F$44*Saisonalisierung!J42,0) -> 48939.66 | O42: =IF(Basisdaten!$E$44<=11,Basisdaten!$F$44*Saisonalisierung!K42,0) -> 50422.68 | P42: =IF(Basisdaten!$E$44<=12,Basisdaten!$F$44*Saisonalisierung!L42,0) -> 52498.908
A43: 2 | B43: =Basisdaten!B45 -> 60 | C43: =Basisdaten!A45 -> Christoph Rottenkolber | D43: =Basisdaten!U45 -> 2022 | E43: =IF(Basisdaten!$E$45=1,Basisdaten!$F$45*Saisonalisierung!A43,0) -> 0 | F43: =IF(Basisdaten!$E$45<=2,Basisdaten!$F$45*Saisonalisierung!B43,0) -> 0 | G43: =IF(Basisdaten!$E$45<=3,Basisdaten!$F$45*Saisonalisierung!C43,0) -> 0 | H43: =IF(Basisdaten!$E$45<=4,Basisdaten!$F$45*Saisonalisierung!D43,0) -> 49829.472 | I43: =IF(Basisdaten!$E$45<=5,Basisdaten!$F$45*Saisonalisierung!E43,0) -> 47753.244 | J43: =IF(Basisdaten!$E$45<=6,Basisdaten!$F$45*Saisonalisierung!F43,0) -> 49532.868 | K43: =IF(Basisdaten!$E$45<=7,Basisdaten!$F$45*Saisonalisierung!G43,0) -> 50719.284 | L43: =IF(Basisdaten!$E$45<=8,Basisdaten!$F$45*Saisonalisierung!H43,0) -> 49829.472 | M43: =IF(Basisdaten!$E$45<=9,Basisdaten!$F$45*Saisonalisierung!I43,0) -> 50422.68 | N43: =IF(Basisdaten!$E$45<=10,Basisdaten!$F$45*Saisonalisierung!J43,0) -> 48939.66 | O43: =IF(Basisdaten!$E$45<=11,Basisdaten!$F$45*Saisonalisierung!K43,0) -> 50422.68 | P43: =IF(Basisdaten!$E$45<=12,Basisdaten!$F$45*Saisonalisierung!L43,0) -> 52498.908
A44: 2 | B44: =Basisdaten!B46 -> 60 | C44: =Basisdaten!A46 -> Michael Cattide - SCBI | D44: =Basisdaten!U46 -> 2022 | E44: =IF(Basisdaten!$E$46=1,Basisdaten!$F$46*Saisonalisierung!A44,0) -> 44787.204 | F44: =IF(Basisdaten!$E$46<=2,Basisdaten!$F$46*Saisonalisierung!B44,0) -> 45677.016 | G44: =IF(Basisdaten!$E$46<=3,Basisdaten!$F$46*Saisonalisierung!C44,0) -> 52795.512 | H44: =IF(Basisdaten!$E$46<=4,Basisdaten!$F$46*Saisonalisierung!D44,0) -> 49829.472 | I44: =IF(Basisdaten!$E$46<=5,Basisdaten!$F$46*Saisonalisierung!E44,0) -> 47753.244 | J44: =IF(Basisdaten!$E$46<=6,Basisdaten!$F$46*Saisonalisierung!F44,0) -> 49532.868 | K44: =IF(Basisdaten!$E$46<=7,Basisdaten!$F$46*Saisonalisierung!G44,0) -> 50719.284 | L44: =IF(Basisdaten!$E$46<=8,Basisdaten!$F$46*Saisonalisierung!H44,0) -> 49829.472 | M44: =IF(Basisdaten!$E$46<=9,Basisdaten!$F$46*Saisonalisierung!I44,0) -> 50422.68 | N44: =IF(Basisdaten!$E$46<=10,Basisdaten!$F$46*Saisonalisierung!J44,0) -> 48939.66 | O44: =IF(Basisdaten!$E$46<=11,Basisdaten!$F$46*Saisonalisierung!K44,0) -> 50422.68 | P44: =IF(Basisdaten!$E$46<=12,Basisdaten!$F$46*Saisonalisierung!L44,0) -> 52498.908
A45: 2 | B45: =Basisdaten!B47 -> 60 | C45: =Basisdaten!A47 -> Dennis Grohmann | D45: =Basisdaten!U47 -> 2022 | E45: =IF(Basisdaten!$E$47=1,Basisdaten!$F$47*Saisonalisierung!A45,0) -> 0 | F45: =IF(Basisdaten!$E$47<=2,Basisdaten!$F$47*Saisonalisierung!B45,0) -> 0 | G45: =IF(Basisdaten!$E$47<=3,Basisdaten!$F$47*Saisonalisierung!C45,0) -> 0 | H45: =IF(Basisdaten!$E$47<=4,Basisdaten!$F$47*Saisonalisierung!D45,0) -> 0 | I45: =IF(Basisdaten!$E$47<=5,Basisdaten!$F$47*Saisonalisierung!E45,0) -> 0 | J45: =IF(Basisdaten!$E$47<=6,Basisdaten!$F$47*Saisonalisierung!F45,0) -> 0 | K45: =IF(Basisdaten!$E$47<=7,Basisdaten!$F$47*Saisonalisierung!G45,0) -> 0 | L45: =IF(Basisdaten!$E$47<=8,Basisdaten!$F$47*Saisonalisierung!H45,0) -> 0 | M45: =IF(Basisdaten!$E$47<=9,Basisdaten!$F$47*Saisonalisierung!I45,0) -> 0 | N45: =IF(Basisdaten!$E$47<=10,Basisdaten!$F$47*Saisonalisierung!J45,0) -> 0 | O45: =IF(Basisdaten!$E$47<=11,Basisdaten!$F$47*Saisonalisierung!K45,0) -> 0 | P45: =IF(Basisdaten!$E$47<=12,Basisdaten!$F$47*Saisonalisierung!L45,0) -> 0
A46: 2 | B46: =Basisdaten!B48 -> 60 | C46: =Basisdaten!A48 -> Simone Groß - SCBZ | D46: =Basisdaten!U48 -> 2022 | E46: =IF(Basisdaten!$E$48=1,Basisdaten!$F$48*Saisonalisierung!A46,0) -> 44787.204 | F46: =IF(Basisdaten!$E$48<=2,Basisdaten!$F$48*Saisonalisierung!B46,0) -> 45677.016 | G46: =IF(Basisdaten!$E$48<=3,Basisdaten!$F$48*Saisonalisierung!C46,0) -> 52795.512 | H46: =IF(Basisdaten!$E$48<=4,Basisdaten!$F$48*Saisonalisierung!D46,0) -> 49829.472 | I46: =IF(Basisdaten!$E$48<=5,Basisdaten!$F$48*Saisonalisierung!E46,0) -> 47753.244 | J46: =IF(Basisdaten!$E$48<=6,Basisdaten!$F$48*Saisonalisierung!F46,0) -> 49532.868 | K46: =IF(Basisdaten!$E$48<=7,Basisdaten!$F$48*Saisonalisierung!G46,0) -> 50719.284 | L46: =IF(Basisdaten!$E$48<=8,Basisdaten!$F$48*Saisonalisierung!H46,0) -> 49829.472 | M46: =IF(Basisdaten!$E$48<=9,Basisdaten!$F$48*Saisonalisierung!I46,0) -> 50422.68 | N46: =IF(Basisdaten!$E$48<=10,Basisdaten!$F$48*Saisonalisierung!J46,0) -> 48939.66 | O46: =IF(Basisdaten!$E$48<=11,Basisdaten!$F$48*Saisonalisierung!K46,0) -> 50422.68 | P46: =IF(Basisdaten!$E$48<=12,Basisdaten!$F$48*Saisonalisierung!L46,0) -> 52498.908
A47: 1 | B47: =Basisdaten!B49 -> 55 | C47: =Basisdaten!A49 -> Jens Haller | D47: =Basisdaten!U49 -> 2022 | E47: =IF(Basisdaten!$E$49=1,Basisdaten!$F$49*Saisonalisierung!A47,0) -> 44787.204 | F47: =IF(Basisdaten!$E$49<=2,Basisdaten!$F$49*Saisonalisierung!B47,0) -> 45677.016 | G47: =IF(Basisdaten!$E$49<=3,Basisdaten!$F$49*Saisonalisierung!C47,0) -> 52795.512 | H47: =IF(Basisdaten!$E$49<=4,Basisdaten!$F$49*Saisonalisierung!D47,0) -> 49829.472 | I47: =IF(Basisdaten!$E$49<=5,Basisdaten!$F$49*Saisonalisierung!E47,0) -> 47753.244 | J47: =IF(Basisdaten!$E$49<=6,Basisdaten!$F$49*Saisonalisierung!F47,0) -> 49532.868 | K47: =IF(Basisdaten!$E$49<=7,Basisdaten!$F$49*Saisonalisierung!G47,0) -> 50719.284 | L47: =IF(Basisdaten!$E$49<=8,Basisdaten!$F$49*Saisonalisierung!H47,0) -> 49829.472 | M47: =IF(Basisdaten!$E$49<=9,Basisdaten!$F$49*Saisonalisierung!I47,0) -> 50422.68 | N47: =IF(Basisdaten!$E$49<=10,Basisdaten!$F$49*Saisonalisierung!J47,0) -> 48939.66 | O47: =IF(Basisdaten!$E$49<=11,Basisdaten!$F$49*Saisonalisierung!K47,0) -> 50422.68 | P47: =IF(Basisdaten!$E$49<=12,Basisdaten!$F$49*Saisonalisierung!L47,0) -> 52498.908
A48: 1 | B48: =Basisdaten!B50 -> 55 | C48: =Basisdaten!A50 -> Ioannis Tsesmelis_ | D48: =Basisdaten!U50 -> 2022 | E48: =IF(Basisdaten!$E$50=1,Basisdaten!$F$50*Saisonalisierung!A48,0) -> 0 | F48: =IF(Basisdaten!$E$50<=2,Basisdaten!$F$50*Saisonalisierung!B48,0) -> 0 | G48: =IF(Basisdaten!$E$50<=3,Basisdaten!$F$50*Saisonalisierung!C48,0) -> 0 | H48: =IF(Basisdaten!$E$50<=4,Basisdaten!$F$50*Saisonalisierung!D48,0) -> 0 | I48: =IF(Basisdaten!$E$50<=5,Basisdaten!$F$50*Saisonalisierung!E48,0) -> 0 | J48: =IF(Basisdaten!$E$50<=6,Basisdaten!$F$50*Saisonalisierung!F48,0) -> 0 | K48: =IF(Basisdaten!$E$50<=7,Basisdaten!$F$50*Saisonalisierung!G48,0) -> 0 | L48: =IF(Basisdaten!$E$50<=8,Basisdaten!$F$50*Saisonalisierung!H48,0) -> 0 | M48: =IF(Basisdaten!$E$50<=9,Basisdaten!$F$50*Saisonalisierung!I48,0) -> 0 | N48: =IF(Basisdaten!$E$50<=10,Basisdaten!$F$50*Saisonalisierung!J48,0) -> 0 | O48: =IF(Basisdaten!$E$50<=11,Basisdaten!$F$50*Saisonalisierung!K48,0) -> 0 | P48: =IF(Basisdaten!$E$50<=12,Basisdaten!$F$50*Saisonalisierung!L48,0) -> 0
A49: 1 | B49: =Basisdaten!B51 -> 55 | C49: =Basisdaten!A51 -> Matthias Mirga_GZ | D49: =Basisdaten!U51 -> 2022 | E49: =IF(Basisdaten!$E$51=1,Basisdaten!$F$51*Saisonalisierung!A49,0) -> 44787.204 | F49: =IF(Basisdaten!$E$51<=2,Basisdaten!$F$51*Saisonalisierung!B49,0) -> 45677.016 | G49: =IF(Basisdaten!$E$51<=3,Basisdaten!$F$51*Saisonalisierung!C49,0) -> 52795.512 | H49: =IF(Basisdaten!$E$51<=4,Basisdaten!$F$51*Saisonalisierung!D49,0) -> 49829.472 | I49: =IF(Basisdaten!$E$51<=5,Basisdaten!$F$51*Saisonalisierung!E49,0) -> 47753.244 | J49: =IF(Basisdaten!$E$51<=6,Basisdaten!$F$51*Saisonalisierung!F49,0) -> 49532.868 | K49: =IF(Basisdaten!$E$51<=7,Basisdaten!$F$51*Saisonalisierung!G49,0) -> 50719.284 | L49: =IF(Basisdaten!$E$51<=8,Basisdaten!$F$51*Saisonalisierung!H49,0) -> 49829.472 | M49: =IF(Basisdaten!$E$51<=9,Basisdaten!$F$51*Saisonalisierung!I49,0) -> 50422.68 | N49: =IF(Basisdaten!$E$51<=10,Basisdaten!$F$51*Saisonalisierung!J49,0) -> 48939.66 | O49: =IF(Basisdaten!$E$51<=11,Basisdaten!$F$51*Saisonalisierung!K49,0) -> 50422.68 | P49: =IF(Basisdaten!$E$51<=12,Basisdaten!$F$51*Saisonalisierung!L49,0) -> 52498.908
A50: 2 | B50: =Basisdaten!B52 -> 60 | C50: =Basisdaten!A52 -> Hakan Celik | D50: =Basisdaten!U52 -> 2022 | E50: =IF(Basisdaten!$E$52=1,Basisdaten!$F$52*Saisonalisierung!A50,0) -> 44787.204 | F50: =IF(Basisdaten!$E$52<=2,Basisdaten!$F$52*Saisonalisierung!B50,0) -> 45677.016 | G50: =IF(Basisdaten!$E$52<=3,Basisdaten!$F$52*Saisonalisierung!C50,0) -> 52795.512 | H50: =IF(Basisdaten!$E$52<=4,Basisdaten!$F$52*Saisonalisierung!D50,0) -> 49829.472 | I50: =IF(Basisdaten!$E$52<=5,Basisdaten!$F$52*Saisonalisierung!E50,0) -> 47753.244 | J50: =IF(Basisdaten!$E$52<=6,Basisdaten!$F$52*Saisonalisierung!F50,0) -> 49532.868 | K50: =IF(Basisdaten!$E$52<=7,Basisdaten!$F$52*Saisonalisierung!G50,0) -> 50719.284 | L50: =IF(Basisdaten!$E$52<=8,Basisdaten!$F$52*Saisonalisierung!H50,0) -> 49829.472 | M50: =IF(Basisdaten!$E$52<=9,Basisdaten!$F$52*Saisonalisierung!I50,0) -> 50422.68 | N50: =IF(Basisdaten!$E$52<=10,Basisdaten!$F$52*Saisonalisierung!J50,0) -> 48939.66 | O50: =IF(Basisdaten!$E$52<=11,Basisdaten!$F$52*Saisonalisierung!K50,0) -> 50422.68 | P50: =IF(Basisdaten!$E$52<=12,Basisdaten!$F$52*Saisonalisierung!L50,0) -> 52498.908
A51: 1 | B51: =Basisdaten!B53 -> 40 | C51: =Basisdaten!A53 -> Tom Sprongl | D51: =Basisdaten!U53 -> 2022 | E51: =IF(Basisdaten!$E$53=1,Basisdaten!$F$53*Saisonalisierung!A51,0) -> 44787.204 | F51: =IF(Basisdaten!$E$53<=2,Basisdaten!$F$53*Saisonalisierung!B51,0) -> 45677.016 | G51: =IF(Basisdaten!$E$53<=3,Basisdaten!$F$53*Saisonalisierung!C51,0) -> 52795.512 | H51: =IF(Basisdaten!$E$53<=4,Basisdaten!$F$53*Saisonalisierung!D51,0) -> 49829.472 | I51: =IF(Basisdaten!$E$53<=5,Basisdaten!$F$53*Saisonalisierung!E51,0) -> 47753.244 | J51: =IF(Basisdaten!$E$53<=6,Basisdaten!$F$53*Saisonalisierung!F51,0) -> 49532.868 | K51: =IF(Basisdaten!$E$53<=7,Basisdaten!$F$53*Saisonalisierung!G51,0) -> 50719.284 | L51: =IF(Basisdaten!$E$53<=8,Basisdaten!$F$53*Saisonalisierung!H51,0) -> 49829.472 | M51: =IF(Basisdaten!$E$53<=9,Basisdaten!$F$53*Saisonalisierung!I51,0) -> 50422.68 | N51: =IF(Basisdaten!$E$53<=10,Basisdaten!$F$53*Saisonalisierung!J51,0) -> 48939.66 | O51: =IF(Basisdaten!$E$53<=11,Basisdaten!$F$53*Saisonalisierung!K51,0) -> 50422.68 | P51: =IF(Basisdaten!$E$53<=12,Basisdaten!$F$53*Saisonalisierung!L51,0) -> 52498.908
B52: =Basisdaten!B54 -> 0 | C52: =Basisdaten!A54 -> SB 5 | D52: =Basisdaten!U54 -> 0 | E52: =IF(Basisdaten!$E$54=1,Basisdaten!$F$54*Saisonalisierung!A52,0) -> 0 | F52: =IF(Basisdaten!$E$54<=2,Basisdaten!$F$54*Saisonalisierung!B52,0) -> 0 | G52: =IF(Basisdaten!$E$54<=3,Basisdaten!$F$54*Saisonalisierung!C52,0) -> 0 | H52: =IF(Basisdaten!$E$54<=4,Basisdaten!$F$54*Saisonalisierung!D52,0) -> 0 | I52: =IF(Basisdaten!$E$54<=5,Basisdaten!$F$54*Saisonalisierung!E52,0) -> 0 | J52: =IF(Basisdaten!$E$54<=6,Basisdaten!$F$54*Saisonalisierung!F52,0) -> 0 | K52: =IF(Basisdaten!$E$54<=7,Basisdaten!$F$54*Saisonalisierung!G52,0) -> 0 | L52: =IF(Basisdaten!$E$54<=8,Basisdaten!$F$54*Saisonalisierung!H52,0) -> 0 | M52: =IF(Basisdaten!$E$54<=9,Basisdaten!$F$54*Saisonalisierung!I52,0) -> 0 | N52: =IF(Basisdaten!$E$54<=10,Basisdaten!$F$54*Saisonalisierung!J52,0) -> 0 | O52: =IF(Basisdaten!$E$54<=11,Basisdaten!$F$54*Saisonalisierung!K52,0) -> 0 | P52: =IF(Basisdaten!$E$54<=12,Basisdaten!$F$54*Saisonalisierung!L52,0) -> 0
B53: =Basisdaten!B55 -> 0 | C53: =Basisdaten!A55 -> SB 6 | D53: =Basisdaten!U55 -> 0 | E53: =IF(Basisdaten!$E$55=1,Basisdaten!$F$55*Saisonalisierung!A53,0) -> 0 | F53: =IF(Basisdaten!$E$55<=2,Basisdaten!$F$55*Saisonalisierung!B53,0) -> 0 | G53: =IF(Basisdaten!$E$55<=3,Basisdaten!$F$55*Saisonalisierung!C53,0) -> 0 | H53: =IF(Basisdaten!$E$55<=4,Basisdaten!$F$55*Saisonalisierung!D53,0) -> 0 | I53: =IF(Basisdaten!$E$55<=5,Basisdaten!$F$55*Saisonalisierung!E53,0) -> 0 | J53: =IF(Basisdaten!$E$55<=6,Basisdaten!$F$55*Saisonalisierung!F53,0) -> 0 | K53: =IF(Basisdaten!$E$55<=7,Basisdaten!$F$55*Saisonalisierung!G53,0) -> 0 | L53: =IF(Basisdaten!$E$55<=8,Basisdaten!$F$55*Saisonalisierung!H53,0) -> 0 | M53: =IF(Basisdaten!$E$55<=9,Basisdaten!$F$55*Saisonalisierung!I53,0) -> 0 | N53: =IF(Basisdaten!$E$55<=10,Basisdaten!$F$55*Saisonalisierung!J53,0) -> 0 | O53: =IF(Basisdaten!$E$55<=11,Basisdaten!$F$55*Saisonalisierung!K53,0) -> 0 | P53: =IF(Basisdaten!$E$55<=12,Basisdaten!$F$55*Saisonalisierung!L53,0) -> 0
B54: =Basisdaten!B56 -> 0 | C54: =Basisdaten!A56 -> SB 7 | D54: =Basisdaten!U56 -> 0 | E54: =IF(Basisdaten!$E$56=1,Basisdaten!$F$56*Saisonalisierung!A54,0) -> 0 | F54: =IF(Basisdaten!$E$56<=2,Basisdaten!$F$56*Saisonalisierung!B54,0) -> 0 | G54: =IF(Basisdaten!$E$56<=3,Basisdaten!$F$56*Saisonalisierung!C54,0) -> 0 | H54: =IF(Basisdaten!$E$56<=4,Basisdaten!$F$56*Saisonalisierung!D54,0) -> 0 | I54: =IF(Basisdaten!$E$56<=5,Basisdaten!$F$56*Saisonalisierung!E54,0) -> 0 | J54: =IF(Basisdaten!$E$56<=6,Basisdaten!$F$56*Saisonalisierung!F54,0) -> 0 | K54: =IF(Basisdaten!$E$56<=7,Basisdaten!$F$56*Saisonalisierung!G54,0) -> 0 | L54: =IF(Basisdaten!$E$56<=8,Basisdaten!$F$56*Saisonalisierung!H54,0) -> 0 | M54: =IF(Basisdaten!$E$56<=9,Basisdaten!$F$56*Saisonalisierung!I54,0) -> 0 | N54: =IF(Basisdaten!$E$56<=10,Basisdaten!$F$56*Saisonalisierung!J54,0) -> 0 | O54: =IF(Basisdaten!$E$56<=11,Basisdaten!$F$56*Saisonalisierung!K54,0) -> 0 | P54: =IF(Basisdaten!$E$56<=12,Basisdaten!$F$56*Saisonalisierung!L54,0) -> 0
B55: =Basisdaten!B57 -> 0 | C55: =Basisdaten!A57 -> SB 8 | D55: =Basisdaten!U57 -> 0 | E55: =IF(Basisdaten!$E$57=1,Basisdaten!$F$57*Saisonalisierung!A55,0) -> 0 | F55: =IF(Basisdaten!$E$57<=2,Basisdaten!$F$57*Saisonalisierung!B55,0) -> 0 | G55: =IF(Basisdaten!$E$57<=3,Basisdaten!$F$57*Saisonalisierung!C55,0) -> 0 | H55: =IF(Basisdaten!$E$57<=4,Basisdaten!$F$57*Saisonalisierung!D55,0) -> 0 | I55: =IF(Basisdaten!$E$57<=5,Basisdaten!$F$57*Saisonalisierung!E55,0) -> 0 | J55: =IF(Basisdaten!$E$57<=6,Basisdaten!$F$57*Saisonalisierung!F55,0) -> 0 | K55: =IF(Basisdaten!$E$57<=7,Basisdaten!$F$57*Saisonalisierung!G55,0) -> 0 | L55: =IF(Basisdaten!$E$57<=8,Basisdaten!$F$57*Saisonalisierung!H55,0) -> 0 | M55: =IF(Basisdaten!$E$57<=9,Basisdaten!$F$57*Saisonalisierung!I55,0) -> 0 | N55: =IF(Basisdaten!$E$57<=10,Basisdaten!$F$57*Saisonalisierung!J55,0) -> 0 | O55: =IF(Basisdaten!$E$57<=11,Basisdaten!$F$57*Saisonalisierung!K55,0) -> 0 | P55: =IF(Basisdaten!$E$57<=12,Basisdaten!$F$57*Saisonalisierung!L55,0) -> 0
B56: =Basisdaten!B58 -> 0 | C56: =Basisdaten!A58 -> SB 9 | D56: =Basisdaten!U58 -> 0 | E56: =IF(Basisdaten!$E$58=1,Basisdaten!$F$58*Saisonalisierung!A56,0) -> 0 | F56: =IF(Basisdaten!$E$58<=2,Basisdaten!$F$58*Saisonalisierung!B56,0) -> 0 | G56: =IF(Basisdaten!$E$58<=3,Basisdaten!$F$58*Saisonalisierung!C56,0) -> 0 | H56: =IF(Basisdaten!$E$58<=4,Basisdaten!$F$58*Saisonalisierung!D56,0) -> 0 | I56: =IF(Basisdaten!$E$58<=5,Basisdaten!$F$58*Saisonalisierung!E56,0) -> 0 | J56: =IF(Basisdaten!$E$58<=6,Basisdaten!$F$58*Saisonalisierung!F56,0) -> 0 | K56: =IF(Basisdaten!$E$58<=7,Basisdaten!$F$58*Saisonalisierung!G56,0) -> 0 | L56: =IF(Basisdaten!$E$58<=8,Basisdaten!$F$58*Saisonalisierung!H56,0) -> 0 | M56: =IF(Basisdaten!$E$58<=9,Basisdaten!$F$58*Saisonalisierung!I56,0) -> 0 | N56: =IF(Basisdaten!$E$58<=10,Basisdaten!$F$58*Saisonalisierung!J56,0) -> 0 | O56: =IF(Basisdaten!$E$58<=11,Basisdaten!$F$58*Saisonalisierung!K56,0) -> 0 | P56: =IF(Basisdaten!$E$58<=12,Basisdaten!$F$58*Saisonalisierung!L56,0) -> 0
B57: =Basisdaten!B59 -> 0 | C57: =Basisdaten!A59 -> SB 10 | D57: =Basisdaten!U59 -> 0 | E57: =IF(Basisdaten!$E$59=1,Basisdaten!$F$59*Saisonalisierung!A57,0) -> 0 | F57: =IF(Basisdaten!$E$59<=2,Basisdaten!$F$59*Saisonalisierung!B57,0) -> 0 | G57: =IF(Basisdaten!$E$59<=3,Basisdaten!$F$59*Saisonalisierung!C57,0) -> 0 | H57: =IF(Basisdaten!$E$59<=4,Basisdaten!$F$59*Saisonalisierung!D57,0) -> 0 | I57: =IF(Basisdaten!$E$59<=5,Basisdaten!$F$59*Saisonalisierung!E57,0) -> 0 | J57: =IF(Basisdaten!$E$59<=6,Basisdaten!$F$59*Saisonalisierung!F57,0) -> 0 | K57: =IF(Basisdaten!$E$59<=7,Basisdaten!$F$59*Saisonalisierung!G57,0) -> 0 | L57: =IF(Basisdaten!$E$59<=8,Basisdaten!$F$59*Saisonalisierung!H57,0) -> 0 | M57: =IF(Basisdaten!$E$59<=9,Basisdaten!$F$59*Saisonalisierung!I57,0) -> 0 | N57: =IF(Basisdaten!$E$59<=10,Basisdaten!$F$59*Saisonalisierung!J57,0) -> 0 | O57: =IF(Basisdaten!$E$59<=11,Basisdaten!$F$59*Saisonalisierung!K57,0) -> 0 | P57: =IF(Basisdaten!$E$59<=12,Basisdaten!$F$59*Saisonalisierung!L57,0) -> 0

Sheet Verarb_Ums_Teile
A1: Hauptbetrieb | B1: Standort | C1: Serviceberater | D1: Invoice Date | E1: Ums_Teile_Plan_1 | F1: Ums_Teile_Plan_2 | G1: Ums_Teile_Plan_3 | H1: Ums_Teile_Plan_4 | I1: Ums_Teile_Plan_5 | J1: Ums_Teile_Plan_6 | K1: Ums_Teile_Plan_7 | L1: Ums_Teile_Plan_8 | M1: Ums_Teile_Plan_9 | N1: Ums_Teile_Plan_10 | O1: Ums_Teile_Plan_11 | P1: Ums_Teile_Plan_12
A2: 1 | B2: =Basisdaten!B4 -> 10 | C2: =Basisdaten!A4 -> Erich Harzenetter - SCBK | D2: =Basisdaten!U4 -> 2022 | E2: =IF(Basisdaten!$E$4=1,Basisdaten!$G$4*Saisonalisierung!A2,0) -> 52429.465 | F2: =IF(Basisdaten!$E$4<=2,Basisdaten!$G$4*Saisonalisierung!B2,0) -> 53471.11 | G2: =IF(Basisdaten!$E$4<=3,Basisdaten!$G$4*Saisonalisierung!C2,0) -> 61804.27 | H2: =IF(Basisdaten!$E$4<=4,Basisdaten!$G$4*Saisonalisierung!D2,0) -> 58332.12 | I2: =IF(Basisdaten!$E$4<=5,Basisdaten!$G$4*Saisonalisierung!E2,0) -> 55901.615 | J2: =IF(Basisdaten!$E$4<=6,Basisdaten!$G$4*Saisonalisierung!F2,0) -> 57984.905 | K2: =IF(Basisdaten!$E$4<=7,Basisdaten!$G$4*Saisonalisierung!G2,0) -> 59373.765 | L2: =IF(Basisdaten!$E$4<=8,Basisdaten!$G$4*Saisonalisierung!H2,0) -> 58332.12 | M2: =IF(Basisdaten!$E$4<=9,Basisdaten!$G$4*Saisonalisierung!I2,0) -> 59026.55 | N2: =IF(Basisdaten!$E$4<=10,Basisdaten!$G$4*Saisonalisierung!J2,0) -> 57290.475 | O2: =IF(Basisdaten!$E$4<=11,Basisdaten!$G$4*Saisonalisierung!K2,0) -> 59026.55 | P2: =IF(Basisdaten!$E$4<=12,Basisdaten!$G$4*Saisonalisierung!L2,0) -> 61457.055
A3: 1 | B3: =Basisdaten!B5 -> 10 | C3: =Basisdaten!A5 -> Johannes Grieser - SCBI | D3: =Basisdaten!U5 -> 2022 | E3: =IF(Basisdaten!$E$5=1,Basisdaten!$G$5*Saisonalisierung!A3,0) -> 52429.465 | F3: =IF(Basisdaten!$E$5<=2,Basisdaten!$G$5*Saisonalisierung!B3,0) -> 53471.11 | G3: =IF(Basisdaten!$E$5<=3,Basisdaten!$G$5*Saisonalisierung!C3,0) -> 61804.27 | H3: =IF(Basisdaten!$E$5<=4,Basisdaten!$G$5*Saisonalisierung!D3,0) -> 58332.12 | I3: =IF(Basisdaten!$E$5<=5,Basisdaten!$G$5*Saisonalisierung!E3,0) -> 55901.615 | J3: =IF(Basisdaten!$E$5<=6,Basisdaten!$G$5*Saisonalisierung!F3,0) -> 57984.905 | K3: =IF(Basisdaten!$E$5<=7,Basisdaten!$G$5*Saisonalisierung!G3,0) -> 59373.765 | L3: =IF(Basisdaten!$E$5<=8,Basisdaten!$G$5*Saisonalisierung!H3,0) -> 58332.12 | M3: =IF(Basisdaten!$E$5<=9,Basisdaten!$G$5*Saisonalisierung!I3,0) -> 59026.55 | N3: =IF(Basisdaten!$E$5<=10,Basisdaten!$G$5*Saisonalisierung!J3,0) -> 57290.475 | O3: =IF(Basisdaten!$E$5<=11,Basisdaten!$G$5*Saisonalisierung!K3,0) -> 59026.55 | P3: =IF(Basisdaten!$E$5<=12,Basisdaten!$G$5*Saisonalisierung!L3,0) -> 61457.055
A4: 1 | B4: =Basisdaten!B6 -> 10 | C4: =Basisdaten!A6 -> Mike Weber | D4: =Basisdaten!U6 -> 2022 | E4: =IF(Basisdaten!$E$6=1,Basisdaten!$G$6*Saisonalisierung!A4,0) -> 52429.465 | F4: =IF(Basisdaten!$E$6<=2,Basisdaten!$G$6*Saisonalisierung!B4,0) -> 53471.11 | G4: =IF(Basisdaten!$E$6<=3,Basisdaten!$G$6*Saisonalisierung!C4,0) -> 61804.27 | H4: =IF(Basisdaten!$E$6<=4,Basisdaten!$G$6*Saisonalisierung!D4,0) -> 58332.12 | I4: =IF(Basisdaten!$E$6<=5,Basisdaten!$G$6*Saisonalisierung!E4,0) -> 55901.615 | J4: =IF(Basisdaten!$E$6<=6,Basisdaten!$G$6*Saisonalisierung!F4,0) -> 57984.905 | K4: =IF(Basisdaten!$E$6<=7,Basisdaten!$G$6*Saisonalisierung!G4,0) -> 59373.765 | L4: =IF(Basisdaten!$E$6<=8,Basisdaten!$G$6*Saisonalisierung!H4,0) -> 58332.12 | M4: =IF(Basisdaten!$E$6<=9,Basisdaten!$G$6*Saisonalisierung!I4,0) -> 59026.55 | N4: =IF(Basisdaten!$E$6<=10,Basisdaten!$G$6*Saisonalisierung!J4,0) -> 57290.475 | O4: =IF(Basisdaten!$E$6<=11,Basisdaten!$G$6*Saisonalisierung!K4,0) -> 59026.55 | P4: =IF(Basisdaten!$E$6<=12,Basisdaten!$G$6*Saisonalisierung!L4,0) -> 61457.055
A5: 1 | B5: =Basisdaten!B7 -> 10 | C5: =Basisdaten!A7 -> Rudolf Maier | D5: =Basisdaten!U7 -> 2022 | E5: =IF(Basisdaten!$E$7=1,Basisdaten!$G$7*Saisonalisierung!A5,0) -> 52429.465 | F5: =IF(Basisdaten!$E$7<=2,Basisdaten!$G$7*Saisonalisierung!B5,0) -> 53471.11 | G5: =IF(Basisdaten!$E$7<=3,Basisdaten!$G$7*Saisonalisierung!C5,0) -> 61804.27 | H5: =IF(Basisdaten!$E$7<=4,Basisdaten!$G$7*Saisonalisierung!D5,0) -> 58332.12 | I5: =IF(Basisdaten!$E$7<=5,Basisdaten!$G$7*Saisonalisierung!E5,0) -> 55901.615 | J5: =IF(Basisdaten!$E$7<=6,Basisdaten!$G$7*Saisonalisierung!F5,0) -> 57984.905 | K5: =IF(Basisdaten!$E$7<=7,Basisdaten!$G$7*Saisonalisierung!G5,0) -> 59373.765 | L5: =IF(Basisdaten!$E$7<=8,Basisdaten!$G$7*Saisonalisierung!H5,0) -> 58332.12 | M5: =IF(Basisdaten!$E$7<=9,Basisdaten!$G$7*Saisonalisierung!I5,0) -> 59026.55 | N5: =IF(Basisdaten!$E$7<=10,Basisdaten!$G$7*Saisonalisierung!J5,0) -> 57290.475 | O5: =IF(Basisdaten!$E$7<=11,Basisdaten!$G$7*Saisonalisierung!K5,0) -> 59026.55 | P5: =IF(Basisdaten!$E$7<=12,Basisdaten!$G$7*Saisonalisierung!L5,0) -> 61457.055
A6: 1 | B6: =Basisdaten!B8 -> 10 | C6: =Basisdaten!A8 -> Hermann Haller_ | D6: =Basisdaten!U8 -> 2022 | E6: =IF(Basisdaten!$E$8=1,Basisdaten!$G$8*Saisonalisierung!A6,0) -> 0 | F6: =IF(Basisdaten!$E$8<=2,Basisdaten!$G$8*Saisonalisierung!B6,0) -> 0 | G6: =IF(Basisdaten!$E$8<=3,Basisdaten!$G$8*Saisonalisierung!C6,0) -> 0 | H6: =IF(Basisdaten!$E$8<=4,Basisdaten!$G$8*Saisonalisierung!D6,0) -> 0 | I6: =IF(Basisdaten!$E$8<=5,Basisdaten!$G$8*Saisonalisierung!E6,0) -> 0 | J6: =IF(Basisdaten!$E$8<=6,Basisdaten!$G$8*Saisonalisierung!F6,0) -> 0 | K6: =IF(Basisdaten!$E$8<=7,Basisdaten!$G$8*Saisonalisierung!G6,0) -> 0 | L6: =IF(Basisdaten!$E$8<=8,Basisdaten!$G$8*Saisonalisierung!H6,0) -> 0 | M6: =IF(Basisdaten!$E$8<=9,Basisdaten!$G$8*Saisonalisierung!I6,0) -> 0 | N6: =IF(Basisdaten!$E$8<=10,Basisdaten!$G$8*Saisonalisierung!J6,0) -> 0 | O6: =IF(Basisdaten!$E$8<=11,Basisdaten!$G$8*Saisonalisierung!K6,0) -> 0 | P6: =IF(Basisdaten!$E$8<=12,Basisdaten!$G$8*Saisonalisierung!L6,0) -> 0
A7: 1 | B7: =Basisdaten!B9 -> 10 | C7: =Basisdaten!A9 -> Christopher Kirmayer | D7: =Basisdaten!U9 -> 2022 | E7: =IF(Basisdaten!$E$9=1,Basisdaten!$G$9*Saisonalisierung!A7,0) -> 52429.465 | F7: =IF(Basisdaten!$E$9<=2,Basisdaten!$G$9*Saisonalisierung!B7,0) -> 53471.11 | G7: =IF(Basisdaten!$E$9<=3,Basisdaten!$G$9*Saisonalisierung!C7,0) -> 61804.27 | H7: =IF(Basisdaten!$E$9<=4,Basisdaten!$G$9*Saisonalisierung!D7,0) -> 58332.12 | I7: =IF(Basisdaten!$E$9<=5,Basisdaten!$G$9*Saisonalisierung!E7,0) -> 55901.615 | J7: =IF(Basisdaten!$E$9<=6,Basisdaten!$G$9*Saisonalisierung!F7,0) -> 57984.905 | K7: =IF(Basisdaten!$E$9<=7,Basisdaten!$G$9*Saisonalisierung!G7,0) -> 59373.765 | L7: =IF(Basisdaten!$E$9<=8,Basisdaten!$G$9*Saisonalisierung!H7,0) -> 58332.12 | M7: =IF(Basisdaten!$E$9<=9,Basisdaten!$G$9*Saisonalisierung!I7,0) -> 59026.55 | N7: =IF(Basisdaten!$E$9<=10,Basisdaten!$G$9*Saisonalisierung!J7,0) -> 57290.475 | O7: =IF(Basisdaten!$E$9<=11,Basisdaten!$G$9*Saisonalisierung!K7,0) -> 59026.55 | P7: =IF(Basisdaten!$E$9<=12,Basisdaten!$G$9*Saisonalisierung!L7,0) -> 61457.055
A8: 1 | B8: =Basisdaten!B10 -> 10 | C8: =Basisdaten!A10 -> Jörg Reifenrath | D8: =Basisdaten!U10 -> 2022 | E8: =IF(Basisdaten!$E$10=1,Basisdaten!$G$10*Saisonalisierung!A8,0) -> 52429.465 | F8: =IF(Basisdaten!$E$10<=2,Basisdaten!$G$10*Saisonalisierung!B8,0) -> 53471.11 | G8: =IF(Basisdaten!$E$10<=3,Basisdaten!$G$10*Saisonalisierung!C8,0) -> 61804.27 | H8: =IF(Basisdaten!$E$10<=4,Basisdaten!$G$10*Saisonalisierung!D8,0) -> 58332.12 | I8: =IF(Basisdaten!$E$10<=5,Basisdaten!$G$10*Saisonalisierung!E8,0) -> 55901.615 | J8: =IF(Basisdaten!$E$10<=6,Basisdaten!$G$10*Saisonalisierung!F8,0) -> 57984.905 | K8: =IF(Basisdaten!$E$10<=7,Basisdaten!$G$10*Saisonalisierung!G8,0) -> 59373.765 | L8: =IF(Basisdaten!$E$10<=8,Basisdaten!$G$10*Saisonalisierung!H8,0) -> 58332.12 | M8: =IF(Basisdaten!$E$10<=9,Basisdaten!$G$10*Saisonalisierung!I8,0) -> 59026.55 | N8: =IF(Basisdaten!$E$10<=10,Basisdaten!$G$10*Saisonalisierung!J8,0) -> 57290.475 | O8: =IF(Basisdaten!$E$10<=11,Basisdaten!$G$10*Saisonalisierung!K8,0) -> 59026.55 | P8: =IF(Basisdaten!$E$10<=12,Basisdaten!$G$10*Saisonalisierung!L8,0) -> 61457.055
A9: 1 | B9: =Basisdaten!B11 -> 10 | C9: =Basisdaten!A11 -> Günter Küblbeck - SCBI_ | D9: =Basisdaten!U11 -> 2022 | E9: =IF(Basisdaten!$E$11=1,Basisdaten!$G$11*Saisonalisierung!A9,0) -> 0 | F9: =IF(Basisdaten!$E$11<=2,Basisdaten!$G$11*Saisonalisierung!B9,0) -> 0 | G9: =IF(Basisdaten!$E$11<=3,Basisdaten!$G$11*Saisonalisierung!C9,0) -> 0 | H9: =IF(Basisdaten!$E$11<=4,Basisdaten!$G$11*Saisonalisierung!D9,0) -> 0 | I9: =IF(Basisdaten!$E$11<=5,Basisdaten!$G$11*Saisonalisierung!E9,0) -> 0 | J9: =IF(Basisdaten!$E$11<=6,Basisdaten!$G$11*Saisonalisierung!F9,0) -> 0 | K9: =IF(Basisdaten!$E$11<=7,Basisdaten!$G$11*Saisonalisierung!G9,0) -> 0 | L9: =IF(Basisdaten!$E$11<=8,Basisdaten!$G$11*Saisonalisierung!H9,0) -> 0 | M9: =IF(Basisdaten!$E$11<=9,Basisdaten!$G$11*Saisonalisierung!I9,0) -> 0 | N9: =IF(Basisdaten!$E$11<=10,Basisdaten!$G$11*Saisonalisierung!J9,0) -> 0 | O9: =IF(Basisdaten!$E$11<=11,Basisdaten!$G$11*Saisonalisierung!K9,0) -> 0 | P9: =IF(Basisdaten!$E$11<=12,Basisdaten!$G$11*Saisonalisierung!L9,0) -> 0
A10: 1 | B10: =Basisdaten!B12 -> 10 | C10: =Basisdaten!A12 -> Patrick Kresser | D10: =Basisdaten!U12 -> 2022 | E10: =IF(Basisdaten!$E$12=1,Basisdaten!$G$12*Saisonalisierung!A10,0) -> 52429.465 | F10: =IF(Basisdaten!$E$12<=2,Basisdaten!$G$12*Saisonalisierung!B10,0) -> 53471.11 | G10: =IF(Basisdaten!$E$12<=3,Basisdaten!$G$12*Saisonalisierung!C10,0) -> 61804.27 | H10: =IF(Basisdaten!$E$12<=4,Basisdaten!$G$12*Saisonalisierung!D10,0) -> 58332.12 | I10: =IF(Basisdaten!$E$12<=5,Basisdaten!$G$12*Saisonalisierung!E10,0) -> 55901.615 | J10: =IF(Basisdaten!$E$12<=6,Basisdaten!$G$12*Saisonalisierung!F10,0) -> 57984.905 | K10: =IF(Basisdaten!$E$12<=7,Basisdaten!$G$12*Saisonalisierung!G10,0) -> 59373.765 | L10: =IF(Basisdaten!$E$12<=8,Basisdaten!$G$12*Saisonalisierung!H10,0) -> 58332.12 | M10: =IF(Basisdaten!$E$12<=9,Basisdaten!$G$12*Saisonalisierung!I10,0) -> 59026.55 | N10: =IF(Basisdaten!$E$12<=10,Basisdaten!$G$12*Saisonalisierung!J10,0) -> 57290.475 | O10: =IF(Basisdaten!$E$12<=11,Basisdaten!$G$12*Saisonalisierung!K10,0) -> 59026.55 | P10: =IF(Basisdaten!$E$12<=12,Basisdaten!$G$12*Saisonalisierung!L10,0) -> 61457.055
A11: 1 | B11: =Basisdaten!B13 -> 30 | C11: =Basisdaten!A13 -> Ralf Ruchti | D11: =Basisdaten!U13 -> 2022 | E11: =IF(Basisdaten!$E$13=1,Basisdaten!$G$13*Saisonalisierung!A11,0) -> 36700.6255 | F11: =IF(Basisdaten!$E$13<=2,Basisdaten!$G$13*Saisonalisierung!B11,0) -> 37429.777 | G11: =IF(Basisdaten!$E$13<=3,Basisdaten!$G$13*Saisonalisierung!C11,0) -> 43262.989 | H11: =IF(Basisdaten!$E$13<=4,Basisdaten!$G$13*Saisonalisierung!D11,0) -> 40832.484 | I11: =IF(Basisdaten!$E$13<=5,Basisdaten!$G$13*Saisonalisierung!E11,0) -> 39131.1305 | J11: =IF(Basisdaten!$E$13<=6,Basisdaten!$G$13*Saisonalisierung!F11,0) -> 40589.4335 | K11: =IF(Basisdaten!$E$13<=7,Basisdaten!$G$13*Saisonalisierung!G11,0) -> 41561.6355 | L11: =IF(Basisdaten!$E$13<=8,Basisdaten!$G$13*Saisonalisierung!H11,0) -> 40832.484 | M11: =IF(Basisdaten!$E$13<=9,Basisdaten!$G$13*Saisonalisierung!I11,0) -> 41318.585 | N11: =IF(Basisdaten!$E$13<=10,Basisdaten!$G$13*Saisonalisierung!J11,0) -> 40103.3325 | O11: =IF(Basisdaten!$E$13<=11,Basisdaten!$G$13*Saisonalisierung!K11,0) -> 41318.585 | P11: =IF(Basisdaten!$E$13<=12,Basisdaten!$G$13*Saisonalisierung!L11,0) -> 43019.9385
A12: 1 | B12: =Basisdaten!B14 -> 30 | C12: =Basisdaten!A14 -> Matthias Mirga | D12: =Basisdaten!U14 -> 2022 | E12: =IF(Basisdaten!$E$14=1,Basisdaten!$G$14*Saisonalisierung!A12,0) -> 52429.465 | F12: =IF(Basisdaten!$E$14<=2,Basisdaten!$G$14*Saisonalisierung!B12,0) -> 53471.11 | G12: =IF(Basisdaten!$E$14<=3,Basisdaten!$G$14*Saisonalisierung!C12,0) -> 61804.27 | H12: =IF(Basisdaten!$E$14<=4,Basisdaten!$G$14*Saisonalisierung!D12,0) -> 58332.12 | I12: =IF(Basisdaten!$E$14<=5,Basisdaten!$G$14*Saisonalisierung!E12,0) -> 55901.615 | J12: =IF(Basisdaten!$E$14<=6,Basisdaten!$G$14*Saisonalisierung!F12,0) -> 57984.905 | K12: =IF(Basisdaten!$E$14<=7,Basisdaten!$G$14*Saisonalisierung!G12,0) -> 59373.765 | L12: =IF(Basisdaten!$E$14<=8,Basisdaten!$G$14*Saisonalisierung!H12,0) -> 58332.12 | M12: =IF(Basisdaten!$E$14<=9,Basisdaten!$G$14*Saisonalisierung!I12,0) -> 59026.55 | N12: =IF(Basisdaten!$E$14<=10,Basisdaten!$G$14*Saisonalisierung!J12,0) -> 57290.475 | O12: =IF(Basisdaten!$E$14<=11,Basisdaten!$G$14*Saisonalisierung!K12,0) -> 59026.55 | P12: =IF(Basisdaten!$E$14<=12,Basisdaten!$G$14*Saisonalisierung!L12,0) -> 61457.055
A13: 1 | B13: =Basisdaten!B15 -> 40 | C13: =Basisdaten!A15 -> Wolfgang Heckelmiller - SCBK | D13: =Basisdaten!U15 -> 2022 | E13: =IF(Basisdaten!$E$15=1,Basisdaten!$G$15*Saisonalisierung!A13,0) -> 52429.465 | F13: =IF(Basisdaten!$E$15<=2,Basisdaten!$G$15*Saisonalisierung!B13,0) -> 53471.11 | G13: =IF(Basisdaten!$E$15<=3,Basisdaten!$G$15*Saisonalisierung!C13,0) -> 61804.27 | H13: =IF(Basisdaten!$E$15<=4,Basisdaten!$G$15*Saisonalisierung!D13,0) -> 58332.12 | I13: =IF(Basisdaten!$E$15<=5,Basisdaten!$G$15*Saisonalisierung!E13,0) -> 55901.615 | J13: =IF(Basisdaten!$E$15<=6,Basisdaten!$G$15*Saisonalisierung!F13,0) -> 57984.905 | K13: =IF(Basisdaten!$E$15<=7,Basisdaten!$G$15*Saisonalisierung!G13,0) -> 59373.765 | L13: =IF(Basisdaten!$E$15<=8,Basisdaten!$G$15*Saisonalisierung!H13,0) -> 58332.12 | M13: =IF(Basisdaten!$E$15<=9,Basisdaten!$G$15*Saisonalisierung!I13,0) -> 59026.55 | N13: =IF(Basisdaten!$E$15<=10,Basisdaten!$G$15*Saisonalisierung!J13,0) -> 57290.475 | O13: =IF(Basisdaten!$E$15<=11,Basisdaten!$G$15*Saisonalisierung!K13,0) -> 59026.55 | P13: =IF(Basisdaten!$E$15<=12,Basisdaten!$G$15*Saisonalisierung!L13,0) -> 61457.055
A14: 1 | B14: =Basisdaten!B16 -> 40 | C14: =Basisdaten!A16 -> Daniel Klingenstein | D14: =Basisdaten!U16 -> 2022 | E14: =IF(Basisdaten!$E$16=1,Basisdaten!$G$16*Saisonalisierung!A14,0) -> 52429.465 | F14: =IF(Basisdaten!$E$16<=2,Basisdaten!$G$16*Saisonalisierung!B14,0) -> 53471.11 | G14: =IF(Basisdaten!$E$16<=3,Basisdaten!$G$16*Saisonalisierung!C14,0) -> 61804.27 | H14: =IF(Basisdaten!$E$16<=4,Basisdaten!$G$16*Saisonalisierung!D14,0) -> 58332.12 | I14: =IF(Basisdaten!$E$16<=5,Basisdaten!$G$16*Saisonalisierung!E14,0) -> 55901.615 | J14: =IF(Basisdaten!$E$16<=6,Basisdaten!$G$16*Saisonalisierung!F14,0) -> 57984.905 | K14: =IF(Basisdaten!$E$16<=7,Basisdaten!$G$16*Saisonalisierung!G14,0) -> 59373.765 | L14: =IF(Basisdaten!$E$16<=8,Basisdaten!$G$16*Saisonalisierung!H14,0) -> 58332.12 | M14: =IF(Basisdaten!$E$16<=9,Basisdaten!$G$16*Saisonalisierung!I14,0) -> 59026.55 | N14: =IF(Basisdaten!$E$16<=10,Basisdaten!$G$16*Saisonalisierung!J14,0) -> 57290.475 | O14: =IF(Basisdaten!$E$16<=11,Basisdaten!$G$16*Saisonalisierung!K14,0) -> 59026.55 | P14: =IF(Basisdaten!$E$16<=12,Basisdaten!$G$16*Saisonalisierung!L14,0) -> 61457.055
A15: 1 | B15: =Basisdaten!B17 -> 40 | C15: =Basisdaten!A17 -> Alnes Zenic | D15: =Basisdaten!U17 -> 2022 | E15: =IF(Basisdaten!$E$17=1,Basisdaten!$G$17*Saisonalisierung!A15,0) -> 52429.465 | F15: =IF(Basisdaten!$E$17<=2,Basisdaten!$G$17*Saisonalisierung!B15,0) -> 53471.11 | G15: =IF(Basisdaten!$E$17<=3,Basisdaten!$G$17*Saisonalisierung!C15,0) -> 61804.27 | H15: =IF(Basisdaten!$E$17<=4,Basisdaten!$G$17*Saisonalisierung!D15,0) -> 58332.12 | I15: =IF(Basisdaten!$E$17<=5,Basisdaten!$G$17*Saisonalisierung!E15,0) -> 55901.615 | J15: =IF(Basisdaten!$E$17<=6,Basisdaten!$G$17*Saisonalisierung!F15,0) -> 57984.905 | K15: =IF(Basisdaten!$E$17<=7,Basisdaten!$G$17*Saisonalisierung!G15,0) -> 59373.765 | L15: =IF(Basisdaten!$E$17<=8,Basisdaten!$G$17*Saisonalisierung!H15,0) -> 58332.12 | M15: =IF(Basisdaten!$E$17<=9,Basisdaten!$G$17*Saisonalisierung!I15,0) -> 59026.55 | N15: =IF(Basisdaten!$E$17<=10,Basisdaten!$G$17*Saisonalisierung!J15,0) -> 57290.475 | O15: =IF(Basisdaten!$E$17<=11,Basisdaten!$G$17*Saisonalisierung!K15,0) -> 59026.55 | P15: =IF(Basisdaten!$E$17<=12,Basisdaten!$G$17*Saisonalisierung!L15,0) -> 61457.055
A16: 1 | B16: =Basisdaten!B18 -> 40 | C16: =Basisdaten!A18 -> Mehmet Dikmen | D16: =Basisdaten!U18 -> 2022 | E16: =IF(Basisdaten!$E$18=1,Basisdaten!$G$18*Saisonalisierung!A16,0) -> 52429.465 | F16: =IF(Basisdaten!$E$18<=2,Basisdaten!$G$18*Saisonalisierung!B16,0) -> 53471.11 | G16: =IF(Basisdaten!$E$18<=3,Basisdaten!$G$18*Saisonalisierung!C16,0) -> 61804.27 | H16: =IF(Basisdaten!$E$18<=4,Basisdaten!$G$18*Saisonalisierung!D16,0) -> 58332.12 | I16: =IF(Basisdaten!$E$18<=5,Basisdaten!$G$18*Saisonalisierung!E16,0) -> 55901.615 | J16: =IF(Basisdaten!$E$18<=6,Basisdaten!$G$18*Saisonalisierung!F16,0) -> 57984.905 | K16: =IF(Basisdaten!$E$18<=7,Basisdaten!$G$18*Saisonalisierung!G16,0) -> 59373.765 | L16: =IF(Basisdaten!$E$18<=8,Basisdaten!$G$18*Saisonalisierung!H16,0) -> 58332.12 | M16: =IF(Basisdaten!$E$18<=9,Basisdaten!$G$18*Saisonalisierung!I16,0) -> 59026.55 | N16: =IF(Basisdaten!$E$18<=10,Basisdaten!$G$18*Saisonalisierung!J16,0) -> 57290.475 | O16: =IF(Basisdaten!$E$18<=11,Basisdaten!$G$18*Saisonalisierung!K16,0) -> 59026.55 | P16: =IF(Basisdaten!$E$18<=12,Basisdaten!$G$18*Saisonalisierung!L16,0) -> 61457.055
A17: 1 | B17: =Basisdaten!B19 -> 40 | C17: =Basisdaten!A19 -> Gerrit Heine | D17: =Basisdaten!U19 -> 2022 | E17: =IF(Basisdaten!$E$19=1,Basisdaten!$G$19*Saisonalisierung!A17,0) -> 52429.465 | F17: =IF(Basisdaten!$E$19<=2,Basisdaten!$G$19*Saisonalisierung!B17,0) -> 53471.11 | G17: =IF(Basisdaten!$E$19<=3,Basisdaten!$G$19*Saisonalisierung!C17,0) -> 61804.27 | H17: =IF(Basisdaten!$E$19<=4,Basisdaten!$G$19*Saisonalisierung!D17,0) -> 58332.12 | I17: =IF(Basisdaten!$E$19<=5,Basisdaten!$G$19*Saisonalisierung!E17,0) -> 55901.615 | J17: =IF(Basisdaten!$E$19<=6,Basisdaten!$G$19*Saisonalisierung!F17,0) -> 57984.905 | K17: =IF(Basisdaten!$E$19<=7,Basisdaten!$G$19*Saisonalisierung!G17,0) -> 59373.765 | L17: =IF(Basisdaten!$E$19<=8,Basisdaten!$G$19*Saisonalisierung!H17,0) -> 58332.12 | M17: =IF(Basisdaten!$E$19<=9,Basisdaten!$G$19*Saisonalisierung!I17,0) -> 59026.55 | N17: =IF(Basisdaten!$E$19<=10,Basisdaten!$G$19*Saisonalisierung!J17,0) -> 57290.475 | O17: =IF(Basisdaten!$E$19<=11,Basisdaten!$G$19*Saisonalisierung!K17,0) -> 59026.55 | P17: =IF(Basisdaten!$E$19<=12,Basisdaten!$G$19*Saisonalisierung!L17,0) -> 61457.055
A18: 1 | B18: =Basisdaten!B20 -> 40 | C18: =Basisdaten!A20 -> Lars Krausen | D18: =Basisdaten!U20 -> 2022 | E18: =IF(Basisdaten!$E$20=1,Basisdaten!$G$20*Saisonalisierung!A18,0) -> 52429.465 | F18: =IF(Basisdaten!$E$20<=2,Basisdaten!$G$20*Saisonalisierung!B18,0) -> 53471.11 | G18: =IF(Basisdaten!$E$20<=3,Basisdaten!$G$20*Saisonalisierung!C18,0) -> 61804.27 | H18: =IF(Basisdaten!$E$20<=4,Basisdaten!$G$20*Saisonalisierung!D18,0) -> 58332.12 | I18: =IF(Basisdaten!$E$20<=5,Basisdaten!$G$20*Saisonalisierung!E18,0) -> 55901.615 | J18: =IF(Basisdaten!$E$20<=6,Basisdaten!$G$20*Saisonalisierung!F18,0) -> 57984.905 | K18: =IF(Basisdaten!$E$20<=7,Basisdaten!$G$20*Saisonalisierung!G18,0) -> 59373.765 | L18: =IF(Basisdaten!$E$20<=8,Basisdaten!$G$20*Saisonalisierung!H18,0) -> 58332.12 | M18: =IF(Basisdaten!$E$20<=9,Basisdaten!$G$20*Saisonalisierung!I18,0) -> 59026.55 | N18: =IF(Basisdaten!$E$20<=10,Basisdaten!$G$20*Saisonalisierung!J18,0) -> 57290.475 | O18: =IF(Basisdaten!$E$20<=11,Basisdaten!$G$20*Saisonalisierung!K18,0) -> 59026.55 | P18: =IF(Basisdaten!$E$20<=12,Basisdaten!$G$20*Saisonalisierung!L18,0) -> 61457.055
A19: 1 | B19: =Basisdaten!B21 -> 40 | C19: =Basisdaten!A21 -> Hubert Figura - SCBI | D19: =Basisdaten!U21 -> 2022 | E19: =IF(Basisdaten!$E$21=1,Basisdaten!$G$21*Saisonalisierung!A19,0) -> 52429.465 | F19: =IF(Basisdaten!$E$21<=2,Basisdaten!$G$21*Saisonalisierung!B19,0) -> 53471.11 | G19: =IF(Basisdaten!$E$21<=3,Basisdaten!$G$21*Saisonalisierung!C19,0) -> 61804.27 | H19: =IF(Basisdaten!$E$21<=4,Basisdaten!$G$21*Saisonalisierung!D19,0) -> 58332.12 | I19: =IF(Basisdaten!$E$21<=5,Basisdaten!$G$21*Saisonalisierung!E19,0) -> 55901.615 | J19: =IF(Basisdaten!$E$21<=6,Basisdaten!$G$21*Saisonalisierung!F19,0) -> 57984.905 | K19: =IF(Basisdaten!$E$21<=7,Basisdaten!$G$21*Saisonalisierung!G19,0) -> 59373.765 | L19: =IF(Basisdaten!$E$21<=8,Basisdaten!$G$21*Saisonalisierung!H19,0) -> 58332.12 | M19: =IF(Basisdaten!$E$21<=9,Basisdaten!$G$21*Saisonalisierung!I19,0) -> 59026.55 | N19: =IF(Basisdaten!$E$21<=10,Basisdaten!$G$21*Saisonalisierung!J19,0) -> 57290.475 | O19: =IF(Basisdaten!$E$21<=11,Basisdaten!$G$21*Saisonalisierung!K19,0) -> 59026.55 | P19: =IF(Basisdaten!$E$21<=12,Basisdaten!$G$21*Saisonalisierung!L19,0) -> 61457.055
A20: 1 | B20: =Basisdaten!B22 -> 40 | C20: =Basisdaten!A22 -> Jan-Oliver Knaus | D20: =Basisdaten!U22 -> 2022 | E20: =IF(Basisdaten!$E$22=1,Basisdaten!$G$22*Saisonalisierung!A20,0) -> 52429.465 | F20: =IF(Basisdaten!$E$22<=2,Basisdaten!$G$22*Saisonalisierung!B20,0) -> 53471.11 | G20: =IF(Basisdaten!$E$22<=3,Basisdaten!$G$22*Saisonalisierung!C20,0) -> 61804.27 | H20: =IF(Basisdaten!$E$22<=4,Basisdaten!$G$22*Saisonalisierung!D20,0) -> 58332.12 | I20: =IF(Basisdaten!$E$22<=5,Basisdaten!$G$22*Saisonalisierung!E20,0) -> 55901.615 | J20: =IF(Basisdaten!$E$22<=6,Basisdaten!$G$22*Saisonalisierung!F20,0) -> 57984.905 | K20: =IF(Basisdaten!$E$22<=7,Basisdaten!$G$22*Saisonalisierung!G20,0) -> 59373.765 | L20: =IF(Basisdaten!$E$22<=8,Basisdaten!$G$22*Saisonalisierung!H20,0) -> 58332.12 | M20: =IF(Basisdaten!$E$22<=9,Basisdaten!$G$22*Saisonalisierung!I20,0) -> 59026.55 | N20: =IF(Basisdaten!$E$22<=10,Basisdaten!$G$22*Saisonalisierung!J20,0) -> 57290.475 | O20: =IF(Basisdaten!$E$22<=11,Basisdaten!$G$22*Saisonalisierung!K20,0) -> 59026.55 | P20: =IF(Basisdaten!$E$22<=12,Basisdaten!$G$22*Saisonalisierung!L20,0) -> 61457.055
A21: 1 | B21: =Basisdaten!B23 -> 40 | C21: =Basisdaten!A23 -> Hakan Celik_ULM | D21: =Basisdaten!U23 -> 2022 | E21: =IF(Basisdaten!$E$23=1,Basisdaten!$G$23*Saisonalisierung!A21,0) -> 0 | F21: =IF(Basisdaten!$E$23<=2,Basisdaten!$G$23*Saisonalisierung!B21,0) -> 0 | G21: =IF(Basisdaten!$E$23<=3,Basisdaten!$G$23*Saisonalisierung!C21,0) -> 0 | H21: =IF(Basisdaten!$E$23<=4,Basisdaten!$G$23*Saisonalisierung!D21,0) -> 0 | I21: =IF(Basisdaten!$E$23<=5,Basisdaten!$G$23*Saisonalisierung!E21,0) -> 0 | J21: =IF(Basisdaten!$E$23<=6,Basisdaten!$G$23*Saisonalisierung!F21,0) -> 0 | K21: =IF(Basisdaten!$E$23<=7,Basisdaten!$G$23*Saisonalisierung!G21,0) -> 0 | L21: =IF(Basisdaten!$E$23<=8,Basisdaten!$G$23*Saisonalisierung!H21,0) -> 0 | M21: =IF(Basisdaten!$E$23<=9,Basisdaten!$G$23*Saisonalisierung!I21,0) -> 0 | N21: =IF(Basisdaten!$E$23<=10,Basisdaten!$G$23*Saisonalisierung!J21,0) -> 0 | O21: =IF(Basisdaten!$E$23<=11,Basisdaten!$G$23*Saisonalisierung!K21,0) -> 0 | P21: =IF(Basisdaten!$E$23<=12,Basisdaten!$G$23*Saisonalisierung!L21,0) -> 0
A22: 1 | B22: =Basisdaten!B24 -> 40 | C22: =Basisdaten!A24 -> Andreas Walter | D22: =Basisdaten!U24 -> 2022 | E22: =IF(Basisdaten!$E$24=1,Basisdaten!$G$24*Saisonalisierung!A22,0) -> 52429.465 | F22: =IF(Basisdaten!$E$24<=2,Basisdaten!$G$24*Saisonalisierung!B22,0) -> 53471.11 | G22: =IF(Basisdaten!$E$24<=3,Basisdaten!$G$24*Saisonalisierung!C22,0) -> 61804.27 | H22: =IF(Basisdaten!$E$24<=4,Basisdaten!$G$24*Saisonalisierung!D22,0) -> 58332.12 | I22: =IF(Basisdaten!$E$24<=5,Basisdaten!$G$24*Saisonalisierung!E22,0) -> 55901.615 | J22: =IF(Basisdaten!$E$24<=6,Basisdaten!$G$24*Saisonalisierung!F22,0) -> 57984.905 | K22: =IF(Basisdaten!$E$24<=7,Basisdaten!$G$24*Saisonalisierung!G22,0) -> 59373.765 | L22: =IF(Basisdaten!$E$24<=8,Basisdaten!$G$24*Saisonalisierung!H22,0) -> 58332.12 | M22: =IF(Basisdaten!$E$24<=9,Basisdaten!$G$24*Saisonalisierung!I22,0) -> 59026.55 | N22: =IF(Basisdaten!$E$24<=10,Basisdaten!$G$24*Saisonalisierung!J22,0) -> 57290.475 | O22: =IF(Basisdaten!$E$24<=11,Basisdaten!$G$24*Saisonalisierung!K22,0) -> 59026.55 | P22: =IF(Basisdaten!$E$24<=12,Basisdaten!$G$24*Saisonalisierung!L22,0) -> 61457.055
A23: 1 | B23: =Basisdaten!B25 -> 40 | C23: =Basisdaten!A25 -> Fatih Cetiner | D23: =Basisdaten!U25 -> 2022 | E23: =IF(Basisdaten!$E$25=1,Basisdaten!$G$25*Saisonalisierung!A23,0) -> 52429.465 | F23: =IF(Basisdaten!$E$25<=2,Basisdaten!$G$25*Saisonalisierung!B23,0) -> 53471.11 | G23: =IF(Basisdaten!$E$25<=3,Basisdaten!$G$25*Saisonalisierung!C23,0) -> 61804.27 | H23: =IF(Basisdaten!$E$25<=4,Basisdaten!$G$25*Saisonalisierung!D23,0) -> 58332.12 | I23: =IF(Basisdaten!$E$25<=5,Basisdaten!$G$25*Saisonalisierung!E23,0) -> 55901.615 | J23: =IF(Basisdaten!$E$25<=6,Basisdaten!$G$25*Saisonalisierung!F23,0) -> 57984.905 | K23: =IF(Basisdaten!$E$25<=7,Basisdaten!$G$25*Saisonalisierung!G23,0) -> 59373.765 | L23: =IF(Basisdaten!$E$25<=8,Basisdaten!$G$25*Saisonalisierung!H23,0) -> 58332.12 | M23: =IF(Basisdaten!$E$25<=9,Basisdaten!$G$25*Saisonalisierung!I23,0) -> 59026.55 | N23: =IF(Basisdaten!$E$25<=10,Basisdaten!$G$25*Saisonalisierung!J23,0) -> 57290.475 | O23: =IF(Basisdaten!$E$25<=11,Basisdaten!$G$25*Saisonalisierung!K23,0) -> 59026.55 | P23: =IF(Basisdaten!$E$25<=12,Basisdaten!$G$25*Saisonalisierung!L23,0) -> 61457.055
A24: 1 | B24: =Basisdaten!B26 -> 50 | C24: =Basisdaten!A26 -> Carlheinz Beylacher | D24: =Basisdaten!U26 -> 2022 | E24: =IF(Basisdaten!$E$26=1,Basisdaten!$G$26*Saisonalisierung!A24,0) -> 52429.465 | F24: =IF(Basisdaten!$E$26<=2,Basisdaten!$G$26*Saisonalisierung!B24,0) -> 53471.11 | G24: =IF(Basisdaten!$E$26<=3,Basisdaten!$G$26*Saisonalisierung!C24,0) -> 61804.27 | H24: =IF(Basisdaten!$E$26<=4,Basisdaten!$G$26*Saisonalisierung!D24,0) -> 58332.12 | I24: =IF(Basisdaten!$E$26<=5,Basisdaten!$G$26*Saisonalisierung!E24,0) -> 55901.615 | J24: =IF(Basisdaten!$E$26<=6,Basisdaten!$G$26*Saisonalisierung!F24,0) -> 57984.905 | K24: =IF(Basisdaten!$E$26<=7,Basisdaten!$G$26*Saisonalisierung!G24,0) -> 59373.765 | L24: =IF(Basisdaten!$E$26<=8,Basisdaten!$G$26*Saisonalisierung!H24,0) -> 58332.12 | M24: =IF(Basisdaten!$E$26<=9,Basisdaten!$G$26*Saisonalisierung!I24,0) -> 59026.55 | N24: =IF(Basisdaten!$E$26<=10,Basisdaten!$G$26*Saisonalisierung!J24,0) -> 57290.475 | O24: =IF(Basisdaten!$E$26<=11,Basisdaten!$G$26*Saisonalisierung!K24,0) -> 59026.55 | P24: =IF(Basisdaten!$E$26<=12,Basisdaten!$G$26*Saisonalisierung!L24,0) -> 61457.055
A25: 1 | B25: =Basisdaten!B27 -> 50 | C25: =Basisdaten!A27 -> Christoph Ziegler | D25: =Basisdaten!U27 -> 2022 | E25: =IF(Basisdaten!$E$27=1,Basisdaten!$G$27*Saisonalisierung!A25,0) -> 52429.465 | F25: =IF(Basisdaten!$E$27<=2,Basisdaten!$G$27*Saisonalisierung!B25,0) -> 53471.11 | G25: =IF(Basisdaten!$E$27<=3,Basisdaten!$G$27*Saisonalisierung!C25,0) -> 61804.27 | H25: =IF(Basisdaten!$E$27<=4,Basisdaten!$G$27*Saisonalisierung!D25,0) -> 58332.12 | I25: =IF(Basisdaten!$E$27<=5,Basisdaten!$G$27*Saisonalisierung!E25,0) -> 55901.615 | J25: =IF(Basisdaten!$E$27<=6,Basisdaten!$G$27*Saisonalisierung!F25,0) -> 57984.905 | K25: =IF(Basisdaten!$E$27<=7,Basisdaten!$G$27*Saisonalisierung!G25,0) -> 59373.765 | L25: =IF(Basisdaten!$E$27<=8,Basisdaten!$G$27*Saisonalisierung!H25,0) -> 58332.12 | M25: =IF(Basisdaten!$E$27<=9,Basisdaten!$G$27*Saisonalisierung!I25,0) -> 59026.55 | N25: =IF(Basisdaten!$E$27<=10,Basisdaten!$G$27*Saisonalisierung!J25,0) -> 57290.475 | O25: =IF(Basisdaten!$E$27<=11,Basisdaten!$G$27*Saisonalisierung!K25,0) -> 59026.55 | P25: =IF(Basisdaten!$E$27<=12,Basisdaten!$G$27*Saisonalisierung!L25,0) -> 61457.055
A26: 1 | B26: =Basisdaten!B28 -> 50 | C26: =Basisdaten!A28 -> Steffen Schiller | D26: =Basisdaten!U28 -> 2022 | E26: =IF(Basisdaten!$E$28=1,Basisdaten!$G$28*Saisonalisierung!A26,0) -> 52429.465 | F26: =IF(Basisdaten!$E$28<=2,Basisdaten!$G$28*Saisonalisierung!B26,0) -> 53471.11 | G26: =IF(Basisdaten!$E$28<=3,Basisdaten!$G$28*Saisonalisierung!C26,0) -> 61804.27 | H26: =IF(Basisdaten!$E$28<=4,Basisdaten!$G$28*Saisonalisierung!D26,0) -> 58332.12 | I26: =IF(Basisdaten!$E$28<=5,Basisdaten!$G$28*Saisonalisierung!E26,0) -> 55901.615 | J26: =IF(Basisdaten!$E$28<=6,Basisdaten!$G$28*Saisonalisierung!F26,0) -> 57984.905 | K26: =IF(Basisdaten!$E$28<=7,Basisdaten!$G$28*Saisonalisierung!G26,0) -> 59373.765 | L26: =IF(Basisdaten!$E$28<=8,Basisdaten!$G$28*Saisonalisierung!H26,0) -> 58332.12 | M26: =IF(Basisdaten!$E$28<=9,Basisdaten!$G$28*Saisonalisierung!I26,0) -> 59026.55 | N26: =IF(Basisdaten!$E$28<=10,Basisdaten!$G$28*Saisonalisierung!J26,0) -> 57290.475 | O26: =IF(Basisdaten!$E$28<=11,Basisdaten!$G$28*Saisonalisierung!K26,0) -> 59026.55 | P26: =IF(Basisdaten!$E$28<=12,Basisdaten!$G$28*Saisonalisierung!L26,0) -> 61457.055
A27: 1 | B27: =Basisdaten!B29 -> 50 | C27: =Basisdaten!A29 -> André Pfeffer - SCBI | D27: =Basisdaten!U29 -> 2022 | E27: =IF(Basisdaten!$E$29=1,Basisdaten!$G$29*Saisonalisierung!A27,0) -> 52429.465 | F27: =IF(Basisdaten!$E$29<=2,Basisdaten!$G$29*Saisonalisierung!B27,0) -> 53471.11 | G27: =IF(Basisdaten!$E$29<=3,Basisdaten!$G$29*Saisonalisierung!C27,0) -> 61804.27 | H27: =IF(Basisdaten!$E$29<=4,Basisdaten!$G$29*Saisonalisierung!D27,0) -> 58332.12 | I27: =IF(Basisdaten!$E$29<=5,Basisdaten!$G$29*Saisonalisierung!E27,0) -> 55901.615 | J27: =IF(Basisdaten!$E$29<=6,Basisdaten!$G$29*Saisonalisierung!F27,0) -> 57984.905 | K27: =IF(Basisdaten!$E$29<=7,Basisdaten!$G$29*Saisonalisierung!G27,0) -> 59373.765 | L27: =IF(Basisdaten!$E$29<=8,Basisdaten!$G$29*Saisonalisierung!H27,0) -> 58332.12 | M27: =IF(Basisdaten!$E$29<=9,Basisdaten!$G$29*Saisonalisierung!I27,0) -> 59026.55 | N27: =IF(Basisdaten!$E$29<=10,Basisdaten!$G$29*Saisonalisierung!J27,0) -> 57290.475 | O27: =IF(Basisdaten!$E$29<=11,Basisdaten!$G$29*Saisonalisierung!K27,0) -> 59026.55 | P27: =IF(Basisdaten!$E$29<=12,Basisdaten!$G$29*Saisonalisierung!L27,0) -> 61457.055
A28: 1 | B28: =Basisdaten!B30 -> 50 | C28: =Basisdaten!A30 -> Christian Wiedemann | D28: =Basisdaten!U30 -> 2022 | E28: =IF(Basisdaten!$E$30=1,Basisdaten!$G$30*Saisonalisierung!A28,0) -> 52429.465 | F28: =IF(Basisdaten!$E$30<=2,Basisdaten!$G$30*Saisonalisierung!B28,0) -> 53471.11 | G28: =IF(Basisdaten!$E$30<=3,Basisdaten!$G$30*Saisonalisierung!C28,0) -> 61804.27 | H28: =IF(Basisdaten!$E$30<=4,Basisdaten!$G$30*Saisonalisierung!D28,0) -> 58332.12 | I28: =IF(Basisdaten!$E$30<=5,Basisdaten!$G$30*Saisonalisierung!E28,0) -> 55901.615 | J28: =IF(Basisdaten!$E$30<=6,Basisdaten!$G$30*Saisonalisierung!F28,0) -> 57984.905 | K28: =IF(Basisdaten!$E$30<=7,Basisdaten!$G$30*Saisonalisierung!G28,0) -> 59373.765 | L28: =IF(Basisdaten!$E$30<=8,Basisdaten!$G$30*Saisonalisierung!H28,0) -> 58332.12 | M28: =IF(Basisdaten!$E$30<=9,Basisdaten!$G$30*Saisonalisierung!I28,0) -> 59026.55 | N28: =IF(Basisdaten!$E$30<=10,Basisdaten!$G$30*Saisonalisierung!J28,0) -> 57290.475 | O28: =IF(Basisdaten!$E$30<=11,Basisdaten!$G$30*Saisonalisierung!K28,0) -> 59026.55 | P28: =IF(Basisdaten!$E$30<=12,Basisdaten!$G$30*Saisonalisierung!L28,0) -> 61457.055
A29: 1 | B29: =Basisdaten!B31 -> 50 | C29: =Basisdaten!A31 -> Daniel Aschmann_ | D29: =Basisdaten!U31 -> 2022 | E29: =IF(Basisdaten!$E$31=1,Basisdaten!$G$31*Saisonalisierung!A29,0) -> 0 | F29: =IF(Basisdaten!$E$31<=2,Basisdaten!$G$31*Saisonalisierung!B29,0) -> 0 | G29: =IF(Basisdaten!$E$31<=3,Basisdaten!$G$31*Saisonalisierung!C29,0) -> 0 | H29: =IF(Basisdaten!$E$31<=4,Basisdaten!$G$31*Saisonalisierung!D29,0) -> 0 | I29: =IF(Basisdaten!$E$31<=5,Basisdaten!$G$31*Saisonalisierung!E29,0) -> 0 | J29: =IF(Basisdaten!$E$31<=6,Basisdaten!$G$31*Saisonalisierung!F29,0) -> 0 | K29: =IF(Basisdaten!$E$31<=7,Basisdaten!$G$31*Saisonalisierung!G29,0) -> 0 | L29: =IF(Basisdaten!$E$31<=8,Basisdaten!$G$31*Saisonalisierung!H29,0) -> 0 | M29: =IF(Basisdaten!$E$31<=9,Basisdaten!$G$31*Saisonalisierung!I29,0) -> 0 | N29: =IF(Basisdaten!$E$31<=10,Basisdaten!$G$31*Saisonalisierung!J29,0) -> 0 | O29: =IF(Basisdaten!$E$31<=11,Basisdaten!$G$31*Saisonalisierung!K29,0) -> 0 | P29: =IF(Basisdaten!$E$31<=12,Basisdaten!$G$31*Saisonalisierung!L29,0) -> 0
A30: 2 | B30: =Basisdaten!B32 -> 60 | C30: =Basisdaten!A32 -> Dirk Heditzsch | D30: =Basisdaten!U32 -> 2022 | E30: =IF(Basisdaten!$E$32=1,Basisdaten!$G$32*Saisonalisierung!A30,0) -> 0 | F30: =IF(Basisdaten!$E$32<=2,Basisdaten!$G$32*Saisonalisierung!B30,0) -> 0 | G30: =IF(Basisdaten!$E$32<=3,Basisdaten!$G$32*Saisonalisierung!C30,0) -> 0 | H30: =IF(Basisdaten!$E$32<=4,Basisdaten!$G$32*Saisonalisierung!D30,0) -> 58332.12 | I30: =IF(Basisdaten!$E$32<=5,Basisdaten!$G$32*Saisonalisierung!E30,0) -> 55901.615 | J30: =IF(Basisdaten!$E$32<=6,Basisdaten!$G$32*Saisonalisierung!F30,0) -> 57984.905 | K30: =IF(Basisdaten!$E$32<=7,Basisdaten!$G$32*Saisonalisierung!G30,0) -> 59373.765 | L30: =IF(Basisdaten!$E$32<=8,Basisdaten!$G$32*Saisonalisierung!H30,0) -> 58332.12 | M30: =IF(Basisdaten!$E$32<=9,Basisdaten!$G$32*Saisonalisierung!I30,0) -> 59026.55 | N30: =IF(Basisdaten!$E$32<=10,Basisdaten!$G$32*Saisonalisierung!J30,0) -> 57290.475 | O30: =IF(Basisdaten!$E$32<=11,Basisdaten!$G$32*Saisonalisierung!K30,0) -> 59026.55 | P30: =IF(Basisdaten!$E$32<=12,Basisdaten!$G$32*Saisonalisierung!L30,0) -> 61457.055
A31: 2 | B31: =Basisdaten!B33 -> 60 | C31: =Basisdaten!A33 -> Marco Hanigk | D31: =Basisdaten!U33 -> 2022 | E31: =IF(Basisdaten!$E$33=1,Basisdaten!$G$33*Saisonalisierung!A31,0) -> 52429.465 | F31: =IF(Basisdaten!$E$33<=2,Basisdaten!$G$33*Saisonalisierung!B31,0) -> 53471.11 | G31: =IF(Basisdaten!$E$33<=3,Basisdaten!$G$33*Saisonalisierung!C31,0) -> 61804.27 | H31: =IF(Basisdaten!$E$33<=4,Basisdaten!$G$33*Saisonalisierung!D31,0) -> 58332.12 | I31: =IF(Basisdaten!$E$33<=5,Basisdaten!$G$33*Saisonalisierung!E31,0) -> 55901.615 | J31: =IF(Basisdaten!$E$33<=6,Basisdaten!$G$33*Saisonalisierung!F31,0) -> 57984.905 | K31: =IF(Basisdaten!$E$33<=7,Basisdaten!$G$33*Saisonalisierung!G31,0) -> 59373.765 | L31: =IF(Basisdaten!$E$33<=8,Basisdaten!$G$33*Saisonalisierung!H31,0) -> 58332.12 | M31: =IF(Basisdaten!$E$33<=9,Basisdaten!$G$33*Saisonalisierung!I31,0) -> 59026.55 | N31: =IF(Basisdaten!$E$33<=10,Basisdaten!$G$33*Saisonalisierung!J31,0) -> 57290.475 | O31: =IF(Basisdaten!$E$33<=11,Basisdaten!$G$33*Saisonalisierung!K31,0) -> 59026.55 | P31: =IF(Basisdaten!$E$33<=12,Basisdaten!$G$33*Saisonalisierung!L31,0) -> 61457.055
A32: 2 | B32: =Basisdaten!B34 -> 60 | C32: =Basisdaten!A34 -> Marcel Lankes | D32: =Basisdaten!U34 -> 2022 | E32: =IF(Basisdaten!$E$34=1,Basisdaten!$G$34*Saisonalisierung!A32,0) -> 0 | F32: =IF(Basisdaten!$E$34<=2,Basisdaten!$G$34*Saisonalisierung!B32,0) -> 0 | G32: =IF(Basisdaten!$E$34<=3,Basisdaten!$G$34*Saisonalisierung!C32,0) -> 0 | H32: =IF(Basisdaten!$E$34<=4,Basisdaten!$G$34*Saisonalisierung!D32,0) -> 58332.12 | I32: =IF(Basisdaten!$E$34<=5,Basisdaten!$G$34*Saisonalisierung!E32,0) -> 55901.615 | J32: =IF(Basisdaten!$E$34<=6,Basisdaten!$G$34*Saisonalisierung!F32,0) -> 57984.905 | K32: =IF(Basisdaten!$E$34<=7,Basisdaten!$G$34*Saisonalisierung!G32,0) -> 59373.765 | L32: =IF(Basisdaten!$E$34<=8,Basisdaten!$G$34*Saisonalisierung!H32,0) -> 58332.12 | M32: =IF(Basisdaten!$E$34<=9,Basisdaten!$G$34*Saisonalisierung!I32,0) -> 59026.55 | N32: =IF(Basisdaten!$E$34<=10,Basisdaten!$G$34*Saisonalisierung!J32,0) -> 57290.475 | O32: =IF(Basisdaten!$E$34<=11,Basisdaten!$G$34*Saisonalisierung!K32,0) -> 59026.55 | P32: =IF(Basisdaten!$E$34<=12,Basisdaten!$G$34*Saisonalisierung!L32,0) -> 61457.055
A33: 2 | B33: =Basisdaten!B35 -> 60 | C33: =Basisdaten!A35 -> Roland Klier | D33: =Basisdaten!U35 -> 2022 | E33: =IF(Basisdaten!$E$35=1,Basisdaten!$G$35*Saisonalisierung!A33,0) -> 52429.465 | F33: =IF(Basisdaten!$E$35<=2,Basisdaten!$G$35*Saisonalisierung!B33,0) -> 53471.11 | G33: =IF(Basisdaten!$E$35<=3,Basisdaten!$G$35*Saisonalisierung!C33,0) -> 61804.27 | H33: =IF(Basisdaten!$E$35<=4,Basisdaten!$G$35*Saisonalisierung!D33,0) -> 58332.12 | I33: =IF(Basisdaten!$E$35<=5,Basisdaten!$G$35*Saisonalisierung!E33,0) -> 55901.615 | J33: =IF(Basisdaten!$E$35<=6,Basisdaten!$G$35*Saisonalisierung!F33,0) -> 57984.905 | K33: =IF(Basisdaten!$E$35<=7,Basisdaten!$G$35*Saisonalisierung!G33,0) -> 59373.765 | L33: =IF(Basisdaten!$E$35<=8,Basisdaten!$G$35*Saisonalisierung!H33,0) -> 58332.12 | M33: =IF(Basisdaten!$E$35<=9,Basisdaten!$G$35*Saisonalisierung!I33,0) -> 59026.55 | N33: =IF(Basisdaten!$E$35<=10,Basisdaten!$G$35*Saisonalisierung!J33,0) -> 57290.475 | O33: =IF(Basisdaten!$E$35<=11,Basisdaten!$G$35*Saisonalisierung!K33,0) -> 59026.55 | P33: =IF(Basisdaten!$E$35<=12,Basisdaten!$G$35*Saisonalisierung!L33,0) -> 61457.055
A34: 2 | B34: =Basisdaten!B36 -> 60 | C34: =Basisdaten!A36 -> Mert Güngör | D34: =Basisdaten!U36 -> 2022 | E34: =IF(Basisdaten!$E$36=1,Basisdaten!$G$36*Saisonalisierung!A34,0) -> 0 | F34: =IF(Basisdaten!$E$36<=2,Basisdaten!$G$36*Saisonalisierung!B34,0) -> 0 | G34: =IF(Basisdaten!$E$36<=3,Basisdaten!$G$36*Saisonalisierung!C34,0) -> 0 | H34: =IF(Basisdaten!$E$36<=4,Basisdaten!$G$36*Saisonalisierung!D34,0) -> 0 | I34: =IF(Basisdaten!$E$36<=5,Basisdaten!$G$36*Saisonalisierung!E34,0) -> 0 | J34: =IF(Basisdaten!$E$36<=6,Basisdaten!$G$36*Saisonalisierung!F34,0) -> 57984.905 | K34: =IF(Basisdaten!$E$36<=7,Basisdaten!$G$36*Saisonalisierung!G34,0) -> 59373.765 | L34: =IF(Basisdaten!$E$36<=8,Basisdaten!$G$36*Saisonalisierung!H34,0) -> 58332.12 | M34: =IF(Basisdaten!$E$36<=9,Basisdaten!$G$36*Saisonalisierung!I34,0) -> 59026.55 | N34: =IF(Basisdaten!$E$36<=10,Basisdaten!$G$36*Saisonalisierung!J34,0) -> 57290.475 | O34: =IF(Basisdaten!$E$36<=11,Basisdaten!$G$36*Saisonalisierung!K34,0) -> 59026.55 | P34: =IF(Basisdaten!$E$36<=12,Basisdaten!$G$36*Saisonalisierung!L34,0) -> 61457.055
A35: 2 | B35: =Basisdaten!B37 -> 60 | C35: =Basisdaten!A37 -> Matthias Hagg | D35: =Basisdaten!U37 -> 2022 | E35: =IF(Basisdaten!$E$37=1,Basisdaten!$G$37*Saisonalisierung!A35,0) -> 52429.465 | F35: =IF(Basisdaten!$E$37<=2,Basisdaten!$G$37*Saisonalisierung!B35,0) -> 53471.11 | G35: =IF(Basisdaten!$E$37<=3,Basisdaten!$G$37*Saisonalisierung!C35,0) -> 61804.27 | H35: =IF(Basisdaten!$E$37<=4,Basisdaten!$G$37*Saisonalisierung!D35,0) -> 58332.12 | I35: =IF(Basisdaten!$E$37<=5,Basisdaten!$G$37*Saisonalisierung!E35,0) -> 55901.615 | J35: =IF(Basisdaten!$E$37<=6,Basisdaten!$G$37*Saisonalisierung!F35,0) -> 57984.905 | K35: =IF(Basisdaten!$E$37<=7,Basisdaten!$G$37*Saisonalisierung!G35,0) -> 59373.765 | L35: =IF(Basisdaten!$E$37<=8,Basisdaten!$G$37*Saisonalisierung!H35,0) -> 58332.12 | M35: =IF(Basisdaten!$E$37<=9,Basisdaten!$G$37*Saisonalisierung!I35,0) -> 59026.55 | N35: =IF(Basisdaten!$E$37<=10,Basisdaten!$G$37*Saisonalisierung!J35,0) -> 57290.475 | O35: =IF(Basisdaten!$E$37<=11,Basisdaten!$G$37*Saisonalisierung!K35,0) -> 59026.55 | P35: =IF(Basisdaten!$E$37<=12,Basisdaten!$G$37*Saisonalisierung!L35,0) -> 61457.055
A36: 2 | B36: =Basisdaten!B38 -> 60 | C36: =Basisdaten!A38 -> Walter Schlosser | D36: =Basisdaten!U38 -> 2022 | E36: =IF(Basisdaten!$E$38=1,Basisdaten!$G$38*Saisonalisierung!A36,0) -> 52429.465 | F36: =IF(Basisdaten!$E$38<=2,Basisdaten!$G$38*Saisonalisierung!B36,0) -> 53471.11 | G36: =IF(Basisdaten!$E$38<=3,Basisdaten!$G$38*Saisonalisierung!C36,0) -> 61804.27 | H36: =IF(Basisdaten!$E$38<=4,Basisdaten!$G$38*Saisonalisierung!D36,0) -> 58332.12 | I36: =IF(Basisdaten!$E$38<=5,Basisdaten!$G$38*Saisonalisierung!E36,0) -> 55901.615 | J36: =IF(Basisdaten!$E$38<=6,Basisdaten!$G$38*Saisonalisierung!F36,0) -> 57984.905 | K36: =IF(Basisdaten!$E$38<=7,Basisdaten!$G$38*Saisonalisierung!G36,0) -> 59373.765 | L36: =IF(Basisdaten!$E$38<=8,Basisdaten!$G$38*Saisonalisierung!H36,0) -> 58332.12 | M36: =IF(Basisdaten!$E$38<=9,Basisdaten!$G$38*Saisonalisierung!I36,0) -> 59026.55 | N36: =IF(Basisdaten!$E$38<=10,Basisdaten!$G$38*Saisonalisierung!J36,0) -> 57290.475 | O36: =IF(Basisdaten!$E$38<=11,Basisdaten!$G$38*Saisonalisierung!K36,0) -> 59026.55 | P36: =IF(Basisdaten!$E$38<=12,Basisdaten!$G$38*Saisonalisierung!L36,0) -> 61457.055
A37: 2 | B37: =Basisdaten!B39 -> 60 | C37: =Basisdaten!A39 -> Udo Spindler | D37: =Basisdaten!U39 -> 2022 | E37: =IF(Basisdaten!$E$39=1,Basisdaten!$G$39*Saisonalisierung!A37,0) -> 52429.465 | F37: =IF(Basisdaten!$E$39<=2,Basisdaten!$G$39*Saisonalisierung!B37,0) -> 53471.11 | G37: =IF(Basisdaten!$E$39<=3,Basisdaten!$G$39*Saisonalisierung!C37,0) -> 61804.27 | H37: =IF(Basisdaten!$E$39<=4,Basisdaten!$G$39*Saisonalisierung!D37,0) -> 58332.12 | I37: =IF(Basisdaten!$E$39<=5,Basisdaten!$G$39*Saisonalisierung!E37,0) -> 55901.615 | J37: =IF(Basisdaten!$E$39<=6,Basisdaten!$G$39*Saisonalisierung!F37,0) -> 57984.905 | K37: =IF(Basisdaten!$E$39<=7,Basisdaten!$G$39*Saisonalisierung!G37,0) -> 59373.765 | L37: =IF(Basisdaten!$E$39<=8,Basisdaten!$G$39*Saisonalisierung!H37,0) -> 58332.12 | M37: =IF(Basisdaten!$E$39<=9,Basisdaten!$G$39*Saisonalisierung!I37,0) -> 59026.55 | N37: =IF(Basisdaten!$E$39<=10,Basisdaten!$G$39*Saisonalisierung!J37,0) -> 57290.475 | O37: =IF(Basisdaten!$E$39<=11,Basisdaten!$G$39*Saisonalisierung!K37,0) -> 59026.55 | P37: =IF(Basisdaten!$E$39<=12,Basisdaten!$G$39*Saisonalisierung!L37,0) -> 61457.055
A38: 2 | B38: =Basisdaten!B40 -> 60 | C38: =Basisdaten!A40 -> Marcel Vogler | D38: =Basisdaten!U40 -> 2022 | E38: =IF(Basisdaten!$E$40=1,Basisdaten!$G$40*Saisonalisierung!A38,0) -> 52429.465 | F38: =IF(Basisdaten!$E$40<=2,Basisdaten!$G$40*Saisonalisierung!B38,0) -> 53471.11 | G38: =IF(Basisdaten!$E$40<=3,Basisdaten!$G$40*Saisonalisierung!C38,0) -> 61804.27 | H38: =IF(Basisdaten!$E$40<=4,Basisdaten!$G$40*Saisonalisierung!D38,0) -> 58332.12 | I38: =IF(Basisdaten!$E$40<=5,Basisdaten!$G$40*Saisonalisierung!E38,0) -> 55901.615 | J38: =IF(Basisdaten!$E$40<=6,Basisdaten!$G$40*Saisonalisierung!F38,0) -> 57984.905 | K38: =IF(Basisdaten!$E$40<=7,Basisdaten!$G$40*Saisonalisierung!G38,0) -> 59373.765 | L38: =IF(Basisdaten!$E$40<=8,Basisdaten!$G$40*Saisonalisierung!H38,0) -> 58332.12 | M38: =IF(Basisdaten!$E$40<=9,Basisdaten!$G$40*Saisonalisierung!I38,0) -> 59026.55 | N38: =IF(Basisdaten!$E$40<=10,Basisdaten!$G$40*Saisonalisierung!J38,0) -> 57290.475 | O38: =IF(Basisdaten!$E$40<=11,Basisdaten!$G$40*Saisonalisierung!K38,0) -> 59026.55 | P38: =IF(Basisdaten!$E$40<=12,Basisdaten!$G$40*Saisonalisierung!L38,0) -> 61457.055
A39: 2 | B39: =Basisdaten!B41 -> 60 | C39: =Basisdaten!A41 -> Raphael Marksteiner | D39: =Basisdaten!U41 -> 2022 | E39: =IF(Basisdaten!$E$41=1,Basisdaten!$G$41*Saisonalisierung!A39,0) -> 0 | F39: =IF(Basisdaten!$E$41<=2,Basisdaten!$G$41*Saisonalisierung!B39,0) -> 0 | G39: =IF(Basisdaten!$E$41<=3,Basisdaten!$G$41*Saisonalisierung!C39,0) -> 0 | H39: =IF(Basisdaten!$E$41<=4,Basisdaten!$G$41*Saisonalisierung!D39,0) -> 58332.12 | I39: =IF(Basisdaten!$E$41<=5,Basisdaten!$G$41*Saisonalisierung!E39,0) -> 55901.615 | J39: =IF(Basisdaten!$E$41<=6,Basisdaten!$G$41*Saisonalisierung!F39,0) -> 57984.905 | K39: =IF(Basisdaten!$E$41<=7,Basisdaten!$G$41*Saisonalisierung!G39,0) -> 59373.765 | L39: =IF(Basisdaten!$E$41<=8,Basisdaten!$G$41*Saisonalisierung!H39,0) -> 58332.12 | M39: =IF(Basisdaten!$E$41<=9,Basisdaten!$G$41*Saisonalisierung!I39,0) -> 59026.55 | N39: =IF(Basisdaten!$E$41<=10,Basisdaten!$G$41*Saisonalisierung!J39,0) -> 57290.475 | O39: =IF(Basisdaten!$E$41<=11,Basisdaten!$G$41*Saisonalisierung!K39,0) -> 59026.55 | P39: =IF(Basisdaten!$E$41<=12,Basisdaten!$G$41*Saisonalisierung!L39,0) -> 61457.055
A40: 2 | B40: =Basisdaten!B42 -> 60 | C40: =Basisdaten!A42 -> Markus Appeljun - SCBI | D40: =Basisdaten!U42 -> 2022 | E40: =IF(Basisdaten!$E$42=1,Basisdaten!$G$42*Saisonalisierung!A40,0) -> 0 | F40: =IF(Basisdaten!$E$42<=2,Basisdaten!$G$42*Saisonalisierung!B40,0) -> 53471.11 | G40: =IF(Basisdaten!$E$42<=3,Basisdaten!$G$42*Saisonalisierung!C40,0) -> 61804.27 | H40: =IF(Basisdaten!$E$42<=4,Basisdaten!$G$42*Saisonalisierung!D40,0) -> 58332.12 | I40: =IF(Basisdaten!$E$42<=5,Basisdaten!$G$42*Saisonalisierung!E40,0) -> 55901.615 | J40: =IF(Basisdaten!$E$42<=6,Basisdaten!$G$42*Saisonalisierung!F40,0) -> 57984.905 | K40: =IF(Basisdaten!$E$42<=7,Basisdaten!$G$42*Saisonalisierung!G40,0) -> 59373.765 | L40: =IF(Basisdaten!$E$42<=8,Basisdaten!$G$42*Saisonalisierung!H40,0) -> 58332.12 | M40: =IF(Basisdaten!$E$42<=9,Basisdaten!$G$42*Saisonalisierung!I40,0) -> 59026.55 | N40: =IF(Basisdaten!$E$42<=10,Basisdaten!$G$42*Saisonalisierung!J40,0) -> 57290.475 | O40: =IF(Basisdaten!$E$42<=11,Basisdaten!$G$42*Saisonalisierung!K40,0) -> 59026.55 | P40: =IF(Basisdaten!$E$42<=12,Basisdaten!$G$42*Saisonalisierung!L40,0) -> 61457.055
A41: 2 | B41: =Basisdaten!B43 -> 60 | C41: =Basisdaten!A43 -> Andreas Göllner | D41: =Basisdaten!U43 -> 2022 | E41: =IF(Basisdaten!$E$43=1,Basisdaten!$G$43*Saisonalisierung!A41,0) -> 52429.465 | F41: =IF(Basisdaten!$E$43<=2,Basisdaten!$G$43*Saisonalisierung!B41,0) -> 53471.11 | G41: =IF(Basisdaten!$E$43<=3,Basisdaten!$G$43*Saisonalisierung!C41,0) -> 61804.27 | H41: =IF(Basisdaten!$E$43<=4,Basisdaten!$G$43*Saisonalisierung!D41,0) -> 58332.12 | I41: =IF(Basisdaten!$E$43<=5,Basisdaten!$G$43*Saisonalisierung!E41,0) -> 55901.615 | J41: =IF(Basisdaten!$E$43<=6,Basisdaten!$G$43*Saisonalisierung!F41,0) -> 57984.905 | K41: =IF(Basisdaten!$E$43<=7,Basisdaten!$G$43*Saisonalisierung!G41,0) -> 59373.765 | L41: =IF(Basisdaten!$E$43<=8,Basisdaten!$G$43*Saisonalisierung!H41,0) -> 58332.12 | M41: =IF(Basisdaten!$E$43<=9,Basisdaten!$G$43*Saisonalisierung!I41,0) -> 59026.55 | N41: =IF(Basisdaten!$E$43<=10,Basisdaten!$G$43*Saisonalisierung!J41,0) -> 57290.475 | O41: =IF(Basisdaten!$E$43<=11,Basisdaten!$G$43*Saisonalisierung!K41,0) -> 59026.55 | P41: =IF(Basisdaten!$E$43<=12,Basisdaten!$G$43*Saisonalisierung!L41,0) -> 61457.055
A42: 2 | B42: =Basisdaten!B44 -> 60 | C42: =Basisdaten!A44 -> Marcus Stangl | D42: =Basisdaten!U44 -> 2022 | E42: =IF(Basisdaten!$E$44=1,Basisdaten!$G$44*Saisonalisierung!A42,0) -> 52429.465 | F42: =IF(Basisdaten!$E$44<=2,Basisdaten!$G$44*Saisonalisierung!B42,0) -> 53471.11 | G42: =IF(Basisdaten!$E$44<=3,Basisdaten!$G$44*Saisonalisierung!C42,0) -> 61804.27 | H42: =IF(Basisdaten!$E$44<=4,Basisdaten!$G$44*Saisonalisierung!D42,0) -> 58332.12 | I42: =IF(Basisdaten!$E$44<=5,Basisdaten!$G$44*Saisonalisierung!E42,0) -> 55901.615 | J42: =IF(Basisdaten!$E$44<=6,Basisdaten!$G$44*Saisonalisierung!F42,0) -> 57984.905 | K42: =IF(Basisdaten!$E$44<=7,Basisdaten!$G$44*Saisonalisierung!G42,0) -> 59373.765 | L42: =IF(Basisdaten!$E$44<=8,Basisdaten!$G$44*Saisonalisierung!H42,0) -> 58332.12 | M42: =IF(Basisdaten!$E$44<=9,Basisdaten!$G$44*Saisonalisierung!I42,0) -> 59026.55 | N42: =IF(Basisdaten!$E$44<=10,Basisdaten!$G$44*Saisonalisierung!J42,0) -> 57290.475 | O42: =IF(Basisdaten!$E$44<=11,Basisdaten!$G$44*Saisonalisierung!K42,0) -> 59026.55 | P42: =IF(Basisdaten!$E$44<=12,Basisdaten!$G$44*Saisonalisierung!L42,0) -> 61457.055
A43: 2 | B43: =Basisdaten!B45 -> 60 | C43: =Basisdaten!A45 -> Christoph Rottenkolber | D43: =Basisdaten!U45 -> 2022 | E43: =IF(Basisdaten!$E$45=1,Basisdaten!$G$45*Saisonalisierung!A43,0) -> 0 | F43: =IF(Basisdaten!$E$45<=2,Basisdaten!$G$45*Saisonalisierung!B43,0) -> 0 | G43: =IF(Basisdaten!$E$45<=3,Basisdaten!$G$45*Saisonalisierung!C43,0) -> 0 | H43: =IF(Basisdaten!$E$45<=4,Basisdaten!$G$45*Saisonalisierung!D43,0) -> 58332.12 | I43: =IF(Basisdaten!$E$45<=5,Basisdaten!$G$45*Saisonalisierung!E43,0) -> 55901.615 | J43: =IF(Basisdaten!$E$45<=6,Basisdaten!$G$45*Saisonalisierung!F43,0) -> 57984.905 | K43: =IF(Basisdaten!$E$45<=7,Basisdaten!$G$45*Saisonalisierung!G43,0) -> 59373.765 | L43: =IF(Basisdaten!$E$45<=8,Basisdaten!$G$45*Saisonalisierung!H43,0) -> 58332.12 | M43: =IF(Basisdaten!$E$45<=9,Basisdaten!$G$45*Saisonalisierung!I43,0) -> 59026.55 | N43: =IF(Basisdaten!$E$45<=10,Basisdaten!$G$45*Saisonalisierung!J43,0) -> 57290.475 | O43: =IF(Basisdaten!$E$45<=11,Basisdaten!$G$45*Saisonalisierung!K43,0) -> 59026.55 | P43: =IF(Basisdaten!$E$45<=12,Basisdaten!$G$45*Saisonalisierung!L43,0) -> 61457.055
A44: 2 | B44: =Basisdaten!B46 -> 60 | C44: =Basisdaten!A46 -> Michael Cattide - SCBI | D44: =Basisdaten!U46 -> 2022 | E44: =IF(Basisdaten!$E$46=1,Basisdaten!$G$46*Saisonalisierung!A44,0) -> 52429.465 | F44: =IF(Basisdaten!$E$46<=2,Basisdaten!$G$46*Saisonalisierung!B44,0) -> 53471.11 | G44: =IF(Basisdaten!$E$46<=3,Basisdaten!$G$46*Saisonalisierung!C44,0) -> 61804.27 | H44: =IF(Basisdaten!$E$46<=4,Basisdaten!$G$46*Saisonalisierung!D44,0) -> 58332.12 | I44: =IF(Basisdaten!$E$46<=5,Basisdaten!$G$46*Saisonalisierung!E44,0) -> 55901.615 | J44: =IF(Basisdaten!$E$46<=6,Basisdaten!$G$46*Saisonalisierung!F44,0) -> 57984.905 | K44: =IF(Basisdaten!$E$46<=7,Basisdaten!$G$46*Saisonalisierung!G44,0) -> 59373.765 | L44: =IF(Basisdaten!$E$46<=8,Basisdaten!$G$46*Saisonalisierung!H44,0) -> 58332.12 | M44: =IF(Basisdaten!$E$46<=9,Basisdaten!$G$46*Saisonalisierung!I44,0) -> 59026.55 | N44: =IF(Basisdaten!$E$46<=10,Basisdaten!$G$46*Saisonalisierung!J44,0) -> 57290.475 | O44: =IF(Basisdaten!$E$46<=11,Basisdaten!$G$46*Saisonalisierung!K44,0) -> 59026.55 | P44: =IF(Basisdaten!$E$46<=12,Basisdaten!$G$46*Saisonalisierung!L44,0) -> 61457.055
A45: 2 | B45: =Basisdaten!B47 -> 60 | C45: =Basisdaten!A47 -> Dennis Grohmann | D45: =Basisdaten!U47 -> 2022 | E45: =IF(Basisdaten!$E$47=1,Basisdaten!$G$47*Saisonalisierung!A45,0) -> 0 | F45: =IF(Basisdaten!$E$47<=2,Basisdaten!$G$47*Saisonalisierung!B45,0) -> 0 | G45: =IF(Basisdaten!$E$47<=3,Basisdaten!$G$47*Saisonalisierung!C45,0) -> 0 | H45: =IF(Basisdaten!$E$47<=4,Basisdaten!$G$47*Saisonalisierung!D45,0) -> 0 | I45: =IF(Basisdaten!$E$47<=5,Basisdaten!$G$47*Saisonalisierung!E45,0) -> 0 | J45: =IF(Basisdaten!$E$47<=6,Basisdaten!$G$47*Saisonalisierung!F45,0) -> 0 | K45: =IF(Basisdaten!$E$47<=7,Basisdaten!$G$47*Saisonalisierung!G45,0) -> 0 | L45: =IF(Basisdaten!$E$47<=8,Basisdaten!$G$47*Saisonalisierung!H45,0) -> 0 | M45: =IF(Basisdaten!$E$47<=9,Basisdaten!$G$47*Saisonalisierung!I45,0) -> 0 | N45: =IF(Basisdaten!$E$47<=10,Basisdaten!$G$47*Saisonalisierung!J45,0) -> 0 | O45: =IF(Basisdaten!$E$47<=11,Basisdaten!$G$47*Saisonalisierung!K45,0) -> 0 | P45: =IF(Basisdaten!$E$47<=12,Basisdaten!$G$47*Saisonalisierung!L45,0) -> 0
A46: 2 | B46: =Basisdaten!B48 -> 60 | C46: =Basisdaten!A48 -> Simone Groß - SCBZ | D46: =Basisdaten!U48 -> 2022 | E46: =IF(Basisdaten!$E$48=1,Basisdaten!$G$48*Saisonalisierung!A46,0) -> 52429.465 | F46: =IF(Basisdaten!$E$48<=2,Basisdaten!$G$48*Saisonalisierung!B46,0) -> 53471.11 | G46: =IF(Basisdaten!$E$48<=3,Basisdaten!$G$48*Saisonalisierung!C46,0) -> 61804.27 | H46: =IF(Basisdaten!$E$48<=4,Basisdaten!$G$48*Saisonalisierung!D46,0) -> 58332.12 | I46: =IF(Basisdaten!$E$48<=5,Basisdaten!$G$48*Saisonalisierung!E46,0) -> 55901.615 | J46: =IF(Basisdaten!$E$48<=6,Basisdaten!$G$48*Saisonalisierung!F46,0) -> 57984.905 | K46: =IF(Basisdaten!$E$48<=7,Basisdaten!$G$48*Saisonalisierung!G46,0) -> 59373.765 | L46: =IF(Basisdaten!$E$48<=8,Basisdaten!$G$48*Saisonalisierung!H46,0) -> 58332.12 | M46: =IF(Basisdaten!$E$48<=9,Basisdaten!$G$48*Saisonalisierung!I46,0) -> 59026.55 | N46: =IF(Basisdaten!$E$48<=10,Basisdaten!$G$48*Saisonalisierung!J46,0) -> 57290.475 | O46: =IF(Basisdaten!$E$48<=11,Basisdaten!$G$48*Saisonalisierung!K46,0) -> 59026.55 | P46: =IF(Basisdaten!$E$48<=12,Basisdaten!$G$48*Saisonalisierung!L46,0) -> 61457.055
A47: 1 | B47: =Basisdaten!B49 -> 55 | C47: =Basisdaten!A49 -> Jens Haller | D47: =Basisdaten!U49 -> 2022 | E47: =IF(Basisdaten!$E$49=1,Basisdaten!$G$49*Saisonalisierung!A47,0) -> 52429.465 | F47: =IF(Basisdaten!$E$49<=2,Basisdaten!$G$49*Saisonalisierung!B47,0) -> 53471.11 | G47: =IF(Basisdaten!$E$49<=3,Basisdaten!$G$49*Saisonalisierung!C47,0) -> 61804.27 | H47: =IF(Basisdaten!$E$49<=4,Basisdaten!$G$49*Saisonalisierung!D47,0) -> 58332.12 | I47: =IF(Basisdaten!$E$49<=5,Basisdaten!$G$49*Saisonalisierung!E47,0) -> 55901.615 | J47: =IF(Basisdaten!$E$49<=6,Basisdaten!$G$49*Saisonalisierung!F47,0) -> 57984.905 | K47: =IF(Basisdaten!$E$49<=7,Basisdaten!$G$49*Saisonalisierung!G47,0) -> 59373.765 | L47: =IF(Basisdaten!$E$49<=8,Basisdaten!$G$49*Saisonalisierung!H47,0) -> 58332.12 | M47: =IF(Basisdaten!$E$49<=9,Basisdaten!$G$49*Saisonalisierung!I47,0) -> 59026.55 | N47: =IF(Basisdaten!$E$49<=10,Basisdaten!$G$49*Saisonalisierung!J47,0) -> 57290.475 | O47: =IF(Basisdaten!$E$49<=11,Basisdaten!$G$49*Saisonalisierung!K47,0) -> 59026.55 | P47: =IF(Basisdaten!$E$49<=12,Basisdaten!$G$49*Saisonalisierung!L47,0) -> 61457.055
A48: 1 | B48: =Basisdaten!B50 -> 55 | C48: =Basisdaten!A50 -> Ioannis Tsesmelis_ | D48: =Basisdaten!U50 -> 2022 | E48: =IF(Basisdaten!$E$50=1,Basisdaten!$G$50*Saisonalisierung!A48,0) -> 0 | F48: =IF(Basisdaten!$E$50<=2,Basisdaten!$G$50*Saisonalisierung!B48,0) -> 0 | G48: =IF(Basisdaten!$E$50<=3,Basisdaten!$G$50*Saisonalisierung!C48,0) -> 0 | H48: =IF(Basisdaten!$E$50<=4,Basisdaten!$G$50*Saisonalisierung!D48,0) -> 0 | I48: =IF(Basisdaten!$E$50<=5,Basisdaten!$G$50*Saisonalisierung!E48,0) -> 0 | J48: =IF(Basisdaten!$E$50<=6,Basisdaten!$G$50*Saisonalisierung!F48,0) -> 0 | K48: =IF(Basisdaten!$E$50<=7,Basisdaten!$G$50*Saisonalisierung!G48,0) -> 0 | L48: =IF(Basisdaten!$E$50<=8,Basisdaten!$G$50*Saisonalisierung!H48,0) -> 0 | M48: =IF(Basisdaten!$E$50<=9,Basisdaten!$G$50*Saisonalisierung!I48,0) -> 0 | N48: =IF(Basisdaten!$E$50<=10,Basisdaten!$G$50*Saisonalisierung!J48,0) -> 0 | O48: =IF(Basisdaten!$E$50<=11,Basisdaten!$G$50*Saisonalisierung!K48,0) -> 0 | P48: =IF(Basisdaten!$E$50<=12,Basisdaten!$G$50*Saisonalisierung!L48,0) -> 0
A49: 1 | B49: =Basisdaten!B51 -> 55 | C49: =Basisdaten!A51 -> Matthias Mirga_GZ | D49: =Basisdaten!U51 -> 2022 | E49: =IF(Basisdaten!$E$51=1,Basisdaten!$G$51*Saisonalisierung!A49,0) -> 52429.465 | F49: =IF(Basisdaten!$E$51<=2,Basisdaten!$G$51*Saisonalisierung!B49,0) -> 53471.11 | G49: =IF(Basisdaten!$E$51<=3,Basisdaten!$G$51*Saisonalisierung!C49,0) -> 61804.27 | H49: =IF(Basisdaten!$E$51<=4,Basisdaten!$G$51*Saisonalisierung!D49,0) -> 58332.12 | I49: =IF(Basisdaten!$E$51<=5,Basisdaten!$G$51*Saisonalisierung!E49,0) -> 55901.615 | J49: =IF(Basisdaten!$E$51<=6,Basisdaten!$G$51*Saisonalisierung!F49,0) -> 57984.905 | K49: =IF(Basisdaten!$E$51<=7,Basisdaten!$G$51*Saisonalisierung!G49,0) -> 59373.765 | L49: =IF(Basisdaten!$E$51<=8,Basisdaten!$G$51*Saisonalisierung!H49,0) -> 58332.12 | M49: =IF(Basisdaten!$E$51<=9,Basisdaten!$G$51*Saisonalisierung!I49,0) -> 59026.55 | N49: =IF(Basisdaten!$E$51<=10,Basisdaten!$G$51*Saisonalisierung!J49,0) -> 57290.475 | O49: =IF(Basisdaten!$E$51<=11,Basisdaten!$G$51*Saisonalisierung!K49,0) -> 59026.55 | P49: =IF(Basisdaten!$E$51<=12,Basisdaten!$G$51*Saisonalisierung!L49,0) -> 61457.055
A50: 2 | B50: =Basisdaten!B52 -> 60 | C50: =Basisdaten!A52 -> Hakan Celik | D50: =Basisdaten!U52 -> 2022 | E50: =IF(Basisdaten!$E$52=1,Basisdaten!$G$52*Saisonalisierung!A50,0) -> 52429.465 | F50: =IF(Basisdaten!$E$52<=2,Basisdaten!$G$52*Saisonalisierung!B50,0) -> 53471.11 | G50: =IF(Basisdaten!$E$52<=3,Basisdaten!$G$52*Saisonalisierung!C50,0) -> 61804.27 | H50: =IF(Basisdaten!$E$52<=4,Basisdaten!$G$52*Saisonalisierung!D50,0) -> 58332.12 | I50: =IF(Basisdaten!$E$52<=5,Basisdaten!$G$52*Saisonalisierung!E50,0) -> 55901.615 | J50: =IF(Basisdaten!$E$52<=6,Basisdaten!$G$52*Saisonalisierung!F50,0) -> 57984.905 | K50: =IF(Basisdaten!$E$52<=7,Basisdaten!$G$52*Saisonalisierung!G50,0) -> 59373.765 | L50: =IF(Basisdaten!$E$52<=8,Basisdaten!$G$52*Saisonalisierung!H50,0) -> 58332.12 | M50: =IF(Basisdaten!$E$52<=9,Basisdaten!$G$52*Saisonalisierung!I50,0) -> 59026.55 | N50: =IF(Basisdaten!$E$52<=10,Basisdaten!$G$52*Saisonalisierung!J50,0) -> 57290.475 | O50: =IF(Basisdaten!$E$52<=11,Basisdaten!$G$52*Saisonalisierung!K50,0) -> 59026.55 | P50: =IF(Basisdaten!$E$52<=12,Basisdaten!$G$52*Saisonalisierung!L50,0) -> 61457.055
A51: 1 | B51: =Basisdaten!B53 -> 40 | C51: =Basisdaten!A53 -> Tom Sprongl | D51: =Basisdaten!U53 -> 2022 | E51: =IF(Basisdaten!$E$53=1,Basisdaten!$G$53*Saisonalisierung!A51,0) -> 52429.465 | F51: =IF(Basisdaten!$E$53<=2,Basisdaten!$G$53*Saisonalisierung!B51,0) -> 53471.11 | G51: =IF(Basisdaten!$E$53<=3,Basisdaten!$G$53*Saisonalisierung!C51,0) -> 61804.27 | H51: =IF(Basisdaten!$E$53<=4,Basisdaten!$G$53*Saisonalisierung!D51,0) -> 58332.12 | I51: =IF(Basisdaten!$E$53<=5,Basisdaten!$G$53*Saisonalisierung!E51,0) -> 55901.615 | J51: =IF(Basisdaten!$E$53<=6,Basisdaten!$G$53*Saisonalisierung!F51,0) -> 57984.905 | K51: =IF(Basisdaten!$E$53<=7,Basisdaten!$G$53*Saisonalisierung!G51,0) -> 59373.765 | L51: =IF(Basisdaten!$E$53<=8,Basisdaten!$G$53*Saisonalisierung!H51,0) -> 58332.12 | M51: =IF(Basisdaten!$E$53<=9,Basisdaten!$G$53*Saisonalisierung!I51,0) -> 59026.55 | N51: =IF(Basisdaten!$E$53<=10,Basisdaten!$G$53*Saisonalisierung!J51,0) -> 57290.475 | O51: =IF(Basisdaten!$E$53<=11,Basisdaten!$G$53*Saisonalisierung!K51,0) -> 59026.55 | P51: =IF(Basisdaten!$E$53<=12,Basisdaten!$G$53*Saisonalisierung!L51,0) -> 61457.055
B52: =Basisdaten!B54 -> 0 | C52: =Basisdaten!A54 -> SB 5 | D52: =Basisdaten!U54 -> 0 | E52: =IF(Basisdaten!$E$54=1,Basisdaten!$G$54*Saisonalisierung!A52,0) -> 0 | F52: =IF(Basisdaten!$E$54<=2,Basisdaten!$G$54*Saisonalisierung!B52,0) -> 0 | G52: =IF(Basisdaten!$E$54<=3,Basisdaten!$G$54*Saisonalisierung!C52,0) -> 0 | H52: =IF(Basisdaten!$E$54<=4,Basisdaten!$G$54*Saisonalisierung!D52,0) -> 0 | I52: =IF(Basisdaten!$E$54<=5,Basisdaten!$G$54*Saisonalisierung!E52,0) -> 0 | J52: =IF(Basisdaten!$E$54<=6,Basisdaten!$G$54*Saisonalisierung!F52,0) -> 0 | K52: =IF(Basisdaten!$E$54<=7,Basisdaten!$G$54*Saisonalisierung!G52,0) -> 0 | L52: =IF(Basisdaten!$E$54<=8,Basisdaten!$G$54*Saisonalisierung!H52,0) -> 0 | M52: =IF(Basisdaten!$E$54<=9,Basisdaten!$G$54*Saisonalisierung!I52,0) -> 0 | N52: =IF(Basisdaten!$E$54<=10,Basisdaten!$G$54*Saisonalisierung!J52,0) -> 0 | O52: =IF(Basisdaten!$E$54<=11,Basisdaten!$G$54*Saisonalisierung!K52,0) -> 0 | P52: =IF(Basisdaten!$E$54<=12,Basisdaten!$G$54*Saisonalisierung!L52,0) -> 0
B53: =Basisdaten!B55 -> 0 | C53: =Basisdaten!A55 -> SB 6 | D53: =Basisdaten!U55 -> 0 | E53: =IF(Basisdaten!$E$55=1,Basisdaten!$G$55*Saisonalisierung!A53,0) -> 0 | F53: =IF(Basisdaten!$E$55<=2,Basisdaten!$G$55*Saisonalisierung!B53,0) -> 0 | G53: =IF(Basisdaten!$E$55<=3,Basisdaten!$G$55*Saisonalisierung!C53,0) -> 0 | H53: =IF(Basisdaten!$E$55<=4,Basisdaten!$G$55*Saisonalisierung!D53,0) -> 0 | I53: =IF(Basisdaten!$E$55<=5,Basisdaten!$G$55*Saisonalisierung!E53,0) -> 0 | J53: =IF(Basisdaten!$E$55<=6,Basisdaten!$G$55*Saisonalisierung!F53,0) -> 0 | K53: =IF(Basisdaten!$E$55<=7,Basisdaten!$G$55*Saisonalisierung!G53,0) -> 0 | L53: =IF(Basisdaten!$E$55<=8,Basisdaten!$G$55*Saisonalisierung!H53,0) -> 0 | M53: =IF(Basisdaten!$E$55<=9,Basisdaten!$G$55*Saisonalisierung!I53,0) -> 0 | N53: =IF(Basisdaten!$E$55<=10,Basisdaten!$G$55*Saisonalisierung!J53,0) -> 0 | O53: =IF(Basisdaten!$E$55<=11,Basisdaten!$G$55*Saisonalisierung!K53,0) -> 0 | P53: =IF(Basisdaten!$E$55<=12,Basisdaten!$G$55*Saisonalisierung!L53,0) -> 0
B54: =Basisdaten!B56 -> 0 | C54: =Basisdaten!A56 -> SB 7 | D54: =Basisdaten!U56 -> 0 | E54: =IF(Basisdaten!$E$56=1,Basisdaten!$G$56*Saisonalisierung!A54,0) -> 0 | F54: =IF(Basisdaten!$E$56<=2,Basisdaten!$G$56*Saisonalisierung!B54,0) -> 0 | G54: =IF(Basisdaten!$E$56<=3,Basisdaten!$G$56*Saisonalisierung!C54,0) -> 0 | H54: =IF(Basisdaten!$E$56<=4,Basisdaten!$G$56*Saisonalisierung!D54,0) -> 0 | I54: =IF(Basisdaten!$E$56<=5,Basisdaten!$G$56*Saisonalisierung!E54,0) -> 0 | J54: =IF(Basisdaten!$E$56<=6,Basisdaten!$G$56*Saisonalisierung!F54,0) -> 0 | K54: =IF(Basisdaten!$E$56<=7,Basisdaten!$G$56*Saisonalisierung!G54,0) -> 0 | L54: =IF(Basisdaten!$E$56<=8,Basisdaten!$G$56*Saisonalisierung!H54,0) -> 0 | M54: =IF(Basisdaten!$E$56<=9,Basisdaten!$G$56*Saisonalisierung!I54,0) -> 0 | N54: =IF(Basisdaten!$E$56<=10,Basisdaten!$G$56*Saisonalisierung!J54,0) -> 0 | O54: =IF(Basisdaten!$E$56<=11,Basisdaten!$G$56*Saisonalisierung!K54,0) -> 0 | P54: =IF(Basisdaten!$E$56<=12,Basisdaten!$G$56*Saisonalisierung!L54,0) -> 0
B55: =Basisdaten!B57 -> 0 | C55: =Basisdaten!A57 -> SB 8 | D55: =Basisdaten!U57 -> 0 | E55: =IF(Basisdaten!$E$57=1,Basisdaten!$G$57*Saisonalisierung!A55,0) -> 0 | F55: =IF(Basisdaten!$E$57<=2,Basisdaten!$G$57*Saisonalisierung!B55,0) -> 0 | G55: =IF(Basisdaten!$E$57<=3,Basisdaten!$G$57*Saisonalisierung!C55,0) -> 0 | H55: =IF(Basisdaten!$E$57<=4,Basisdaten!$G$57*Saisonalisierung!D55,0) -> 0 | I55: =IF(Basisdaten!$E$57<=5,Basisdaten!$G$57*Saisonalisierung!E55,0) -> 0 | J55: =IF(Basisdaten!$E$57<=6,Basisdaten!$G$57*Saisonalisierung!F55,0) -> 0 | K55: =IF(Basisdaten!$E$57<=7,Basisdaten!$G$57*Saisonalisierung!G55,0) -> 0 | L55: =IF(Basisdaten!$E$57<=8,Basisdaten!$G$57*Saisonalisierung!H55,0) -> 0 | M55: =IF(Basisdaten!$E$57<=9,Basisdaten!$G$57*Saisonalisierung!I55,0) -> 0 | N55: =IF(Basisdaten!$E$57<=10,Basisdaten!$G$57*Saisonalisierung!J55,0) -> 0 | O55: =IF(Basisdaten!$E$57<=11,Basisdaten!$G$57*Saisonalisierung!K55,0) -> 0 | P55: =IF(Basisdaten!$E$57<=12,Basisdaten!$G$57*Saisonalisierung!L55,0) -> 0
B56: =Basisdaten!B58 -> 0 | C56: =Basisdaten!A58 -> SB 9 | D56: =Basisdaten!U58 -> 0 | E56: =IF(Basisdaten!$E$58=1,Basisdaten!$G$58*Saisonalisierung!A56,0) -> 0 | F56: =IF(Basisdaten!$E$58<=2,Basisdaten!$G$58*Saisonalisierung!B56,0) -> 0 | G56: =IF(Basisdaten!$E$58<=3,Basisdaten!$G$58*Saisonalisierung!C56,0) -> 0 | H56: =IF(Basisdaten!$E$58<=4,Basisdaten!$G$58*Saisonalisierung!D56,0) -> 0 | I56: =IF(Basisdaten!$E$58<=5,Basisdaten!$G$58*Saisonalisierung!E56,0) -> 0 | J56: =IF(Basisdaten!$E$58<=6,Basisdaten!$G$58*Saisonalisierung!F56,0) -> 0 | K56: =IF(Basisdaten!$E$58<=7,Basisdaten!$G$58*Saisonalisierung!G56,0) -> 0 | L56: =IF(Basisdaten!$E$58<=8,Basisdaten!$G$58*Saisonalisierung!H56,0) -> 0 | M56: =IF(Basisdaten!$E$58<=9,Basisdaten!$G$58*Saisonalisierung!I56,0) -> 0 | N56: =IF(Basisdaten!$E$58<=10,Basisdaten!$G$58*Saisonalisierung!J56,0) -> 0 | O56: =IF(Basisdaten!$E$58<=11,Basisdaten!$G$58*Saisonalisierung!K56,0) -> 0 | P56: =IF(Basisdaten!$E$58<=12,Basisdaten!$G$58*Saisonalisierung!L56,0) -> 0
B57: =Basisdaten!B59 -> 0 | C57: =Basisdaten!A59 -> SB 10 | D57: =Basisdaten!U59 -> 0 | E57: =IF(Basisdaten!$E$59=1,Basisdaten!$G$59*Saisonalisierung!A57,0) -> 0 | F57: =IF(Basisdaten!$E$59<=2,Basisdaten!$G$59*Saisonalisierung!B57,0) -> 0 | G57: =IF(Basisdaten!$E$59<=3,Basisdaten!$G$59*Saisonalisierung!C57,0) -> 0 | H57: =IF(Basisdaten!$E$59<=4,Basisdaten!$G$59*Saisonalisierung!D57,0) -> 0 | I57: =IF(Basisdaten!$E$59<=5,Basisdaten!$G$59*Saisonalisierung!E57,0) -> 0 | J57: =IF(Basisdaten!$E$59<=6,Basisdaten!$G$59*Saisonalisierung!F57,0) -> 0 | K57: =IF(Basisdaten!$E$59<=7,Basisdaten!$G$59*Saisonalisierung!G57,0) -> 0 | L57: =IF(Basisdaten!$E$59<=8,Basisdaten!$G$59*Saisonalisierung!H57,0) -> 0 | M57: =IF(Basisdaten!$E$59<=9,Basisdaten!$G$59*Saisonalisierung!I57,0) -> 0 | N57: =IF(Basisdaten!$E$59<=10,Basisdaten!$G$59*Saisonalisierung!J57,0) -> 0 | O57: =IF(Basisdaten!$E$59<=11,Basisdaten!$G$59*Saisonalisierung!K57,0) -> 0 | P57: =IF(Basisdaten!$E$59<=12,Basisdaten!$G$59*Saisonalisierung!L57,0) -> 0

Sheet Verarb_DG
A1: Hauptbetrieb | B1: Standort | C1: Serviceberater | D1: Invoice Date | E1: DG_Plan_1 | F1: DG_Plan_2 | G1: DG_Plan_3 | H1: DG_Plan_4 | I1: DG_Plan_5 | J1: DG_Plan_6 | K1: DG_Plan_7 | L1: DG_Plan_8 | M1: DG_Plan_9 | N1: DG_Plan_10 | O1: DG_Plan_11 | P1: DG_Plan_12
A2: 1 | B2: =Basisdaten!B4 -> 10 | C2: =Basisdaten!A4 -> Erich Harzenetter - SCBK | D2: =Basisdaten!U4 -> 2022 | E2: =IF(Basisdaten!$E$4=1,Basisdaten!$K$4*Saisonalisierung!A2,0) -> 177.727 | F2: =IF(Basisdaten!$E$4<=2,Basisdaten!$K$4*Saisonalisierung!B2,0) -> 181.258 | G2: =IF(Basisdaten!$E$4<=3,Basisdaten!$K$4*Saisonalisierung!C2,0) -> 209.506 | H2: =IF(Basisdaten!$E$4<=4,Basisdaten!$K$4*Saisonalisierung!D2,0) -> 197.736 | I2: =IF(Basisdaten!$E$4<=5,Basisdaten!$K$4*Saisonalisierung!E2,0) -> 189.497 | J2: =IF(Basisdaten!$E$4<=6,Basisdaten!$K$4*Saisonalisierung!F2,0) -> 196.559 | K2: =IF(Basisdaten!$E$4<=7,Basisdaten!$K$4*Saisonalisierung!G2,0) -> 201.267 | L2: =IF(Basisdaten!$E$4<=8,Basisdaten!$K$4*Saisonalisierung!H2,0) -> 197.736 | M2: =IF(Basisdaten!$E$4<=9,Basisdaten!$K$4*Saisonalisierung!I2,0) -> 200.09 | N2: =IF(Basisdaten!$E$4<=10,Basisdaten!$K$4*Saisonalisierung!J2,0) -> 194.205 | O2: =IF(Basisdaten!$E$4<=11,Basisdaten!$K$4*Saisonalisierung!K2,0) -> 200.09 | P2: =IF(Basisdaten!$E$4<=12,Basisdaten!$K$4*Saisonalisierung!L2,0) -> 208.329
A3: 1 | B3: =Basisdaten!B5 -> 10 | C3: =Basisdaten!A5 -> Johannes Grieser - SCBI | D3: =Basisdaten!U5 -> 2022 | E3: =IF(Basisdaten!$E$5=1,Basisdaten!$K$5*Saisonalisierung!A3,0) -> 177.727 | F3: =IF(Basisdaten!$E$5<=2,Basisdaten!$K$5*Saisonalisierung!B3,0) -> 181.258 | G3: =IF(Basisdaten!$E$5<=3,Basisdaten!$K$5*Saisonalisierung!C3,0) -> 209.506 | H3: =IF(Basisdaten!$E$5<=4,Basisdaten!$K$5*Saisonalisierung!D3,0) -> 197.736 | I3: =IF(Basisdaten!$E$5<=5,Basisdaten!$K$5*Saisonalisierung!E3,0) -> 189.497 | J3: =IF(Basisdaten!$E$5<=6,Basisdaten!$K$5*Saisonalisierung!F3,0) -> 196.559 | K3: =IF(Basisdaten!$E$5<=7,Basisdaten!$K$5*Saisonalisierung!G3,0) -> 201.267 | L3: =IF(Basisdaten!$E$5<=8,Basisdaten!$K$5*Saisonalisierung!H3,0) -> 197.736 | M3: =IF(Basisdaten!$E$5<=9,Basisdaten!$K$5*Saisonalisierung!I3,0) -> 200.09 | N3: =IF(Basisdaten!$E$5<=10,Basisdaten!$K$5*Saisonalisierung!J3,0) -> 194.205 | O3: =IF(Basisdaten!$E$5<=11,Basisdaten!$K$5*Saisonalisierung!K3,0) -> 200.09 | P3: =IF(Basisdaten!$E$5<=12,Basisdaten!$K$5*Saisonalisierung!L3,0) -> 208.329
A4: 1 | B4: =Basisdaten!B6 -> 10 | C4: =Basisdaten!A6 -> Mike Weber | D4: =Basisdaten!U6 -> 2022 | E4: =IF(Basisdaten!$E$6=1,Basisdaten!$K$6*Saisonalisierung!A4,0) -> 177.727 | F4: =IF(Basisdaten!$E$6<=2,Basisdaten!$K$6*Saisonalisierung!B4,0) -> 181.258 | G4: =IF(Basisdaten!$E$6<=3,Basisdaten!$K$6*Saisonalisierung!C4,0) -> 209.506 | H4: =IF(Basisdaten!$E$6<=4,Basisdaten!$K$6*Saisonalisierung!D4,0) -> 197.736 | I4: =IF(Basisdaten!$E$6<=5,Basisdaten!$K$6*Saisonalisierung!E4,0) -> 189.497 | J4: =IF(Basisdaten!$E$6<=6,Basisdaten!$K$6*Saisonalisierung!F4,0) -> 196.559 | K4: =IF(Basisdaten!$E$6<=7,Basisdaten!$K$6*Saisonalisierung!G4,0) -> 201.267 | L4: =IF(Basisdaten!$E$6<=8,Basisdaten!$K$6*Saisonalisierung!H4,0) -> 197.736 | M4: =IF(Basisdaten!$E$6<=9,Basisdaten!$K$6*Saisonalisierung!I4,0) -> 200.09 | N4: =IF(Basisdaten!$E$6<=10,Basisdaten!$K$6*Saisonalisierung!J4,0) -> 194.205 | O4: =IF(Basisdaten!$E$6<=11,Basisdaten!$K$6*Saisonalisierung!K4,0) -> 200.09 | P4: =IF(Basisdaten!$E$6<=12,Basisdaten!$K$6*Saisonalisierung!L4,0) -> 208.329
A5: 1 | B5: =Basisdaten!B7 -> 10 | C5: =Basisdaten!A7 -> Rudolf Maier | D5: =Basisdaten!U7 -> 2022 | E5: =IF(Basisdaten!$E$7=1,Basisdaten!$K$7*Saisonalisierung!A5,0) -> 177.727 | F5: =IF(Basisdaten!$E$7<=2,Basisdaten!$K$7*Saisonalisierung!B5,0) -> 181.258 | G5: =IF(Basisdaten!$E$7<=3,Basisdaten!$K$7*Saisonalisierung!C5,0) -> 209.506 | H5: =IF(Basisdaten!$E$7<=4,Basisdaten!$K$7*Saisonalisierung!D5,0) -> 197.736 | I5: =IF(Basisdaten!$E$7<=5,Basisdaten!$K$7*Saisonalisierung!E5,0) -> 189.497 | J5: =IF(Basisdaten!$E$7<=6,Basisdaten!$K$7*Saisonalisierung!F5,0) -> 196.559 | K5: =IF(Basisdaten!$E$7<=7,Basisdaten!$K$7*Saisonalisierung!G5,0) -> 201.267 | L5: =IF(Basisdaten!$E$7<=8,Basisdaten!$K$7*Saisonalisierung!H5,0) -> 197.736 | M5: =IF(Basisdaten!$E$7<=9,Basisdaten!$K$7*Saisonalisierung!I5,0) -> 200.09 | N5: =IF(Basisdaten!$E$7<=10,Basisdaten!$K$7*Saisonalisierung!J5,0) -> 194.205 | O5: =IF(Basisdaten!$E$7<=11,Basisdaten!$K$7*Saisonalisierung!K5,0) -> 200.09 | P5: =IF(Basisdaten!$E$7<=12,Basisdaten!$K$7*Saisonalisierung!L5,0) -> 208.329
A6: 1 | B6: =Basisdaten!B8 -> 10 | C6: =Basisdaten!A8 -> Hermann Haller_ | D6: =Basisdaten!U8 -> 2022 | E6: =IF(Basisdaten!$E$8=1,Basisdaten!$K$8*Saisonalisierung!A6,0) -> 0 | F6: =IF(Basisdaten!$E$8<=2,Basisdaten!$K$8*Saisonalisierung!B6,0) -> 0 | G6: =IF(Basisdaten!$E$8<=3,Basisdaten!$K$8*Saisonalisierung!C6,0) -> 0 | H6: =IF(Basisdaten!$E$8<=4,Basisdaten!$K$8*Saisonalisierung!D6,0) -> 0 | I6: =IF(Basisdaten!$E$8<=5,Basisdaten!$K$8*Saisonalisierung!E6,0) -> 0 | J6: =IF(Basisdaten!$E$8<=6,Basisdaten!$K$8*Saisonalisierung!F6,0) -> 0 | K6: =IF(Basisdaten!$E$8<=7,Basisdaten!$K$8*Saisonalisierung!G6,0) -> 0 | L6: =IF(Basisdaten!$E$8<=8,Basisdaten!$K$8*Saisonalisierung!H6,0) -> 0 | M6: =IF(Basisdaten!$E$8<=9,Basisdaten!$K$8*Saisonalisierung!I6,0) -> 0 | N6: =IF(Basisdaten!$E$8<=10,Basisdaten!$K$8*Saisonalisierung!J6,0) -> 0 | O6: =IF(Basisdaten!$E$8<=11,Basisdaten!$K$8*Saisonalisierung!K6,0) -> 0 | P6: =IF(Basisdaten!$E$8<=12,Basisdaten!$K$8*Saisonalisierung!L6,0) -> 0
A7: 1 | B7: =Basisdaten!B9 -> 10 | C7: =Basisdaten!A9 -> Christopher Kirmayer | D7: =Basisdaten!U9 -> 2022 | E7: =IF(Basisdaten!$E$9=1,Basisdaten!$K$9*Saisonalisierung!A7,0) -> 177.727 | F7: =IF(Basisdaten!$E$9<=2,Basisdaten!$K$9*Saisonalisierung!B7,0) -> 181.258 | G7: =IF(Basisdaten!$E$9<=3,Basisdaten!$K$9*Saisonalisierung!C7,0) -> 209.506 | H7: =IF(Basisdaten!$E$9<=4,Basisdaten!$K$9*Saisonalisierung!D7,0) -> 197.736 | I7: =IF(Basisdaten!$E$9<=5,Basisdaten!$K$9*Saisonalisierung!E7,0) -> 189.497 | J7: =IF(Basisdaten!$E$9<=6,Basisdaten!$K$9*Saisonalisierung!F7,0) -> 196.559 | K7: =IF(Basisdaten!$E$9<=7,Basisdaten!$K$9*Saisonalisierung!G7,0) -> 201.267 | L7: =IF(Basisdaten!$E$9<=8,Basisdaten!$K$9*Saisonalisierung!H7,0) -> 197.736 | M7: =IF(Basisdaten!$E$9<=9,Basisdaten!$K$9*Saisonalisierung!I7,0) -> 200.09 | N7: =IF(Basisdaten!$E$9<=10,Basisdaten!$K$9*Saisonalisierung!J7,0) -> 194.205 | O7: =IF(Basisdaten!$E$9<=11,Basisdaten!$K$9*Saisonalisierung!K7,0) -> 200.09 | P7: =IF(Basisdaten!$E$9<=12,Basisdaten!$K$9*Saisonalisierung!L7,0) -> 208.329
A8: 1 | B8: =Basisdaten!B10 -> 10 | C8: =Basisdaten!A10 -> Jörg Reifenrath | D8: =Basisdaten!U10 -> 2022 | E8: =IF(Basisdaten!$E$10=1,Basisdaten!$K$10*Saisonalisierung!A8,0) -> 177.727 | F8: =IF(Basisdaten!$E$10<=2,Basisdaten!$K$10*Saisonalisierung!B8,0) -> 181.258 | G8: =IF(Basisdaten!$E$10<=3,Basisdaten!$K$10*Saisonalisierung!C8,0) -> 209.506 | H8: =IF(Basisdaten!$E$10<=4,Basisdaten!$K$10*Saisonalisierung!D8,0) -> 197.736 | I8: =IF(Basisdaten!$E$10<=5,Basisdaten!$K$10*Saisonalisierung!E8,0) -> 189.497 | J8: =IF(Basisdaten!$E$10<=6,Basisdaten!$K$10*Saisonalisierung!F8,0) -> 196.559 | K8: =IF(Basisdaten!$E$10<=7,Basisdaten!$K$10*Saisonalisierung!G8,0) -> 201.267 | L8: =IF(Basisdaten!$E$10<=8,Basisdaten!$K$10*Saisonalisierung!H8,0) -> 197.736 | M8: =IF(Basisdaten!$E$10<=9,Basisdaten!$K$10*Saisonalisierung!I8,0) -> 200.09 | N8: =IF(Basisdaten!$E$10<=10,Basisdaten!$K$10*Saisonalisierung!J8,0) -> 194.205 | O8: =IF(Basisdaten!$E$10<=11,Basisdaten!$K$10*Saisonalisierung!K8,0) -> 200.09 | P8: =IF(Basisdaten!$E$10<=12,Basisdaten!$K$10*Saisonalisierung!L8,0) -> 208.329
A9: 1 | B9: =Basisdaten!B11 -> 10 | C9: =Basisdaten!A11 -> Günter Küblbeck - SCBI_ | D9: =Basisdaten!U11 -> 2022 | E9: =IF(Basisdaten!$E$11=1,Basisdaten!$K$11*Saisonalisierung!A9,0) -> 0 | F9: =IF(Basisdaten!$E$11<=2,Basisdaten!$K$11*Saisonalisierung!B9,0) -> 0 | G9: =IF(Basisdaten!$E$11<=3,Basisdaten!$K$11*Saisonalisierung!C9,0) -> 0 | H9: =IF(Basisdaten!$E$11<=4,Basisdaten!$K$11*Saisonalisierung!D9,0) -> 0 | I9: =IF(Basisdaten!$E$11<=5,Basisdaten!$K$11*Saisonalisierung!E9,0) -> 0 | J9: =IF(Basisdaten!$E$11<=6,Basisdaten!$K$11*Saisonalisierung!F9,0) -> 0 | K9: =IF(Basisdaten!$E$11<=7,Basisdaten!$K$11*Saisonalisierung!G9,0) -> 0 | L9: =IF(Basisdaten!$E$11<=8,Basisdaten!$K$11*Saisonalisierung!H9,0) -> 0 | M9: =IF(Basisdaten!$E$11<=9,Basisdaten!$K$11*Saisonalisierung!I9,0) -> 0 | N9: =IF(Basisdaten!$E$11<=10,Basisdaten!$K$11*Saisonalisierung!J9,0) -> 0 | O9: =IF(Basisdaten!$E$11<=11,Basisdaten!$K$11*Saisonalisierung!K9,0) -> 0 | P9: =IF(Basisdaten!$E$11<=12,Basisdaten!$K$11*Saisonalisierung!L9,0) -> 0
A10: 1 | B10: =Basisdaten!B12 -> 10 | C10: =Basisdaten!A12 -> Patrick Kresser | D10: =Basisdaten!U12 -> 2022 | E10: =IF(Basisdaten!$E$12=1,Basisdaten!$K$12*Saisonalisierung!A10,0) -> 177.727 | F10: =IF(Basisdaten!$E$12<=2,Basisdaten!$K$12*Saisonalisierung!B10,0) -> 181.258 | G10: =IF(Basisdaten!$E$12<=3,Basisdaten!$K$12*Saisonalisierung!C10,0) -> 209.506 | H10: =IF(Basisdaten!$E$12<=4,Basisdaten!$K$12*Saisonalisierung!D10,0) -> 197.736 | I10: =IF(Basisdaten!$E$12<=5,Basisdaten!$K$12*Saisonalisierung!E10,0) -> 189.497 | J10: =IF(Basisdaten!$E$12<=6,Basisdaten!$K$12*Saisonalisierung!F10,0) -> 196.559 | K10: =IF(Basisdaten!$E$12<=7,Basisdaten!$K$12*Saisonalisierung!G10,0) -> 201.267 | L10: =IF(Basisdaten!$E$12<=8,Basisdaten!$K$12*Saisonalisierung!H10,0) -> 197.736 | M10: =IF(Basisdaten!$E$12<=9,Basisdaten!$K$12*Saisonalisierung!I10,0) -> 200.09 | N10: =IF(Basisdaten!$E$12<=10,Basisdaten!$K$12*Saisonalisierung!J10,0) -> 194.205 | O10: =IF(Basisdaten!$E$12<=11,Basisdaten!$K$12*Saisonalisierung!K10,0) -> 200.09 | P10: =IF(Basisdaten!$E$12<=12,Basisdaten!$K$12*Saisonalisierung!L10,0) -> 208.329
A11: 1 | B11: =Basisdaten!B13 -> 30 | C11: =Basisdaten!A13 -> Ralf Ruchti | D11: =Basisdaten!U13 -> 2022 | E11: =IF(Basisdaten!$E$13=1,Basisdaten!$K$13*Saisonalisierung!A11,0) -> 124.4089 | F11: =IF(Basisdaten!$E$13<=2,Basisdaten!$K$13*Saisonalisierung!B11,0) -> 126.8806 | G11: =IF(Basisdaten!$E$13<=3,Basisdaten!$K$13*Saisonalisierung!C11,0) -> 146.6542 | H11: =IF(Basisdaten!$E$13<=4,Basisdaten!$K$13*Saisonalisierung!D11,0) -> 138.4152 | I11: =IF(Basisdaten!$E$13<=5,Basisdaten!$K$13*Saisonalisierung!E11,0) -> 132.6479 | J11: =IF(Basisdaten!$E$13<=6,Basisdaten!$K$13*Saisonalisierung!F11,0) -> 137.5913 | K11: =IF(Basisdaten!$E$13<=7,Basisdaten!$K$13*Saisonalisierung!G11,0) -> 140.8869 | L11: =IF(Basisdaten!$E$13<=8,Basisdaten!$K$13*Saisonalisierung!H11,0) -> 138.4152 | M11: =IF(Basisdaten!$E$13<=9,Basisdaten!$K$13*Saisonalisierung!I11,0) -> 140.063 | N11: =IF(Basisdaten!$E$13<=10,Basisdaten!$K$13*Saisonalisierung!J11,0) -> 135.9435 | O11: =IF(Basisdaten!$E$13<=11,Basisdaten!$K$13*Saisonalisierung!K11,0) -> 140.063 | P11: =IF(Basisdaten!$E$13<=12,Basisdaten!$K$13*Saisonalisierung!L11,0) -> 145.8303
A12: 1 | B12: =Basisdaten!B14 -> 30 | C12: =Basisdaten!A14 -> Matthias Mirga | D12: =Basisdaten!U14 -> 2022 | E12: =IF(Basisdaten!$E$14=1,Basisdaten!$K$14*Saisonalisierung!A12,0) -> 177.727 | F12: =IF(Basisdaten!$E$14<=2,Basisdaten!$K$14*Saisonalisierung!B12,0) -> 181.258 | G12: =IF(Basisdaten!$E$14<=3,Basisdaten!$K$14*Saisonalisierung!C12,0) -> 209.506 | H12: =IF(Basisdaten!$E$14<=4,Basisdaten!$K$14*Saisonalisierung!D12,0) -> 197.736 | I12: =IF(Basisdaten!$E$14<=5,Basisdaten!$K$14*Saisonalisierung!E12,0) -> 189.497 | J12: =IF(Basisdaten!$E$14<=6,Basisdaten!$K$14*Saisonalisierung!F12,0) -> 196.559 | K12: =IF(Basisdaten!$E$14<=7,Basisdaten!$K$14*Saisonalisierung!G12,0) -> 201.267 | L12: =IF(Basisdaten!$E$14<=8,Basisdaten!$K$14*Saisonalisierung!H12,0) -> 197.736 | M12: =IF(Basisdaten!$E$14<=9,Basisdaten!$K$14*Saisonalisierung!I12,0) -> 200.09 | N12: =IF(Basisdaten!$E$14<=10,Basisdaten!$K$14*Saisonalisierung!J12,0) -> 194.205 | O12: =IF(Basisdaten!$E$14<=11,Basisdaten!$K$14*Saisonalisierung!K12,0) -> 200.09 | P12: =IF(Basisdaten!$E$14<=12,Basisdaten!$K$14*Saisonalisierung!L12,0) -> 208.329
A13: 1 | B13: =Basisdaten!B15 -> 40 | C13: =Basisdaten!A15 -> Wolfgang Heckelmiller - SCBK | D13: =Basisdaten!U15 -> 2022 | E13: =IF(Basisdaten!$E$15=1,Basisdaten!$K$15*Saisonalisierung!A13,0) -> 177.727 | F13: =IF(Basisdaten!$E$15<=2,Basisdaten!$K$15*Saisonalisierung!B13,0) -> 181.258 | G13: =IF(Basisdaten!$E$15<=3,Basisdaten!$K$15*Saisonalisierung!C13,0) -> 209.506 | H13: =IF(Basisdaten!$E$15<=4,Basisdaten!$K$15*Saisonalisierung!D13,0) -> 197.736 | I13: =IF(Basisdaten!$E$15<=5,Basisdaten!$K$15*Saisonalisierung!E13,0) -> 189.497 | J13: =IF(Basisdaten!$E$15<=6,Basisdaten!$K$15*Saisonalisierung!F13,0) -> 196.559 | K13: =IF(Basisdaten!$E$15<=7,Basisdaten!$K$15*Saisonalisierung!G13,0) -> 201.267 | L13: =IF(Basisdaten!$E$15<=8,Basisdaten!$K$15*Saisonalisierung!H13,0) -> 197.736 | M13: =IF(Basisdaten!$E$15<=9,Basisdaten!$K$15*Saisonalisierung!I13,0) -> 200.09 | N13: =IF(Basisdaten!$E$15<=10,Basisdaten!$K$15*Saisonalisierung!J13,0) -> 194.205 | O13: =IF(Basisdaten!$E$15<=11,Basisdaten!$K$15*Saisonalisierung!K13,0) -> 200.09 | P13: =IF(Basisdaten!$E$15<=12,Basisdaten!$K$15*Saisonalisierung!L13,0) -> 208.329
A14: 1 | B14: =Basisdaten!B16 -> 40 | C14: =Basisdaten!A16 -> Daniel Klingenstein | D14: =Basisdaten!U16 -> 2022 | E14: =IF(Basisdaten!$E$16=1,Basisdaten!$K$16*Saisonalisierung!A14,0) -> 177.727 | F14: =IF(Basisdaten!$E$16<=2,Basisdaten!$K$16*Saisonalisierung!B14,0) -> 181.258 | G14: =IF(Basisdaten!$E$16<=3,Basisdaten!$K$16*Saisonalisierung!C14,0) -> 209.506 | H14: =IF(Basisdaten!$E$16<=4,Basisdaten!$K$16*Saisonalisierung!D14,0) -> 197.736 | I14: =IF(Basisdaten!$E$16<=5,Basisdaten!$K$16*Saisonalisierung!E14,0) -> 189.497 | J14: =IF(Basisdaten!$E$16<=6,Basisdaten!$K$16*Saisonalisierung!F14,0) -> 196.559 | K14: =IF(Basisdaten!$E$16<=7,Basisdaten!$K$16*Saisonalisierung!G14,0) -> 201.267 | L14: =IF(Basisdaten!$E$16<=8,Basisdaten!$K$16*Saisonalisierung!H14,0) -> 197.736 | M14: =IF(Basisdaten!$E$16<=9,Basisdaten!$K$16*Saisonalisierung!I14,0) -> 200.09 | N14: =IF(Basisdaten!$E$16<=10,Basisdaten!$K$16*Saisonalisierung!J14,0) -> 194.205 | O14: =IF(Basisdaten!$E$16<=11,Basisdaten!$K$16*Saisonalisierung!K14,0) -> 200.09 | P14: =IF(Basisdaten!$E$16<=12,Basisdaten!$K$16*Saisonalisierung!L14,0) -> 208.329
A15: 1 | B15: =Basisdaten!B17 -> 40 | C15: =Basisdaten!A17 -> Alnes Zenic | D15: =Basisdaten!U17 -> 2022 | E15: =IF(Basisdaten!$E$17=1,Basisdaten!$K$17*Saisonalisierung!A15,0) -> 177.727 | F15: =IF(Basisdaten!$E$17<=2,Basisdaten!$K$17*Saisonalisierung!B15,0) -> 181.258 | G15: =IF(Basisdaten!$E$17<=3,Basisdaten!$K$17*Saisonalisierung!C15,0) -> 209.506 | H15: =IF(Basisdaten!$E$17<=4,Basisdaten!$K$17*Saisonalisierung!D15,0) -> 197.736 | I15: =IF(Basisdaten!$E$17<=5,Basisdaten!$K$17*Saisonalisierung!E15,0) -> 189.497 | J15: =IF(Basisdaten!$E$17<=6,Basisdaten!$K$17*Saisonalisierung!F15,0) -> 196.559 | K15: =IF(Basisdaten!$E$17<=7,Basisdaten!$K$17*Saisonalisierung!G15,0) -> 201.267 | L15: =IF(Basisdaten!$E$17<=8,Basisdaten!$K$17*Saisonalisierung!H15,0) -> 197.736 | M15: =IF(Basisdaten!$E$17<=9,Basisdaten!$K$17*Saisonalisierung!I15,0) -> 200.09 | N15: =IF(Basisdaten!$E$17<=10,Basisdaten!$K$17*Saisonalisierung!J15,0) -> 194.205 | O15: =IF(Basisdaten!$E$17<=11,Basisdaten!$K$17*Saisonalisierung!K15,0) -> 200.09 | P15: =IF(Basisdaten!$E$17<=12,Basisdaten!$K$17*Saisonalisierung!L15,0) -> 208.329
A16: 1 | B16: =Basisdaten!B18 -> 40 | C16: =Basisdaten!A18 -> Mehmet Dikmen | D16: =Basisdaten!U18 -> 2022 | E16: =IF(Basisdaten!$E$18=1,Basisdaten!$K$18*Saisonalisierung!A16,0) -> 177.727 | F16: =IF(Basisdaten!$E$18<=2,Basisdaten!$K$18*Saisonalisierung!B16,0) -> 181.258 | G16: =IF(Basisdaten!$E$18<=3,Basisdaten!$K$18*Saisonalisierung!C16,0) -> 209.506 | H16: =IF(Basisdaten!$E$18<=4,Basisdaten!$K$18*Saisonalisierung!D16,0) -> 197.736 | I16: =IF(Basisdaten!$E$18<=5,Basisdaten!$K$18*Saisonalisierung!E16,0) -> 189.497 | J16: =IF(Basisdaten!$E$18<=6,Basisdaten!$K$18*Saisonalisierung!F16,0) -> 196.559 | K16: =IF(Basisdaten!$E$18<=7,Basisdaten!$K$18*Saisonalisierung!G16,0) -> 201.267 | L16: =IF(Basisdaten!$E$18<=8,Basisdaten!$K$18*Saisonalisierung!H16,0) -> 197.736 | M16: =IF(Basisdaten!$E$18<=9,Basisdaten!$K$18*Saisonalisierung!I16,0) -> 200.09 | N16: =IF(Basisdaten!$E$18<=10,Basisdaten!$K$18*Saisonalisierung!J16,0) -> 194.205 | O16: =IF(Basisdaten!$E$18<=11,Basisdaten!$K$18*Saisonalisierung!K16,0) -> 200.09 | P16: =IF(Basisdaten!$E$18<=12,Basisdaten!$K$18*Saisonalisierung!L16,0) -> 208.329
A17: 1 | B17: =Basisdaten!B19 -> 40 | C17: =Basisdaten!A19 -> Gerrit Heine | D17: =Basisdaten!U19 -> 2022 | E17: =IF(Basisdaten!$E$19=1,Basisdaten!$K$19*Saisonalisierung!A17,0) -> 177.727 | F17: =IF(Basisdaten!$E$19<=2,Basisdaten!$K$19*Saisonalisierung!B17,0) -> 181.258 | G17: =IF(Basisdaten!$E$19<=3,Basisdaten!$K$19*Saisonalisierung!C17,0) -> 209.506 | H17: =IF(Basisdaten!$E$19<=4,Basisdaten!$K$19*Saisonalisierung!D17,0) -> 197.736 | I17: =IF(Basisdaten!$E$19<=5,Basisdaten!$K$19*Saisonalisierung!E17,0) -> 189.497 | J17: =IF(Basisdaten!$E$19<=6,Basisdaten!$K$19*Saisonalisierung!F17,0) -> 196.559 | K17: =IF(Basisdaten!$E$19<=7,Basisdaten!$K$19*Saisonalisierung!G17,0) -> 201.267 | L17: =IF(Basisdaten!$E$19<=8,Basisdaten!$K$19*Saisonalisierung!H17,0) -> 197.736 | M17: =IF(Basisdaten!$E$19<=9,Basisdaten!$K$19*Saisonalisierung!I17,0) -> 200.09 | N17: =IF(Basisdaten!$E$19<=10,Basisdaten!$K$19*Saisonalisierung!J17,0) -> 194.205 | O17: =IF(Basisdaten!$E$19<=11,Basisdaten!$K$19*Saisonalisierung!K17,0) -> 200.09 | P17: =IF(Basisdaten!$E$19<=12,Basisdaten!$K$19*Saisonalisierung!L17,0) -> 208.329
A18: 1 | B18: =Basisdaten!B20 -> 40 | C18: =Basisdaten!A20 -> Lars Krausen | D18: =Basisdaten!U20 -> 2022 | E18: =IF(Basisdaten!$E$20=1,Basisdaten!$K$20*Saisonalisierung!A18,0) -> 177.727 | F18: =IF(Basisdaten!$E$20<=2,Basisdaten!$K$20*Saisonalisierung!B18,0) -> 181.258 | G18: =IF(Basisdaten!$E$20<=3,Basisdaten!$K$20*Saisonalisierung!C18,0) -> 209.506 | H18: =IF(Basisdaten!$E$20<=4,Basisdaten!$K$20*Saisonalisierung!D18,0) -> 197.736 | I18: =IF(Basisdaten!$E$20<=5,Basisdaten!$K$20*Saisonalisierung!E18,0) -> 189.497 | J18: =IF(Basisdaten!$E$20<=6,Basisdaten!$K$20*Saisonalisierung!F18,0) -> 196.559 | K18: =IF(Basisdaten!$E$20<=7,Basisdaten!$K$20*Saisonalisierung!G18,0) -> 201.267 | L18: =IF(Basisdaten!$E$20<=8,Basisdaten!$K$20*Saisonalisierung!H18,0) -> 197.736 | M18: =IF(Basisdaten!$E$20<=9,Basisdaten!$K$20*Saisonalisierung!I18,0) -> 200.09 | N18: =IF(Basisdaten!$E$20<=10,Basisdaten!$K$20*Saisonalisierung!J18,0) -> 194.205 | O18: =IF(Basisdaten!$E$20<=11,Basisdaten!$K$20*Saisonalisierung!K18,0) -> 200.09 | P18: =IF(Basisdaten!$E$20<=12,Basisdaten!$K$20*Saisonalisierung!L18,0) -> 208.329
A19: 1 | B19: =Basisdaten!B21 -> 40 | C19: =Basisdaten!A21 -> Hubert Figura - SCBI | D19: =Basisdaten!U21 -> 2022 | E19: =IF(Basisdaten!$E$21=1,Basisdaten!$K$21*Saisonalisierung!A19,0) -> 177.727 | F19: =IF(Basisdaten!$E$21<=2,Basisdaten!$K$21*Saisonalisierung!B19,0) -> 181.258 | G19: =IF(Basisdaten!$E$21<=3,Basisdaten!$K$21*Saisonalisierung!C19,0) -> 209.506 | H19: =IF(Basisdaten!$E$21<=4,Basisdaten!$K$21*Saisonalisierung!D19,0) -> 197.736 | I19: =IF(Basisdaten!$E$21<=5,Basisdaten!$K$21*Saisonalisierung!E19,0) -> 189.497 | J19: =IF(Basisdaten!$E$21<=6,Basisdaten!$K$21*Saisonalisierung!F19,0) -> 196.559 | K19: =IF(Basisdaten!$E$21<=7,Basisdaten!$K$21*Saisonalisierung!G19,0) -> 201.267 | L19: =IF(Basisdaten!$E$21<=8,Basisdaten!$K$21*Saisonalisierung!H19,0) -> 197.736 | M19: =IF(Basisdaten!$E$21<=9,Basisdaten!$K$21*Saisonalisierung!I19,0) -> 200.09 | N19: =IF(Basisdaten!$E$21<=10,Basisdaten!$K$21*Saisonalisierung!J19,0) -> 194.205 | O19: =IF(Basisdaten!$E$21<=11,Basisdaten!$K$21*Saisonalisierung!K19,0) -> 200.09 | P19: =IF(Basisdaten!$E$21<=12,Basisdaten!$K$21*Saisonalisierung!L19,0) -> 208.329
A20: 1 | B20: =Basisdaten!B22 -> 40 | C20: =Basisdaten!A22 -> Jan-Oliver Knaus | D20: =Basisdaten!U22 -> 2022 | E20: =IF(Basisdaten!$E$22=1,Basisdaten!$K$22*Saisonalisierung!A20,0) -> 177.727 | F20: =IF(Basisdaten!$E$22<=2,Basisdaten!$K$22*Saisonalisierung!B20,0) -> 181.258 | G20: =IF(Basisdaten!$E$22<=3,Basisdaten!$K$22*Saisonalisierung!C20,0) -> 209.506 | H20: =IF(Basisdaten!$E$22<=4,Basisdaten!$K$22*Saisonalisierung!D20,0) -> 197.736 | I20: =IF(Basisdaten!$E$22<=5,Basisdaten!$K$22*Saisonalisierung!E20,0) -> 189.497 | J20: =IF(Basisdaten!$E$22<=6,Basisdaten!$K$22*Saisonalisierung!F20,0) -> 196.559 | K20: =IF(Basisdaten!$E$22<=7,Basisdaten!$K$22*Saisonalisierung!G20,0) -> 201.267 | L20: =IF(Basisdaten!$E$22<=8,Basisdaten!$K$22*Saisonalisierung!H20,0) -> 197.736 | M20: =IF(Basisdaten!$E$22<=9,Basisdaten!$K$22*Saisonalisierung!I20,0) -> 200.09 | N20: =IF(Basisdaten!$E$22<=10,Basisdaten!$K$22*Saisonalisierung!J20,0) -> 194.205 | O20: =IF(Basisdaten!$E$22<=11,Basisdaten!$K$22*Saisonalisierung!K20,0) -> 200.09 | P20: =IF(Basisdaten!$E$22<=12,Basisdaten!$K$22*Saisonalisierung!L20,0) -> 208.329
A21: 1 | B21: =Basisdaten!B23 -> 40 | C21: =Basisdaten!A23 -> Hakan Celik_ULM | D21: =Basisdaten!U23 -> 2022 | E21: =IF(Basisdaten!$E$23=1,Basisdaten!$K$23*Saisonalisierung!A21,0) -> 0 | F21: =IF(Basisdaten!$E$23<=2,Basisdaten!$K$23*Saisonalisierung!B21,0) -> 0 | G21: =IF(Basisdaten!$E$23<=3,Basisdaten!$K$23*Saisonalisierung!C21,0) -> 0 | H21: =IF(Basisdaten!$E$23<=4,Basisdaten!$K$23*Saisonalisierung!D21,0) -> 0 | I21: =IF(Basisdaten!$E$23<=5,Basisdaten!$K$23*Saisonalisierung!E21,0) -> 0 | J21: =IF(Basisdaten!$E$23<=6,Basisdaten!$K$23*Saisonalisierung!F21,0) -> 0 | K21: =IF(Basisdaten!$E$23<=7,Basisdaten!$K$23*Saisonalisierung!G21,0) -> 0 | L21: =IF(Basisdaten!$E$23<=8,Basisdaten!$K$23*Saisonalisierung!H21,0) -> 0 | M21: =IF(Basisdaten!$E$23<=9,Basisdaten!$K$23*Saisonalisierung!I21,0) -> 0 | N21: =IF(Basisdaten!$E$23<=10,Basisdaten!$K$23*Saisonalisierung!J21,0) -> 0 | O21: =IF(Basisdaten!$E$23<=11,Basisdaten!$K$23*Saisonalisierung!K21,0) -> 0 | P21: =IF(Basisdaten!$E$23<=12,Basisdaten!$K$23*Saisonalisierung!L21,0) -> 0
A22: 1 | B22: =Basisdaten!B24 -> 40 | C22: =Basisdaten!A24 -> Andreas Walter | D22: =Basisdaten!U24 -> 2022 | E22: =IF(Basisdaten!$E$24=1,Basisdaten!$K$24*Saisonalisierung!A22,0) -> 177.727 | F22: =IF(Basisdaten!$E$24<=2,Basisdaten!$K$24*Saisonalisierung!B22,0) -> 181.258 | G22: =IF(Basisdaten!$E$24<=3,Basisdaten!$K$24*Saisonalisierung!C22,0) -> 209.506 | H22: =IF(Basisdaten!$E$24<=4,Basisdaten!$K$24*Saisonalisierung!D22,0) -> 197.736 | I22: =IF(Basisdaten!$E$24<=5,Basisdaten!$K$24*Saisonalisierung!E22,0) -> 189.497 | J22: =IF(Basisdaten!$E$24<=6,Basisdaten!$K$24*Saisonalisierung!F22,0) -> 196.559 | K22: =IF(Basisdaten!$E$24<=7,Basisdaten!$K$24*Saisonalisierung!G22,0) -> 201.267 | L22: =IF(Basisdaten!$E$24<=8,Basisdaten!$K$24*Saisonalisierung!H22,0) -> 197.736 | M22: =IF(Basisdaten!$E$24<=9,Basisdaten!$K$24*Saisonalisierung!I22,0) -> 200.09 | N22: =IF(Basisdaten!$E$24<=10,Basisdaten!$K$24*Saisonalisierung!J22,0) -> 194.205 | O22: =IF(Basisdaten!$E$24<=11,Basisdaten!$K$24*Saisonalisierung!K22,0) -> 200.09 | P22: =IF(Basisdaten!$E$24<=12,Basisdaten!$K$24*Saisonalisierung!L22,0) -> 208.329
A23: 1 | B23: =Basisdaten!B25 -> 40 | C23: =Basisdaten!A25 -> Fatih Cetiner | D23: =Basisdaten!U25 -> 2022 | E23: =IF(Basisdaten!$E$25=1,Basisdaten!$K$25*Saisonalisierung!A23,0) -> 177.727 | F23: =IF(Basisdaten!$E$25<=2,Basisdaten!$K$25*Saisonalisierung!B23,0) -> 181.258 | G23: =IF(Basisdaten!$E$25<=3,Basisdaten!$K$25*Saisonalisierung!C23,0) -> 209.506 | H23: =IF(Basisdaten!$E$25<=4,Basisdaten!$K$25*Saisonalisierung!D23,0) -> 197.736 | I23: =IF(Basisdaten!$E$25<=5,Basisdaten!$K$25*Saisonalisierung!E23,0) -> 189.497 | J23: =IF(Basisdaten!$E$25<=6,Basisdaten!$K$25*Saisonalisierung!F23,0) -> 196.559 | K23: =IF(Basisdaten!$E$25<=7,Basisdaten!$K$25*Saisonalisierung!G23,0) -> 201.267 | L23: =IF(Basisdaten!$E$25<=8,Basisdaten!$K$25*Saisonalisierung!H23,0) -> 197.736 | M23: =IF(Basisdaten!$E$25<=9,Basisdaten!$K$25*Saisonalisierung!I23,0) -> 200.09 | N23: =IF(Basisdaten!$E$25<=10,Basisdaten!$K$25*Saisonalisierung!J23,0) -> 194.205 | O23: =IF(Basisdaten!$E$25<=11,Basisdaten!$K$25*Saisonalisierung!K23,0) -> 200.09 | P23: =IF(Basisdaten!$E$25<=12,Basisdaten!$K$25*Saisonalisierung!L23,0) -> 208.329
A24: 1 | B24: =Basisdaten!B26 -> 50 | C24: =Basisdaten!A26 -> Carlheinz Beylacher | D24: =Basisdaten!U26 -> 2022 | E24: =IF(Basisdaten!$E$26=1,Basisdaten!$K$26*Saisonalisierung!A24,0) -> 177.727 | F24: =IF(Basisdaten!$E$26<=2,Basisdaten!$K$26*Saisonalisierung!B24,0) -> 181.258 | G24: =IF(Basisdaten!$E$26<=3,Basisdaten!$K$26*Saisonalisierung!C24,0) -> 209.506 | H24: =IF(Basisdaten!$E$26<=4,Basisdaten!$K$26*Saisonalisierung!D24,0) -> 197.736 | I24: =IF(Basisdaten!$E$26<=5,Basisdaten!$K$26*Saisonalisierung!E24,0) -> 189.497 | J24: =IF(Basisdaten!$E$26<=6,Basisdaten!$K$26*Saisonalisierung!F24,0) -> 196.559 | K24: =IF(Basisdaten!$E$26<=7,Basisdaten!$K$26*Saisonalisierung!G24,0) -> 201.267 | L24: =IF(Basisdaten!$E$26<=8,Basisdaten!$K$26*Saisonalisierung!H24,0) -> 197.736 | M24: =IF(Basisdaten!$E$26<=9,Basisdaten!$K$26*Saisonalisierung!I24,0) -> 200.09 | N24: =IF(Basisdaten!$E$26<=10,Basisdaten!$K$26*Saisonalisierung!J24,0) -> 194.205 | O24: =IF(Basisdaten!$E$26<=11,Basisdaten!$K$26*Saisonalisierung!K24,0) -> 200.09 | P24: =IF(Basisdaten!$E$26<=12,Basisdaten!$K$26*Saisonalisierung!L24,0) -> 208.329
A25: 1 | B25: =Basisdaten!B27 -> 50 | C25: =Basisdaten!A27 -> Christoph Ziegler | D25: =Basisdaten!U27 -> 2022 | E25: =IF(Basisdaten!$E$27=1,Basisdaten!$K$27*Saisonalisierung!A25,0) -> 177.727 | F25: =IF(Basisdaten!$E$27<=2,Basisdaten!$K$27*Saisonalisierung!B25,0) -> 181.258 | G25: =IF(Basisdaten!$E$27<=3,Basisdaten!$K$27*Saisonalisierung!C25,0) -> 209.506 | H25: =IF(Basisdaten!$E$27<=4,Basisdaten!$K$27*Saisonalisierung!D25,0) -> 197.736 | I25: =IF(Basisdaten!$E$27<=5,Basisdaten!$K$27*Saisonalisierung!E25,0) -> 189.497 | J25: =IF(Basisdaten!$E$27<=6,Basisdaten!$K$27*Saisonalisierung!F25,0) -> 196.559 | K25: =IF(Basisdaten!$E$27<=7,Basisdaten!$K$27*Saisonalisierung!G25,0) -> 201.267 | L25: =IF(Basisdaten!$E$27<=8,Basisdaten!$K$27*Saisonalisierung!H25,0) -> 197.736 | M25: =IF(Basisdaten!$E$27<=9,Basisdaten!$K$27*Saisonalisierung!I25,0) -> 200.09 | N25: =IF(Basisdaten!$E$27<=10,Basisdaten!$K$27*Saisonalisierung!J25,0) -> 194.205 | O25: =IF(Basisdaten!$E$27<=11,Basisdaten!$K$27*Saisonalisierung!K25,0) -> 200.09 | P25: =IF(Basisdaten!$E$27<=12,Basisdaten!$K$27*Saisonalisierung!L25,0) -> 208.329
A26: 1 | B26: =Basisdaten!B28 -> 50 | C26: =Basisdaten!A28 -> Steffen Schiller | D26: =Basisdaten!U28 -> 2022 | E26: =IF(Basisdaten!$E$28=1,Basisdaten!$K$28*Saisonalisierung!A26,0) -> 177.727 | F26: =IF(Basisdaten!$E$28<=2,Basisdaten!$K$28*Saisonalisierung!B26,0) -> 181.258 | G26: =IF(Basisdaten!$E$28<=3,Basisdaten!$K$28*Saisonalisierung!C26,0) -> 209.506 | H26: =IF(Basisdaten!$E$28<=4,Basisdaten!$K$28*Saisonalisierung!D26,0) -> 197.736 | I26: =IF(Basisdaten!$E$28<=5,Basisdaten!$K$28*Saisonalisierung!E26,0) -> 189.497 | J26: =IF(Basisdaten!$E$28<=6,Basisdaten!$K$28*Saisonalisierung!F26,0) -> 196.559 | K26: =IF(Basisdaten!$E$28<=7,Basisdaten!$K$28*Saisonalisierung!G26,0) -> 201.267 | L26: =IF(Basisdaten!$E$28<=8,Basisdaten!$K$28*Saisonalisierung!H26,0) -> 197.736 | M26: =IF(Basisdaten!$E$28<=9,Basisdaten!$K$28*Saisonalisierung!I26,0) -> 200.09 | N26: =IF(Basisdaten!$E$28<=10,Basisdaten!$K$28*Saisonalisierung!J26,0) -> 194.205 | O26: =IF(Basisdaten!$E$28<=11,Basisdaten!$K$28*Saisonalisierung!K26,0) -> 200.09 | P26: =IF(Basisdaten!$E$28<=12,Basisdaten!$K$28*Saisonalisierung!L26,0) -> 208.329
A27: 1 | B27: =Basisdaten!B29 -> 50 | C27: =Basisdaten!A29 -> André Pfeffer - SCBI | D27: =Basisdaten!U29 -> 2022 | E27: =IF(Basisdaten!$E$29=1,Basisdaten!$K$29*Saisonalisierung!A27,0) -> 177.727 | F27: =IF(Basisdaten!$E$29<=2,Basisdaten!$K$29*Saisonalisierung!B27,0) -> 181.258 | G27: =IF(Basisdaten!$E$29<=3,Basisdaten!$K$29*Saisonalisierung!C27,0) -> 209.506 | H27: =IF(Basisdaten!$E$29<=4,Basisdaten!$K$29*Saisonalisierung!D27,0) -> 197.736 | I27: =IF(Basisdaten!$E$29<=5,Basisdaten!$K$29*Saisonalisierung!E27,0) -> 189.497 | J27: =IF(Basisdaten!$E$29<=6,Basisdaten!$K$29*Saisonalisierung!F27,0) -> 196.559 | K27: =IF(Basisdaten!$E$29<=7,Basisdaten!$K$29*Saisonalisierung!G27,0) -> 201.267 | L27: =IF(Basisdaten!$E$29<=8,Basisdaten!$K$29*Saisonalisierung!H27,0) -> 197.736 | M27: =IF(Basisdaten!$E$29<=9,Basisdaten!$K$29*Saisonalisierung!I27,0) -> 200.09 | N27: =IF(Basisdaten!$E$29<=10,Basisdaten!$K$29*Saisonalisierung!J27,0) -> 194.205 | O27: =IF(Basisdaten!$E$29<=11,Basisdaten!$K$29*Saisonalisierung!K27,0) -> 200.09 | P27: =IF(Basisdaten!$E$29<=12,Basisdaten!$K$29*Saisonalisierung!L27,0) -> 208.329
A28: 1 | B28: =Basisdaten!B30 -> 50 | C28: =Basisdaten!A30 -> Christian Wiedemann | D28: =Basisdaten!U30 -> 2022 | E28: =IF(Basisdaten!$E$30=1,Basisdaten!$K$30*Saisonalisierung!A28,0) -> 177.727 | F28: =IF(Basisdaten!$E$30<=2,Basisdaten!$K$30*Saisonalisierung!B28,0) -> 181.258 | G28: =IF(Basisdaten!$E$30<=3,Basisdaten!$K$30*Saisonalisierung!C28,0) -> 209.506 | H28: =IF(Basisdaten!$E$30<=4,Basisdaten!$K$30*Saisonalisierung!D28,0) -> 197.736 | I28: =IF(Basisdaten!$E$30<=5,Basisdaten!$K$30*Saisonalisierung!E28,0) -> 189.497 | J28: =IF(Basisdaten!$E$30<=6,Basisdaten!$K$30*Saisonalisierung!F28,0) -> 196.559 | K28: =IF(Basisdaten!$E$30<=7,Basisdaten!$K$30*Saisonalisierung!G28,0) -> 201.267 | L28: =IF(Basisdaten!$E$30<=8,Basisdaten!$K$30*Saisonalisierung!H28,0) -> 197.736 | M28: =IF(Basisdaten!$E$30<=9,Basisdaten!$K$30*Saisonalisierung!I28,0) -> 200.09 | N28: =IF(Basisdaten!$E$30<=10,Basisdaten!$K$30*Saisonalisierung!J28,0) -> 194.205 | O28: =IF(Basisdaten!$E$30<=11,Basisdaten!$K$30*Saisonalisierung!K28,0) -> 200.09 | P28: =IF(Basisdaten!$E$30<=12,Basisdaten!$K$30*Saisonalisierung!L28,0) -> 208.329
A29: 1 | B29: =Basisdaten!B31 -> 50 | C29: =Basisdaten!A31 -> Daniel Aschmann_ | D29: =Basisdaten!U31 -> 2022 | E29: =IF(Basisdaten!$E$31=1,Basisdaten!$K$31*Saisonalisierung!A29,0) -> 0 | F29: =IF(Basisdaten!$E$31<=2,Basisdaten!$K$31*Saisonalisierung!B29,0) -> 0 | G29: =IF(Basisdaten!$E$31<=3,Basisdaten!$K$31*Saisonalisierung!C29,0) -> 0 | H29: =IF(Basisdaten!$E$31<=4,Basisdaten!$K$31*Saisonalisierung!D29,0) -> 0 | I29: =IF(Basisdaten!$E$31<=5,Basisdaten!$K$31*Saisonalisierung!E29,0) -> 0 | J29: =IF(Basisdaten!$E$31<=6,Basisdaten!$K$31*Saisonalisierung!F29,0) -> 0 | K29: =IF(Basisdaten!$E$31<=7,Basisdaten!$K$31*Saisonalisierung!G29,0) -> 0 | L29: =IF(Basisdaten!$E$31<=8,Basisdaten!$K$31*Saisonalisierung!H29,0) -> 0 | M29: =IF(Basisdaten!$E$31<=9,Basisdaten!$K$31*Saisonalisierung!I29,0) -> 0 | N29: =IF(Basisdaten!$E$31<=10,Basisdaten!$K$31*Saisonalisierung!J29,0) -> 0 | O29: =IF(Basisdaten!$E$31<=11,Basisdaten!$K$31*Saisonalisierung!K29,0) -> 0 | P29: =IF(Basisdaten!$E$31<=12,Basisdaten!$K$31*Saisonalisierung!L29,0) -> 0
A30: 2 | B30: =Basisdaten!B32 -> 60 | C30: =Basisdaten!A32 -> Dirk Heditzsch | D30: =Basisdaten!U32 -> 2022 | E30: =IF(Basisdaten!$E$32=1,Basisdaten!$K$32*Saisonalisierung!A30,0) -> 0 | F30: =IF(Basisdaten!$E$32<=2,Basisdaten!$K$32*Saisonalisierung!B30,0) -> 0 | G30: =IF(Basisdaten!$E$32<=3,Basisdaten!$K$32*Saisonalisierung!C30,0) -> 0 | H30: =IF(Basisdaten!$E$32<=4,Basisdaten!$K$32*Saisonalisierung!D30,0) -> 197.736 | I30: =IF(Basisdaten!$E$32<=5,Basisdaten!$K$32*Saisonalisierung!E30,0) -> 189.497 | J30: =IF(Basisdaten!$E$32<=6,Basisdaten!$K$32*Saisonalisierung!F30,0) -> 196.559 | K30: =IF(Basisdaten!$E$32<=7,Basisdaten!$K$32*Saisonalisierung!G30,0) -> 201.267 | L30: =IF(Basisdaten!$E$32<=8,Basisdaten!$K$32*Saisonalisierung!H30,0) -> 197.736 | M30: =IF(Basisdaten!$E$32<=9,Basisdaten!$K$32*Saisonalisierung!I30,0) -> 200.09 | N30: =IF(Basisdaten!$E$32<=10,Basisdaten!$K$32*Saisonalisierung!J30,0) -> 194.205 | O30: =IF(Basisdaten!$E$32<=11,Basisdaten!$K$32*Saisonalisierung!K30,0) -> 200.09 | P30: =IF(Basisdaten!$E$32<=12,Basisdaten!$K$32*Saisonalisierung!L30,0) -> 208.329
A31: 2 | B31: =Basisdaten!B33 -> 60 | C31: =Basisdaten!A33 -> Marco Hanigk | D31: =Basisdaten!U33 -> 2022 | E31: =IF(Basisdaten!$E$33=1,Basisdaten!$K$33*Saisonalisierung!A31,0) -> 177.727 | F31: =IF(Basisdaten!$E$33<=2,Basisdaten!$K$33*Saisonalisierung!B31,0) -> 181.258 | G31: =IF(Basisdaten!$E$33<=3,Basisdaten!$K$33*Saisonalisierung!C31,0) -> 209.506 | H31: =IF(Basisdaten!$E$33<=4,Basisdaten!$K$33*Saisonalisierung!D31,0) -> 197.736 | I31: =IF(Basisdaten!$E$33<=5,Basisdaten!$K$33*Saisonalisierung!E31,0) -> 189.497 | J31: =IF(Basisdaten!$E$33<=6,Basisdaten!$K$33*Saisonalisierung!F31,0) -> 196.559 | K31: =IF(Basisdaten!$E$33<=7,Basisdaten!$K$33*Saisonalisierung!G31,0) -> 201.267 | L31: =IF(Basisdaten!$E$33<=8,Basisdaten!$K$33*Saisonalisierung!H31,0) -> 197.736 | M31: =IF(Basisdaten!$E$33<=9,Basisdaten!$K$33*Saisonalisierung!I31,0) -> 200.09 | N31: =IF(Basisdaten!$E$33<=10,Basisdaten!$K$33*Saisonalisierung!J31,0) -> 194.205 | O31: =IF(Basisdaten!$E$33<=11,Basisdaten!$K$33*Saisonalisierung!K31,0) -> 200.09 | P31: =IF(Basisdaten!$E$33<=12,Basisdaten!$K$33*Saisonalisierung!L31,0) -> 208.329
A32: 2 | B32: =Basisdaten!B34 -> 60 | C32: =Basisdaten!A34 -> Marcel Lankes | D32: =Basisdaten!U34 -> 2022 | E32: =IF(Basisdaten!$E$34=1,Basisdaten!$K$34*Saisonalisierung!A32,0) -> 0 | F32: =IF(Basisdaten!$E$34<=2,Basisdaten!$K$34*Saisonalisierung!B32,0) -> 0 | G32: =IF(Basisdaten!$E$34<=3,Basisdaten!$K$34*Saisonalisierung!C32,0) -> 0 | H32: =IF(Basisdaten!$E$34<=4,Basisdaten!$K$34*Saisonalisierung!D32,0) -> 197.736 | I32: =IF(Basisdaten!$E$34<=5,Basisdaten!$K$34*Saisonalisierung!E32,0) -> 189.497 | J32: =IF(Basisdaten!$E$34<=6,Basisdaten!$K$34*Saisonalisierung!F32,0) -> 196.559 | K32: =IF(Basisdaten!$E$34<=7,Basisdaten!$K$34*Saisonalisierung!G32,0) -> 201.267 | L32: =IF(Basisdaten!$E$34<=8,Basisdaten!$K$34*Saisonalisierung!H32,0) -> 197.736 | M32: =IF(Basisdaten!$E$34<=9,Basisdaten!$K$34*Saisonalisierung!I32,0) -> 200.09 | N32: =IF(Basisdaten!$E$34<=10,Basisdaten!$K$34*Saisonalisierung!J32,0) -> 194.205 | O32: =IF(Basisdaten!$E$34<=11,Basisdaten!$K$34*Saisonalisierung!K32,0) -> 200.09 | P32: =IF(Basisdaten!$E$34<=12,Basisdaten!$K$34*Saisonalisierung!L32,0) -> 208.329
A33: 2 | B33: =Basisdaten!B35 -> 60 | C33: =Basisdaten!A35 -> Roland Klier | D33: =Basisdaten!U35 -> 2022 | E33: =IF(Basisdaten!$E$35=1,Basisdaten!$K$35*Saisonalisierung!A33,0) -> 177.727 | F33: =IF(Basisdaten!$E$35<=2,Basisdaten!$K$35*Saisonalisierung!B33,0) -> 181.258 | G33: =IF(Basisdaten!$E$35<=3,Basisdaten!$K$35*Saisonalisierung!C33,0) -> 209.506 | H33: =IF(Basisdaten!$E$35<=4,Basisdaten!$K$35*Saisonalisierung!D33,0) -> 197.736 | I33: =IF(Basisdaten!$E$35<=5,Basisdaten!$K$35*Saisonalisierung!E33,0) -> 189.497 | J33: =IF(Basisdaten!$E$35<=6,Basisdaten!$K$35*Saisonalisierung!F33,0) -> 196.559 | K33: =IF(Basisdaten!$E$35<=7,Basisdaten!$K$35*Saisonalisierung!G33,0) -> 201.267 | L33: =IF(Basisdaten!$E$35<=8,Basisdaten!$K$35*Saisonalisierung!H33,0) -> 197.736 | M33: =IF(Basisdaten!$E$35<=9,Basisdaten!$K$35*Saisonalisierung!I33,0) -> 200.09 | N33: =IF(Basisdaten!$E$35<=10,Basisdaten!$K$35*Saisonalisierung!J33,0) -> 194.205 | O33: =IF(Basisdaten!$E$35<=11,Basisdaten!$K$35*Saisonalisierung!K33,0) -> 200.09 | P33: =IF(Basisdaten!$E$35<=12,Basisdaten!$K$35*Saisonalisierung!L33,0) -> 208.329
A34: 2 | B34: =Basisdaten!B36 -> 60 | C34: =Basisdaten!A36 -> Mert Güngör | D34: =Basisdaten!U36 -> 2022 | E34: =IF(Basisdaten!$E$36=1,Basisdaten!$K$36*Saisonalisierung!A34,0) -> 0 | F34: =IF(Basisdaten!$E$36<=2,Basisdaten!$K$36*Saisonalisierung!B34,0) -> 0 | G34: =IF(Basisdaten!$E$36<=3,Basisdaten!$K$36*Saisonalisierung!C34,0) -> 0 | H34: =IF(Basisdaten!$E$36<=4,Basisdaten!$K$36*Saisonalisierung!D34,0) -> 0 | I34: =IF(Basisdaten!$E$36<=5,Basisdaten!$K$36*Saisonalisierung!E34,0) -> 0 | J34: =IF(Basisdaten!$E$36<=6,Basisdaten!$K$36*Saisonalisierung!F34,0) -> 196.559 | K34: =IF(Basisdaten!$E$36<=7,Basisdaten!$K$36*Saisonalisierung!G34,0) -> 201.267 | L34: =IF(Basisdaten!$E$36<=8,Basisdaten!$K$36*Saisonalisierung!H34,0) -> 197.736 | M34: =IF(Basisdaten!$E$36<=9,Basisdaten!$K$36*Saisonalisierung!I34,0) -> 200.09 | N34: =IF(Basisdaten!$E$36<=10,Basisdaten!$K$36*Saisonalisierung!J34,0) -> 194.205 | O34: =IF(Basisdaten!$E$36<=11,Basisdaten!$K$36*Saisonalisierung!K34,0) -> 200.09 | P34: =IF(Basisdaten!$E$36<=12,Basisdaten!$K$36*Saisonalisierung!L34,0) -> 208.329
A35: 2 | B35: =Basisdaten!B37 -> 60 | C35: =Basisdaten!A37 -> Matthias Hagg | D35: =Basisdaten!U37 -> 2022 | E35: =IF(Basisdaten!$E$37=1,Basisdaten!$K$37*Saisonalisierung!A35,0) -> 177.727 | F35: =IF(Basisdaten!$E$37<=2,Basisdaten!$K$37*Saisonalisierung!B35,0) -> 181.258 | G35: =IF(Basisdaten!$E$37<=3,Basisdaten!$K$37*Saisonalisierung!C35,0) -> 209.506 | H35: =IF(Basisdaten!$E$37<=4,Basisdaten!$K$37*Saisonalisierung!D35,0) -> 197.736 | I35: =IF(Basisdaten!$E$37<=5,Basisdaten!$K$37*Saisonalisierung!E35,0) -> 189.497 | J35: =IF(Basisdaten!$E$37<=6,Basisdaten!$K$37*Saisonalisierung!F35,0) -> 196.559 | K35: =IF(Basisdaten!$E$37<=7,Basisdaten!$K$37*Saisonalisierung!G35,0) -> 201.267 | L35: =IF(Basisdaten!$E$37<=8,Basisdaten!$K$37*Saisonalisierung!H35,0) -> 197.736 | M35: =IF(Basisdaten!$E$37<=9,Basisdaten!$K$37*Saisonalisierung!I35,0) -> 200.09 | N35: =IF(Basisdaten!$E$37<=10,Basisdaten!$K$37*Saisonalisierung!J35,0) -> 194.205 | O35: =IF(Basisdaten!$E$37<=11,Basisdaten!$K$37*Saisonalisierung!K35,0) -> 200.09 | P35: =IF(Basisdaten!$E$37<=12,Basisdaten!$K$37*Saisonalisierung!L35,0) -> 208.329
A36: 2 | B36: =Basisdaten!B38 -> 60 | C36: =Basisdaten!A38 -> Walter Schlosser | D36: =Basisdaten!U38 -> 2022 | E36: =IF(Basisdaten!$E$38=1,Basisdaten!$K$38*Saisonalisierung!A36,0) -> 177.727 | F36: =IF(Basisdaten!$E$38<=2,Basisdaten!$K$38*Saisonalisierung!B36,0) -> 181.258 | G36: =IF(Basisdaten!$E$38<=3,Basisdaten!$K$38*Saisonalisierung!C36,0) -> 209.506 | H36: =IF(Basisdaten!$E$38<=4,Basisdaten!$K$38*Saisonalisierung!D36,0) -> 197.736 | I36: =IF(Basisdaten!$E$38<=5,Basisdaten!$K$38*Saisonalisierung!E36,0) -> 189.497 | J36: =IF(Basisdaten!$E$38<=6,Basisdaten!$K$38*Saisonalisierung!F36,0) -> 196.559 | K36: =IF(Basisdaten!$E$38<=7,Basisdaten!$K$38*Saisonalisierung!G36,0) -> 201.267 | L36: =IF(Basisdaten!$E$38<=8,Basisdaten!$K$38*Saisonalisierung!H36,0) -> 197.736 | M36: =IF(Basisdaten!$E$38<=9,Basisdaten!$K$38*Saisonalisierung!I36,0) -> 200.09 | N36: =IF(Basisdaten!$E$38<=10,Basisdaten!$K$38*Saisonalisierung!J36,0) -> 194.205 | O36: =IF(Basisdaten!$E$38<=11,Basisdaten!$K$38*Saisonalisierung!K36,0) -> 200.09 | P36: =IF(Basisdaten!$E$38<=12,Basisdaten!$K$38*Saisonalisierung!L36,0) -> 208.329
A37: 2 | B37: =Basisdaten!B39 -> 60 | C37: =Basisdaten!A39 -> Udo Spindler | D37: =Basisdaten!U39 -> 2022 | E37: =IF(Basisdaten!$E$39=1,Basisdaten!$K$39*Saisonalisierung!A37,0) -> 177.727 | F37: =IF(Basisdaten!$E$39<=2,Basisdaten!$K$39*Saisonalisierung!B37,0) -> 181.258 | G37: =IF(Basisdaten!$E$39<=3,Basisdaten!$K$39*Saisonalisierung!C37,0) -> 209.506 | H37: =IF(Basisdaten!$E$39<=4,Basisdaten!$K$39*Saisonalisierung!D37,0) -> 197.736 | I37: =IF(Basisdaten!$E$39<=5,Basisdaten!$K$39*Saisonalisierung!E37,0) -> 189.497 | J37: =IF(Basisdaten!$E$39<=6,Basisdaten!$K$39*Saisonalisierung!F37,0) -> 196.559 | K37: =IF(Basisdaten!$E$39<=7,Basisdaten!$K$39*Saisonalisierung!G37,0) -> 201.267 | L37: =IF(Basisdaten!$E$39<=8,Basisdaten!$K$39*Saisonalisierung!H37,0) -> 197.736 | M37: =IF(Basisdaten!$E$39<=9,Basisdaten!$K$39*Saisonalisierung!I37,0) -> 200.09 | N37: =IF(Basisdaten!$E$39<=10,Basisdaten!$K$39*Saisonalisierung!J37,0) -> 194.205 | O37: =IF(Basisdaten!$E$39<=11,Basisdaten!$K$39*Saisonalisierung!K37,0) -> 200.09 | P37: =IF(Basisdaten!$E$39<=12,Basisdaten!$K$39*Saisonalisierung!L37,0) -> 208.329
A38: 2 | B38: =Basisdaten!B40 -> 60 | C38: =Basisdaten!A40 -> Marcel Vogler | D38: =Basisdaten!U40 -> 2022 | E38: =IF(Basisdaten!$E$40=1,Basisdaten!$K$40*Saisonalisierung!A38,0) -> 177.727 | F38: =IF(Basisdaten!$E$40<=2,Basisdaten!$K$40*Saisonalisierung!B38,0) -> 181.258 | G38: =IF(Basisdaten!$E$40<=3,Basisdaten!$K$40*Saisonalisierung!C38,0) -> 209.506 | H38: =IF(Basisdaten!$E$40<=4,Basisdaten!$K$40*Saisonalisierung!D38,0) -> 197.736 | I38: =IF(Basisdaten!$E$40<=5,Basisdaten!$K$40*Saisonalisierung!E38,0) -> 189.497 | J38: =IF(Basisdaten!$E$40<=6,Basisdaten!$K$40*Saisonalisierung!F38,0) -> 196.559 | K38: =IF(Basisdaten!$E$40<=7,Basisdaten!$K$40*Saisonalisierung!G38,0) -> 201.267 | L38: =IF(Basisdaten!$E$40<=8,Basisdaten!$K$40*Saisonalisierung!H38,0) -> 197.736 | M38: =IF(Basisdaten!$E$40<=9,Basisdaten!$K$40*Saisonalisierung!I38,0) -> 200.09 | N38: =IF(Basisdaten!$E$40<=10,Basisdaten!$K$40*Saisonalisierung!J38,0) -> 194.205 | O38: =IF(Basisdaten!$E$40<=11,Basisdaten!$K$40*Saisonalisierung!K38,0) -> 200.09 | P38: =IF(Basisdaten!$E$40<=12,Basisdaten!$K$40*Saisonalisierung!L38,0) -> 208.329
A39: 2 | B39: =Basisdaten!B41 -> 60 | C39: =Basisdaten!A41 -> Raphael Marksteiner | D39: =Basisdaten!U41 -> 2022 | E39: =IF(Basisdaten!$E$41=1,Basisdaten!$K$41*Saisonalisierung!A39,0) -> 0 | F39: =IF(Basisdaten!$E$41<=2,Basisdaten!$K$41*Saisonalisierung!B39,0) -> 0 | G39: =IF(Basisdaten!$E$41<=3,Basisdaten!$K$41*Saisonalisierung!C39,0) -> 0 | H39: =IF(Basisdaten!$E$41<=4,Basisdaten!$K$41*Saisonalisierung!D39,0) -> 197.736 | I39: =IF(Basisdaten!$E$41<=5,Basisdaten!$K$41*Saisonalisierung!E39,0) -> 189.497 | J39: =IF(Basisdaten!$E$41<=6,Basisdaten!$K$41*Saisonalisierung!F39,0) -> 196.559 | K39: =IF(Basisdaten!$E$41<=7,Basisdaten!$K$41*Saisonalisierung!G39,0) -> 201.267 | L39: =IF(Basisdaten!$E$41<=8,Basisdaten!$K$41*Saisonalisierung!H39,0) -> 197.736 | M39: =IF(Basisdaten!$E$41<=9,Basisdaten!$K$41*Saisonalisierung!I39,0) -> 200.09 | N39: =IF(Basisdaten!$E$41<=10,Basisdaten!$K$41*Saisonalisierung!J39,0) -> 194.205 | O39: =IF(Basisdaten!$E$41<=11,Basisdaten!$K$41*Saisonalisierung!K39,0) -> 200.09 | P39: =IF(Basisdaten!$E$41<=12,Basisdaten!$K$41*Saisonalisierung!L39,0) -> 208.329
A40: 2 | B40: =Basisdaten!B42 -> 60 | C40: =Basisdaten!A42 -> Markus Appeljun - SCBI | D40: =Basisdaten!U42 -> 2022 | E40: =IF(Basisdaten!$E$42=1,Basisdaten!$K$42*Saisonalisierung!A40,0) -> 0 | F40: =IF(Basisdaten!$E$42<=2,Basisdaten!$K$42*Saisonalisierung!B40,0) -> 181.258 | G40: =IF(Basisdaten!$E$42<=3,Basisdaten!$K$42*Saisonalisierung!C40,0) -> 209.506 | H40: =IF(Basisdaten!$E$42<=4,Basisdaten!$K$42*Saisonalisierung!D40,0) -> 197.736 | I40: =IF(Basisdaten!$E$42<=5,Basisdaten!$K$42*Saisonalisierung!E40,0) -> 189.497 | J40: =IF(Basisdaten!$E$42<=6,Basisdaten!$K$42*Saisonalisierung!F40,0) -> 196.559 | K40: =IF(Basisdaten!$E$42<=7,Basisdaten!$K$42*Saisonalisierung!G40,0) -> 201.267 | L40: =IF(Basisdaten!$E$42<=8,Basisdaten!$K$42*Saisonalisierung!H40,0) -> 197.736 | M40: =IF(Basisdaten!$E$42<=9,Basisdaten!$K$42*Saisonalisierung!I40,0) -> 200.09 | N40: =IF(Basisdaten!$E$42<=10,Basisdaten!$K$42*Saisonalisierung!J40,0) -> 194.205 | O40: =IF(Basisdaten!$E$42<=11,Basisdaten!$K$42*Saisonalisierung!K40,0) -> 200.09 | P40: =IF(Basisdaten!$E$42<=12,Basisdaten!$K$42*Saisonalisierung!L40,0) -> 208.329
A41: 2 | B41: =Basisdaten!B43 -> 60 | C41: =Basisdaten!A43 -> Andreas Göllner | D41: =Basisdaten!U43 -> 2022 | E41: =IF(Basisdaten!$E$43=1,Basisdaten!$K$43*Saisonalisierung!A41,0) -> 177.727 | F41: =IF(Basisdaten!$E$43<=2,Basisdaten!$K$43*Saisonalisierung!B41,0) -> 181.258 | G41: =IF(Basisdaten!$E$43<=3,Basisdaten!$K$43*Saisonalisierung!C41,0) -> 209.506 | H41: =IF(Basisdaten!$E$43<=4,Basisdaten!$K$43*Saisonalisierung!D41,0) -> 197.736 | I41: =IF(Basisdaten!$E$43<=5,Basisdaten!$K$43*Saisonalisierung!E41,0) -> 189.497 | J41: =IF(Basisdaten!$E$43<=6,Basisdaten!$K$43*Saisonalisierung!F41,0) -> 196.559 | K41: =IF(Basisdaten!$E$43<=7,Basisdaten!$K$43*Saisonalisierung!G41,0) -> 201.267 | L41: =IF(Basisdaten!$E$43<=8,Basisdaten!$K$43*Saisonalisierung!H41,0) -> 197.736 | M41: =IF(Basisdaten!$E$43<=9,Basisdaten!$K$43*Saisonalisierung!I41,0) -> 200.09 | N41: =IF(Basisdaten!$E$43<=10,Basisdaten!$K$43*Saisonalisierung!J41,0) -> 194.205 | O41: =IF(Basisdaten!$E$43<=11,Basisdaten!$K$43*Saisonalisierung!K41,0) -> 200.09 | P41: =IF(Basisdaten!$E$43<=12,Basisdaten!$K$43*Saisonalisierung!L41,0) -> 208.329
A42: 2 | B42: =Basisdaten!B44 -> 60 | C42: =Basisdaten!A44 -> Marcus Stangl | D42: =Basisdaten!U44 -> 2022 | E42: =IF(Basisdaten!$E$44=1,Basisdaten!$K$44*Saisonalisierung!A42,0) -> 177.727 | F42: =IF(Basisdaten!$E$44<=2,Basisdaten!$K$44*Saisonalisierung!B42,0) -> 181.258 | G42: =IF(Basisdaten!$E$44<=3,Basisdaten!$K$44*Saisonalisierung!C42,0) -> 209.506 | H42: =IF(Basisdaten!$E$44<=4,Basisdaten!$K$44*Saisonalisierung!D42,0) -> 197.736 | I42: =IF(Basisdaten!$E$44<=5,Basisdaten!$K$44*Saisonalisierung!E42,0) -> 189.497 | J42: =IF(Basisdaten!$E$44<=6,Basisdaten!$K$44*Saisonalisierung!F42,0) -> 196.559 | K42: =IF(Basisdaten!$E$44<=7,Basisdaten!$K$44*Saisonalisierung!G42,0) -> 201.267 | L42: =IF(Basisdaten!$E$44<=8,Basisdaten!$K$44*Saisonalisierung!H42,0) -> 197.736 | M42: =IF(Basisdaten!$E$44<=9,Basisdaten!$K$44*Saisonalisierung!I42,0) -> 200.09 | N42: =IF(Basisdaten!$E$44<=10,Basisdaten!$K$44*Saisonalisierung!J42,0) -> 194.205 | O42: =IF(Basisdaten!$E$44<=11,Basisdaten!$K$44*Saisonalisierung!K42,0) -> 200.09 | P42: =IF(Basisdaten!$E$44<=12,Basisdaten!$K$44*Saisonalisierung!L42,0) -> 208.329
A43: 2 | B43: =Basisdaten!B45 -> 60 | C43: =Basisdaten!A45 -> Christoph Rottenkolber | D43: =Basisdaten!U45 -> 2022 | E43: =IF(Basisdaten!$E$45=1,Basisdaten!$K$45*Saisonalisierung!A43,0) -> 0 | F43: =IF(Basisdaten!$E$45<=2,Basisdaten!$K$45*Saisonalisierung!B43,0) -> 0 | G43: =IF(Basisdaten!$E$45<=3,Basisdaten!$K$45*Saisonalisierung!C43,0) -> 0 | H43: =IF(Basisdaten!$E$45<=4,Basisdaten!$K$45*Saisonalisierung!D43,0) -> 197.736 | I43: =IF(Basisdaten!$E$45<=5,Basisdaten!$K$45*Saisonalisierung!E43,0) -> 189.497 | J43: =IF(Basisdaten!$E$45<=6,Basisdaten!$K$45*Saisonalisierung!F43,0) -> 196.559 | K43: =IF(Basisdaten!$E$45<=7,Basisdaten!$K$45*Saisonalisierung!G43,0) -> 201.267 | L43: =IF(Basisdaten!$E$45<=8,Basisdaten!$K$45*Saisonalisierung!H43,0) -> 197.736 | M43: =IF(Basisdaten!$E$45<=9,Basisdaten!$K$45*Saisonalisierung!I43,0) -> 200.09 | N43: =IF(Basisdaten!$E$45<=10,Basisdaten!$K$45*Saisonalisierung!J43,0) -> 194.205 | O43: =IF(Basisdaten!$E$45<=11,Basisdaten!$K$45*Saisonalisierung!K43,0) -> 200.09 | P43: =IF(Basisdaten!$E$45<=12,Basisdaten!$K$45*Saisonalisierung!L43,0) -> 208.329
A44: 2 | B44: =Basisdaten!B46 -> 60 | C44: =Basisdaten!A46 -> Michael Cattide - SCBI | D44: =Basisdaten!U46 -> 2022 | E44: =IF(Basisdaten!$E$46=1,Basisdaten!$K$46*Saisonalisierung!A44,0) -> 177.727 | F44: =IF(Basisdaten!$E$46<=2,Basisdaten!$K$46*Saisonalisierung!B44,0) -> 181.258 | G44: =IF(Basisdaten!$E$46<=3,Basisdaten!$K$46*Saisonalisierung!C44,0) -> 209.506 | H44: =IF(Basisdaten!$E$46<=4,Basisdaten!$K$46*Saisonalisierung!D44,0) -> 197.736 | I44: =IF(Basisdaten!$E$46<=5,Basisdaten!$K$46*Saisonalisierung!E44,0) -> 189.497 | J44: =IF(Basisdaten!$E$46<=6,Basisdaten!$K$46*Saisonalisierung!F44,0) -> 196.559 | K44: =IF(Basisdaten!$E$46<=7,Basisdaten!$K$46*Saisonalisierung!G44,0) -> 201.267 | L44: =IF(Basisdaten!$E$46<=8,Basisdaten!$K$46*Saisonalisierung!H44,0) -> 197.736 | M44: =IF(Basisdaten!$E$46<=9,Basisdaten!$K$46*Saisonalisierung!I44,0) -> 200.09 | N44: =IF(Basisdaten!$E$46<=10,Basisdaten!$K$46*Saisonalisierung!J44,0) -> 194.205 | O44: =IF(Basisdaten!$E$46<=11,Basisdaten!$K$46*Saisonalisierung!K44,0) -> 200.09 | P44: =IF(Basisdaten!$E$46<=12,Basisdaten!$K$46*Saisonalisierung!L44,0) -> 208.329
A45: 2 | B45: =Basisdaten!B47 -> 60 | C45: =Basisdaten!A47 -> Dennis Grohmann | D45: =Basisdaten!U47 -> 2022 | E45: =IF(Basisdaten!$E$47=1,Basisdaten!$K$47*Saisonalisierung!A45,0) -> 0 | F45: =IF(Basisdaten!$E$47<=2,Basisdaten!$K$47*Saisonalisierung!B45,0) -> 0 | G45: =IF(Basisdaten!$E$47<=3,Basisdaten!$K$47*Saisonalisierung!C45,0) -> 0 | H45: =IF(Basisdaten!$E$47<=4,Basisdaten!$K$47*Saisonalisierung!D45,0) -> 0 | I45: =IF(Basisdaten!$E$47<=5,Basisdaten!$K$47*Saisonalisierung!E45,0) -> 0 | J45: =IF(Basisdaten!$E$47<=6,Basisdaten!$K$47*Saisonalisierung!F45,0) -> 0 | K45: =IF(Basisdaten!$E$47<=7,Basisdaten!$K$47*Saisonalisierung!G45,0) -> 0 | L45: =IF(Basisdaten!$E$47<=8,Basisdaten!$K$47*Saisonalisierung!H45,0) -> 0 | M45: =IF(Basisdaten!$E$47<=9,Basisdaten!$K$47*Saisonalisierung!I45,0) -> 0 | N45: =IF(Basisdaten!$E$47<=10,Basisdaten!$K$47*Saisonalisierung!J45,0) -> 0 | O45: =IF(Basisdaten!$E$47<=11,Basisdaten!$K$47*Saisonalisierung!K45,0) -> 0 | P45: =IF(Basisdaten!$E$47<=12,Basisdaten!$K$47*Saisonalisierung!L45,0) -> 0
A46: 2 | B46: =Basisdaten!B48 -> 60 | C46: =Basisdaten!A48 -> Simone Groß - SCBZ | D46: =Basisdaten!U48 -> 2022 | E46: =IF(Basisdaten!$E$48=1,Basisdaten!$K$48*Saisonalisierung!A46,0) -> 177.727 | F46: =IF(Basisdaten!$E$48<=2,Basisdaten!$K$48*Saisonalisierung!B46,0) -> 181.258 | G46: =IF(Basisdaten!$E$48<=3,Basisdaten!$K$48*Saisonalisierung!C46,0) -> 209.506 | H46: =IF(Basisdaten!$E$48<=4,Basisdaten!$K$48*Saisonalisierung!D46,0) -> 197.736 | I46: =IF(Basisdaten!$E$48<=5,Basisdaten!$K$48*Saisonalisierung!E46,0) -> 189.497 | J46: =IF(Basisdaten!$E$48<=6,Basisdaten!$K$48*Saisonalisierung!F46,0) -> 196.559 | K46: =IF(Basisdaten!$E$48<=7,Basisdaten!$K$48*Saisonalisierung!G46,0) -> 201.267 | L46: =IF(Basisdaten!$E$48<=8,Basisdaten!$K$48*Saisonalisierung!H46,0) -> 197.736 | M46: =IF(Basisdaten!$E$48<=9,Basisdaten!$K$48*Saisonalisierung!I46,0) -> 200.09 | N46: =IF(Basisdaten!$E$48<=10,Basisdaten!$K$48*Saisonalisierung!J46,0) -> 194.205 | O46: =IF(Basisdaten!$E$48<=11,Basisdaten!$K$48*Saisonalisierung!K46,0) -> 200.09 | P46: =IF(Basisdaten!$E$48<=12,Basisdaten!$K$48*Saisonalisierung!L46,0) -> 208.329
A47: 1 | B47: =Basisdaten!B49 -> 55 | C47: =Basisdaten!A49 -> Jens Haller | D47: =Basisdaten!U49 -> 2022 | E47: =IF(Basisdaten!$E$49=1,Basisdaten!$K$49*Saisonalisierung!A47,0) -> 177.727 | F47: =IF(Basisdaten!$E$49<=2,Basisdaten!$K$49*Saisonalisierung!B47,0) -> 181.258 | G47: =IF(Basisdaten!$E$49<=3,Basisdaten!$K$49*Saisonalisierung!C47,0) -> 209.506 | H47: =IF(Basisdaten!$E$49<=4,Basisdaten!$K$49*Saisonalisierung!D47,0) -> 197.736 | I47: =IF(Basisdaten!$E$49<=5,Basisdaten!$K$49*Saisonalisierung!E47,0) -> 189.497 | J47: =IF(Basisdaten!$E$49<=6,Basisdaten!$K$49*Saisonalisierung!F47,0) -> 196.559 | K47: =IF(Basisdaten!$E$49<=7,Basisdaten!$K$49*Saisonalisierung!G47,0) -> 201.267 | L47: =IF(Basisdaten!$E$49<=8,Basisdaten!$K$49*Saisonalisierung!H47,0) -> 197.736 | M47: =IF(Basisdaten!$E$49<=9,Basisdaten!$K$49*Saisonalisierung!I47,0) -> 200.09 | N47: =IF(Basisdaten!$E$49<=10,Basisdaten!$K$49*Saisonalisierung!J47,0) -> 194.205 | O47: =IF(Basisdaten!$E$49<=11,Basisdaten!$K$49*Saisonalisierung!K47,0) -> 200.09 | P47: =IF(Basisdaten!$E$49<=12,Basisdaten!$K$49*Saisonalisierung!L47,0) -> 208.329
A48: 1 | B48: =Basisdaten!B50 -> 55 | C48: =Basisdaten!A50 -> Ioannis Tsesmelis_ | D48: =Basisdaten!U50 -> 2022 | E48: =IF(Basisdaten!$E$50=1,Basisdaten!$K$50*Saisonalisierung!A48,0) -> 0 | F48: =IF(Basisdaten!$E$50<=2,Basisdaten!$K$50*Saisonalisierung!B48,0) -> 0 | G48: =IF(Basisdaten!$E$50<=3,Basisdaten!$K$50*Saisonalisierung!C48,0) -> 0 | H48: =IF(Basisdaten!$E$50<=4,Basisdaten!$K$50*Saisonalisierung!D48,0) -> 0 | I48: =IF(Basisdaten!$E$50<=5,Basisdaten!$K$50*Saisonalisierung!E48,0) -> 0 | J48: =IF(Basisdaten!$E$50<=6,Basisdaten!$K$50*Saisonalisierung!F48,0) -> 0 | K48: =IF(Basisdaten!$E$50<=7,Basisdaten!$K$50*Saisonalisierung!G48,0) -> 0 | L48: =IF(Basisdaten!$E$50<=8,Basisdaten!$K$50*Saisonalisierung!H48,0) -> 0 | M48: =IF(Basisdaten!$E$50<=9,Basisdaten!$K$50*Saisonalisierung!I48,0) -> 0 | N48: =IF(Basisdaten!$E$50<=10,Basisdaten!$K$50*Saisonalisierung!J48,0) -> 0 | O48: =IF(Basisdaten!$E$50<=11,Basisdaten!$K$50*Saisonalisierung!K48,0) -> 0 | P48: =IF(Basisdaten!$E$50<=12,Basisdaten!$K$50*Saisonalisierung!L48,0) -> 0
A49: 1 | B49: =Basisdaten!B51 -> 55 | C49: =Basisdaten!A51 -> Matthias Mirga_GZ | D49: =Basisdaten!U51 -> 2022 | E49: =IF(Basisdaten!$E$51=1,Basisdaten!$K$51*Saisonalisierung!A49,0) -> 177.727 | F49: =IF(Basisdaten!$E$51<=2,Basisdaten!$K$51*Saisonalisierung!B49,0) -> 181.258 | G49: =IF(Basisdaten!$E$51<=3,Basisdaten!$K$51*Saisonalisierung!C49,0) -> 209.506 | H49: =IF(Basisdaten!$E$51<=4,Basisdaten!$K$51*Saisonalisierung!D49,0) -> 197.736 | I49: =IF(Basisdaten!$E$51<=5,Basisdaten!$K$51*Saisonalisierung!E49,0) -> 189.497 | J49: =IF(Basisdaten!$E$51<=6,Basisdaten!$K$51*Saisonalisierung!F49,0) -> 196.559 | K49: =IF(Basisdaten!$E$51<=7,Basisdaten!$K$51*Saisonalisierung!G49,0) -> 201.267 | L49: =IF(Basisdaten!$E$51<=8,Basisdaten!$K$51*Saisonalisierung!H49,0) -> 197.736 | M49: =IF(Basisdaten!$E$51<=9,Basisdaten!$K$51*Saisonalisierung!I49,0) -> 200.09 | N49: =IF(Basisdaten!$E$51<=10,Basisdaten!$K$51*Saisonalisierung!J49,0) -> 194.205 | O49: =IF(Basisdaten!$E$51<=11,Basisdaten!$K$51*Saisonalisierung!K49,0) -> 200.09 | P49: =IF(Basisdaten!$E$51<=12,Basisdaten!$K$51*Saisonalisierung!L49,0) -> 208.329
A50: 2 | B50: =Basisdaten!B52 -> 60 | C50: =Basisdaten!A52 -> Hakan Celik | D50: =Basisdaten!U52 -> 2022 | E50: =IF(Basisdaten!$E$52=1,Basisdaten!$K$52*Saisonalisierung!A50,0) -> 177.727 | F50: =IF(Basisdaten!$E$52<=2,Basisdaten!$K$52*Saisonalisierung!B50,0) -> 181.258 | G50: =IF(Basisdaten!$E$52<=3,Basisdaten!$K$52*Saisonalisierung!C50,0) -> 209.506 | H50: =IF(Basisdaten!$E$52<=4,Basisdaten!$K$52*Saisonalisierung!D50,0) -> 197.736 | I50: =IF(Basisdaten!$E$52<=5,Basisdaten!$K$52*Saisonalisierung!E50,0) -> 189.497 | J50: =IF(Basisdaten!$E$52<=6,Basisdaten!$K$52*Saisonalisierung!F50,0) -> 196.559 | K50: =IF(Basisdaten!$E$52<=7,Basisdaten!$K$52*Saisonalisierung!G50,0) -> 201.267 | L50: =IF(Basisdaten!$E$52<=8,Basisdaten!$K$52*Saisonalisierung!H50,0) -> 197.736 | M50: =IF(Basisdaten!$E$52<=9,Basisdaten!$K$52*Saisonalisierung!I50,0) -> 200.09 | N50: =IF(Basisdaten!$E$52<=10,Basisdaten!$K$52*Saisonalisierung!J50,0) -> 194.205 | O50: =IF(Basisdaten!$E$52<=11,Basisdaten!$K$52*Saisonalisierung!K50,0) -> 200.09 | P50: =IF(Basisdaten!$E$52<=12,Basisdaten!$K$52*Saisonalisierung!L50,0) -> 208.329
A51: 1 | B51: =Basisdaten!B53 -> 40 | C51: =Basisdaten!A53 -> Tom Sprongl | D51: =Basisdaten!U53 -> 2022 | E51: =IF(Basisdaten!$E$53=1,Basisdaten!$K$53*Saisonalisierung!A51,0) -> 177.727 | F51: =IF(Basisdaten!$E$53<=2,Basisdaten!$K$53*Saisonalisierung!B51,0) -> 181.258 | G51: =IF(Basisdaten!$E$53<=3,Basisdaten!$K$53*Saisonalisierung!C51,0) -> 209.506 | H51: =IF(Basisdaten!$E$53<=4,Basisdaten!$K$53*Saisonalisierung!D51,0) -> 197.736 | I51: =IF(Basisdaten!$E$53<=5,Basisdaten!$K$53*Saisonalisierung!E51,0) -> 189.497 | J51: =IF(Basisdaten!$E$53<=6,Basisdaten!$K$53*Saisonalisierung!F51,0) -> 196.559 | K51: =IF(Basisdaten!$E$53<=7,Basisdaten!$K$53*Saisonalisierung!G51,0) -> 201.267 | L51: =IF(Basisdaten!$E$53<=8,Basisdaten!$K$53*Saisonalisierung!H51,0) -> 197.736 | M51: =IF(Basisdaten!$E$53<=9,Basisdaten!$K$53*Saisonalisierung!I51,0) -> 200.09 | N51: =IF(Basisdaten!$E$53<=10,Basisdaten!$K$53*Saisonalisierung!J51,0) -> 194.205 | O51: =IF(Basisdaten!$E$53<=11,Basisdaten!$K$53*Saisonalisierung!K51,0) -> 200.09 | P51: =IF(Basisdaten!$E$53<=12,Basisdaten!$K$53*Saisonalisierung!L51,0) -> 208.329
B52: =Basisdaten!B54 -> 0 | C52: =Basisdaten!A54 -> SB 5 | D52: =Basisdaten!U54 -> 0 | E52: =IF(Basisdaten!$E$54=1,Basisdaten!$K$54*Saisonalisierung!A52,0) -> 0 | F52: =IF(Basisdaten!$E$54<=2,Basisdaten!$K$54*Saisonalisierung!B52,0) -> 0 | G52: =IF(Basisdaten!$E$54<=3,Basisdaten!$K$54*Saisonalisierung!C52,0) -> 0 | H52: =IF(Basisdaten!$E$54<=4,Basisdaten!$K$54*Saisonalisierung!D52,0) -> 0 | I52: =IF(Basisdaten!$E$54<=5,Basisdaten!$K$54*Saisonalisierung!E52,0) -> 0 | J52: =IF(Basisdaten!$E$54<=6,Basisdaten!$K$54*Saisonalisierung!F52,0) -> 0 | K52: =IF(Basisdaten!$E$54<=7,Basisdaten!$K$54*Saisonalisierung!G52,0) -> 0 | L52: =IF(Basisdaten!$E$54<=8,Basisdaten!$K$54*Saisonalisierung!H52,0) -> 0 | M52: =IF(Basisdaten!$E$54<=9,Basisdaten!$K$54*Saisonalisierung!I52,0) -> 0 | N52: =IF(Basisdaten!$E$54<=10,Basisdaten!$K$54*Saisonalisierung!J52,0) -> 0 | O52: =IF(Basisdaten!$E$54<=11,Basisdaten!$K$54*Saisonalisierung!K52,0) -> 0 | P52: =IF(Basisdaten!$E$54<=12,Basisdaten!$K$54*Saisonalisierung!L52,0) -> 0
B53: =Basisdaten!B55 -> 0 | C53: =Basisdaten!A55 -> SB 6 | D53: =Basisdaten!U55 -> 0 | E53: =IF(Basisdaten!$E$55=1,Basisdaten!$K$55*Saisonalisierung!A53,0) -> 0 | F53: =IF(Basisdaten!$E$55<=2,Basisdaten!$K$55*Saisonalisierung!B53,0) -> 0 | G53: =IF(Basisdaten!$E$55<=3,Basisdaten!$K$55*Saisonalisierung!C53,0) -> 0 | H53: =IF(Basisdaten!$E$55<=4,Basisdaten!$K$55*Saisonalisierung!D53,0) -> 0 | I53: =IF(Basisdaten!$E$55<=5,Basisdaten!$K$55*Saisonalisierung!E53,0) -> 0 | J53: =IF(Basisdaten!$E$55<=6,Basisdaten!$K$55*Saisonalisierung!F53,0) -> 0 | K53: =IF(Basisdaten!$E$55<=7,Basisdaten!$K$55*Saisonalisierung!G53,0) -> 0 | L53: =IF(Basisdaten!$E$55<=8,Basisdaten!$K$55*Saisonalisierung!H53,0) -> 0 | M53: =IF(Basisdaten!$E$55<=9,Basisdaten!$K$55*Saisonalisierung!I53,0) -> 0 | N53: =IF(Basisdaten!$E$55<=10,Basisdaten!$K$55*Saisonalisierung!J53,0) -> 0 | O53: =IF(Basisdaten!$E$55<=11,Basisdaten!$K$55*Saisonalisierung!K53,0) -> 0 | P53: =IF(Basisdaten!$E$55<=12,Basisdaten!$K$55*Saisonalisierung!L53,0) -> 0
B54: =Basisdaten!B56 -> 0 | C54: =Basisdaten!A56 -> SB 7 | D54: =Basisdaten!U56 -> 0 | E54: =IF(Basisdaten!$E$56=1,Basisdaten!$K$56*Saisonalisierung!A54,0) -> 0 | F54: =IF(Basisdaten!$E$56<=2,Basisdaten!$K$56*Saisonalisierung!B54,0) -> 0 | G54: =IF(Basisdaten!$E$56<=3,Basisdaten!$K$56*Saisonalisierung!C54,0) -> 0 | H54: =IF(Basisdaten!$E$56<=4,Basisdaten!$K$56*Saisonalisierung!D54,0) -> 0 | I54: =IF(Basisdaten!$E$56<=5,Basisdaten!$K$56*Saisonalisierung!E54,0) -> 0 | J54: =IF(Basisdaten!$E$56<=6,Basisdaten!$K$56*Saisonalisierung!F54,0) -> 0 | K54: =IF(Basisdaten!$E$56<=7,Basisdaten!$K$56*Saisonalisierung!G54,0) -> 0 | L54: =IF(Basisdaten!$E$56<=8,Basisdaten!$K$56*Saisonalisierung!H54,0) -> 0 | M54: =IF(Basisdaten!$E$56<=9,Basisdaten!$K$56*Saisonalisierung!I54,0) -> 0 | N54: =IF(Basisdaten!$E$56<=10,Basisdaten!$K$56*Saisonalisierung!J54,0) -> 0 | O54: =IF(Basisdaten!$E$56<=11,Basisdaten!$K$56*Saisonalisierung!K54,0) -> 0 | P54: =IF(Basisdaten!$E$56<=12,Basisdaten!$K$56*Saisonalisierung!L54,0) -> 0
B55: =Basisdaten!B57 -> 0 | C55: =Basisdaten!A57 -> SB 8 | D55: =Basisdaten!U57 -> 0 | E55: =IF(Basisdaten!$E$57=1,Basisdaten!$K$57*Saisonalisierung!A55,0) -> 0 | F55: =IF(Basisdaten!$E$57<=2,Basisdaten!$K$57*Saisonalisierung!B55,0) -> 0 | G55: =IF(Basisdaten!$E$57<=3,Basisdaten!$K$57*Saisonalisierung!C55,0) -> 0 | H55: =IF(Basisdaten!$E$57<=4,Basisdaten!$K$57*Saisonalisierung!D55,0) -> 0 | I55: =IF(Basisdaten!$E$57<=5,Basisdaten!$K$57*Saisonalisierung!E55,0) -> 0 | J55: =IF(Basisdaten!$E$57<=6,Basisdaten!$K$57*Saisonalisierung!F55,0) -> 0 | K55: =IF(Basisdaten!$E$57<=7,Basisdaten!$K$57*Saisonalisierung!G55,0) -> 0 | L55: =IF(Basisdaten!$E$57<=8,Basisdaten!$K$57*Saisonalisierung!H55,0) -> 0 | M55: =IF(Basisdaten!$E$57<=9,Basisdaten!$K$57*Saisonalisierung!I55,0) -> 0 | N55: =IF(Basisdaten!$E$57<=10,Basisdaten!$K$57*Saisonalisierung!J55,0) -> 0 | O55: =IF(Basisdaten!$E$57<=11,Basisdaten!$K$57*Saisonalisierung!K55,0) -> 0 | P55: =IF(Basisdaten!$E$57<=12,Basisdaten!$K$57*Saisonalisierung!L55,0) -> 0
